{"text_format":"1","workbook":"xlsx","n_sheets":8,"sheets":["Presentación","Huella Minima","Huella Completa","Resultados","Datos_presupuesto","Calculos 1","Calculos 2","Factores de emision"],"not_rendered":{"charts":2,"images":41,"macros":1,"external_links":0,"defined_names":39,"comments":0,"pivot_tables":0},"unopened":[],"bounds":{"document_bytes":16777216,"sheet_cells":100000,"rows_first":2000,"rows_last":500,"rows_between":2000,"halvings":0,"cell_chars":16384,"cell_head_chars":4096},"cells_cut":0,"cells_raw":0,"read":"whole","date_system":"1900"}

{"sheet":"Presentación","index":0,"n_rows":0,"n_cols":0,"rows_kept":0,"cut":false,"hidden":false,"merged":[]}

{"sheet":"Huella Minima","index":1,"n_rows":15,"n_cols":3,"rows_kept":15,"cut":false,"hidden":false,"merged":[]}
[]
[]
[]
[]
[]
[]
[]
["Huella Mínima",{"$f":"'Calculos 1'!C251","v":0},"kg CO2"]
[]
[]
["Para compensar el impacto de huella mínima la producción en emisiones de gases de efecto invernadero:"]
[]
[{"$f":"CONCATENATE(\"Habria que plantar \",compensacion_hm,\" árboles y mantenerlos durante 30 años.\")","v":"Habria que plantar 0 árboles y mantenerlos durante 30 años."}]
[]
["Este resultado no es el impacto al completo tán solo una aproximación."]

{"sheet":"Huella Completa","index":2,"n_rows":210,"n_cols":5,"rows_kept":210,"cut":false,"hidden":false,"merged":[[6,2,6,3],[5,2,5,3]]}
[]
[]
[]
[]
[]
["0.1","Título de la producción:"]
["0.2","Presupuesto total en €: "]
[]
[null,null,"Nº de días de trabajo","Nº de personas ","Presupuesto en €"]
["0.3","Preproducción"]
["0.4","Producción"]
["0.5","Postproducción"]
[]
[]
[]
[]
[]
[]
[]
[]
[]
[null,"¿Se ha usado vehículo compartido en los traslados de preproducción?"]
[null,"¿Ha usado vehículos híbridos o electrícos en para el transporte?"]
[]
[null,null,"Cantidad en litros","Tipo de Combustible"]
["1.1","Combustible consumido en viajes en coche o furgoneta."]
["1.2","Combustible consumido en viajes en coche o furgoneta."]
["1.3","Combustible consumido en viajes en coche o furgoneta."]
["1.4","Combustible consumido en viajes en coche o furgoneta."]
["1.5","Combustible consumido en viajes en coche o furgoneta."]
["1.6","Combustible consumido en viajes en coche o furgoneta."]
["1.7","Combustible consumido en viajes en coche o furgoneta."]
["1.8","Combustible consumido en viajes en coche o furgoneta."]
["1.9","Combustible consumido en viajes en coche o furgoneta."]
["1.10","Combustible consumido en viajes en coche o furgoneta."]
[]
[]
[]
[null,null,"Medio de transporte","Nº de personas","Km Aproximados"]
["2.1","Viaje 1"]
["2.2","Viaje 2"]
["2.3","Viaje 3"]
["2.4","Viaje 4"]
["2.5","Viaje 5"]
["2.6","Viaje 6"]
["2.7","Viaje 7"]
["2.8","Viaje 8"]
["2.9","Viaje 9"]
["2.10","Viaje 10"]
[]
[]
[]
[null,"¿Se ha tenido en cuenta contratar hoteles con certificado de sostenibilidad?"]
[]
[null,null,"Nº de noches","Nº de personas"]
["3.1","Hotel 1"]
["3.2","Hotel 2"]
["3.3","Hotel 3"]
["3.4","Hotel 4"]
["3.5","Hotel 5"]
["3.6","Hotel 6"]
["3.7","Hotel 7"]
["3.8","Hotel 8"]
["3.9","Hotel 9"]
["3.10","Hotel 10"]
[]
[]
[]
[]
[]
[]
[]
[null,"¿Se ha usado vehículo compartido en los traslados de la producción?"]
[null,"¿Ha usado vehículos híbrido o eléctricos en para el transporte?"]
[]
[null,null,"Cantidad en litros","Tipo de Combustible"]
["4.1","Combustible consumido en viajes en coche o furgon."]
["4.2","Combustible consumido en viajes en coche o furgon."]
["4.3","Combustible consumido en viajes en coche o furgon."]
["4.4","Combustible consumido en viajes en coche o furgon."]
["4.5","Combustible consumido en viajes en coche o furgon."]
["4.6","Combustible consumido en viajes en coche o furgon."]
["4.7","Combustible consumido en viajes en coche o furgon."]
["4.8","Combustible consumido en viajes en coche o furgon."]
["4.9","Combustible consumido en viajes en coche o furgon."]
["4.10","Combustible consumido en viajes en coche o furgon."]
[]
[]
[]
[null,null,"Medio ","Nº de personas","Km Aproximados"]
["5.1","Viaje 1"]
["5.2","Viaje 2"]
["5.3","Viaje 3"]
["5.4","Viaje 4"]
["5.5","Viaje 5"]
["5.6","Viaje 6"]
["5.7","Viaje 7"]
["5.8","Viaje 8"]
["5.9","Viaje 9"]
["5.10","Viaje 10"]
[]
[]
[]
[]
[null,"¿Se ha buscado minimizar la distancia entre el hotel y el set de rodaje?"]
[null,"¿Se ha tenido en cuenta contratar hoteles con certificado de sostenibilidad?"]
[]
[null,null,"Nº de noches","Nº de personas"]
["6.1","Hotel 1"]
["6.2","Hotel 2"]
["6.3","Hotel 3"]
["6.4","Hotel 4"]
["6.5","Hotel 5"]
["6.6","Hotel 6"]
["6.7","Hotel 7"]
["6.8","Hotel 8"]
["6.9","Hotel 9"]
["6.10","Hotel 10"]
[]
[]
[]
[null,"¿Se ha contado con opción de catering vegetariano?"]
[null,"¿Se ha contratado un catering que provea productos locales o de cercania?"]
[]
[null,null,"Nº de comidas","Nº de personas","Tipo de Catering"]
["7.1","Localización 1"]
["7.2","Localización 2"]
["7.3","Localización 3"]
["7.4","Localización 4"]
["7.5","Localización 5"]
["7.6","Localización 6"]
["7.7","Localización 7"]
["7.8","Localización 8"]
["7.9","Localización 9"]
["7.10","Localización 10"]
[]
[]
[]
[]
[null,"¿Se han utilizado generadores de electricos de gas o equipados con baterías?"]
[]
[null,"Consumo de combustible del grupo electrógeno","Nº de litros","Tipo de Combustible"]
["8.1","Grupo Electrógeno 1"]
["8.2","Grupo Electrógeno 2"]
["8.3","Grupo Electrógeno 3"]
[]
[]
[]
[null,"Electricidad consumida ","Kwh","Proveedor "]
["9.1","Lozalización 1"]
["9.2","Lozalización 2"]
["9.3","Localización 3"]
["9.4","Localización 4"]
["9.5","Localización 5"]
["9.6","Localización 6"]
["9.7","Localización 7"]
["9.8","Localización 8"]
["9.9","Localización 9"]
["9.10","Localización 10"]
[]
[]
[]
[]
["10.1","¿Se ha utilizado iluminación eficiente tipo led?"]
[null,null,"Potencia en Kw"]
["10.2","Potencia de la iluminación en el set de grabación"]
[]
[]
[]
[]
["11.1","¿Se ha priorizado la reutilización o el alquiler de decorados?"]
["11.2","¿Se ha priorizado el alquiler o reutilización de vesturario?"]
[]
[]
[]
[]
[]
["12.1","¿Se han fomentado las compras de productos con bajos residuos?"]
["12.2","¿Se han separado los residuos para su reciclaje?"]
["12.3","¿Se ha tenido en cuenta reducir el número de envases utilizando fuentes de agua, vasos y platos reutilizables, etc? "]
["12.4","¿Se ha priorizado la los alimentos a granel y con menor embalaje?"]
["12.5","¿Se ha priorizado usar los guiones y las hojas de rodaje en formato digital en lugar de impreso?"]
["12.6","¿Si se ha tenido que imprimir algún guión u hoja de rodaje se ha usado papel reciclado?"]
[]
[]
[]
[]
[]
[null,"¿Se ha intentado reutilizar el agua que se ha necesitado en el rodaje y no se ha usado?"]
[]
[null,"Consumo de agua en litros","Nº de litros",null," "]
["13.1","Localización 1"]
["13.2","Localización 2"]
["13.3","Localización 3"]
[]
[]
[]
[]
[]
[]
[]
[]
[]
[null,null,"Nº de días"]
["14.1","Edición de video"]
["14.2","Edición de sonido"]
["14.3","Foley"]
[null,null,"Gasto en €"]
["14.4","Efectos especiales"]
["14.5","Laboratorio"]

{"sheet":"Resultados","index":3,"n_rows":109,"n_cols":12,"rows_kept":109,"cut":false,"hidden":false,"merged":[[34,6,34,8],[95,2,95,14]]}
[]
[]
[]
[]
[]
[]
[]
[]
[]
[]
[]
[null,{"$f":"CONCATENATE(\"La huella de carbono de: \",Titulo,\" es de \",'Calculos 2'!N2,\" Toneladas de CO2 equivalentes (tonCO2eq)\",\n\"\",)","v":"La huella de carbono de:  es de 0 Toneladas de CO2 equivalentes (tonCO2eq)"}]
[]
[]
[null,"Emisiones por tipo de actividad",null,null,null,null,null,null,null,"Emisiones por fase de la producción."]
[]
[null,null,null,"tonCO2eq",null,null,null,null,null,null,null,"tonCO2eq"]
[null,null,"Transporte",{"$f":"'Calculos 2'!G2","v":0},null,null,null,null,null,null,"Preproducción",{"$f":"'Calculos 2'!K2","v":0}]
[null,null,"Hospedaje",{"$f":"'Calculos 2'!G3","v":0},null,null,null,null,null,null,"Producción",{"$f":"'Calculos 2'!K3","v":0}]
[null,null,"Electricidad generada y consumida",{"$f":"'Calculos 2'!G4","v":0},null,null,null,null,null,null,"Postproducción",{"$f":"'Calculos 2'!K4","v":0}]
[null,null,"Catering ",{"$f":"'Calculos 2'!G5","v":0}]
[null,null,"Escenografía",{"$f":"'Calculos 2'!G6","v":0}]
[null,null,"Adquisición y alquiler de maquinaría y elementos para el rodaje",{"$f":"'Calculos 2'!G7","v":0}]
[]
[]
[]
[]
[]
[]
[]
[null,"Para compensar el impacto de la producción en emisiones de gases de efecto invernadero:"]
[]
[null,{"$f":"CONCATENATE(\"Habria que plantar \",compensacion,\" árboles y mantenerlos durante 30 años.\")","v":"Habria que plantar 0 árboles y mantenerlos durante 30 años."}]
[]
[]
[null,"Indicadores"]
[null,"Kilogramos de CO2eq por € de presupuesto",null,null,null,{"$f":"'Calculos 2'!O2","v":{"$error":"#DIV/0!"}}]
[null,"Kilogramos de CO2eq por persona/dia de trabajo",null,null,null,{"$f":"'Calculos 2'!Q2","v":{"$error":"#DIV/0!"}}]
[]
[]
[]
[]
[]
[]
[]
[]
[null,null,{"$f":"'Calculos 2'!E17","v":" "}]
[]
[]
[]
[null,null,null,{"$f":"'Calculos 2'!E18","v":"¡Recuerda! para los transportes en bus, tren o avión el tren es el transporte con menor huella de carbono, selecciónalo siempre que sea posible."}]
[]
[]
[]
[null,null,{"$f":"'Calculos 2'!E19","v":" "}]
[]
[]
[]
[]
[]
[]
[]
[]
[null,null,{"$f":"'Calculos 2'!E21","v":" "}]
[]
[]
[]
[null,null,null,{"$f":"'Calculos 2'!E22","v":"¡Recuerda! para los transportes en bus, tren o avión el tren es el transporte con menor huella de carbono, selecciónalo siempre que sea posible."}]
[]
[]
[]
[null,null,{"$f":"'Calculos 2'!E23","v":" "}]
[null,null,{"$f":"'Calculos 2'!E24","v":" "}]
[]
[]
[]
[null,null,{"$f":"'Calculos 2'!E25","v":" "}]
[null,null,{"$f":"'Calculos 2'!E26","v":" "}]
[]
[]
[null,null,{"$f":"'Calculos 2'!E27","v":" "}]
[]
[]
[]
[null,null,{"$f":"'Calculos 2'!E28","v":"Contratando proveedores eléctricos de energía renovables te garantizas que todo tu consumo eléctrico de la red es libre de emisiones de gases de efecto invernadero."}]
[]
[]
[null,null,{"$f":"'Calculos 2'!E29","v":" "}]
[]
[]
[]
[null,null,{"$f":"'Calculos 2'!E30","v":"Priorizar en el alquiler en lugar de la compra de decorados, vestuario, etc siempre repercute en la reducción de la huella de carbono de la producción."}]
[]
[]
[]
[null,null,{"$f":"'Calculos 2'!E31","v":"En la gestión de residuos hay una máxima reducir, reutilizar y reciclar. Está máxima además va por orden: reducir el número de productos que se comprar y que luego se desechan. Reutilizar siempre que sea posible. En ultimo caso todos nuestros residuos deben reciclarse. Con esta regla además de optimizar los recursos estamos reduciendo la huella de carbono de la producción audiovisual."}]
[]
[]
[null,null,{"$f":"'Calculos 2'!E34","v":" "}]
[]
[]
[]
[]
[]
[]
[]
[]
[]
[null,null,"La postproducción puede ser más sostenible si se usan provedores de energía electrica que provengan de fuentes renovables para realizar todas las acciones que requieran consumo eléctrico."]

{"sheet":"Datos_presupuesto","index":4,"n_rows":0,"n_cols":0,"rows_kept":0,"cut":false,"hidden":false,"merged":[]}

{"sheet":"Calculos 1","index":5,"n_rows":251,"n_cols":10,"rows_kept":251,"cut":false,"hidden":false,"merged":[[0,7,2,7]]}
["Códigos","Formula",null,null,null,null,null,"Escenografía","emi_04.01","Decorados y escenarios"]
["04.01.01",{"$f":"VLOOKUP(A2,Datos_presupuesto!A1:H252,5,FALSE)+VLOOKUP(A2,Datos_presupuesto!A1:H252,6,FALSE)+VLOOKUP(A2,Datos_presupuesto!A1:H252,7,FALSE)+VLOOKUP(A2,Datos_presupuesto!A1:H252,8,FALSE)","v":{"$error":"#N/A"}},null,null,null,null,null,null,"emi_04.02","Ambientación"]
["04.01.02",{"$f":"VLOOKUP(A3,Datos_presupuesto!A2:H253,5,FALSE)+VLOOKUP(A3,Datos_presupuesto!A2:H253,6,FALSE)+VLOOKUP(A3,Datos_presupuesto!A2:H253,7,FALSE)+VLOOKUP(A3,Datos_presupuesto!A2:H253,8,FALSE)","v":{"$error":"#N/A"}},null,null,null,null,null,null,"emi_04.03","Vestuario"]
["04.01.03",{"$f":"VLOOKUP(A4,Datos_presupuesto!A3:H254,5,FALSE)+VLOOKUP(A4,Datos_presupuesto!A3:H254,6,FALSE)+VLOOKUP(A4,Datos_presupuesto!A3:H254,7,FALSE)+VLOOKUP(A4,Datos_presupuesto!A3:H254,8,FALSE)","v":{"$error":"#N/A"}}]
["04.01.04",{"$f":"VLOOKUP(A5,Datos_presupuesto!A4:H255,5,FALSE)+VLOOKUP(A5,Datos_presupuesto!A4:H255,6,FALSE)+VLOOKUP(A5,Datos_presupuesto!A4:H255,7,FALSE)+VLOOKUP(A5,Datos_presupuesto!A4:H255,8,FALSE)","v":{"$error":"#N/A"}},null,null,null,null,null,null,"emi_05.03","Varios producción"]
["04.01.05",{"$f":"VLOOKUP(A6,Datos_presupuesto!A5:H256,5,FALSE)+VLOOKUP(A6,Datos_presupuesto!A5:H256,6,FALSE)+VLOOKUP(A6,Datos_presupuesto!A5:H256,7,FALSE)+VLOOKUP(A6,Datos_presupuesto!A5:H256,8,FALSE)","v":{"$error":"#N/A"}},null,null,null,null,null,null,"emi_06.01","Adquisición de alquiler de maquinaria y elementos de rodaje"]
["04.01.06",{"$f":"VLOOKUP(A7,Datos_presupuesto!A6:H257,5,FALSE)+VLOOKUP(A7,Datos_presupuesto!A6:H257,6,FALSE)+VLOOKUP(A7,Datos_presupuesto!A6:H257,7,FALSE)+VLOOKUP(A7,Datos_presupuesto!A6:H257,8,FALSE)","v":{"$error":"#N/A"}},{"$f":"SUM(B2:B7)*'Factores de emision'!D28","v":{"$error":"#N/A"}}]
[]
["04.01.07",{"$f":"VLOOKUP(A9,Datos_presupuesto!A8:H259,5,FALSE)+VLOOKUP(A9,Datos_presupuesto!A8:H259,6,FALSE)+VLOOKUP(A9,Datos_presupuesto!A8:H259,7,FALSE)+VLOOKUP(A9,Datos_presupuesto!A8:H259,8,FALSE)","v":{"$error":"#N/A"}}]
["04.01.08",{"$f":"VLOOKUP(A10,Datos_presupuesto!A9:H260,5,FALSE)+VLOOKUP(A10,Datos_presupuesto!A9:H260,6,FALSE)+VLOOKUP(A10,Datos_presupuesto!A9:H260,7,FALSE)+VLOOKUP(A10,Datos_presupuesto!A9:H260,8,FALSE)","v":{"$error":"#N/A"}},{"$f":"B9+B10*'Factores de emision'!D28/10","v":{"$error":"#N/A"}},null,"emi_04.01",{"$f":"C7+C10","v":{"$error":"#N/A"}}]
[]
["04.02.01",{"$f":"VLOOKUP(A12,Datos_presupuesto!A11:H262,5,FALSE)+VLOOKUP(A12,Datos_presupuesto!A11:H262,6,FALSE)+VLOOKUP(A12,Datos_presupuesto!A11:H262,7,FALSE)+VLOOKUP(A12,Datos_presupuesto!A11:H262,8,FALSE)","v":{"$error":"#N/A"}}]
["04.02.02",{"$f":"VLOOKUP(A13,Datos_presupuesto!A12:H263,5,FALSE)+VLOOKUP(A13,Datos_presupuesto!A12:H263,6,FALSE)+VLOOKUP(A13,Datos_presupuesto!A12:H263,7,FALSE)+VLOOKUP(A13,Datos_presupuesto!A12:H263,8,FALSE)","v":{"$error":"#N/A"}},{"$f":"B12+B13*'Factores de emision'!D28/10","v":{"$error":"#N/A"}}]
[]
["04.02.03",{"$f":"VLOOKUP(A15,Datos_presupuesto!A14:H265,5,FALSE)+VLOOKUP(A15,Datos_presupuesto!A14:H265,6,FALSE)+VLOOKUP(A15,Datos_presupuesto!A14:H265,7,FALSE)+VLOOKUP(A15,Datos_presupuesto!A14:H265,8,FALSE)","v":{"$error":"#N/A"}}]
["02.08.06",{"$f":"VLOOKUP(A16,Datos_presupuesto!A15:H266,5,FALSE)+VLOOKUP(A16,Datos_presupuesto!A15:H266,6,FALSE)+VLOOKUP(A16,Datos_presupuesto!A15:H266,7,FALSE)+VLOOKUP(A16,Datos_presupuesto!A15:H266,8,FALSE)","v":{"$error":"#N/A"}}]
["04.02.05",{"$f":"VLOOKUP(A17,Datos_presupuesto!A16:H267,5,FALSE)+VLOOKUP(A17,Datos_presupuesto!A16:H267,6,FALSE)+VLOOKUP(A17,Datos_presupuesto!A16:H267,7,FALSE)+VLOOKUP(A17,Datos_presupuesto!A16:H267,8,FALSE)","v":{"$error":"#N/A"}}]
["04.02.06",{"$f":"VLOOKUP(A18,Datos_presupuesto!A17:H268,5,FALSE)+VLOOKUP(A18,Datos_presupuesto!A17:H268,6,FALSE)+VLOOKUP(A18,Datos_presupuesto!A17:H268,7,FALSE)+VLOOKUP(A18,Datos_presupuesto!A17:H268,8,FALSE)","v":{"$error":"#N/A"}},{"$f":"SUM(B15:B18)*'Factores de emision'!D28","v":{"$error":"#N/A"}},null,"emi_04.02",{"$f":"C18","v":{"$error":"#N/A"}}]
[]
["04.03.01",{"$f":"VLOOKUP(A20,Datos_presupuesto!A19:H270,5,FALSE)+VLOOKUP(A20,Datos_presupuesto!A19:H270,6,FALSE)+VLOOKUP(A20,Datos_presupuesto!A19:H270,7,FALSE)+VLOOKUP(A20,Datos_presupuesto!A19:H270,8,FALSE)","v":{"$error":"#N/A"}}]
["04.03.02",{"$f":"VLOOKUP(A21,Datos_presupuesto!A20:H271,5,FALSE)+VLOOKUP(A21,Datos_presupuesto!A20:H271,6,FALSE)+VLOOKUP(A21,Datos_presupuesto!A20:H271,7,FALSE)+VLOOKUP(A21,Datos_presupuesto!A20:H271,8,FALSE)","v":{"$error":"#N/A"}}]
["04.03.03",{"$f":"VLOOKUP(A22,Datos_presupuesto!A21:H272,5,FALSE)+VLOOKUP(A22,Datos_presupuesto!A21:H272,6,FALSE)+VLOOKUP(A22,Datos_presupuesto!A21:H272,7,FALSE)+VLOOKUP(A22,Datos_presupuesto!A21:H272,8,FALSE)","v":{"$error":"#N/A"}}]
["04.03.04",{"$f":"VLOOKUP(A23,Datos_presupuesto!A22:H273,5,FALSE)+VLOOKUP(A23,Datos_presupuesto!A22:H273,6,FALSE)+VLOOKUP(A23,Datos_presupuesto!A22:H273,7,FALSE)+VLOOKUP(A23,Datos_presupuesto!A22:H273,8,FALSE)","v":{"$error":"#N/A"}}]
["04.03.05",{"$f":"VLOOKUP(A24,Datos_presupuesto!A23:H274,5,FALSE)+VLOOKUP(A24,Datos_presupuesto!A23:H274,6,FALSE)+VLOOKUP(A24,Datos_presupuesto!A23:H274,7,FALSE)+VLOOKUP(A24,Datos_presupuesto!A23:H274,8,FALSE)","v":{"$error":"#N/A"}}]
["04.03.06",{"$f":"VLOOKUP(A25,Datos_presupuesto!A24:H275,5,FALSE)+VLOOKUP(A25,Datos_presupuesto!A24:H275,6,FALSE)+VLOOKUP(A25,Datos_presupuesto!A24:H275,7,FALSE)+VLOOKUP(A25,Datos_presupuesto!A24:H275,8,FALSE)","v":{"$error":"#N/A"}},{"$f":"SUM((B20/10)+B21+B22+B23+B24+B25)*'Factores de emision'!D42","v":{"$error":"#N/A"}},null,"emi_04.03",{"$f":"C25","v":{"$error":"#N/A"}}]
[]
["05.03.01",{"$f":"VLOOKUP(A27,Datos_presupuesto!A26:H277,5,FALSE)+VLOOKUP(A27,Datos_presupuesto!A26:H277,6,FALSE)+VLOOKUP(A27,Datos_presupuesto!A26:H277,7,FALSE)+VLOOKUP(A27,Datos_presupuesto!A26:H277,8,FALSE)","v":{"$error":"#N/A"}}]
["05.03.02",{"$f":"VLOOKUP(A28,Datos_presupuesto!A27:H278,5,FALSE)+VLOOKUP(A28,Datos_presupuesto!A27:H278,6,FALSE)+VLOOKUP(A28,Datos_presupuesto!A27:H278,7,FALSE)+VLOOKUP(A28,Datos_presupuesto!A27:H278,8,FALSE)","v":{"$error":"#N/A"}}]
["05.03.03",{"$f":"VLOOKUP(A29,Datos_presupuesto!A28:H279,5,FALSE)+VLOOKUP(A29,Datos_presupuesto!A28:H279,6,FALSE)+VLOOKUP(A29,Datos_presupuesto!A28:H279,7,FALSE)+VLOOKUP(A29,Datos_presupuesto!A28:H279,8,FALSE)","v":{"$error":"#N/A"}}]
["05.03.04",{"$f":"VLOOKUP(A30,Datos_presupuesto!A29:H280,5,FALSE)+VLOOKUP(A30,Datos_presupuesto!A29:H280,6,FALSE)+VLOOKUP(A30,Datos_presupuesto!A29:H280,7,FALSE)+VLOOKUP(A30,Datos_presupuesto!A29:H280,8,FALSE)","v":{"$error":"#N/A"}}]
["05.03.05",{"$f":"VLOOKUP(A31,Datos_presupuesto!A30:H281,5,FALSE)+VLOOKUP(A31,Datos_presupuesto!A30:H281,6,FALSE)+VLOOKUP(A31,Datos_presupuesto!A30:H281,7,FALSE)+VLOOKUP(A31,Datos_presupuesto!A30:H281,8,FALSE)","v":{"$error":"#N/A"}}]
["05.03.06",{"$f":"VLOOKUP(A32,Datos_presupuesto!A31:H282,5,FALSE)+VLOOKUP(A32,Datos_presupuesto!A31:H282,6,FALSE)+VLOOKUP(A32,Datos_presupuesto!A31:H282,7,FALSE)+VLOOKUP(A32,Datos_presupuesto!A31:H282,8,FALSE)","v":{"$error":"#N/A"}}]
["05.03.07",{"$f":"VLOOKUP(A33,Datos_presupuesto!A32:H283,5,FALSE)+VLOOKUP(A33,Datos_presupuesto!A32:H283,6,FALSE)+VLOOKUP(A33,Datos_presupuesto!A32:H283,7,FALSE)+VLOOKUP(A33,Datos_presupuesto!A32:H283,8,FALSE)","v":{"$error":"#N/A"}}]
["05.03.08",{"$f":"VLOOKUP(A34,Datos_presupuesto!A33:H284,5,FALSE)+VLOOKUP(A34,Datos_presupuesto!A33:H284,6,FALSE)+VLOOKUP(A34,Datos_presupuesto!A33:H284,7,FALSE)+VLOOKUP(A34,Datos_presupuesto!A33:H284,8,FALSE)","v":{"$error":"#N/A"}}]
["05.03.09",{"$f":"VLOOKUP(A35,Datos_presupuesto!A34:H285,5,FALSE)+VLOOKUP(A35,Datos_presupuesto!A34:H285,6,FALSE)+VLOOKUP(A35,Datos_presupuesto!A34:H285,7,FALSE)+VLOOKUP(A35,Datos_presupuesto!A34:H285,8,FALSE)","v":{"$error":"#N/A"}}]
["05.03.10",{"$f":"VLOOKUP(A36,Datos_presupuesto!A35:H286,5,FALSE)+VLOOKUP(A36,Datos_presupuesto!A35:H286,6,FALSE)+VLOOKUP(A36,Datos_presupuesto!A35:H286,7,FALSE)+VLOOKUP(A36,Datos_presupuesto!A35:H286,8,FALSE)","v":{"$error":"#N/A"}}]
["05.03.11",{"$f":"VLOOKUP(A37,Datos_presupuesto!A36:H287,5,FALSE)+VLOOKUP(A37,Datos_presupuesto!A36:H287,6,FALSE)+VLOOKUP(A37,Datos_presupuesto!A36:H287,7,FALSE)+VLOOKUP(A37,Datos_presupuesto!A36:H287,8,FALSE)","v":{"$error":"#N/A"}}]
[null,null,{"$f":"(B27+B28)*'Factores de emision'!D33+B29*'Factores de emision'!D43+('Calculos 1'!B35+'Calculos 1'!B36)*'Factores de emision'!D30","v":{"$error":"#N/A"}},null,"emi_05.03",{"$f":"C38","v":{"$error":"#N/A"}}]
["06.01.01",{"$f":"VLOOKUP(A39,Datos_presupuesto!A38:H289,5,FALSE)+VLOOKUP(A39,Datos_presupuesto!A38:H289,6,FALSE)+VLOOKUP(A39,Datos_presupuesto!A38:H289,7,FALSE)+VLOOKUP(A39,Datos_presupuesto!A38:H289,8,FALSE)","v":{"$error":"#N/A"}}]
["06.01.02",{"$f":"VLOOKUP(A40,Datos_presupuesto!A39:H290,5,FALSE)+VLOOKUP(A40,Datos_presupuesto!A39:H290,6,FALSE)+VLOOKUP(A40,Datos_presupuesto!A39:H290,7,FALSE)+VLOOKUP(A40,Datos_presupuesto!A39:H290,8,FALSE)","v":{"$error":"#N/A"}}]
["06.01.03",{"$f":"VLOOKUP(A41,Datos_presupuesto!A40:H291,5,FALSE)+VLOOKUP(A41,Datos_presupuesto!A40:H291,6,FALSE)+VLOOKUP(A41,Datos_presupuesto!A40:H291,7,FALSE)+VLOOKUP(A41,Datos_presupuesto!A40:H291,8,FALSE)","v":{"$error":"#N/A"}}]
["06.01.04",{"$f":"VLOOKUP(A42,Datos_presupuesto!A41:H292,5,FALSE)+VLOOKUP(A42,Datos_presupuesto!A41:H292,6,FALSE)+VLOOKUP(A42,Datos_presupuesto!A41:H292,7,FALSE)+VLOOKUP(A42,Datos_presupuesto!A41:H292,8,FALSE)","v":{"$error":"#N/A"}}]
["06.01.05",{"$f":"VLOOKUP(A43,Datos_presupuesto!A42:H293,5,FALSE)+VLOOKUP(A43,Datos_presupuesto!A42:H293,6,FALSE)+VLOOKUP(A43,Datos_presupuesto!A42:H293,7,FALSE)+VLOOKUP(A43,Datos_presupuesto!A42:H293,8,FALSE)","v":{"$error":"#N/A"}}]
["06.01.06",{"$f":"VLOOKUP(A44,Datos_presupuesto!A43:H294,5,FALSE)+VLOOKUP(A44,Datos_presupuesto!A43:H294,6,FALSE)+VLOOKUP(A44,Datos_presupuesto!A43:H294,7,FALSE)+VLOOKUP(A44,Datos_presupuesto!A43:H294,8,FALSE)","v":{"$error":"#N/A"}}]
["06.01.07",{"$f":"VLOOKUP(A45,Datos_presupuesto!A44:H295,5,FALSE)+VLOOKUP(A45,Datos_presupuesto!A44:H295,6,FALSE)+VLOOKUP(A45,Datos_presupuesto!A44:H295,7,FALSE)+VLOOKUP(A45,Datos_presupuesto!A44:H295,8,FALSE)","v":{"$error":"#N/A"}}]
["06.01.08",{"$f":"VLOOKUP(A46,Datos_presupuesto!A45:H296,5,FALSE)+VLOOKUP(A46,Datos_presupuesto!A45:H296,6,FALSE)+VLOOKUP(A46,Datos_presupuesto!A45:H296,7,FALSE)+VLOOKUP(A46,Datos_presupuesto!A45:H296,8,FALSE)","v":{"$error":"#N/A"}}]
["06.01.09",{"$f":"VLOOKUP(A47,Datos_presupuesto!A46:H297,5,FALSE)+VLOOKUP(A47,Datos_presupuesto!A46:H297,6,FALSE)+VLOOKUP(A47,Datos_presupuesto!A46:H297,7,FALSE)+VLOOKUP(A47,Datos_presupuesto!A46:H297,8,FALSE)","v":{"$error":"#N/A"}}]
["06.01.10",{"$f":"VLOOKUP(A48,Datos_presupuesto!A47:H298,5,FALSE)+VLOOKUP(A48,Datos_presupuesto!A47:H298,6,FALSE)+VLOOKUP(A48,Datos_presupuesto!A47:H298,7,FALSE)+VLOOKUP(A48,Datos_presupuesto!A47:H298,8,FALSE)","v":{"$error":"#N/A"}}]
["06.01.11",{"$f":"VLOOKUP(A49,Datos_presupuesto!A48:H299,5,FALSE)+VLOOKUP(A49,Datos_presupuesto!A48:H299,6,FALSE)+VLOOKUP(A49,Datos_presupuesto!A48:H299,7,FALSE)+VLOOKUP(A49,Datos_presupuesto!A48:H299,8,FALSE)","v":{"$error":"#N/A"}}]
["06.01.12",{"$f":"VLOOKUP(A50,Datos_presupuesto!A49:H300,5,FALSE)+VLOOKUP(A50,Datos_presupuesto!A49:H300,6,FALSE)+VLOOKUP(A50,Datos_presupuesto!A49:H300,7,FALSE)+VLOOKUP(A50,Datos_presupuesto!A49:H300,8,FALSE)","v":{"$error":"#N/A"}}]
["06.01.13",{"$f":"VLOOKUP(A51,Datos_presupuesto!A50:H301,5,FALSE)+VLOOKUP(A51,Datos_presupuesto!A50:H301,6,FALSE)+VLOOKUP(A51,Datos_presupuesto!A50:H301,7,FALSE)+VLOOKUP(A51,Datos_presupuesto!A50:H301,8,FALSE)","v":{"$error":"#N/A"}}]
["06.01.14",{"$f":"VLOOKUP(A52,Datos_presupuesto!A51:H302,5,FALSE)+VLOOKUP(A52,Datos_presupuesto!A51:H302,6,FALSE)+VLOOKUP(A52,Datos_presupuesto!A51:H302,7,FALSE)+VLOOKUP(A52,Datos_presupuesto!A51:H302,8,FALSE)","v":{"$error":"#N/A"}}]
["06.01.15",{"$f":"VLOOKUP(A53,Datos_presupuesto!A52:H303,5,FALSE)+VLOOKUP(A53,Datos_presupuesto!A52:H303,6,FALSE)+VLOOKUP(A53,Datos_presupuesto!A52:H303,7,FALSE)+VLOOKUP(A53,Datos_presupuesto!A52:H303,8,FALSE)","v":{"$error":"#N/A"}}]
["06.01.16",{"$f":"VLOOKUP(A54,Datos_presupuesto!A53:H304,5,FALSE)+VLOOKUP(A54,Datos_presupuesto!A53:H304,6,FALSE)+VLOOKUP(A54,Datos_presupuesto!A53:H304,7,FALSE)+VLOOKUP(A54,Datos_presupuesto!A53:H304,8,FALSE)","v":{"$error":"#N/A"}}]
["06.01.17",{"$f":"VLOOKUP(A55,Datos_presupuesto!A54:H305,5,FALSE)+VLOOKUP(A55,Datos_presupuesto!A54:H305,6,FALSE)+VLOOKUP(A55,Datos_presupuesto!A54:H305,7,FALSE)+VLOOKUP(A55,Datos_presupuesto!A54:H305,8,FALSE)","v":{"$error":"#N/A"}}]
["06.01.18",{"$f":"VLOOKUP(A56,Datos_presupuesto!A55:H306,5,FALSE)+VLOOKUP(A56,Datos_presupuesto!A55:H306,6,FALSE)+VLOOKUP(A56,Datos_presupuesto!A55:H306,7,FALSE)+VLOOKUP(A56,Datos_presupuesto!A55:H306,8,FALSE)","v":{"$error":"#N/A"}}]
["02.08.06",{"$f":"VLOOKUP(A57,Datos_presupuesto!A56:H307,5,FALSE)+VLOOKUP(A57,Datos_presupuesto!A56:H307,6,FALSE)+VLOOKUP(A57,Datos_presupuesto!A56:H307,7,FALSE)+VLOOKUP(A57,Datos_presupuesto!A56:H307,8,FALSE)","v":{"$error":"#N/A"}}]
["06.01.20",{"$f":"VLOOKUP(A58,Datos_presupuesto!A57:H308,5,FALSE)+VLOOKUP(A58,Datos_presupuesto!A57:H308,6,FALSE)+VLOOKUP(A58,Datos_presupuesto!A57:H308,7,FALSE)+VLOOKUP(A58,Datos_presupuesto!A57:H308,8,FALSE)","v":{"$error":"#N/A"}}]
["06.01.21",{"$f":"VLOOKUP(A59,Datos_presupuesto!A58:H309,5,FALSE)+VLOOKUP(A59,Datos_presupuesto!A58:H309,6,FALSE)+VLOOKUP(A59,Datos_presupuesto!A58:H309,7,FALSE)+VLOOKUP(A59,Datos_presupuesto!A58:H309,8,FALSE)","v":{"$error":"#N/A"}}]
["06.01.22",{"$f":"VLOOKUP(A60,Datos_presupuesto!A59:H310,5,FALSE)+VLOOKUP(A60,Datos_presupuesto!A59:H310,6,FALSE)+VLOOKUP(A60,Datos_presupuesto!A59:H310,7,FALSE)+VLOOKUP(A60,Datos_presupuesto!A59:H310,8,FALSE)","v":{"$error":"#N/A"}}]
["06.01.23",{"$f":"VLOOKUP(A61,Datos_presupuesto!A60:H311,5,FALSE)+VLOOKUP(A61,Datos_presupuesto!A60:H311,6,FALSE)+VLOOKUP(A61,Datos_presupuesto!A60:H311,7,FALSE)+VLOOKUP(A61,Datos_presupuesto!A60:H311,8,FALSE)","v":{"$error":"#N/A"}}]
[null,null,{"$f":"SUM(B39:B44)*'Factores de emision'!D41+'Calculos 1'!B45*'Factores de emision'!D41/10+'Calculos 1'!B46*'Factores de emision'!D38/10+'Calculos 1'!B47*'Factores de emision'!D41+SUM(B48:B53)*'Factores de emision'!D38+'Calculos 1'!B54/1.25*'Calculos 1'!D8+SUM(B59:B61)*'Factores de emision'!D41","v":{"$error":"#N/A"}},null,"emi_06.01",{"$f":"C62","v":{"$error":"#N/A"}}]
[]
["06.02.01",{"$f":"VLOOKUP(A64,Datos_presupuesto!A63:H314,5,FALSE)+VLOOKUP(A64,Datos_presupuesto!A63:H314,6,FALSE)+VLOOKUP(A64,Datos_presupuesto!A63:H314,7,FALSE)+VLOOKUP(A64,Datos_presupuesto!A63:H314,8,FALSE)","v":{"$error":"#N/A"}}]
["06.02.02",{"$f":"VLOOKUP(A65,Datos_presupuesto!A64:H315,5,FALSE)+VLOOKUP(A65,Datos_presupuesto!A64:H315,6,FALSE)+VLOOKUP(A65,Datos_presupuesto!A64:H315,7,FALSE)+VLOOKUP(A65,Datos_presupuesto!A64:H315,8,FALSE)","v":{"$error":"#N/A"}}]
["06.02.03",{"$f":"VLOOKUP(A66,Datos_presupuesto!A65:H316,5,FALSE)+VLOOKUP(A66,Datos_presupuesto!A65:H316,6,FALSE)+VLOOKUP(A66,Datos_presupuesto!A65:H316,7,FALSE)+VLOOKUP(A66,Datos_presupuesto!A65:H316,8,FALSE)","v":{"$error":"#N/A"}}]
["06.02.04",{"$f":"VLOOKUP(A67,Datos_presupuesto!A66:H317,5,FALSE)+VLOOKUP(A67,Datos_presupuesto!A66:H317,6,FALSE)+VLOOKUP(A67,Datos_presupuesto!A66:H317,7,FALSE)+VLOOKUP(A67,Datos_presupuesto!A66:H317,8,FALSE)","v":{"$error":"#N/A"}}]
["06.02.05",{"$f":"VLOOKUP(A68,Datos_presupuesto!A67:H318,5,FALSE)+VLOOKUP(A68,Datos_presupuesto!A67:H318,6,FALSE)+VLOOKUP(A68,Datos_presupuesto!A67:H318,7,FALSE)+VLOOKUP(A68,Datos_presupuesto!A67:H318,8,FALSE)","v":{"$error":"#N/A"}}]
["06.02.06",{"$f":"VLOOKUP(A69,Datos_presupuesto!A68:H319,5,FALSE)+VLOOKUP(A69,Datos_presupuesto!A68:H319,6,FALSE)+VLOOKUP(A69,Datos_presupuesto!A68:H319,7,FALSE)+VLOOKUP(A69,Datos_presupuesto!A68:H319,8,FALSE)","v":{"$error":"#N/A"}}]
["06.02.07",{"$f":"VLOOKUP(A70,Datos_presupuesto!A69:H320,5,FALSE)+VLOOKUP(A70,Datos_presupuesto!A69:H320,6,FALSE)+VLOOKUP(A70,Datos_presupuesto!A69:H320,7,FALSE)+VLOOKUP(A70,Datos_presupuesto!A69:H320,8,FALSE)","v":{"$error":"#N/A"}}]
["06.02.08",{"$f":"VLOOKUP(A71,Datos_presupuesto!A70:H321,5,FALSE)+VLOOKUP(A71,Datos_presupuesto!A70:H321,6,FALSE)+VLOOKUP(A71,Datos_presupuesto!A70:H321,7,FALSE)+VLOOKUP(A71,Datos_presupuesto!A70:H321,8,FALSE)","v":{"$error":"#N/A"}}]
["06.02.09",{"$f":"VLOOKUP(A72,Datos_presupuesto!A71:H322,5,FALSE)+VLOOKUP(A72,Datos_presupuesto!A71:H322,6,FALSE)+VLOOKUP(A72,Datos_presupuesto!A71:H322,7,FALSE)+VLOOKUP(A72,Datos_presupuesto!A71:H322,8,FALSE)","v":{"$error":"#N/A"}}]
["06.02.10",{"$f":"VLOOKUP(A73,Datos_presupuesto!A72:H323,5,FALSE)+VLOOKUP(A73,Datos_presupuesto!A72:H323,6,FALSE)+VLOOKUP(A73,Datos_presupuesto!A72:H323,7,FALSE)+VLOOKUP(A73,Datos_presupuesto!A72:H323,8,FALSE)","v":{"$error":"#N/A"}}]
["06.02.11",{"$f":"VLOOKUP(A74,Datos_presupuesto!A73:H324,5,FALSE)+VLOOKUP(A74,Datos_presupuesto!A73:H324,6,FALSE)+VLOOKUP(A74,Datos_presupuesto!A73:H324,7,FALSE)+VLOOKUP(A74,Datos_presupuesto!A73:H324,8,FALSE)","v":{"$error":"#N/A"}}]
["06.02.12",{"$f":"VLOOKUP(A75,Datos_presupuesto!A74:H325,5,FALSE)+VLOOKUP(A75,Datos_presupuesto!A74:H325,6,FALSE)+VLOOKUP(A75,Datos_presupuesto!A74:H325,7,FALSE)+VLOOKUP(A75,Datos_presupuesto!A74:H325,8,FALSE)","v":{"$error":"#N/A"}}]
["06.02.13",{"$f":"VLOOKUP(A76,Datos_presupuesto!A75:H326,5,FALSE)+VLOOKUP(A76,Datos_presupuesto!A75:H326,6,FALSE)+VLOOKUP(A76,Datos_presupuesto!A75:H326,7,FALSE)+VLOOKUP(A76,Datos_presupuesto!A75:H326,8,FALSE)","v":{"$error":"#N/A"}}]
["06.02.14",{"$f":"VLOOKUP(A77,Datos_presupuesto!A76:H327,5,FALSE)+VLOOKUP(A77,Datos_presupuesto!A76:H327,6,FALSE)+VLOOKUP(A77,Datos_presupuesto!A76:H327,7,FALSE)+VLOOKUP(A77,Datos_presupuesto!A76:H327,8,FALSE)","v":{"$error":"#N/A"}}]
["06.02.15",{"$f":"VLOOKUP(A78,Datos_presupuesto!A77:H328,5,FALSE)+VLOOKUP(A78,Datos_presupuesto!A77:H328,6,FALSE)+VLOOKUP(A78,Datos_presupuesto!A77:H328,7,FALSE)+VLOOKUP(A78,Datos_presupuesto!A77:H328,8,FALSE)","v":{"$error":"#N/A"}}]
["06.02.16",{"$f":"VLOOKUP(A79,Datos_presupuesto!A78:H329,5,FALSE)+VLOOKUP(A79,Datos_presupuesto!A78:H329,6,FALSE)+VLOOKUP(A79,Datos_presupuesto!A78:H329,7,FALSE)+VLOOKUP(A79,Datos_presupuesto!A78:H329,8,FALSE)","v":{"$error":"#N/A"}}]
["06.02.17",{"$f":"VLOOKUP(A80,Datos_presupuesto!A79:H330,5,FALSE)+VLOOKUP(A80,Datos_presupuesto!A79:H330,6,FALSE)+VLOOKUP(A80,Datos_presupuesto!A79:H330,7,FALSE)+VLOOKUP(A80,Datos_presupuesto!A79:H330,8,FALSE)","v":{"$error":"#N/A"}}]
["06.02.18",{"$f":"VLOOKUP(A81,Datos_presupuesto!A80:H331,5,FALSE)+VLOOKUP(A81,Datos_presupuesto!A80:H331,6,FALSE)+VLOOKUP(A81,Datos_presupuesto!A80:H331,7,FALSE)+VLOOKUP(A81,Datos_presupuesto!A80:H331,8,FALSE)","v":{"$error":"#N/A"}}]
["06.02.19",{"$f":"VLOOKUP(A82,Datos_presupuesto!A81:H332,5,FALSE)+VLOOKUP(A82,Datos_presupuesto!A81:H332,6,FALSE)+VLOOKUP(A82,Datos_presupuesto!A81:H332,7,FALSE)+VLOOKUP(A82,Datos_presupuesto!A81:H332,8,FALSE)","v":{"$error":"#N/A"}}]
["06.02.20",{"$f":"VLOOKUP(A83,Datos_presupuesto!A82:H333,5,FALSE)+VLOOKUP(A83,Datos_presupuesto!A82:H333,6,FALSE)+VLOOKUP(A83,Datos_presupuesto!A82:H333,7,FALSE)+VLOOKUP(A83,Datos_presupuesto!A82:H333,8,FALSE)","v":{"$error":"#N/A"}}]
["06.02.21",{"$f":"VLOOKUP(A84,Datos_presupuesto!A83:H334,5,FALSE)+VLOOKUP(A84,Datos_presupuesto!A83:H334,6,FALSE)+VLOOKUP(A84,Datos_presupuesto!A83:H334,7,FALSE)+VLOOKUP(A84,Datos_presupuesto!A83:H334,8,FALSE)","v":{"$error":"#N/A"}}]
["06.02.22",{"$f":"VLOOKUP(A85,Datos_presupuesto!A84:H335,5,FALSE)+VLOOKUP(A85,Datos_presupuesto!A84:H335,6,FALSE)+VLOOKUP(A85,Datos_presupuesto!A84:H335,7,FALSE)+VLOOKUP(A85,Datos_presupuesto!A84:H335,8,FALSE)","v":{"$error":"#N/A"}}]
[]
["07.01.01",{"$f":"VLOOKUP(A87,Datos_presupuesto!A86:H337,5,FALSE)+VLOOKUP(A87,Datos_presupuesto!A86:H337,6,FALSE)+VLOOKUP(A87,Datos_presupuesto!A86:H337,7,FALSE)+VLOOKUP(A87,Datos_presupuesto!A86:H337,8,FALSE)","v":{"$error":"#N/A"}}]
["07.01.02",{"$f":"VLOOKUP(A88,Datos_presupuesto!A87:H338,5,FALSE)+VLOOKUP(A88,Datos_presupuesto!A87:H338,6,FALSE)+VLOOKUP(A88,Datos_presupuesto!A87:H338,7,FALSE)+VLOOKUP(A88,Datos_presupuesto!A87:H338,8,FALSE)","v":{"$error":"#N/A"}}]
["07.01.03",{"$f":"VLOOKUP(A89,Datos_presupuesto!A88:H339,5,FALSE)+VLOOKUP(A89,Datos_presupuesto!A88:H339,6,FALSE)+VLOOKUP(A89,Datos_presupuesto!A88:H339,7,FALSE)+VLOOKUP(A89,Datos_presupuesto!A88:H339,8,FALSE)","v":{"$error":"#N/A"}}]
["07.01.04",{"$f":"VLOOKUP(A90,Datos_presupuesto!A89:H340,5,FALSE)+VLOOKUP(A90,Datos_presupuesto!A89:H340,6,FALSE)+VLOOKUP(A90,Datos_presupuesto!A89:H340,7,FALSE)+VLOOKUP(A90,Datos_presupuesto!A89:H340,8,FALSE)","v":{"$error":"#N/A"}}]
["07.01.05",{"$f":"VLOOKUP(A91,Datos_presupuesto!A90:H341,5,FALSE)+VLOOKUP(A91,Datos_presupuesto!A90:H341,6,FALSE)+VLOOKUP(A91,Datos_presupuesto!A90:H341,7,FALSE)+VLOOKUP(A91,Datos_presupuesto!A90:H341,8,FALSE)","v":{"$error":"#N/A"}}]
["07.01.06",{"$f":"VLOOKUP(A92,Datos_presupuesto!A91:H342,5,FALSE)+VLOOKUP(A92,Datos_presupuesto!A91:H342,6,FALSE)+VLOOKUP(A92,Datos_presupuesto!A91:H342,7,FALSE)+VLOOKUP(A92,Datos_presupuesto!A91:H342,8,FALSE)","v":{"$error":"#N/A"}}]
["07.01.07",{"$f":"VLOOKUP(A93,Datos_presupuesto!A92:H343,5,FALSE)+VLOOKUP(A93,Datos_presupuesto!A92:H343,6,FALSE)+VLOOKUP(A93,Datos_presupuesto!A92:H343,7,FALSE)+VLOOKUP(A93,Datos_presupuesto!A92:H343,8,FALSE)","v":{"$error":"#N/A"}}]
["07.01.08",{"$f":"VLOOKUP(A94,Datos_presupuesto!A93:H344,5,FALSE)+VLOOKUP(A94,Datos_presupuesto!A93:H344,6,FALSE)+VLOOKUP(A94,Datos_presupuesto!A93:H344,7,FALSE)+VLOOKUP(A94,Datos_presupuesto!A93:H344,8,FALSE)","v":{"$error":"#N/A"}}]
["07.01.09",{"$f":"VLOOKUP(A95,Datos_presupuesto!A94:H345,5,FALSE)+VLOOKUP(A95,Datos_presupuesto!A94:H345,6,FALSE)+VLOOKUP(A95,Datos_presupuesto!A94:H345,7,FALSE)+VLOOKUP(A95,Datos_presupuesto!A94:H345,8,FALSE)","v":{"$error":"#N/A"}}]
["07.01.10",{"$f":"VLOOKUP(A96,Datos_presupuesto!A95:H346,5,FALSE)+VLOOKUP(A96,Datos_presupuesto!A95:H346,6,FALSE)+VLOOKUP(A96,Datos_presupuesto!A95:H346,7,FALSE)+VLOOKUP(A96,Datos_presupuesto!A95:H346,8,FALSE)","v":{"$error":"#N/A"}}]
["07.01.11",{"$f":"VLOOKUP(A97,Datos_presupuesto!A96:H347,5,FALSE)+VLOOKUP(A97,Datos_presupuesto!A96:H347,6,FALSE)+VLOOKUP(A97,Datos_presupuesto!A96:H347,7,FALSE)+VLOOKUP(A97,Datos_presupuesto!A96:H347,8,FALSE)","v":{"$error":"#N/A"}}]
["07.01.12",{"$f":"VLOOKUP(A98,Datos_presupuesto!A97:H348,5,FALSE)+VLOOKUP(A98,Datos_presupuesto!A97:H348,6,FALSE)+VLOOKUP(A98,Datos_presupuesto!A97:H348,7,FALSE)+VLOOKUP(A98,Datos_presupuesto!A97:H348,8,FALSE)","v":{"$error":"#N/A"}}]
["07.01.13",{"$f":"VLOOKUP(A99,Datos_presupuesto!A98:H349,5,FALSE)+VLOOKUP(A99,Datos_presupuesto!A98:H349,6,FALSE)+VLOOKUP(A99,Datos_presupuesto!A98:H349,7,FALSE)+VLOOKUP(A99,Datos_presupuesto!A98:H349,8,FALSE)","v":{"$error":"#N/A"}}]
["07.01.14",{"$f":"VLOOKUP(A100,Datos_presupuesto!A99:H350,5,FALSE)+VLOOKUP(A100,Datos_presupuesto!A99:H350,6,FALSE)+VLOOKUP(A100,Datos_presupuesto!A99:H350,7,FALSE)+VLOOKUP(A100,Datos_presupuesto!A99:H350,8,FALSE)","v":{"$error":"#N/A"}}]
["07.01.15",{"$f":"VLOOKUP(A101,Datos_presupuesto!A100:H351,5,FALSE)+VLOOKUP(A101,Datos_presupuesto!A100:H351,6,FALSE)+VLOOKUP(A101,Datos_presupuesto!A100:H351,7,FALSE)+VLOOKUP(A101,Datos_presupuesto!A100:H351,8,FALSE)","v":{"$error":"#N/A"}}]
["07.01.16",{"$f":"VLOOKUP(A102,Datos_presupuesto!A101:H352,5,FALSE)+VLOOKUP(A102,Datos_presupuesto!A101:H352,6,FALSE)+VLOOKUP(A102,Datos_presupuesto!A101:H352,7,FALSE)+VLOOKUP(A102,Datos_presupuesto!A101:H352,8,FALSE)","v":{"$error":"#N/A"}}]
["07.01.17",{"$f":"VLOOKUP(A103,Datos_presupuesto!A102:H353,5,FALSE)+VLOOKUP(A103,Datos_presupuesto!A102:H353,6,FALSE)+VLOOKUP(A103,Datos_presupuesto!A102:H353,7,FALSE)+VLOOKUP(A103,Datos_presupuesto!A102:H353,8,FALSE)","v":{"$error":"#N/A"}}]
["07.01.18",{"$f":"VLOOKUP(A104,Datos_presupuesto!A103:H354,5,FALSE)+VLOOKUP(A104,Datos_presupuesto!A103:H354,6,FALSE)+VLOOKUP(A104,Datos_presupuesto!A103:H354,7,FALSE)+VLOOKUP(A104,Datos_presupuesto!A103:H354,8,FALSE)","v":{"$error":"#N/A"}}]
["07.01.19",{"$f":"VLOOKUP(A105,Datos_presupuesto!A104:H355,5,FALSE)+VLOOKUP(A105,Datos_presupuesto!A104:H355,6,FALSE)+VLOOKUP(A105,Datos_presupuesto!A104:H355,7,FALSE)+VLOOKUP(A105,Datos_presupuesto!A104:H355,8,FALSE)","v":{"$error":"#N/A"}}]
["07.01.20",{"$f":"VLOOKUP(A106,Datos_presupuesto!A105:H356,5,FALSE)+VLOOKUP(A106,Datos_presupuesto!A105:H356,6,FALSE)+VLOOKUP(A106,Datos_presupuesto!A105:H356,7,FALSE)+VLOOKUP(A106,Datos_presupuesto!A105:H356,8,FALSE)","v":{"$error":"#N/A"}}]
[]
["07.02.01",{"$f":"VLOOKUP(A108,Datos_presupuesto!A107:H358,5,FALSE)+VLOOKUP(A108,Datos_presupuesto!A107:H358,6,FALSE)+VLOOKUP(A108,Datos_presupuesto!A107:H358,7,FALSE)+VLOOKUP(A108,Datos_presupuesto!A107:H358,8,FALSE)","v":{"$error":"#N/A"}}]
["07.02.02",{"$f":"VLOOKUP(A109,Datos_presupuesto!A108:H359,5,FALSE)+VLOOKUP(A109,Datos_presupuesto!A108:H359,6,FALSE)+VLOOKUP(A109,Datos_presupuesto!A108:H359,7,FALSE)+VLOOKUP(A109,Datos_presupuesto!A108:H359,8,FALSE)","v":{"$error":"#N/A"}}]
["07.02.03",{"$f":"VLOOKUP(A110,Datos_presupuesto!A109:H360,5,FALSE)+VLOOKUP(A110,Datos_presupuesto!A109:H360,6,FALSE)+VLOOKUP(A110,Datos_presupuesto!A109:H360,7,FALSE)+VLOOKUP(A110,Datos_presupuesto!A109:H360,8,FALSE)","v":{"$error":"#N/A"}}]
["07.02.04",{"$f":"VLOOKUP(A111,Datos_presupuesto!A110:H361,5,FALSE)+VLOOKUP(A111,Datos_presupuesto!A110:H361,6,FALSE)+VLOOKUP(A111,Datos_presupuesto!A110:H361,7,FALSE)+VLOOKUP(A111,Datos_presupuesto!A110:H361,8,FALSE)","v":{"$error":"#N/A"}}]
["07.02.05",{"$f":"VLOOKUP(A112,Datos_presupuesto!A111:H362,5,FALSE)+VLOOKUP(A112,Datos_presupuesto!A111:H362,6,FALSE)+VLOOKUP(A112,Datos_presupuesto!A111:H362,7,FALSE)+VLOOKUP(A112,Datos_presupuesto!A111:H362,8,FALSE)","v":{"$error":"#N/A"}}]
["07.02.06",{"$f":"VLOOKUP(A113,Datos_presupuesto!A112:H363,5,FALSE)+VLOOKUP(A113,Datos_presupuesto!A112:H363,6,FALSE)+VLOOKUP(A113,Datos_presupuesto!A112:H363,7,FALSE)+VLOOKUP(A113,Datos_presupuesto!A112:H363,8,FALSE)","v":{"$error":"#N/A"}}]
["07.02.07",{"$f":"VLOOKUP(A114,Datos_presupuesto!A113:H364,5,FALSE)+VLOOKUP(A114,Datos_presupuesto!A113:H364,6,FALSE)+VLOOKUP(A114,Datos_presupuesto!A113:H364,7,FALSE)+VLOOKUP(A114,Datos_presupuesto!A113:H364,8,FALSE)","v":{"$error":"#N/A"}}]
["07.02.08",{"$f":"VLOOKUP(A115,Datos_presupuesto!A114:H365,5,FALSE)+VLOOKUP(A115,Datos_presupuesto!A114:H365,6,FALSE)+VLOOKUP(A115,Datos_presupuesto!A114:H365,7,FALSE)+VLOOKUP(A115,Datos_presupuesto!A114:H365,8,FALSE)","v":{"$error":"#N/A"}}]
["07.02.09",{"$f":"VLOOKUP(A116,Datos_presupuesto!A115:H366,5,FALSE)+VLOOKUP(A116,Datos_presupuesto!A115:H366,6,FALSE)+VLOOKUP(A116,Datos_presupuesto!A115:H366,7,FALSE)+VLOOKUP(A116,Datos_presupuesto!A115:H366,8,FALSE)","v":{"$error":"#N/A"}}]
["07.02.10",{"$f":"VLOOKUP(A117,Datos_presupuesto!A116:H367,5,FALSE)+VLOOKUP(A117,Datos_presupuesto!A116:H367,6,FALSE)+VLOOKUP(A117,Datos_presupuesto!A116:H367,7,FALSE)+VLOOKUP(A117,Datos_presupuesto!A116:H367,8,FALSE)","v":{"$error":"#N/A"}}]
["07.02.11",{"$f":"VLOOKUP(A118,Datos_presupuesto!A117:H368,5,FALSE)+VLOOKUP(A118,Datos_presupuesto!A117:H368,6,FALSE)+VLOOKUP(A118,Datos_presupuesto!A117:H368,7,FALSE)+VLOOKUP(A118,Datos_presupuesto!A117:H368,8,FALSE)","v":{"$error":"#N/A"}}]
["07.02.12",{"$f":"VLOOKUP(A119,Datos_presupuesto!A118:H369,5,FALSE)+VLOOKUP(A119,Datos_presupuesto!A118:H369,6,FALSE)+VLOOKUP(A119,Datos_presupuesto!A118:H369,7,FALSE)+VLOOKUP(A119,Datos_presupuesto!A118:H369,8,FALSE)","v":{"$error":"#N/A"}}]
["07.02.13",{"$f":"VLOOKUP(A120,Datos_presupuesto!A119:H370,5,FALSE)+VLOOKUP(A120,Datos_presupuesto!A119:H370,6,FALSE)+VLOOKUP(A120,Datos_presupuesto!A119:H370,7,FALSE)+VLOOKUP(A120,Datos_presupuesto!A119:H370,8,FALSE)","v":{"$error":"#N/A"}}]
["07.02.14",{"$f":"VLOOKUP(A121,Datos_presupuesto!A120:H371,5,FALSE)+VLOOKUP(A121,Datos_presupuesto!A120:H371,6,FALSE)+VLOOKUP(A121,Datos_presupuesto!A120:H371,7,FALSE)+VLOOKUP(A121,Datos_presupuesto!A120:H371,8,FALSE)","v":{"$error":"#N/A"}}]
["07.02.15",{"$f":"VLOOKUP(A122,Datos_presupuesto!A121:H372,5,FALSE)+VLOOKUP(A122,Datos_presupuesto!A121:H372,6,FALSE)+VLOOKUP(A122,Datos_presupuesto!A121:H372,7,FALSE)+VLOOKUP(A122,Datos_presupuesto!A121:H372,8,FALSE)","v":{"$error":"#N/A"}}]
["07.02.16",{"$f":"VLOOKUP(A123,Datos_presupuesto!A122:H373,5,FALSE)+VLOOKUP(A123,Datos_presupuesto!A122:H373,6,FALSE)+VLOOKUP(A123,Datos_presupuesto!A122:H373,7,FALSE)+VLOOKUP(A123,Datos_presupuesto!A122:H373,8,FALSE)","v":{"$error":"#N/A"}}]
["07.02.17",{"$f":"VLOOKUP(A124,Datos_presupuesto!A123:H374,5,FALSE)+VLOOKUP(A124,Datos_presupuesto!A123:H374,6,FALSE)+VLOOKUP(A124,Datos_presupuesto!A123:H374,7,FALSE)+VLOOKUP(A124,Datos_presupuesto!A123:H374,8,FALSE)","v":{"$error":"#N/A"}}]
["07.02.18",{"$f":"VLOOKUP(A125,Datos_presupuesto!A124:H375,5,FALSE)+VLOOKUP(A125,Datos_presupuesto!A124:H375,6,FALSE)+VLOOKUP(A125,Datos_presupuesto!A124:H375,7,FALSE)+VLOOKUP(A125,Datos_presupuesto!A124:H375,8,FALSE)","v":{"$error":"#N/A"}}]
["07.02.19",{"$f":"VLOOKUP(A126,Datos_presupuesto!A125:H376,5,FALSE)+VLOOKUP(A126,Datos_presupuesto!A125:H376,6,FALSE)+VLOOKUP(A126,Datos_presupuesto!A125:H376,7,FALSE)+VLOOKUP(A126,Datos_presupuesto!A125:H376,8,FALSE)","v":{"$error":"#N/A"}}]
["07.02.20",{"$f":"VLOOKUP(A127,Datos_presupuesto!A126:H377,5,FALSE)+VLOOKUP(A127,Datos_presupuesto!A126:H377,6,FALSE)+VLOOKUP(A127,Datos_presupuesto!A126:H377,7,FALSE)+VLOOKUP(A127,Datos_presupuesto!A126:H377,8,FALSE)","v":{"$error":"#N/A"}}]
["07.02.21",{"$f":"VLOOKUP(A128,Datos_presupuesto!A127:H378,5,FALSE)+VLOOKUP(A128,Datos_presupuesto!A127:H378,6,FALSE)+VLOOKUP(A128,Datos_presupuesto!A127:H378,7,FALSE)+VLOOKUP(A128,Datos_presupuesto!A127:H378,8,FALSE)","v":{"$error":"#N/A"}}]
["07.02.22",{"$f":"VLOOKUP(A129,Datos_presupuesto!A128:H379,5,FALSE)+VLOOKUP(A129,Datos_presupuesto!A128:H379,6,FALSE)+VLOOKUP(A129,Datos_presupuesto!A128:H379,7,FALSE)+VLOOKUP(A129,Datos_presupuesto!A128:H379,8,FALSE)","v":{"$error":"#N/A"}}]
["07.02.23",{"$f":"VLOOKUP(A130,Datos_presupuesto!A129:H380,5,FALSE)+VLOOKUP(A130,Datos_presupuesto!A129:H380,6,FALSE)+VLOOKUP(A130,Datos_presupuesto!A129:H380,7,FALSE)+VLOOKUP(A130,Datos_presupuesto!A129:H380,8,FALSE)","v":{"$error":"#N/A"}}]
["07.02.24",{"$f":"VLOOKUP(A131,Datos_presupuesto!A130:H381,5,FALSE)+VLOOKUP(A131,Datos_presupuesto!A130:H381,6,FALSE)+VLOOKUP(A131,Datos_presupuesto!A130:H381,7,FALSE)+VLOOKUP(A131,Datos_presupuesto!A130:H381,8,FALSE)","v":{"$error":"#N/A"}}]
[]
["07.04.01",{"$f":"VLOOKUP(A133,Datos_presupuesto!A132:H383,5,FALSE)+VLOOKUP(A133,Datos_presupuesto!A132:H383,6,FALSE)+VLOOKUP(A133,Datos_presupuesto!A132:H383,7,FALSE)+VLOOKUP(A133,Datos_presupuesto!A132:H383,8,FALSE)","v":{"$error":"#N/A"}}]
["07.04.02",{"$f":"VLOOKUP(A134,Datos_presupuesto!A133:H384,5,FALSE)+VLOOKUP(A134,Datos_presupuesto!A133:H384,6,FALSE)+VLOOKUP(A134,Datos_presupuesto!A133:H384,7,FALSE)+VLOOKUP(A134,Datos_presupuesto!A133:H384,8,FALSE)","v":{"$error":"#N/A"}}]
["07.04.03",{"$f":"VLOOKUP(A135,Datos_presupuesto!A134:H385,5,FALSE)+VLOOKUP(A135,Datos_presupuesto!A134:H385,6,FALSE)+VLOOKUP(A135,Datos_presupuesto!A134:H385,7,FALSE)+VLOOKUP(A135,Datos_presupuesto!A134:H385,8,FALSE)","v":{"$error":"#N/A"}}]
["07.04.04",{"$f":"VLOOKUP(A136,Datos_presupuesto!A135:H386,5,FALSE)+VLOOKUP(A136,Datos_presupuesto!A135:H386,6,FALSE)+VLOOKUP(A136,Datos_presupuesto!A135:H386,7,FALSE)+VLOOKUP(A136,Datos_presupuesto!A135:H386,8,FALSE)","v":{"$error":"#N/A"}}]
["07.04.05",{"$f":"VLOOKUP(A137,Datos_presupuesto!A136:H387,5,FALSE)+VLOOKUP(A137,Datos_presupuesto!A136:H387,6,FALSE)+VLOOKUP(A137,Datos_presupuesto!A136:H387,7,FALSE)+VLOOKUP(A137,Datos_presupuesto!A136:H387,8,FALSE)","v":{"$error":"#N/A"}}]
["07.04.06",{"$f":"VLOOKUP(A138,Datos_presupuesto!A137:H388,5,FALSE)+VLOOKUP(A138,Datos_presupuesto!A137:H388,6,FALSE)+VLOOKUP(A138,Datos_presupuesto!A137:H388,7,FALSE)+VLOOKUP(A138,Datos_presupuesto!A137:H388,8,FALSE)","v":{"$error":"#N/A"}}]
["07.04.07",{"$f":"VLOOKUP(A139,Datos_presupuesto!A138:H389,5,FALSE)+VLOOKUP(A139,Datos_presupuesto!A138:H389,6,FALSE)+VLOOKUP(A139,Datos_presupuesto!A138:H389,7,FALSE)+VLOOKUP(A139,Datos_presupuesto!A138:H389,8,FALSE)","v":{"$error":"#N/A"}}]
["07.04.08",{"$f":"VLOOKUP(A140,Datos_presupuesto!A139:H390,5,FALSE)+VLOOKUP(A140,Datos_presupuesto!A139:H390,6,FALSE)+VLOOKUP(A140,Datos_presupuesto!A139:H390,7,FALSE)+VLOOKUP(A140,Datos_presupuesto!A139:H390,8,FALSE)","v":{"$error":"#N/A"}}]
["07.04.09",{"$f":"VLOOKUP(A141,Datos_presupuesto!A140:H391,5,FALSE)+VLOOKUP(A141,Datos_presupuesto!A140:H391,6,FALSE)+VLOOKUP(A141,Datos_presupuesto!A140:H391,7,FALSE)+VLOOKUP(A141,Datos_presupuesto!A140:H391,8,FALSE)","v":{"$error":"#N/A"}}]
["07.04.10",{"$f":"VLOOKUP(A142,Datos_presupuesto!A141:H392,5,FALSE)+VLOOKUP(A142,Datos_presupuesto!A141:H392,6,FALSE)+VLOOKUP(A142,Datos_presupuesto!A141:H392,7,FALSE)+VLOOKUP(A142,Datos_presupuesto!A141:H392,8,FALSE)","v":{"$error":"#N/A"}}]
[]
["11.01.01",{"$f":"VLOOKUP(A144,Datos_presupuesto!A143:H394,5,FALSE)+VLOOKUP(A144,Datos_presupuesto!A143:H394,6,FALSE)+VLOOKUP(A144,Datos_presupuesto!A143:H394,7,FALSE)+VLOOKUP(A144,Datos_presupuesto!A143:H394,8,FALSE)","v":{"$error":"#N/A"}}]
["11.01.02",{"$f":"VLOOKUP(A145,Datos_presupuesto!A144:H395,5,FALSE)+VLOOKUP(A145,Datos_presupuesto!A144:H395,6,FALSE)+VLOOKUP(A145,Datos_presupuesto!A144:H395,7,FALSE)+VLOOKUP(A145,Datos_presupuesto!A144:H395,8,FALSE)","v":{"$error":"#N/A"}}]
["11.01.03",{"$f":"VLOOKUP(A146,Datos_presupuesto!A145:H396,5,FALSE)+VLOOKUP(A146,Datos_presupuesto!A145:H396,6,FALSE)+VLOOKUP(A146,Datos_presupuesto!A145:H396,7,FALSE)+VLOOKUP(A146,Datos_presupuesto!A145:H396,8,FALSE)","v":{"$error":"#N/A"}}]
["11.01.04",{"$f":"VLOOKUP(A147,Datos_presupuesto!A146:H397,5,FALSE)+VLOOKUP(A147,Datos_presupuesto!A146:H397,6,FALSE)+VLOOKUP(A147,Datos_presupuesto!A146:H397,7,FALSE)+VLOOKUP(A147,Datos_presupuesto!A146:H397,8,FALSE)","v":{"$error":"#N/A"}}]
["11.01.05",{"$f":"VLOOKUP(A148,Datos_presupuesto!A147:H398,5,FALSE)+VLOOKUP(A148,Datos_presupuesto!A147:H398,6,FALSE)+VLOOKUP(A148,Datos_presupuesto!A147:H398,7,FALSE)+VLOOKUP(A148,Datos_presupuesto!A147:H398,8,FALSE)","v":{"$error":"#N/A"}}]
["11.01.06",{"$f":"VLOOKUP(A149,Datos_presupuesto!A148:H399,5,FALSE)+VLOOKUP(A149,Datos_presupuesto!A148:H399,6,FALSE)+VLOOKUP(A149,Datos_presupuesto!A148:H399,7,FALSE)+VLOOKUP(A149,Datos_presupuesto!A148:H399,8,FALSE)","v":{"$error":"#N/A"}}]
["11.01.07",{"$f":"VLOOKUP(A150,Datos_presupuesto!A149:H400,5,FALSE)+VLOOKUP(A150,Datos_presupuesto!A149:H400,6,FALSE)+VLOOKUP(A150,Datos_presupuesto!A149:H400,7,FALSE)+VLOOKUP(A150,Datos_presupuesto!A149:H400,8,FALSE)","v":{"$error":"#N/A"}}]
["11.01.08",{"$f":"VLOOKUP(A151,Datos_presupuesto!A150:H401,5,FALSE)+VLOOKUP(A151,Datos_presupuesto!A150:H401,6,FALSE)+VLOOKUP(A151,Datos_presupuesto!A150:H401,7,FALSE)+VLOOKUP(A151,Datos_presupuesto!A150:H401,8,FALSE)","v":{"$error":"#N/A"}}]
["11.01.09",{"$f":"VLOOKUP(A152,Datos_presupuesto!A151:H402,5,FALSE)+VLOOKUP(A152,Datos_presupuesto!A151:H402,6,FALSE)+VLOOKUP(A152,Datos_presupuesto!A151:H402,7,FALSE)+VLOOKUP(A152,Datos_presupuesto!A151:H402,8,FALSE)","v":{"$error":"#N/A"}}]
["11.01.10",{"$f":"VLOOKUP(A153,Datos_presupuesto!A152:H403,5,FALSE)+VLOOKUP(A153,Datos_presupuesto!A152:H403,6,FALSE)+VLOOKUP(A153,Datos_presupuesto!A152:H403,7,FALSE)+VLOOKUP(A153,Datos_presupuesto!A152:H403,8,FALSE)","v":{"$error":"#N/A"}}]
["11.01.11",{"$f":"VLOOKUP(A154,Datos_presupuesto!A153:H404,5,FALSE)+VLOOKUP(A154,Datos_presupuesto!A153:H404,6,FALSE)+VLOOKUP(A154,Datos_presupuesto!A153:H404,7,FALSE)+VLOOKUP(A154,Datos_presupuesto!A153:H404,8,FALSE)","v":{"$error":"#N/A"}}]
["11.01.12",{"$f":"VLOOKUP(A155,Datos_presupuesto!A154:H405,5,FALSE)+VLOOKUP(A155,Datos_presupuesto!A154:H405,6,FALSE)+VLOOKUP(A155,Datos_presupuesto!A154:H405,7,FALSE)+VLOOKUP(A155,Datos_presupuesto!A154:H405,8,FALSE)","v":{"$error":"#N/A"}}]
["11.01.13",{"$f":"VLOOKUP(A156,Datos_presupuesto!A155:H406,5,FALSE)+VLOOKUP(A156,Datos_presupuesto!A155:H406,6,FALSE)+VLOOKUP(A156,Datos_presupuesto!A155:H406,7,FALSE)+VLOOKUP(A156,Datos_presupuesto!A155:H406,8,FALSE)","v":{"$error":"#N/A"}}]
["11.01.14",{"$f":"VLOOKUP(A157,Datos_presupuesto!A156:H407,5,FALSE)+VLOOKUP(A157,Datos_presupuesto!A156:H407,6,FALSE)+VLOOKUP(A157,Datos_presupuesto!A156:H407,7,FALSE)+VLOOKUP(A157,Datos_presupuesto!A156:H407,8,FALSE)","v":{"$error":"#N/A"}}]
["11.01.15",{"$f":"VLOOKUP(A158,Datos_presupuesto!A157:H408,5,FALSE)+VLOOKUP(A158,Datos_presupuesto!A157:H408,6,FALSE)+VLOOKUP(A158,Datos_presupuesto!A157:H408,7,FALSE)+VLOOKUP(A158,Datos_presupuesto!A157:H408,8,FALSE)","v":{"$error":"#N/A"}}]
["11.01.16",{"$f":"VLOOKUP(A159,Datos_presupuesto!A158:H409,5,FALSE)+VLOOKUP(A159,Datos_presupuesto!A158:H409,6,FALSE)+VLOOKUP(A159,Datos_presupuesto!A158:H409,7,FALSE)+VLOOKUP(A159,Datos_presupuesto!A158:H409,8,FALSE)","v":{"$error":"#N/A"}}]
["11.01.17",{"$f":"VLOOKUP(A160,Datos_presupuesto!A159:H410,5,FALSE)+VLOOKUP(A160,Datos_presupuesto!A159:H410,6,FALSE)+VLOOKUP(A160,Datos_presupuesto!A159:H410,7,FALSE)+VLOOKUP(A160,Datos_presupuesto!A159:H410,8,FALSE)","v":{"$error":"#N/A"}}]
["11.01.18",{"$f":"VLOOKUP(A161,Datos_presupuesto!A160:H411,5,FALSE)+VLOOKUP(A161,Datos_presupuesto!A160:H411,6,FALSE)+VLOOKUP(A161,Datos_presupuesto!A160:H411,7,FALSE)+VLOOKUP(A161,Datos_presupuesto!A160:H411,8,FALSE)","v":{"$error":"#N/A"}}]
["11.01.19",{"$f":"VLOOKUP(A162,Datos_presupuesto!A161:H412,5,FALSE)+VLOOKUP(A162,Datos_presupuesto!A161:H412,6,FALSE)+VLOOKUP(A162,Datos_presupuesto!A161:H412,7,FALSE)+VLOOKUP(A162,Datos_presupuesto!A161:H412,8,FALSE)","v":{"$error":"#N/A"}}]
["11.01.20",{"$f":"VLOOKUP(A163,Datos_presupuesto!A162:H413,5,FALSE)+VLOOKUP(A163,Datos_presupuesto!A162:H413,6,FALSE)+VLOOKUP(A163,Datos_presupuesto!A162:H413,7,FALSE)+VLOOKUP(A163,Datos_presupuesto!A162:H413,8,FALSE)","v":{"$error":"#N/A"}}]
["11.01.21",{"$f":"VLOOKUP(A164,Datos_presupuesto!A163:H414,5,FALSE)+VLOOKUP(A164,Datos_presupuesto!A163:H414,6,FALSE)+VLOOKUP(A164,Datos_presupuesto!A163:H414,7,FALSE)+VLOOKUP(A164,Datos_presupuesto!A163:H414,8,FALSE)","v":{"$error":"#N/A"}}]
["11.01.22",{"$f":"VLOOKUP(A165,Datos_presupuesto!A164:H415,5,FALSE)+VLOOKUP(A165,Datos_presupuesto!A164:H415,6,FALSE)+VLOOKUP(A165,Datos_presupuesto!A164:H415,7,FALSE)+VLOOKUP(A165,Datos_presupuesto!A164:H415,8,FALSE)","v":{"$error":"#N/A"}}]
["11.01.23",{"$f":"VLOOKUP(A166,Datos_presupuesto!A165:H416,5,FALSE)+VLOOKUP(A166,Datos_presupuesto!A165:H416,6,FALSE)+VLOOKUP(A166,Datos_presupuesto!A165:H416,7,FALSE)+VLOOKUP(A166,Datos_presupuesto!A165:H416,8,FALSE)","v":{"$error":"#N/A"}}]
["11.01.24",{"$f":"VLOOKUP(A167,Datos_presupuesto!A166:H417,5,FALSE)+VLOOKUP(A167,Datos_presupuesto!A166:H417,6,FALSE)+VLOOKUP(A167,Datos_presupuesto!A166:H417,7,FALSE)+VLOOKUP(A167,Datos_presupuesto!A166:H417,8,FALSE)","v":{"$error":"#N/A"}}]
["11.01.25",{"$f":"VLOOKUP(A168,Datos_presupuesto!A167:H418,5,FALSE)+VLOOKUP(A168,Datos_presupuesto!A167:H418,6,FALSE)+VLOOKUP(A168,Datos_presupuesto!A167:H418,7,FALSE)+VLOOKUP(A168,Datos_presupuesto!A167:H418,8,FALSE)","v":{"$error":"#N/A"}}]
["11.01.26",{"$f":"VLOOKUP(A169,Datos_presupuesto!A168:H419,5,FALSE)+VLOOKUP(A169,Datos_presupuesto!A168:H419,6,FALSE)+VLOOKUP(A169,Datos_presupuesto!A168:H419,7,FALSE)+VLOOKUP(A169,Datos_presupuesto!A168:H419,8,FALSE)","v":{"$error":"#N/A"}}]
["11.01.27",{"$f":"VLOOKUP(A170,Datos_presupuesto!A169:H420,5,FALSE)+VLOOKUP(A170,Datos_presupuesto!A169:H420,6,FALSE)+VLOOKUP(A170,Datos_presupuesto!A169:H420,7,FALSE)+VLOOKUP(A170,Datos_presupuesto!A169:H420,8,FALSE)","v":{"$error":"#N/A"}}]
["11.01.28",{"$f":"VLOOKUP(A171,Datos_presupuesto!A170:H421,5,FALSE)+VLOOKUP(A171,Datos_presupuesto!A170:H421,6,FALSE)+VLOOKUP(A171,Datos_presupuesto!A170:H421,7,FALSE)+VLOOKUP(A171,Datos_presupuesto!A170:H421,8,FALSE)","v":{"$error":"#N/A"}}]
["11.01.29",{"$f":"VLOOKUP(A172,Datos_presupuesto!A171:H422,5,FALSE)+VLOOKUP(A172,Datos_presupuesto!A171:H422,6,FALSE)+VLOOKUP(A172,Datos_presupuesto!A171:H422,7,FALSE)+VLOOKUP(A172,Datos_presupuesto!A171:H422,8,FALSE)","v":{"$error":"#N/A"}}]
["11.01.30",{"$f":"VLOOKUP(A173,Datos_presupuesto!A172:H423,5,FALSE)+VLOOKUP(A173,Datos_presupuesto!A172:H423,6,FALSE)+VLOOKUP(A173,Datos_presupuesto!A172:H423,7,FALSE)+VLOOKUP(A173,Datos_presupuesto!A172:H423,8,FALSE)","v":{"$error":"#N/A"}}]
[]
[]
[]
[]
[]
[]
[]
[]
[]
[]
[]
[]
[]
[]
[]
[]
[]
[]
[]
[]
[]
[]
[]
[]
[]
[]
[]
[]
[]
[]
[]
[]
[]
[]
[]
[]
[]
[]
[]
[]
[]
[]
[]
[]
[]
[]
[]
[]
[]
[]
[]
[]
[]
[]
[]
[]
[]
[]
[]
[]
[]
[]
[]
[]
[]
[]
[]
[]
[]
[]
[]
[]
[]
[]
[]
[]
[]
[null,null,{"$f":"_xlfn.AGGREGATE(9,6,C2:C250)","v":0}]

{"sheet":"Calculos 2","index":6,"n_rows":1020,"n_cols":22,"rows_kept":1020,"cut":false,"hidden":false,"merged":[]}
["Calculos","kgCO2",null,null,null,"kgCO2","tonCO2eq",null,null,"kgCO2","tonCO2eq",null,"kgCO2","TonCO2","€ Presupuesto","personas/dia de trabajo","kg CO2 personas día de trabajo",null,null,"Compensación ","Huella Mínma","Compensación Huella Mínma"]
["1.1",{"$f":"VLOOKUP('Calculos 2'!A2,'Huella Completa'!A16:G702,3,FALSE)*(IF(VLOOKUP('Calculos 2'!A2,'Huella Completa'!A16:G702,4,FALSE)=\"Gasolina\",Gasolina,IF(VLOOKUP('Calculos 2'!A2,'Huella Completa'!A16:G702,4,FALSE)=\"Diesel\",Diesel,IF(VLOOKUP('Calculos 2'!A2,'Huella Completa'!A16:G702,4,FALSE)=\"GLP\",GLP,0))))","v":0},null,null,"Transporte",{"$f":"VLOOKUP(\"1.0\",A:C,3,FALSE)+VLOOKUP(\"2.0\",A:C,3,FALSE)+VLOOKUP(\"4.0\",A:C,3,FALSE)+VLOOKUP(\"5.0\",A:C,3,FALSE)","v":0},{"$f":"F2/1000","v":0},null,"Preproducción",{"$f":"VLOOKUP(\"1.0\",A:C,3,FALSE)+VLOOKUP(\"2.0\",A:C,3,FALSE)+VLOOKUP(\"3.0\",A:C,3,FALSE)+_xlfn.AGGREGATE(9,6,emi_04.01,emi_04.02,emi_04.03)","v":0},{"$f":"J2/1000","v":0},"TOTAL ",{"$f":"'Huella Minima'!$B$8+'Calculos 2'!B1020","v":0},{"$f":"M2/1000","v":0},{"$f":"M2/presupuesto","v":{"$error":"#DIV/0!"}},{"$f":"P9","v":0},{"$f":"M2/P2","v":{"$error":"#DIV/0!"}},null,null,{"$f":"ROUNDUP((N2/0.3*1.4),0)","v":0},{"$f":"'Calculos 1'!C251","v":0},{"$f":"ROUNDUP((U2/1000/0.3*1.4),0)","v":0}]
["1.2",{"$f":"VLOOKUP('Calculos 2'!A3,'Huella Completa'!A17:G703,3,FALSE)*(IF(VLOOKUP('Calculos 2'!A3,'Huella Completa'!A17:G703,4,FALSE)=\"Gasolina\",Gasolina,IF(VLOOKUP('Calculos 2'!A3,'Huella Completa'!A17:G703,4,FALSE)=\"Diesel\",Diesel,IF(VLOOKUP('Calculos 2'!A3,'Huella Completa'!A17:G703,4,FALSE)=\"GLP\",GLP,0))))","v":0},null,null,"Hospedaje",{"$f":"VLOOKUP(\"3.0\",A:C,3,FALSE)+VLOOKUP(\"6.0\",A:C,3,FALSE)","v":0},{"$f":"F3/1000","v":0},null,"Producción",{"$f":"VLOOKUP(\"4.0\",A:C,3,FALSE)+VLOOKUP(\"5.0\",A:C,3,FALSE)+VLOOKUP(\"6.0\",A:C,3,FALSE)+VLOOKUP(\"7.0\",A:C,3,FALSE)+VLOOKUP(\"8.0\",A:C,3,FALSE)+VLOOKUP(\"9.0\",A:C,3,FALSE)+_xlfn.AGGREGATE(9,6,emi_06.01,emi_05.03)+VLOOKUP(\"13.0\",A:C,3,FALSE)","v":0},{"$f":"J3/1000","v":0}]
["1.3",{"$f":"VLOOKUP('Calculos 2'!A4,'Huella Completa'!A18:G704,3,FALSE)*(IF(VLOOKUP('Calculos 2'!A4,'Huella Completa'!A18:G704,4,FALSE)=\"Gasolina\",Gasolina,IF(VLOOKUP('Calculos 2'!A4,'Huella Completa'!A18:G704,4,FALSE)=\"Diesel\",Diesel,IF(VLOOKUP('Calculos 2'!A4,'Huella Completa'!A18:G704,4,FALSE)=\"GLP\",GLP,0))))","v":0},null,null,"Electricidad generada y consumida",{"$f":"VLOOKUP(\"8.0\",A:C,3,FALSE)+VLOOKUP(\"9.0\",A:C,3,FALSE)","v":0},0,null,"Postproducción",{"$f":"VLOOKUP(\"14.0\",A:C,3,FALSE)","v":0},0]
["1.4",{"$f":"VLOOKUP('Calculos 2'!A5,'Huella Completa'!A19:G705,3,FALSE)*(IF(VLOOKUP('Calculos 2'!A5,'Huella Completa'!A19:G705,4,FALSE)=\"Gasolina\",Gasolina,IF(VLOOKUP('Calculos 2'!A5,'Huella Completa'!A19:G705,4,FALSE)=\"Diesel\",Diesel,IF(VLOOKUP('Calculos 2'!A5,'Huella Completa'!A19:G705,4,FALSE)=\"GLP\",GLP,0))))","v":0},null,null,"Catering ",{"$f":"VLOOKUP(\"7.0\",A:C,3,FALSE)","v":0},0,null,null,null,null,null,null,null,{"$f":"'Huella Completa'!C9","v":"Nº de días de trabajo"},{"$f":"'Huella Completa'!D9","v":"Nº de personas "},{"$f":"'Huella Completa'!E9","v":"Presupuesto en €"}]
["1.5",{"$f":"VLOOKUP('Calculos 2'!A6,'Huella Completa'!A20:G706,3,FALSE)*(IF(VLOOKUP('Calculos 2'!A6,'Huella Completa'!A20:G706,4,FALSE)=\"Gasolina\",Gasolina,IF(VLOOKUP('Calculos 2'!A6,'Huella Completa'!A20:G706,4,FALSE)=\"Diesel\",Diesel,IF(VLOOKUP('Calculos 2'!A6,'Huella Completa'!A20:G706,4,FALSE)=\"GLP\",GLP,0))))","v":0},null,null,"Escenografía",{"$f":"_xlfn.AGGREGATE(9,6,emi_04.01,emi_04.02,emi_04.03)","v":0},0,null,null,null,null,null,null,{"$f":"'Huella Completa'!B10","v":"Preproducción"},{"$f":"'Huella Completa'!C10","v":0},{"$f":"'Huella Completa'!D10","v":0},{"$f":"'Huella Completa'!E10","v":0},{"$f":"O6*P6","v":0},{"$f":"$Q$2*R6","v":{"$error":"#DIV/0!"}},{"$f":"$O$2*Q6","v":{"$error":"#DIV/0!"}}]
["1.6",{"$f":"VLOOKUP('Calculos 2'!A7,'Huella Completa'!A21:G707,3,FALSE)*(IF(VLOOKUP('Calculos 2'!A7,'Huella Completa'!A21:G707,4,FALSE)=\"Gasolina\",Gasolina,IF(VLOOKUP('Calculos 2'!A7,'Huella Completa'!A21:G707,4,FALSE)=\"Diesel\",Diesel,IF(VLOOKUP('Calculos 2'!A7,'Huella Completa'!A21:G707,4,FALSE)=\"GLP\",GLP,0))))","v":0},null,null,"Adquisición y alquiler de maquinaría y elementos para el rodaje",{"$f":"_xlfn.AGGREGATE(9,6,emi_06.01,emi_05.03)","v":0},0,null,null,null,null,null,null,{"$f":"'Huella Completa'!B11","v":"Producción"},{"$f":"'Huella Completa'!C11","v":0},{"$f":"'Huella Completa'!D11","v":0},{"$f":"'Huella Completa'!E11","v":0},{"$f":"O7*P7","v":0},{"$f":"$Q$2*R7","v":{"$error":"#DIV/0!"}},{"$f":"$O$2*Q7","v":{"$error":"#DIV/0!"}}]
["1.7",{"$f":"VLOOKUP('Calculos 2'!A8,'Huella Completa'!A23:G708,3,FALSE)*(IF(VLOOKUP('Calculos 2'!A8,'Huella Completa'!A23:G708,4,FALSE)=\"Gasolina\",Gasolina,IF(VLOOKUP('Calculos 2'!A8,'Huella Completa'!A23:G708,4,FALSE)=\"Diesel\",Diesel,IF(VLOOKUP('Calculos 2'!A8,'Huella Completa'!A23:G708,4,FALSE)=\"GLP\",GLP,0))))","v":0},null,null,null,null,null,null,null,null,null,null,null,{"$f":"'Huella Completa'!B12","v":"Postproducción"},{"$f":"'Huella Completa'!C12","v":0},{"$f":"'Huella Completa'!D12","v":0},{"$f":"'Huella Completa'!E12","v":0},0,{"$error":"#DIV/0!"},{"$error":"#DIV/0!"}]
["1.8",{"$f":"VLOOKUP('Calculos 2'!A9,'Huella Completa'!A24:G709,3,FALSE)*(IF(VLOOKUP('Calculos 2'!A9,'Huella Completa'!A24:G709,4,FALSE)=\"Gasolina\",Gasolina,IF(VLOOKUP('Calculos 2'!A9,'Huella Completa'!A24:G709,4,FALSE)=\"Diesel\",Diesel,IF(VLOOKUP('Calculos 2'!A9,'Huella Completa'!A24:G709,4,FALSE)=\"GLP\",GLP,0))))","v":0},null,null,null,null,null,null,"emi_04.01","Decorados y escenarios",null,null,null,null,null,{"$f":"O6*P6+O7*P7+O8*P8","v":0},null,"TOTAL",{"$f":"SUM(S6:S8)","v":{"$error":"#DIV/0!"}},{"$f":"SUM(T6:T8)","v":{"$error":"#DIV/0!"}}]
["1.9",{"$f":"VLOOKUP('Calculos 2'!A10,'Huella Completa'!A25:G710,3,FALSE)*(IF(VLOOKUP('Calculos 2'!A10,'Huella Completa'!A25:G710,4,FALSE)=\"Gasolina\",Gasolina,IF(VLOOKUP('Calculos 2'!A10,'Huella Completa'!A25:G710,4,FALSE)=\"Diesel\",Diesel,IF(VLOOKUP('Calculos 2'!A10,'Huella Completa'!A25:G710,4,FALSE)=\"GLP\",GLP,0))))","v":0},null,null,null,null,null,null,"emi_04.02","Ambientación"]
["1.10",{"$f":"VLOOKUP('Calculos 2'!A11,'Huella Completa'!A26:G711,3,FALSE)*(IF(VLOOKUP('Calculos 2'!A11,'Huella Completa'!A26:G711,4,FALSE)=\"Gasolina\",Gasolina,IF(VLOOKUP('Calculos 2'!A11,'Huella Completa'!A26:G711,4,FALSE)=\"Diesel\",Diesel,IF(VLOOKUP('Calculos 2'!A11,'Huella Completa'!A26:G711,4,FALSE)=\"GLP\",GLP,0))))","v":0},null,null,null,null,null,null,"emi_04.03","Vestuario"]
["1.11",{"$f":"VLOOKUP('Calculos 2'!A12,'Huella Completa'!A34:G712,3,FALSE)*(IF(VLOOKUP('Calculos 2'!A12,'Huella Completa'!A34:G712,4,FALSE)=\"Gasolina\",Gasolina,IF(VLOOKUP('Calculos 2'!A12,'Huella Completa'!A34:G712,4,FALSE)=\"Diesel\",Diesel,IF(VLOOKUP('Calculos 2'!A12,'Huella Completa'!A34:G712,4,FALSE)=\"GLP\",GLP,0))))","v":{"$error":"#N/A"}},null,null,null,null,null,null,"emi_05.03","Varios producción"]
["1.12",{"$f":"VLOOKUP('Calculos 2'!A13,'Huella Completa'!A35:G713,3,FALSE)*(IF(VLOOKUP('Calculos 2'!A13,'Huella Completa'!A35:G713,4,FALSE)=\"Gasolina\",Gasolina,IF(VLOOKUP('Calculos 2'!A13,'Huella Completa'!A35:G713,4,FALSE)=\"Diesel\",Diesel,IF(VLOOKUP('Calculos 2'!A13,'Huella Completa'!A35:G713,4,FALSE)=\"GLP\",GLP,0))))","v":{"$error":"#N/A"}},null,null,null,null,null,null,"emi_06.01","Adquisición de alquiler de maquinaria y elementos de rodaje"]
["1.13",{"$f":"VLOOKUP('Calculos 2'!A14,'Huella Completa'!A36:G714,3,FALSE)*(IF(VLOOKUP('Calculos 2'!A14,'Huella Completa'!A36:G714,4,FALSE)=\"Gasolina\",Gasolina,IF(VLOOKUP('Calculos 2'!A14,'Huella Completa'!A36:G714,4,FALSE)=\"Diesel\",Diesel,IF(VLOOKUP('Calculos 2'!A14,'Huella Completa'!A36:G714,4,FALSE)=\"GLP\",GLP,0))))","v":{"$error":"#N/A"}}]
["1.14",{"$f":"VLOOKUP('Calculos 2'!A15,'Huella Completa'!A37:G715,3,FALSE)*(IF(VLOOKUP('Calculos 2'!A15,'Huella Completa'!A37:G715,4,FALSE)=\"Gasolina\",Gasolina,IF(VLOOKUP('Calculos 2'!A15,'Huella Completa'!A37:G715,4,FALSE)=\"Diesel\",Diesel,IF(VLOOKUP('Calculos 2'!A15,'Huella Completa'!A37:G715,4,FALSE)=\"GLP\",GLP,0))))","v":{"$error":"#N/A"}},null,null,"RECOMENDACIONES"]
["1.15",{"$f":"VLOOKUP('Calculos 2'!A16,'Huella Completa'!A38:G716,3,FALSE)*(IF(VLOOKUP('Calculos 2'!A16,'Huella Completa'!A38:G716,4,FALSE)=\"Gasolina\",Gasolina,IF(VLOOKUP('Calculos 2'!A16,'Huella Completa'!A38:G716,4,FALSE)=\"Diesel\",Diesel,IF(VLOOKUP('Calculos 2'!A16,'Huella Completa'!A38:G716,4,FALSE)=\"GLP\",GLP,0))))","v":{"$error":"#N/A"}},null,null,"Preproducción"]
["1.16",{"$f":"VLOOKUP('Calculos 2'!A17,'Huella Completa'!A39:G717,3,FALSE)*(IF(VLOOKUP('Calculos 2'!A17,'Huella Completa'!A39:G717,4,FALSE)=\"Gasolina\",Gasolina,IF(VLOOKUP('Calculos 2'!A17,'Huella Completa'!A39:G717,4,FALSE)=\"Diesel\",Diesel,IF(VLOOKUP('Calculos 2'!A17,'Huella Completa'!A39:G717,4,FALSE)=\"GLP\",GLP,0))))","v":{"$error":"#N/A"}},null,null,{"$f":"IF(pre_vehiculo=\"siempre\",\"¡Genial! Has usado vehículo eléctrico o híbrido  para el transporte en la fase de preproducción.\",IF(pre_vehiculo=\"normalmente\",\"¡Muy bien! has intentado usar el vehículo eléctrico o híbrido siempre que has podido en la preproducción sigue así.\",IF(pre_vehiculo=\"a veces\",\"Un primer paso siempre es importante. Sigue intentando usar el vehículo eléctrico o híbrido en tus viajes.\",IF(pre_vehiculo=\"nunca\",\"Plantéate usar el vehículo eléctrico o híbrido en tus viajes de la preproducción. Con esta decisión puedes bajar significativamente la huella de carbono.\",\" \"))))","v":" "}]
["1.17",{"$f":"VLOOKUP('Calculos 2'!A18,'Huella Completa'!A40:G718,3,FALSE)*(IF(VLOOKUP('Calculos 2'!A18,'Huella Completa'!A40:G718,4,FALSE)=\"Gasolina\",Gasolina,IF(VLOOKUP('Calculos 2'!A18,'Huella Completa'!A40:G718,4,FALSE)=\"Diesel\",Diesel,IF(VLOOKUP('Calculos 2'!A18,'Huella Completa'!A40:G718,4,FALSE)=\"GLP\",GLP,0))))","v":{"$error":"#N/A"}},null,null,"¡Recuerda! para los transportes en bus, tren o avión el tren es el transporte con menor huella de carbono, selecciónalo siempre que sea posible."]
["1.18",{"$f":"VLOOKUP('Calculos 2'!A19,'Huella Completa'!A41:G719,3,FALSE)*(IF(VLOOKUP('Calculos 2'!A19,'Huella Completa'!A41:G719,4,FALSE)=\"Gasolina\",Gasolina,IF(VLOOKUP('Calculos 2'!A19,'Huella Completa'!A41:G719,4,FALSE)=\"Diesel\",Diesel,IF(VLOOKUP('Calculos 2'!A19,'Huella Completa'!A41:G719,4,FALSE)=\"GLP\",GLP,0))))","v":{"$error":"#N/A"}},null,null,{"$f":"IF(Elec_hotel1=\"siempre\",\"¡Genial! Has elegido contratar hoteles y hospedaje con certificado de sostenibilidad.\",IF(Elec_hotel1=\"normalmente\",\"¡Muy bien! has intentado contratar hoteles certificado de sostenibilidad.\",IF(Elec_hotel1=\"a veces\",\"Un primer paso siempre es importante. Sigue intentando contratar alojamientos con certificado de sostenibilidad para mejorar tu huella de carbono.\",IF(Elec_hotel1=\"nunca\",\"Plantéate contratar alojamientos con certificado de sostenibilidad. Con esta decisión puedes bajar significativamente la huella de carbono.\",\" \"))))","v":" "}]
["1.19",{"$f":"VLOOKUP('Calculos 2'!A20,'Huella Completa'!A42:G720,3,FALSE)*(IF(VLOOKUP('Calculos 2'!A20,'Huella Completa'!A42:G720,4,FALSE)=\"Gasolina\",Gasolina,IF(VLOOKUP('Calculos 2'!A20,'Huella Completa'!A42:G720,4,FALSE)=\"Diesel\",Diesel,IF(VLOOKUP('Calculos 2'!A20,'Huella Completa'!A42:G720,4,FALSE)=\"GLP\",GLP,0))))","v":{"$error":"#N/A"}},null,null,"Producción"]
["1.20",{"$f":"VLOOKUP('Calculos 2'!A21,'Huella Completa'!A43:G721,3,FALSE)*(IF(VLOOKUP('Calculos 2'!A21,'Huella Completa'!A43:G721,4,FALSE)=\"Gasolina\",Gasolina,IF(VLOOKUP('Calculos 2'!A21,'Huella Completa'!A43:G721,4,FALSE)=\"Diesel\",Diesel,IF(VLOOKUP('Calculos 2'!A21,'Huella Completa'!A43:G721,4,FALSE)=\"GLP\",GLP,0))))","v":{"$error":"#N/A"}},null,null,{"$f":"IF(pro_vehiculo=\"siempre\",\"¡Genial! Has usado vehículo eléctrico o híbrido  para el transporte.\",IF(pro_vehiculo=\"normalmente\",\"¡Muy bien! has intentado usar el vehículo eléctrico o híbrido siempre que has podido, sigue así.\",IF(pro_vehiculo=\"a veces\",\"Un primer paso siempre es importante. Sigue intentando usar el vehículo eléctrico o híbrido en tus viajes.\",IF(pro_vehiculo=\"nunca\",\"Plantéate usar el vehículo eléctrico o híbrido en tus viajes. Con esta decisión puedes bajar significativamente la huella de carbono.\",\" \"))))","v":" "}]
["1.21",{"$f":"VLOOKUP('Calculos 2'!A22,'Huella Completa'!A44:G722,3,FALSE)*(IF(VLOOKUP('Calculos 2'!A22,'Huella Completa'!A44:G722,4,FALSE)=\"Gasolina\",Gasolina,IF(VLOOKUP('Calculos 2'!A22,'Huella Completa'!A44:G722,4,FALSE)=\"Diesel\",Diesel,IF(VLOOKUP('Calculos 2'!A22,'Huella Completa'!A44:G722,4,FALSE)=\"GLP\",GLP,0))))","v":{"$error":"#N/A"}},null,null,"¡Recuerda! para los transportes en bus, tren o avión el tren es el transporte con menor huella de carbono, selecciónalo siempre que sea posible."]
["1.22",{"$f":"VLOOKUP('Calculos 2'!A23,'Huella Completa'!A45:G723,3,FALSE)*(IF(VLOOKUP('Calculos 2'!A23,'Huella Completa'!A45:G723,4,FALSE)=\"Gasolina\",Gasolina,IF(VLOOKUP('Calculos 2'!A23,'Huella Completa'!A45:G723,4,FALSE)=\"Diesel\",Diesel,IF(VLOOKUP('Calculos 2'!A23,'Huella Completa'!A45:G723,4,FALSE)=\"GLP\",GLP,0))))","v":{"$error":"#N/A"}},null,null,{"$f":"IF(pro_distancia=\"siempre\",\"¡Estupendo! Tener el alojamiento cerca del set de rodaje hace reducir mucho la huella de carbono por transporte.\",IF(pro_distancia=\"normalmente\",\"Muy bien, sigue buscando alojamientos cercanos al set de rodaje eso hace tu huella de carbono menor.\",IF(pro_distancia=\"a veces\",\"A veces no es fácil encontrar el alojamiento adecuado cerca del set de rodaje sigue intentándolo para tus próximos rodajes.\",IF(pro_distancia=\"nunca\",\"Te proponemos que intentes buscar alojamientos lo más cercanos posible al set de rodaje para reducir tu huella de carbono.\",\" \"))))","v":" "}]
["1.23",{"$f":"VLOOKUP('Calculos 2'!A24,'Huella Completa'!A46:G724,3,FALSE)*(IF(VLOOKUP('Calculos 2'!A24,'Huella Completa'!A46:G724,4,FALSE)=\"Gasolina\",Gasolina,IF(VLOOKUP('Calculos 2'!A24,'Huella Completa'!A46:G724,4,FALSE)=\"Diesel\",Diesel,IF(VLOOKUP('Calculos 2'!A24,'Huella Completa'!A46:G724,4,FALSE)=\"GLP\",GLP,0))))","v":{"$error":"#N/A"}},null,null,{"$f":"IF(Elec_hotel2=\"siempre\",\"¡Genial! Has elegido contratar hoteles y hospedaje con certificado de sostenibilidad.\",IF(Elec_hotel2=\"normalmente\",\"¡Muy bien! has intentado contratar hoteles certificado de sostenibilidad.\",IF(Elec_hotel2=\"a veces\",\"Un primer paso siempre es importante. Sigue intentando contratar alojamientos con certificado de sostenibilidad para mejorar tu huella de carbono.\",IF(Elec_hotel2=\"nunca\",\"Plantéate contratar alojamientos con certificado de sostenibilidad. Con esta decisión puedes bajar significativamente la huella de carbono.\",\" \"))))","v":" "}]
["1.24",{"$f":"VLOOKUP('Calculos 2'!A25,'Huella Completa'!A47:G725,3,FALSE)*(IF(VLOOKUP('Calculos 2'!A25,'Huella Completa'!A47:G725,4,FALSE)=\"Gasolina\",Gasolina,IF(VLOOKUP('Calculos 2'!A25,'Huella Completa'!A47:G725,4,FALSE)=\"Diesel\",Diesel,IF(VLOOKUP('Calculos 2'!A25,'Huella Completa'!A47:G725,4,FALSE)=\"GLP\",GLP,0))))","v":{"$error":"#N/A"}},null,null,{"$f":"IF(pro_cate_veg=\"siempre\",\"Muy bien, dar siempre una opción vegetariana en el catering reduce tu huella de carbono.\",IF(pro_cate_veg=\"normalmente\",\"Sigue trabajando para dar siempre una opción de catering vegetariano en tus producciones y reducirás tu huella de carbono.\",IF(pro_cate_veg=\"a veces\",\"Sigue intentándolo, dar opción vegetariana en el catering reduce tu huella de carbono.\",IF(pro_cate_veg=\"nunca\",\"Te sugerimos introducir la opción de catering vegetariano en la producción, es una forma saludable de reducir tu huella de carbono.\",\" \"))))","v":" "}]
["1.25",{"$f":"VLOOKUP('Calculos 2'!A26,'Huella Completa'!A48:G726,3,FALSE)*(IF(VLOOKUP('Calculos 2'!A26,'Huella Completa'!A48:G726,4,FALSE)=\"Gasolina\",Gasolina,IF(VLOOKUP('Calculos 2'!A26,'Huella Completa'!A48:G726,4,FALSE)=\"Diesel\",Diesel,IF(VLOOKUP('Calculos 2'!A26,'Huella Completa'!A48:G726,4,FALSE)=\"GLP\",GLP,0))))","v":{"$error":"#N/A"}},null,null,{"$f":"IF(pro_cate_loc=\"siempre\",\"¡Fenomenal! contratar siempre un catering que utilice productos locales y de cercanía es la mejor opción para reducir tu huella de carbono.\",IF(pro_cate_loc=\"normalmente\",\"Sigue trabajando para contratar siempre catering que utilice productos locales y de cercanía es la mejor opción para reducir tu huella de carbono.\",IF(pro_cate_loc=\"a veces\",\"Sigue intentándolo, contratar siempre catering que utilice productos locales y de cercanía es la mejor opción para reducir tu huella de carbono.\",IF(pro_cate_loc=\"nunca\",\"Te sugerimos contratar siempre catering que utilice productos locales y de cercanía es la mejor opción para reducir tu huella de carbono.\",\" \"))))","v":" "}]
["1.26",{"$f":"VLOOKUP('Calculos 2'!A27,'Huella Completa'!A49:G727,3,FALSE)*(IF(VLOOKUP('Calculos 2'!A27,'Huella Completa'!A49:G727,4,FALSE)=\"Gasolina\",Gasolina,IF(VLOOKUP('Calculos 2'!A27,'Huella Completa'!A49:G727,4,FALSE)=\"Diesel\",Diesel,IF(VLOOKUP('Calculos 2'!A27,'Huella Completa'!A49:G727,4,FALSE)=\"GLP\",GLP,0))))","v":{"$error":"#N/A"}},null,null,{"$f":"IF(pro_gen_ele=\"siempre\",\"¡Estupendo! la generación de electricidad provoca emisiones directas a la atmósfera, si utilizas sistemas más sostenibles tu huella se reduce directamente.\",IF(pro_gen_ele=\"normalmente\",\"Muy bien, la generación de electricidad provoca emisiones directas a la atmósfera, si utilizas sistemas más sostenibles tu huella se reduce directamente.\",IF(pro_gen_ele=\"a veces\",\"Sigue intentándolo, la generación de electricidad provoca emisiones directas a la atmósfera, si utilizas sistemas más sostenibles tu huella se reduce directamente.\",IF(pro_gen_ele=\"nunca\",\"Como consejo utiliza siempre que puedas grupos electrógenos más sostenibles. La generación de electricidad provoca emisiones directas a la atmósfera, si utilizas sistemas más sostenibles tu huella se reduce directamente.\",\" \"))))","v":" "}]
["1.27",{"$f":"VLOOKUP('Calculos 2'!A28,'Huella Completa'!A50:G728,3,FALSE)*(IF(VLOOKUP('Calculos 2'!A28,'Huella Completa'!A50:G728,4,FALSE)=\"Gasolina\",Gasolina,IF(VLOOKUP('Calculos 2'!A28,'Huella Completa'!A50:G728,4,FALSE)=\"Diesel\",Diesel,IF(VLOOKUP('Calculos 2'!A28,'Huella Completa'!A50:G728,4,FALSE)=\"GLP\",GLP,0))))","v":{"$error":"#N/A"}},null,null,"Contratando proveedores eléctricos de energía renovables te garantizas que todo tu consumo eléctrico de la red es libre de emisiones de gases de efecto invernadero."]
["1.28",{"$f":"VLOOKUP('Calculos 2'!A29,'Huella Completa'!A51:G729,3,FALSE)*(IF(VLOOKUP('Calculos 2'!A29,'Huella Completa'!A51:G729,4,FALSE)=\"Gasolina\",Gasolina,IF(VLOOKUP('Calculos 2'!A29,'Huella Completa'!A51:G729,4,FALSE)=\"Diesel\",Diesel,IF(VLOOKUP('Calculos 2'!A29,'Huella Completa'!A51:G729,4,FALSE)=\"GLP\",GLP,0))))","v":{"$error":"#N/A"}},null,null,{"$f":"IF(pro_ilu_efi=\"siempre\",\"¡Genial! Una iluminación eficiente puede suponer el descenso de hasta el 70% de tu huella de carbono producida por la iluminación.\",IF(pro_ilu_efi=\"normalmente\",\"¡Estupendo! Una iluminación eficiente puede suponer el descenso de hasta el 70% de tu huella de carbono producida por la iluminación.\",IF(pro_ilu_efi=\"a veces\",\"Sigue intentado utilizar iluminación eficiente. Una iluminación eficiente puede suponer el descenso de hasta el 70% de tu huella de carbono producida por la iluminación.\",IF(pro_ilu_efi=\"nunca\",\"Te proponemos que intentes utilizar una iluminación más eficiente. Una iluminación eficiente puede suponer el descenso de hasta el 70% de tu huella de carbono producida por la iluminación.\",\" \"))))","v":" "}]
["1.29",{"$f":"VLOOKUP('Calculos 2'!A30,'Huella Completa'!A52:G730,3,FALSE)*(IF(VLOOKUP('Calculos 2'!A30,'Huella Completa'!A52:G730,4,FALSE)=\"Gasolina\",Gasolina,IF(VLOOKUP('Calculos 2'!A30,'Huella Completa'!A52:G730,4,FALSE)=\"Diesel\",Diesel,IF(VLOOKUP('Calculos 2'!A30,'Huella Completa'!A52:G730,4,FALSE)=\"GLP\",GLP,0))))","v":{"$error":"#N/A"}},null,null,"Priorizar en el alquiler en lugar de la compra de decorados, vestuario, etc siempre repercute en la reducción de la huella de carbono de la producción."]
["1.30",{"$f":"VLOOKUP('Calculos 2'!A31,'Huella Completa'!A53:G731,3,FALSE)*(IF(VLOOKUP('Calculos 2'!A31,'Huella Completa'!A53:G731,4,FALSE)=\"Gasolina\",Gasolina,IF(VLOOKUP('Calculos 2'!A31,'Huella Completa'!A53:G731,4,FALSE)=\"Diesel\",Diesel,IF(VLOOKUP('Calculos 2'!A31,'Huella Completa'!A53:G731,4,FALSE)=\"GLP\",GLP,0))))","v":{"$error":"#N/A"}},null,null,"En la gestión de residuos hay una máxima reducir, reutilizar y reciclar. Está máxima además va por orden: reducir el número de productos que se comprar y que luego se desechan. Reutilizar siempre que sea posible. En ultimo caso todos nuestros residuos deben reciclarse. Con esta regla además de optimizar los recursos estamos reduciendo la huella de carbono de la producción audiovisual."]
["1.0",null,{"$f":"_xlfn.AGGREGATE(9,6,B2:B32)","v":0}]
[]
["2.1",{"$f":"VLOOKUP('Calculos 2'!A34,'Huella Completa'!A16:G702,4,FALSE)*VLOOKUP('Calculos 2'!A34,'Huella Completa'!A16:G702,5,FALSE)*(IF(VLOOKUP('Calculos 2'!A34,'Huella Completa'!A16:G702,3,FALSE)=\"Tren\",Tren,IF(VLOOKUP('Calculos 2'!A34,'Huella Completa'!A16:G702,3,FALSE)=\"Autobús\",Autobús,IF(VLOOKUP('Calculos 2'!A34,'Huella Completa'!A16:G702,3,FALSE)=\"Avión\",Avión,0))))","v":0},null,null,{"$f":"IF(pro_con_agua=\"siempre\",\"¡Genial! El agua es un recurso escaso en muchas localizaciones reutilizarla te hace tener menor huella hídrica y de carbono.\",IF(pro_con_agua=\"normalmente\",\"¡Estupendo! El agua es un recurso escaso en muchas localizaciones reutilizarla te hace tener menor huella hídrica y de carbono.\",IF(pro_con_agua=\"a veces\",\"Sigue intentado reutilizar el agua. El agua es un recurso escaso en muchas localizaciones.\",IF(pro_con_agua=\"nunca\",\"Te proponemos que intentes reutilizar el agua gastada en las localizaciones.\",\" \"))))","v":" "}]
["2.2",{"$f":"VLOOKUP('Calculos 2'!A35,'Huella Completa'!A17:G703,4,FALSE)*VLOOKUP('Calculos 2'!A35,'Huella Completa'!A17:G703,5,FALSE)*(IF(VLOOKUP('Calculos 2'!A35,'Huella Completa'!A17:G703,3,FALSE)=\"Tren\",Tren,IF(VLOOKUP('Calculos 2'!A35,'Huella Completa'!A17:G703,3,FALSE)=\"Autobús\",Autobús,IF(VLOOKUP('Calculos 2'!A35,'Huella Completa'!A17:G703,3,FALSE)=\"Avión\",Avión,0))))","v":0}]
["2.3",{"$f":"VLOOKUP('Calculos 2'!A36,'Huella Completa'!A18:G704,4,FALSE)*VLOOKUP('Calculos 2'!A36,'Huella Completa'!A18:G704,5,FALSE)*(IF(VLOOKUP('Calculos 2'!A36,'Huella Completa'!A18:G704,3,FALSE)=\"Tren\",Tren,IF(VLOOKUP('Calculos 2'!A36,'Huella Completa'!A18:G704,3,FALSE)=\"Autobús\",Autobús,IF(VLOOKUP('Calculos 2'!A36,'Huella Completa'!A18:G704,3,FALSE)=\"Avión\",Avión,0))))","v":0}]
["2.4",{"$f":"VLOOKUP('Calculos 2'!A37,'Huella Completa'!A19:G705,4,FALSE)*VLOOKUP('Calculos 2'!A37,'Huella Completa'!A19:G705,5,FALSE)*(IF(VLOOKUP('Calculos 2'!A37,'Huella Completa'!A19:G705,3,FALSE)=\"Tren\",Tren,IF(VLOOKUP('Calculos 2'!A37,'Huella Completa'!A19:G705,3,FALSE)=\"Autobús\",Autobús,IF(VLOOKUP('Calculos 2'!A37,'Huella Completa'!A19:G705,3,FALSE)=\"Avión\",Avión,0))))","v":0}]
["2.5",{"$f":"VLOOKUP('Calculos 2'!A38,'Huella Completa'!A20:G706,4,FALSE)*VLOOKUP('Calculos 2'!A38,'Huella Completa'!A20:G706,5,FALSE)*(IF(VLOOKUP('Calculos 2'!A38,'Huella Completa'!A20:G706,3,FALSE)=\"Tren\",Tren,IF(VLOOKUP('Calculos 2'!A38,'Huella Completa'!A20:G706,3,FALSE)=\"Autobús\",Autobús,IF(VLOOKUP('Calculos 2'!A38,'Huella Completa'!A20:G706,3,FALSE)=\"Avión\",Avión,0))))","v":0}]
["2.6",{"$f":"VLOOKUP('Calculos 2'!A39,'Huella Completa'!A21:G707,4,FALSE)*VLOOKUP('Calculos 2'!A39,'Huella Completa'!A21:G707,5,FALSE)*(IF(VLOOKUP('Calculos 2'!A39,'Huella Completa'!A21:G707,3,FALSE)=\"Tren\",Tren,IF(VLOOKUP('Calculos 2'!A39,'Huella Completa'!A21:G707,3,FALSE)=\"Autobús\",Autobús,IF(VLOOKUP('Calculos 2'!A39,'Huella Completa'!A21:G707,3,FALSE)=\"Avión\",Avión,0))))","v":0}]
["2.7",{"$f":"VLOOKUP('Calculos 2'!A40,'Huella Completa'!A23:G708,4,FALSE)*VLOOKUP('Calculos 2'!A40,'Huella Completa'!A23:G708,5,FALSE)*(IF(VLOOKUP('Calculos 2'!A40,'Huella Completa'!A23:G708,3,FALSE)=\"Tren\",Tren,IF(VLOOKUP('Calculos 2'!A40,'Huella Completa'!A23:G708,3,FALSE)=\"Autobús\",Autobús,IF(VLOOKUP('Calculos 2'!A40,'Huella Completa'!A23:G708,3,FALSE)=\"Avión\",Avión,0))))","v":0}]
["2.8",{"$f":"VLOOKUP('Calculos 2'!A41,'Huella Completa'!A24:G709,4,FALSE)*VLOOKUP('Calculos 2'!A41,'Huella Completa'!A24:G709,5,FALSE)*(IF(VLOOKUP('Calculos 2'!A41,'Huella Completa'!A24:G709,3,FALSE)=\"Tren\",Tren,IF(VLOOKUP('Calculos 2'!A41,'Huella Completa'!A24:G709,3,FALSE)=\"Autobús\",Autobús,IF(VLOOKUP('Calculos 2'!A41,'Huella Completa'!A24:G709,3,FALSE)=\"Avión\",Avión,0))))","v":0}]
["2.9",{"$f":"VLOOKUP('Calculos 2'!A42,'Huella Completa'!A25:G710,4,FALSE)*VLOOKUP('Calculos 2'!A42,'Huella Completa'!A25:G710,5,FALSE)*(IF(VLOOKUP('Calculos 2'!A42,'Huella Completa'!A25:G710,3,FALSE)=\"Tren\",Tren,IF(VLOOKUP('Calculos 2'!A42,'Huella Completa'!A25:G710,3,FALSE)=\"Autobús\",Autobús,IF(VLOOKUP('Calculos 2'!A42,'Huella Completa'!A25:G710,3,FALSE)=\"Avión\",Avión,0))))","v":0}]
["2.10",{"$f":"VLOOKUP('Calculos 2'!A43,'Huella Completa'!A26:G711,4,FALSE)*VLOOKUP('Calculos 2'!A43,'Huella Completa'!A26:G711,5,FALSE)*(IF(VLOOKUP('Calculos 2'!A43,'Huella Completa'!A26:G711,3,FALSE)=\"Tren\",Tren,IF(VLOOKUP('Calculos 2'!A43,'Huella Completa'!A26:G711,3,FALSE)=\"Autobús\",Autobús,IF(VLOOKUP('Calculos 2'!A43,'Huella Completa'!A26:G711,3,FALSE)=\"Avión\",Avión,0))))","v":0}]
["2.11",{"$f":"VLOOKUP('Calculos 2'!A44,'Huella Completa'!A34:G712,4,FALSE)*VLOOKUP('Calculos 2'!A44,'Huella Completa'!A34:G712,5,FALSE)*(IF(VLOOKUP('Calculos 2'!A44,'Huella Completa'!A34:G712,3,FALSE)=\"Tren\",Tren,IF(VLOOKUP('Calculos 2'!A44,'Huella Completa'!A34:G712,3,FALSE)=\"Autobús\",Autobús,IF(VLOOKUP('Calculos 2'!A44,'Huella Completa'!A34:G712,3,FALSE)=\"Avión\",Avión,0))))","v":{"$error":"#N/A"}}]
["2.12",{"$f":"VLOOKUP('Calculos 2'!A45,'Huella Completa'!A35:G713,4,FALSE)*VLOOKUP('Calculos 2'!A45,'Huella Completa'!A35:G713,5,FALSE)*(IF(VLOOKUP('Calculos 2'!A45,'Huella Completa'!A35:G713,3,FALSE)=\"Tren\",Tren,IF(VLOOKUP('Calculos 2'!A45,'Huella Completa'!A35:G713,3,FALSE)=\"Autobús\",Autobús,IF(VLOOKUP('Calculos 2'!A45,'Huella Completa'!A35:G713,3,FALSE)=\"Avión\",Avión,0))))","v":{"$error":"#N/A"}}]
["2.13",{"$f":"VLOOKUP('Calculos 2'!A46,'Huella Completa'!A36:G714,4,FALSE)*VLOOKUP('Calculos 2'!A46,'Huella Completa'!A36:G714,5,FALSE)*(IF(VLOOKUP('Calculos 2'!A46,'Huella Completa'!A36:G714,3,FALSE)=\"Tren\",Tren,IF(VLOOKUP('Calculos 2'!A46,'Huella Completa'!A36:G714,3,FALSE)=\"Autobús\",Autobús,IF(VLOOKUP('Calculos 2'!A46,'Huella Completa'!A36:G714,3,FALSE)=\"Avión\",Avión,0))))","v":{"$error":"#N/A"}}]
["2.14",{"$f":"VLOOKUP('Calculos 2'!A47,'Huella Completa'!A37:G715,4,FALSE)*VLOOKUP('Calculos 2'!A47,'Huella Completa'!A37:G715,5,FALSE)*(IF(VLOOKUP('Calculos 2'!A47,'Huella Completa'!A37:G715,3,FALSE)=\"Tren\",Tren,IF(VLOOKUP('Calculos 2'!A47,'Huella Completa'!A37:G715,3,FALSE)=\"Autobús\",Autobús,IF(VLOOKUP('Calculos 2'!A47,'Huella Completa'!A37:G715,3,FALSE)=\"Avión\",Avión,0))))","v":{"$error":"#N/A"}}]
["2.15",{"$f":"VLOOKUP('Calculos 2'!A48,'Huella Completa'!A38:G716,4,FALSE)*VLOOKUP('Calculos 2'!A48,'Huella Completa'!A38:G716,5,FALSE)*(IF(VLOOKUP('Calculos 2'!A48,'Huella Completa'!A38:G716,3,FALSE)=\"Tren\",Tren,IF(VLOOKUP('Calculos 2'!A48,'Huella Completa'!A38:G716,3,FALSE)=\"Autobús\",Autobús,IF(VLOOKUP('Calculos 2'!A48,'Huella Completa'!A38:G716,3,FALSE)=\"Avión\",Avión,0))))","v":{"$error":"#N/A"}}]
["2.16",{"$f":"VLOOKUP('Calculos 2'!A49,'Huella Completa'!A39:G717,4,FALSE)*VLOOKUP('Calculos 2'!A49,'Huella Completa'!A39:G717,5,FALSE)*(IF(VLOOKUP('Calculos 2'!A49,'Huella Completa'!A39:G717,3,FALSE)=\"Tren\",Tren,IF(VLOOKUP('Calculos 2'!A49,'Huella Completa'!A39:G717,3,FALSE)=\"Autobús\",Autobús,IF(VLOOKUP('Calculos 2'!A49,'Huella Completa'!A39:G717,3,FALSE)=\"Avión\",Avión,0))))","v":{"$error":"#N/A"}}]
["2.17",{"$f":"VLOOKUP('Calculos 2'!A50,'Huella Completa'!A40:G718,4,FALSE)*VLOOKUP('Calculos 2'!A50,'Huella Completa'!A40:G718,5,FALSE)*(IF(VLOOKUP('Calculos 2'!A50,'Huella Completa'!A40:G718,3,FALSE)=\"Tren\",Tren,IF(VLOOKUP('Calculos 2'!A50,'Huella Completa'!A40:G718,3,FALSE)=\"Autobús\",Autobús,IF(VLOOKUP('Calculos 2'!A50,'Huella Completa'!A40:G718,3,FALSE)=\"Avión\",Avión,0))))","v":{"$error":"#N/A"}}]
["2.18",{"$f":"VLOOKUP('Calculos 2'!A51,'Huella Completa'!A41:G719,4,FALSE)*VLOOKUP('Calculos 2'!A51,'Huella Completa'!A41:G719,5,FALSE)*(IF(VLOOKUP('Calculos 2'!A51,'Huella Completa'!A41:G719,3,FALSE)=\"Tren\",Tren,IF(VLOOKUP('Calculos 2'!A51,'Huella Completa'!A41:G719,3,FALSE)=\"Autobús\",Autobús,IF(VLOOKUP('Calculos 2'!A51,'Huella Completa'!A41:G719,3,FALSE)=\"Avión\",Avión,0))))","v":{"$error":"#N/A"}}]
["2.19",{"$f":"VLOOKUP('Calculos 2'!A52,'Huella Completa'!A42:G720,4,FALSE)*VLOOKUP('Calculos 2'!A52,'Huella Completa'!A42:G720,5,FALSE)*(IF(VLOOKUP('Calculos 2'!A52,'Huella Completa'!A42:G720,3,FALSE)=\"Tren\",Tren,IF(VLOOKUP('Calculos 2'!A52,'Huella Completa'!A42:G720,3,FALSE)=\"Autobús\",Autobús,IF(VLOOKUP('Calculos 2'!A52,'Huella Completa'!A42:G720,3,FALSE)=\"Avión\",Avión,0))))","v":{"$error":"#N/A"}}]
["2.20",{"$f":"VLOOKUP('Calculos 2'!A53,'Huella Completa'!A43:G721,4,FALSE)*VLOOKUP('Calculos 2'!A53,'Huella Completa'!A43:G721,5,FALSE)*(IF(VLOOKUP('Calculos 2'!A53,'Huella Completa'!A43:G721,3,FALSE)=\"Tren\",Tren,IF(VLOOKUP('Calculos 2'!A53,'Huella Completa'!A43:G721,3,FALSE)=\"Autobús\",Autobús,IF(VLOOKUP('Calculos 2'!A53,'Huella Completa'!A43:G721,3,FALSE)=\"Avión\",Avión,0))))","v":{"$error":"#N/A"}}]
["2.21",{"$f":"VLOOKUP('Calculos 2'!A54,'Huella Completa'!A44:G722,4,FALSE)*VLOOKUP('Calculos 2'!A54,'Huella Completa'!A44:G722,5,FALSE)*(IF(VLOOKUP('Calculos 2'!A54,'Huella Completa'!A44:G722,3,FALSE)=\"Tren\",Tren,IF(VLOOKUP('Calculos 2'!A54,'Huella Completa'!A44:G722,3,FALSE)=\"Autobús\",Autobús,IF(VLOOKUP('Calculos 2'!A54,'Huella Completa'!A44:G722,3,FALSE)=\"Avión\",Avión,0))))","v":{"$error":"#N/A"}}]
["2.22",{"$f":"VLOOKUP('Calculos 2'!A55,'Huella Completa'!A45:G723,4,FALSE)*VLOOKUP('Calculos 2'!A55,'Huella Completa'!A45:G723,5,FALSE)*(IF(VLOOKUP('Calculos 2'!A55,'Huella Completa'!A45:G723,3,FALSE)=\"Tren\",Tren,IF(VLOOKUP('Calculos 2'!A55,'Huella Completa'!A45:G723,3,FALSE)=\"Autobús\",Autobús,IF(VLOOKUP('Calculos 2'!A55,'Huella Completa'!A45:G723,3,FALSE)=\"Avión\",Avión,0))))","v":{"$error":"#N/A"}}]
["2.23",{"$f":"VLOOKUP('Calculos 2'!A56,'Huella Completa'!A46:G724,4,FALSE)*VLOOKUP('Calculos 2'!A56,'Huella Completa'!A46:G724,5,FALSE)*(IF(VLOOKUP('Calculos 2'!A56,'Huella Completa'!A46:G724,3,FALSE)=\"Tren\",Tren,IF(VLOOKUP('Calculos 2'!A56,'Huella Completa'!A46:G724,3,FALSE)=\"Autobús\",Autobús,IF(VLOOKUP('Calculos 2'!A56,'Huella Completa'!A46:G724,3,FALSE)=\"Avión\",Avión,0))))","v":{"$error":"#N/A"}}]
["2.24",{"$f":"VLOOKUP('Calculos 2'!A57,'Huella Completa'!A47:G725,4,FALSE)*VLOOKUP('Calculos 2'!A57,'Huella Completa'!A47:G725,5,FALSE)*(IF(VLOOKUP('Calculos 2'!A57,'Huella Completa'!A47:G725,3,FALSE)=\"Tren\",Tren,IF(VLOOKUP('Calculos 2'!A57,'Huella Completa'!A47:G725,3,FALSE)=\"Autobús\",Autobús,IF(VLOOKUP('Calculos 2'!A57,'Huella Completa'!A47:G725,3,FALSE)=\"Avión\",Avión,0))))","v":{"$error":"#N/A"}}]
["2.25",{"$f":"VLOOKUP('Calculos 2'!A58,'Huella Completa'!A48:G726,4,FALSE)*VLOOKUP('Calculos 2'!A58,'Huella Completa'!A48:G726,5,FALSE)*(IF(VLOOKUP('Calculos 2'!A58,'Huella Completa'!A48:G726,3,FALSE)=\"Tren\",Tren,IF(VLOOKUP('Calculos 2'!A58,'Huella Completa'!A48:G726,3,FALSE)=\"Autobús\",Autobús,IF(VLOOKUP('Calculos 2'!A58,'Huella Completa'!A48:G726,3,FALSE)=\"Avión\",Avión,0))))","v":{"$error":"#N/A"}}]
["2.26",{"$f":"VLOOKUP('Calculos 2'!A59,'Huella Completa'!A49:G727,4,FALSE)*VLOOKUP('Calculos 2'!A59,'Huella Completa'!A49:G727,5,FALSE)*(IF(VLOOKUP('Calculos 2'!A59,'Huella Completa'!A49:G727,3,FALSE)=\"Tren\",Tren,IF(VLOOKUP('Calculos 2'!A59,'Huella Completa'!A49:G727,3,FALSE)=\"Autobús\",Autobús,IF(VLOOKUP('Calculos 2'!A59,'Huella Completa'!A49:G727,3,FALSE)=\"Avión\",Avión,0))))","v":{"$error":"#N/A"}}]
["2.27",{"$f":"VLOOKUP('Calculos 2'!A60,'Huella Completa'!A50:G728,4,FALSE)*VLOOKUP('Calculos 2'!A60,'Huella Completa'!A50:G728,5,FALSE)*(IF(VLOOKUP('Calculos 2'!A60,'Huella Completa'!A50:G728,3,FALSE)=\"Tren\",Tren,IF(VLOOKUP('Calculos 2'!A60,'Huella Completa'!A50:G728,3,FALSE)=\"Autobús\",Autobús,IF(VLOOKUP('Calculos 2'!A60,'Huella Completa'!A50:G728,3,FALSE)=\"Avión\",Avión,0))))","v":{"$error":"#N/A"}}]
["2.28",{"$f":"VLOOKUP('Calculos 2'!A61,'Huella Completa'!A51:G729,4,FALSE)*VLOOKUP('Calculos 2'!A61,'Huella Completa'!A51:G729,5,FALSE)*(IF(VLOOKUP('Calculos 2'!A61,'Huella Completa'!A51:G729,3,FALSE)=\"Tren\",Tren,IF(VLOOKUP('Calculos 2'!A61,'Huella Completa'!A51:G729,3,FALSE)=\"Autobús\",Autobús,IF(VLOOKUP('Calculos 2'!A61,'Huella Completa'!A51:G729,3,FALSE)=\"Avión\",Avión,0))))","v":{"$error":"#N/A"}}]
["2.29",{"$f":"VLOOKUP('Calculos 2'!A62,'Huella Completa'!A52:G730,4,FALSE)*VLOOKUP('Calculos 2'!A62,'Huella Completa'!A52:G730,5,FALSE)*(IF(VLOOKUP('Calculos 2'!A62,'Huella Completa'!A52:G730,3,FALSE)=\"Tren\",Tren,IF(VLOOKUP('Calculos 2'!A62,'Huella Completa'!A52:G730,3,FALSE)=\"Autobús\",Autobús,IF(VLOOKUP('Calculos 2'!A62,'Huella Completa'!A52:G730,3,FALSE)=\"Avión\",Avión,0))))","v":{"$error":"#N/A"}}]
["2.30",{"$f":"VLOOKUP('Calculos 2'!A63,'Huella Completa'!A53:G731,4,FALSE)*VLOOKUP('Calculos 2'!A63,'Huella Completa'!A53:G731,5,FALSE)*(IF(VLOOKUP('Calculos 2'!A63,'Huella Completa'!A53:G731,3,FALSE)=\"Tren\",Tren,IF(VLOOKUP('Calculos 2'!A63,'Huella Completa'!A53:G731,3,FALSE)=\"Autobús\",Autobús,IF(VLOOKUP('Calculos 2'!A63,'Huella Completa'!A53:G731,3,FALSE)=\"Avión\",Avión,0))))","v":{"$error":"#N/A"}}]
["2.0",null,{"$f":"_xlfn.AGGREGATE(9,6,B34:B63)","v":0}]
[]
["3.1",{"$f":"VLOOKUP('Calculos 2'!A66,'Huella Completa'!A16:G702,4,FALSE)*VLOOKUP('Calculos 2'!A66,'Huella Completa'!A16:G702,4,FALSE)*Hotel*(_xlfn.IFS(Elec_hotel1=\"siempre\",0.6,Elec_hotel1=\"normalmente\",0.75,Elec_hotel1=\"a veces\",0.9,Elec_hotel1=\"nunca\",1))","v":{"$error":"#N/A"}}]
["3.2",{"$f":"VLOOKUP('Calculos 2'!A67,'Huella Completa'!A17:G703,4,FALSE)*VLOOKUP('Calculos 2'!A67,'Huella Completa'!A17:G703,4,FALSE)*Hotel*(_xlfn.IFS(Elec_hotel1=\"siempre\",0.6,Elec_hotel1=\"normalmente\",0.75,Elec_hotel1=\"a veces\",0.9,Elec_hotel1=\"nunca\",1))","v":{"$error":"#N/A"}}]
["3.3",{"$f":"VLOOKUP('Calculos 2'!A68,'Huella Completa'!A18:G704,4,FALSE)*VLOOKUP('Calculos 2'!A68,'Huella Completa'!A18:G704,4,FALSE)*Hotel*(_xlfn.IFS(Elec_hotel1=\"siempre\",0.6,Elec_hotel1=\"normalmente\",0.75,Elec_hotel1=\"a veces\",0.9,Elec_hotel1=\"nunca\",1))","v":{"$error":"#N/A"}}]
["3.4",{"$f":"VLOOKUP('Calculos 2'!A69,'Huella Completa'!A19:G705,4,FALSE)*VLOOKUP('Calculos 2'!A69,'Huella Completa'!A19:G705,4,FALSE)*Hotel*(_xlfn.IFS(Elec_hotel1=\"siempre\",0.6,Elec_hotel1=\"normalmente\",0.75,Elec_hotel1=\"a veces\",0.9,Elec_hotel1=\"nunca\",1))","v":{"$error":"#N/A"}}]
["3.5",{"$f":"VLOOKUP('Calculos 2'!A70,'Huella Completa'!A20:G706,4,FALSE)*VLOOKUP('Calculos 2'!A70,'Huella Completa'!A20:G706,4,FALSE)*Hotel*(_xlfn.IFS(Elec_hotel1=\"siempre\",0.6,Elec_hotel1=\"normalmente\",0.75,Elec_hotel1=\"a veces\",0.9,Elec_hotel1=\"nunca\",1))","v":{"$error":"#N/A"}}]
["3.6",{"$f":"VLOOKUP('Calculos 2'!A71,'Huella Completa'!A21:G707,4,FALSE)*VLOOKUP('Calculos 2'!A71,'Huella Completa'!A21:G707,4,FALSE)*Hotel*(_xlfn.IFS(Elec_hotel1=\"siempre\",0.6,Elec_hotel1=\"normalmente\",0.75,Elec_hotel1=\"a veces\",0.9,Elec_hotel1=\"nunca\",1))","v":{"$error":"#N/A"}}]
["3.7",{"$f":"VLOOKUP('Calculos 2'!A72,'Huella Completa'!A23:G708,4,FALSE)*VLOOKUP('Calculos 2'!A72,'Huella Completa'!A23:G708,4,FALSE)*Hotel*(_xlfn.IFS(Elec_hotel1=\"siempre\",0.6,Elec_hotel1=\"normalmente\",0.75,Elec_hotel1=\"a veces\",0.9,Elec_hotel1=\"nunca\",1))","v":{"$error":"#N/A"}}]
["3.8",{"$f":"VLOOKUP('Calculos 2'!A73,'Huella Completa'!A24:G709,4,FALSE)*VLOOKUP('Calculos 2'!A73,'Huella Completa'!A24:G709,4,FALSE)*Hotel*(_xlfn.IFS(Elec_hotel1=\"siempre\",0.6,Elec_hotel1=\"normalmente\",0.75,Elec_hotel1=\"a veces\",0.9,Elec_hotel1=\"nunca\",1))","v":{"$error":"#N/A"}}]
["3.9",{"$f":"VLOOKUP('Calculos 2'!A74,'Huella Completa'!A25:G710,4,FALSE)*VLOOKUP('Calculos 2'!A74,'Huella Completa'!A25:G710,4,FALSE)*Hotel*(_xlfn.IFS(Elec_hotel1=\"siempre\",0.6,Elec_hotel1=\"normalmente\",0.75,Elec_hotel1=\"a veces\",0.9,Elec_hotel1=\"nunca\",1))","v":{"$error":"#N/A"}}]
["3.10",{"$f":"VLOOKUP('Calculos 2'!A75,'Huella Completa'!A26:G711,4,FALSE)*VLOOKUP('Calculos 2'!A75,'Huella Completa'!A26:G711,4,FALSE)*Hotel*(_xlfn.IFS(Elec_hotel1=\"siempre\",0.6,Elec_hotel1=\"normalmente\",0.75,Elec_hotel1=\"a veces\",0.9,Elec_hotel1=\"nunca\",1))","v":{"$error":"#N/A"}}]
["3.11",{"$f":"VLOOKUP('Calculos 2'!A76,'Huella Completa'!A34:G712,4,FALSE)*VLOOKUP('Calculos 2'!A76,'Huella Completa'!A34:G712,4,FALSE)*Hotel*(_xlfn.IFS(Elec_hotel1=\"siempre\",0.6,Elec_hotel1=\"normalmente\",0.75,Elec_hotel1=\"a veces\",0.9,Elec_hotel1=\"nunca\",1))","v":{"$error":"#N/A"}}]
["3.12",{"$f":"VLOOKUP('Calculos 2'!A77,'Huella Completa'!A35:G713,4,FALSE)*VLOOKUP('Calculos 2'!A77,'Huella Completa'!A35:G713,4,FALSE)*Hotel*(_xlfn.IFS(Elec_hotel1=\"siempre\",0.6,Elec_hotel1=\"normalmente\",0.75,Elec_hotel1=\"a veces\",0.9,Elec_hotel1=\"nunca\",1))","v":{"$error":"#N/A"}}]
["3.13",{"$f":"VLOOKUP('Calculos 2'!A78,'Huella Completa'!A36:G714,4,FALSE)*VLOOKUP('Calculos 2'!A78,'Huella Completa'!A36:G714,4,FALSE)*Hotel*(_xlfn.IFS(Elec_hotel1=\"siempre\",0.6,Elec_hotel1=\"normalmente\",0.75,Elec_hotel1=\"a veces\",0.9,Elec_hotel1=\"nunca\",1))","v":{"$error":"#N/A"}}]
["3.14",{"$f":"VLOOKUP('Calculos 2'!A79,'Huella Completa'!A37:G715,4,FALSE)*VLOOKUP('Calculos 2'!A79,'Huella Completa'!A37:G715,4,FALSE)*Hotel*(_xlfn.IFS(Elec_hotel1=\"siempre\",0.6,Elec_hotel1=\"normalmente\",0.75,Elec_hotel1=\"a veces\",0.9,Elec_hotel1=\"nunca\",1))","v":{"$error":"#N/A"}}]
["3.15",{"$f":"VLOOKUP('Calculos 2'!A80,'Huella Completa'!A38:G716,4,FALSE)*VLOOKUP('Calculos 2'!A80,'Huella Completa'!A38:G716,4,FALSE)*Hotel*(_xlfn.IFS(Elec_hotel1=\"siempre\",0.6,Elec_hotel1=\"normalmente\",0.75,Elec_hotel1=\"a veces\",0.9,Elec_hotel1=\"nunca\",1))","v":{"$error":"#N/A"}}]
["3.16",{"$f":"VLOOKUP('Calculos 2'!A81,'Huella Completa'!A39:G717,4,FALSE)*VLOOKUP('Calculos 2'!A81,'Huella Completa'!A39:G717,4,FALSE)*Hotel*(_xlfn.IFS(Elec_hotel1=\"siempre\",0.6,Elec_hotel1=\"normalmente\",0.75,Elec_hotel1=\"a veces\",0.9,Elec_hotel1=\"nunca\",1))","v":{"$error":"#N/A"}}]
["3.17",{"$f":"VLOOKUP('Calculos 2'!A82,'Huella Completa'!A40:G718,4,FALSE)*VLOOKUP('Calculos 2'!A82,'Huella Completa'!A40:G718,4,FALSE)*Hotel*(_xlfn.IFS(Elec_hotel1=\"siempre\",0.6,Elec_hotel1=\"normalmente\",0.75,Elec_hotel1=\"a veces\",0.9,Elec_hotel1=\"nunca\",1))","v":{"$error":"#N/A"}}]
["3.18",{"$f":"VLOOKUP('Calculos 2'!A83,'Huella Completa'!A41:G719,4,FALSE)*VLOOKUP('Calculos 2'!A83,'Huella Completa'!A41:G719,4,FALSE)*Hotel*(_xlfn.IFS(Elec_hotel1=\"siempre\",0.6,Elec_hotel1=\"normalmente\",0.75,Elec_hotel1=\"a veces\",0.9,Elec_hotel1=\"nunca\",1))","v":{"$error":"#N/A"}}]
["3.19",{"$f":"VLOOKUP('Calculos 2'!A84,'Huella Completa'!A42:G720,4,FALSE)*VLOOKUP('Calculos 2'!A84,'Huella Completa'!A42:G720,4,FALSE)*Hotel*(_xlfn.IFS(Elec_hotel1=\"siempre\",0.6,Elec_hotel1=\"normalmente\",0.75,Elec_hotel1=\"a veces\",0.9,Elec_hotel1=\"nunca\",1))","v":{"$error":"#N/A"}}]
["3.20",{"$f":"VLOOKUP('Calculos 2'!A85,'Huella Completa'!A43:G721,4,FALSE)*VLOOKUP('Calculos 2'!A85,'Huella Completa'!A43:G721,4,FALSE)*Hotel*(_xlfn.IFS(Elec_hotel1=\"siempre\",0.6,Elec_hotel1=\"normalmente\",0.75,Elec_hotel1=\"a veces\",0.9,Elec_hotel1=\"nunca\",1))","v":{"$error":"#N/A"}}]
["3.21",{"$f":"VLOOKUP('Calculos 2'!A86,'Huella Completa'!A44:G722,4,FALSE)*VLOOKUP('Calculos 2'!A86,'Huella Completa'!A44:G722,4,FALSE)*Hotel*(_xlfn.IFS(Elec_hotel1=\"siempre\",0.6,Elec_hotel1=\"normalmente\",0.75,Elec_hotel1=\"a veces\",0.9,Elec_hotel1=\"nunca\",1))","v":{"$error":"#N/A"}}]
["3.22",{"$f":"VLOOKUP('Calculos 2'!A87,'Huella Completa'!A45:G723,4,FALSE)*VLOOKUP('Calculos 2'!A87,'Huella Completa'!A45:G723,4,FALSE)*Hotel*(_xlfn.IFS(Elec_hotel1=\"siempre\",0.6,Elec_hotel1=\"normalmente\",0.75,Elec_hotel1=\"a veces\",0.9,Elec_hotel1=\"nunca\",1))","v":{"$error":"#N/A"}}]
["3.23",{"$f":"VLOOKUP('Calculos 2'!A88,'Huella Completa'!A46:G724,4,FALSE)*VLOOKUP('Calculos 2'!A88,'Huella Completa'!A46:G724,4,FALSE)*Hotel*(_xlfn.IFS(Elec_hotel1=\"siempre\",0.6,Elec_hotel1=\"normalmente\",0.75,Elec_hotel1=\"a veces\",0.9,Elec_hotel1=\"nunca\",1))","v":{"$error":"#N/A"}}]
["3.24",{"$f":"VLOOKUP('Calculos 2'!A89,'Huella Completa'!A47:G725,4,FALSE)*VLOOKUP('Calculos 2'!A89,'Huella Completa'!A47:G725,4,FALSE)*Hotel*(_xlfn.IFS(Elec_hotel1=\"siempre\",0.6,Elec_hotel1=\"normalmente\",0.75,Elec_hotel1=\"a veces\",0.9,Elec_hotel1=\"nunca\",1))","v":{"$error":"#N/A"}}]
["3.25",{"$f":"VLOOKUP('Calculos 2'!A90,'Huella Completa'!A48:G726,4,FALSE)*VLOOKUP('Calculos 2'!A90,'Huella Completa'!A48:G726,4,FALSE)*Hotel*(_xlfn.IFS(Elec_hotel1=\"siempre\",0.6,Elec_hotel1=\"normalmente\",0.75,Elec_hotel1=\"a veces\",0.9,Elec_hotel1=\"nunca\",1))","v":{"$error":"#N/A"}}]
["3.26",{"$f":"VLOOKUP('Calculos 2'!A91,'Huella Completa'!A49:G727,4,FALSE)*VLOOKUP('Calculos 2'!A91,'Huella Completa'!A49:G727,4,FALSE)*Hotel*(_xlfn.IFS(Elec_hotel1=\"siempre\",0.6,Elec_hotel1=\"normalmente\",0.75,Elec_hotel1=\"a veces\",0.9,Elec_hotel1=\"nunca\",1))","v":{"$error":"#N/A"}}]
["3.27",{"$f":"VLOOKUP('Calculos 2'!A92,'Huella Completa'!A50:G728,4,FALSE)*VLOOKUP('Calculos 2'!A92,'Huella Completa'!A50:G728,4,FALSE)*Hotel*(_xlfn.IFS(Elec_hotel1=\"siempre\",0.6,Elec_hotel1=\"normalmente\",0.75,Elec_hotel1=\"a veces\",0.9,Elec_hotel1=\"nunca\",1))","v":{"$error":"#N/A"}}]
["3.28",{"$f":"VLOOKUP('Calculos 2'!A93,'Huella Completa'!A51:G729,4,FALSE)*VLOOKUP('Calculos 2'!A93,'Huella Completa'!A51:G729,4,FALSE)*Hotel*(_xlfn.IFS(Elec_hotel1=\"siempre\",0.6,Elec_hotel1=\"normalmente\",0.75,Elec_hotel1=\"a veces\",0.9,Elec_hotel1=\"nunca\",1))","v":{"$error":"#N/A"}}]
["3.29",{"$f":"VLOOKUP('Calculos 2'!A94,'Huella Completa'!A52:G730,4,FALSE)*VLOOKUP('Calculos 2'!A94,'Huella Completa'!A52:G730,4,FALSE)*Hotel*(_xlfn.IFS(Elec_hotel1=\"siempre\",0.6,Elec_hotel1=\"normalmente\",0.75,Elec_hotel1=\"a veces\",0.9,Elec_hotel1=\"nunca\",1))","v":{"$error":"#N/A"}}]
["3.30",{"$f":"VLOOKUP('Calculos 2'!A95,'Huella Completa'!A53:G731,4,FALSE)*VLOOKUP('Calculos 2'!A95,'Huella Completa'!A53:G731,4,FALSE)*Hotel*(_xlfn.IFS(Elec_hotel1=\"siempre\",0.6,Elec_hotel1=\"normalmente\",0.75,Elec_hotel1=\"a veces\",0.9,Elec_hotel1=\"nunca\",1))","v":{"$error":"#N/A"}}]
["3.0",null,{"$f":"_xlfn.AGGREGATE(9,6,B66:B95)","v":0}]
[]
["4.1",{"$f":"VLOOKUP('Calculos 2'!A98,'Huella Completa'!A16:G702,3,FALSE)*(IF(VLOOKUP('Calculos 2'!A98,'Huella Completa'!A16:G702,4,FALSE)=\"Gasolina\",Gasolina,IF(VLOOKUP('Calculos 2'!A98,'Huella Completa'!A16:G702,4,FALSE)=\"Diesel\",Diesel,IF(VLOOKUP('Calculos 2'!A98,'Huella Completa'!A16:G702,4,FALSE)=\"GLP\",GLP,0))))","v":0}]
["4.2",{"$f":"VLOOKUP('Calculos 2'!A99,'Huella Completa'!A17:G703,3,FALSE)*(IF(VLOOKUP('Calculos 2'!A99,'Huella Completa'!A17:G703,4,FALSE)=\"Gasolina\",Gasolina,IF(VLOOKUP('Calculos 2'!A99,'Huella Completa'!A17:G703,4,FALSE)=\"Diesel\",Diesel,IF(VLOOKUP('Calculos 2'!A99,'Huella Completa'!A17:G703,4,FALSE)=\"GLP\",GLP,0))))","v":0}]
["4.3",{"$f":"VLOOKUP('Calculos 2'!A100,'Huella Completa'!A18:G704,3,FALSE)*(IF(VLOOKUP('Calculos 2'!A100,'Huella Completa'!A18:G704,4,FALSE)=\"Gasolina\",Gasolina,IF(VLOOKUP('Calculos 2'!A100,'Huella Completa'!A18:G704,4,FALSE)=\"Diesel\",Diesel,IF(VLOOKUP('Calculos 2'!A100,'Huella Completa'!A18:G704,4,FALSE)=\"GLP\",GLP,0))))","v":0}]
["4.4",{"$f":"VLOOKUP('Calculos 2'!A101,'Huella Completa'!A19:G705,3,FALSE)*(IF(VLOOKUP('Calculos 2'!A101,'Huella Completa'!A19:G705,4,FALSE)=\"Gasolina\",Gasolina,IF(VLOOKUP('Calculos 2'!A101,'Huella Completa'!A19:G705,4,FALSE)=\"Diesel\",Diesel,IF(VLOOKUP('Calculos 2'!A101,'Huella Completa'!A19:G705,4,FALSE)=\"GLP\",GLP,0))))","v":0}]
["4.5",{"$f":"VLOOKUP('Calculos 2'!A102,'Huella Completa'!A20:G706,3,FALSE)*(IF(VLOOKUP('Calculos 2'!A102,'Huella Completa'!A20:G706,4,FALSE)=\"Gasolina\",Gasolina,IF(VLOOKUP('Calculos 2'!A102,'Huella Completa'!A20:G706,4,FALSE)=\"Diesel\",Diesel,IF(VLOOKUP('Calculos 2'!A102,'Huella Completa'!A20:G706,4,FALSE)=\"GLP\",GLP,0))))","v":0}]
["4.6",{"$f":"VLOOKUP('Calculos 2'!A103,'Huella Completa'!A21:G707,3,FALSE)*(IF(VLOOKUP('Calculos 2'!A103,'Huella Completa'!A21:G707,4,FALSE)=\"Gasolina\",Gasolina,IF(VLOOKUP('Calculos 2'!A103,'Huella Completa'!A21:G707,4,FALSE)=\"Diesel\",Diesel,IF(VLOOKUP('Calculos 2'!A103,'Huella Completa'!A21:G707,4,FALSE)=\"GLP\",GLP,0))))","v":0}]
["4.7",{"$f":"VLOOKUP('Calculos 2'!A104,'Huella Completa'!A23:G708,3,FALSE)*(IF(VLOOKUP('Calculos 2'!A104,'Huella Completa'!A23:G708,4,FALSE)=\"Gasolina\",Gasolina,IF(VLOOKUP('Calculos 2'!A104,'Huella Completa'!A23:G708,4,FALSE)=\"Diesel\",Diesel,IF(VLOOKUP('Calculos 2'!A104,'Huella Completa'!A23:G708,4,FALSE)=\"GLP\",GLP,0))))","v":0}]
["4.8",{"$f":"VLOOKUP('Calculos 2'!A105,'Huella Completa'!A24:G709,3,FALSE)*(IF(VLOOKUP('Calculos 2'!A105,'Huella Completa'!A24:G709,4,FALSE)=\"Gasolina\",Gasolina,IF(VLOOKUP('Calculos 2'!A105,'Huella Completa'!A24:G709,4,FALSE)=\"Diesel\",Diesel,IF(VLOOKUP('Calculos 2'!A105,'Huella Completa'!A24:G709,4,FALSE)=\"GLP\",GLP,0))))","v":0}]
["4.9",{"$f":"VLOOKUP('Calculos 2'!A106,'Huella Completa'!A25:G710,3,FALSE)*(IF(VLOOKUP('Calculos 2'!A106,'Huella Completa'!A25:G710,4,FALSE)=\"Gasolina\",Gasolina,IF(VLOOKUP('Calculos 2'!A106,'Huella Completa'!A25:G710,4,FALSE)=\"Diesel\",Diesel,IF(VLOOKUP('Calculos 2'!A106,'Huella Completa'!A25:G710,4,FALSE)=\"GLP\",GLP,0))))","v":0}]
["4.10",{"$f":"VLOOKUP('Calculos 2'!A107,'Huella Completa'!A26:G711,3,FALSE)*(IF(VLOOKUP('Calculos 2'!A107,'Huella Completa'!A26:G711,4,FALSE)=\"Gasolina\",Gasolina,IF(VLOOKUP('Calculos 2'!A107,'Huella Completa'!A26:G711,4,FALSE)=\"Diesel\",Diesel,IF(VLOOKUP('Calculos 2'!A107,'Huella Completa'!A26:G711,4,FALSE)=\"GLP\",GLP,0))))","v":0}]
["4.11",{"$f":"VLOOKUP('Calculos 2'!A108,'Huella Completa'!A34:G712,3,FALSE)*(IF(VLOOKUP('Calculos 2'!A108,'Huella Completa'!A34:G712,4,FALSE)=\"Gasolina\",Gasolina,IF(VLOOKUP('Calculos 2'!A108,'Huella Completa'!A34:G712,4,FALSE)=\"Diesel\",Diesel,IF(VLOOKUP('Calculos 2'!A108,'Huella Completa'!A34:G712,4,FALSE)=\"GLP\",GLP,0))))","v":{"$error":"#N/A"}}]
["4.12",{"$f":"VLOOKUP('Calculos 2'!A109,'Huella Completa'!A35:G713,3,FALSE)*(IF(VLOOKUP('Calculos 2'!A109,'Huella Completa'!A35:G713,4,FALSE)=\"Gasolina\",Gasolina,IF(VLOOKUP('Calculos 2'!A109,'Huella Completa'!A35:G713,4,FALSE)=\"Diesel\",Diesel,IF(VLOOKUP('Calculos 2'!A109,'Huella Completa'!A35:G713,4,FALSE)=\"GLP\",GLP,0))))","v":{"$error":"#N/A"}}]
["4.13",{"$f":"VLOOKUP('Calculos 2'!A110,'Huella Completa'!A36:G714,3,FALSE)*(IF(VLOOKUP('Calculos 2'!A110,'Huella Completa'!A36:G714,4,FALSE)=\"Gasolina\",Gasolina,IF(VLOOKUP('Calculos 2'!A110,'Huella Completa'!A36:G714,4,FALSE)=\"Diesel\",Diesel,IF(VLOOKUP('Calculos 2'!A110,'Huella Completa'!A36:G714,4,FALSE)=\"GLP\",GLP,0))))","v":{"$error":"#N/A"}}]
["4.14",{"$f":"VLOOKUP('Calculos 2'!A111,'Huella Completa'!A37:G715,3,FALSE)*(IF(VLOOKUP('Calculos 2'!A111,'Huella Completa'!A37:G715,4,FALSE)=\"Gasolina\",Gasolina,IF(VLOOKUP('Calculos 2'!A111,'Huella Completa'!A37:G715,4,FALSE)=\"Diesel\",Diesel,IF(VLOOKUP('Calculos 2'!A111,'Huella Completa'!A37:G715,4,FALSE)=\"GLP\",GLP,0))))","v":{"$error":"#N/A"}}]
["4.15",{"$f":"VLOOKUP('Calculos 2'!A112,'Huella Completa'!A38:G716,3,FALSE)*(IF(VLOOKUP('Calculos 2'!A112,'Huella Completa'!A38:G716,4,FALSE)=\"Gasolina\",Gasolina,IF(VLOOKUP('Calculos 2'!A112,'Huella Completa'!A38:G716,4,FALSE)=\"Diesel\",Diesel,IF(VLOOKUP('Calculos 2'!A112,'Huella Completa'!A38:G716,4,FALSE)=\"GLP\",GLP,0))))","v":{"$error":"#N/A"}}]
["4.16",{"$f":"VLOOKUP('Calculos 2'!A113,'Huella Completa'!A39:G717,3,FALSE)*(IF(VLOOKUP('Calculos 2'!A113,'Huella Completa'!A39:G717,4,FALSE)=\"Gasolina\",Gasolina,IF(VLOOKUP('Calculos 2'!A113,'Huella Completa'!A39:G717,4,FALSE)=\"Diesel\",Diesel,IF(VLOOKUP('Calculos 2'!A113,'Huella Completa'!A39:G717,4,FALSE)=\"GLP\",GLP,0))))","v":{"$error":"#N/A"}}]
["4.17",{"$f":"VLOOKUP('Calculos 2'!A114,'Huella Completa'!A40:G718,3,FALSE)*(IF(VLOOKUP('Calculos 2'!A114,'Huella Completa'!A40:G718,4,FALSE)=\"Gasolina\",Gasolina,IF(VLOOKUP('Calculos 2'!A114,'Huella Completa'!A40:G718,4,FALSE)=\"Diesel\",Diesel,IF(VLOOKUP('Calculos 2'!A114,'Huella Completa'!A40:G718,4,FALSE)=\"GLP\",GLP,0))))","v":{"$error":"#N/A"}}]
["4.18",{"$f":"VLOOKUP('Calculos 2'!A115,'Huella Completa'!A41:G719,3,FALSE)*(IF(VLOOKUP('Calculos 2'!A115,'Huella Completa'!A41:G719,4,FALSE)=\"Gasolina\",Gasolina,IF(VLOOKUP('Calculos 2'!A115,'Huella Completa'!A41:G719,4,FALSE)=\"Diesel\",Diesel,IF(VLOOKUP('Calculos 2'!A115,'Huella Completa'!A41:G719,4,FALSE)=\"GLP\",GLP,0))))","v":{"$error":"#N/A"}}]
["4.19",{"$f":"VLOOKUP('Calculos 2'!A116,'Huella Completa'!A42:G720,3,FALSE)*(IF(VLOOKUP('Calculos 2'!A116,'Huella Completa'!A42:G720,4,FALSE)=\"Gasolina\",Gasolina,IF(VLOOKUP('Calculos 2'!A116,'Huella Completa'!A42:G720,4,FALSE)=\"Diesel\",Diesel,IF(VLOOKUP('Calculos 2'!A116,'Huella Completa'!A42:G720,4,FALSE)=\"GLP\",GLP,0))))","v":{"$error":"#N/A"}}]
["4.20",{"$f":"VLOOKUP('Calculos 2'!A117,'Huella Completa'!A43:G721,3,FALSE)*(IF(VLOOKUP('Calculos 2'!A117,'Huella Completa'!A43:G721,4,FALSE)=\"Gasolina\",Gasolina,IF(VLOOKUP('Calculos 2'!A117,'Huella Completa'!A43:G721,4,FALSE)=\"Diesel\",Diesel,IF(VLOOKUP('Calculos 2'!A117,'Huella Completa'!A43:G721,4,FALSE)=\"GLP\",GLP,0))))","v":{"$error":"#N/A"}}]
["4.21",{"$f":"VLOOKUP('Calculos 2'!A118,'Huella Completa'!A44:G722,3,FALSE)*(IF(VLOOKUP('Calculos 2'!A118,'Huella Completa'!A44:G722,4,FALSE)=\"Gasolina\",Gasolina,IF(VLOOKUP('Calculos 2'!A118,'Huella Completa'!A44:G722,4,FALSE)=\"Diesel\",Diesel,IF(VLOOKUP('Calculos 2'!A118,'Huella Completa'!A44:G722,4,FALSE)=\"GLP\",GLP,0))))","v":{"$error":"#N/A"}}]
["4.22",{"$f":"VLOOKUP('Calculos 2'!A119,'Huella Completa'!A45:G723,3,FALSE)*(IF(VLOOKUP('Calculos 2'!A119,'Huella Completa'!A45:G723,4,FALSE)=\"Gasolina\",Gasolina,IF(VLOOKUP('Calculos 2'!A119,'Huella Completa'!A45:G723,4,FALSE)=\"Diesel\",Diesel,IF(VLOOKUP('Calculos 2'!A119,'Huella Completa'!A45:G723,4,FALSE)=\"GLP\",GLP,0))))","v":{"$error":"#N/A"}}]
["4.23",{"$f":"VLOOKUP('Calculos 2'!A120,'Huella Completa'!A46:G724,3,FALSE)*(IF(VLOOKUP('Calculos 2'!A120,'Huella Completa'!A46:G724,4,FALSE)=\"Gasolina\",Gasolina,IF(VLOOKUP('Calculos 2'!A120,'Huella Completa'!A46:G724,4,FALSE)=\"Diesel\",Diesel,IF(VLOOKUP('Calculos 2'!A120,'Huella Completa'!A46:G724,4,FALSE)=\"GLP\",GLP,0))))","v":{"$error":"#N/A"}}]
["4.24",{"$f":"VLOOKUP('Calculos 2'!A121,'Huella Completa'!A47:G725,3,FALSE)*(IF(VLOOKUP('Calculos 2'!A121,'Huella Completa'!A47:G725,4,FALSE)=\"Gasolina\",Gasolina,IF(VLOOKUP('Calculos 2'!A121,'Huella Completa'!A47:G725,4,FALSE)=\"Diesel\",Diesel,IF(VLOOKUP('Calculos 2'!A121,'Huella Completa'!A47:G725,4,FALSE)=\"GLP\",GLP,0))))","v":{"$error":"#N/A"}}]
["4.25",{"$f":"VLOOKUP('Calculos 2'!A122,'Huella Completa'!A48:G726,3,FALSE)*(IF(VLOOKUP('Calculos 2'!A122,'Huella Completa'!A48:G726,4,FALSE)=\"Gasolina\",Gasolina,IF(VLOOKUP('Calculos 2'!A122,'Huella Completa'!A48:G726,4,FALSE)=\"Diesel\",Diesel,IF(VLOOKUP('Calculos 2'!A122,'Huella Completa'!A48:G726,4,FALSE)=\"GLP\",GLP,0))))","v":{"$error":"#N/A"}}]
["4.26",{"$f":"VLOOKUP('Calculos 2'!A123,'Huella Completa'!A49:G727,3,FALSE)*(IF(VLOOKUP('Calculos 2'!A123,'Huella Completa'!A49:G727,4,FALSE)=\"Gasolina\",Gasolina,IF(VLOOKUP('Calculos 2'!A123,'Huella Completa'!A49:G727,4,FALSE)=\"Diesel\",Diesel,IF(VLOOKUP('Calculos 2'!A123,'Huella Completa'!A49:G727,4,FALSE)=\"GLP\",GLP,0))))","v":{"$error":"#N/A"}}]
["4.27",{"$f":"VLOOKUP('Calculos 2'!A124,'Huella Completa'!A50:G728,3,FALSE)*(IF(VLOOKUP('Calculos 2'!A124,'Huella Completa'!A50:G728,4,FALSE)=\"Gasolina\",Gasolina,IF(VLOOKUP('Calculos 2'!A124,'Huella Completa'!A50:G728,4,FALSE)=\"Diesel\",Diesel,IF(VLOOKUP('Calculos 2'!A124,'Huella Completa'!A50:G728,4,FALSE)=\"GLP\",GLP,0))))","v":{"$error":"#N/A"}}]
["4.28",{"$f":"VLOOKUP('Calculos 2'!A125,'Huella Completa'!A51:G729,3,FALSE)*(IF(VLOOKUP('Calculos 2'!A125,'Huella Completa'!A51:G729,4,FALSE)=\"Gasolina\",Gasolina,IF(VLOOKUP('Calculos 2'!A125,'Huella Completa'!A51:G729,4,FALSE)=\"Diesel\",Diesel,IF(VLOOKUP('Calculos 2'!A125,'Huella Completa'!A51:G729,4,FALSE)=\"GLP\",GLP,0))))","v":{"$error":"#N/A"}}]
["4.29",{"$f":"VLOOKUP('Calculos 2'!A126,'Huella Completa'!A52:G730,3,FALSE)*(IF(VLOOKUP('Calculos 2'!A126,'Huella Completa'!A52:G730,4,FALSE)=\"Gasolina\",Gasolina,IF(VLOOKUP('Calculos 2'!A126,'Huella Completa'!A52:G730,4,FALSE)=\"Diesel\",Diesel,IF(VLOOKUP('Calculos 2'!A126,'Huella Completa'!A52:G730,4,FALSE)=\"GLP\",GLP,0))))","v":{"$error":"#N/A"}}]
["4.30",{"$f":"VLOOKUP('Calculos 2'!A127,'Huella Completa'!A53:G731,3,FALSE)*(IF(VLOOKUP('Calculos 2'!A127,'Huella Completa'!A53:G731,4,FALSE)=\"Gasolina\",Gasolina,IF(VLOOKUP('Calculos 2'!A127,'Huella Completa'!A53:G731,4,FALSE)=\"Diesel\",Diesel,IF(VLOOKUP('Calculos 2'!A127,'Huella Completa'!A53:G731,4,FALSE)=\"GLP\",GLP,0))))","v":{"$error":"#N/A"}}]
["4.0",null,{"$f":"_xlfn.AGGREGATE(9,6,B98:B127)","v":0}]
[]
["5.1",{"$f":"VLOOKUP('Calculos 2'!A130,'Huella Completa'!A16:G702,4,FALSE)*VLOOKUP('Calculos 2'!A130,'Huella Completa'!A16:G702,5,FALSE)*(IF(VLOOKUP('Calculos 2'!A130,'Huella Completa'!A16:G702,3,FALSE)=\"Tren\",Tren,IF(VLOOKUP('Calculos 2'!A130,'Huella Completa'!A16:G702,3,FALSE)=\"Autobús\",Autobús,IF(VLOOKUP('Calculos 2'!A130,'Huella Completa'!A16:G702,3,FALSE)=\"Avión\",Avión,0))))","v":0}]
["5.2",{"$f":"VLOOKUP('Calculos 2'!A131,'Huella Completa'!A17:G703,4,FALSE)*VLOOKUP('Calculos 2'!A131,'Huella Completa'!A17:G703,5,FALSE)*(IF(VLOOKUP('Calculos 2'!A131,'Huella Completa'!A17:G703,3,FALSE)=\"Tren\",Tren,IF(VLOOKUP('Calculos 2'!A131,'Huella Completa'!A17:G703,3,FALSE)=\"Autobús\",Autobús,IF(VLOOKUP('Calculos 2'!A131,'Huella Completa'!A17:G703,3,FALSE)=\"Avión\",Avión,0))))","v":0}]
["5.3",{"$f":"VLOOKUP('Calculos 2'!A132,'Huella Completa'!A18:G704,4,FALSE)*VLOOKUP('Calculos 2'!A132,'Huella Completa'!A18:G704,5,FALSE)*(IF(VLOOKUP('Calculos 2'!A132,'Huella Completa'!A18:G704,3,FALSE)=\"Tren\",Tren,IF(VLOOKUP('Calculos 2'!A132,'Huella Completa'!A18:G704,3,FALSE)=\"Autobús\",Autobús,IF(VLOOKUP('Calculos 2'!A132,'Huella Completa'!A18:G704,3,FALSE)=\"Avión\",Avión,0))))","v":0}]
["5.4",{"$f":"VLOOKUP('Calculos 2'!A133,'Huella Completa'!A19:G705,4,FALSE)*VLOOKUP('Calculos 2'!A133,'Huella Completa'!A19:G705,5,FALSE)*(IF(VLOOKUP('Calculos 2'!A133,'Huella Completa'!A19:G705,3,FALSE)=\"Tren\",Tren,IF(VLOOKUP('Calculos 2'!A133,'Huella Completa'!A19:G705,3,FALSE)=\"Autobús\",Autobús,IF(VLOOKUP('Calculos 2'!A133,'Huella Completa'!A19:G705,3,FALSE)=\"Avión\",Avión,0))))","v":0}]
["5.5",{"$f":"VLOOKUP('Calculos 2'!A134,'Huella Completa'!A20:G706,4,FALSE)*VLOOKUP('Calculos 2'!A134,'Huella Completa'!A20:G706,5,FALSE)*(IF(VLOOKUP('Calculos 2'!A134,'Huella Completa'!A20:G706,3,FALSE)=\"Tren\",Tren,IF(VLOOKUP('Calculos 2'!A134,'Huella Completa'!A20:G706,3,FALSE)=\"Autobús\",Autobús,IF(VLOOKUP('Calculos 2'!A134,'Huella Completa'!A20:G706,3,FALSE)=\"Avión\",Avión,0))))","v":0}]
["5.6",{"$f":"VLOOKUP('Calculos 2'!A135,'Huella Completa'!A21:G707,4,FALSE)*VLOOKUP('Calculos 2'!A135,'Huella Completa'!A21:G707,5,FALSE)*(IF(VLOOKUP('Calculos 2'!A135,'Huella Completa'!A21:G707,3,FALSE)=\"Tren\",Tren,IF(VLOOKUP('Calculos 2'!A135,'Huella Completa'!A21:G707,3,FALSE)=\"Autobús\",Autobús,IF(VLOOKUP('Calculos 2'!A135,'Huella Completa'!A21:G707,3,FALSE)=\"Avión\",Avión,0))))","v":0}]
["5.7",{"$f":"VLOOKUP('Calculos 2'!A136,'Huella Completa'!A23:G708,4,FALSE)*VLOOKUP('Calculos 2'!A136,'Huella Completa'!A23:G708,5,FALSE)*(IF(VLOOKUP('Calculos 2'!A136,'Huella Completa'!A23:G708,3,FALSE)=\"Tren\",Tren,IF(VLOOKUP('Calculos 2'!A136,'Huella Completa'!A23:G708,3,FALSE)=\"Autobús\",Autobús,IF(VLOOKUP('Calculos 2'!A136,'Huella Completa'!A23:G708,3,FALSE)=\"Avión\",Avión,0))))","v":0}]
["5.8",{"$f":"VLOOKUP('Calculos 2'!A137,'Huella Completa'!A24:G709,4,FALSE)*VLOOKUP('Calculos 2'!A137,'Huella Completa'!A24:G709,5,FALSE)*(IF(VLOOKUP('Calculos 2'!A137,'Huella Completa'!A24:G709,3,FALSE)=\"Tren\",Tren,IF(VLOOKUP('Calculos 2'!A137,'Huella Completa'!A24:G709,3,FALSE)=\"Autobús\",Autobús,IF(VLOOKUP('Calculos 2'!A137,'Huella Completa'!A24:G709,3,FALSE)=\"Avión\",Avión,0))))","v":0}]
["5.9",{"$f":"VLOOKUP('Calculos 2'!A138,'Huella Completa'!A25:G710,4,FALSE)*VLOOKUP('Calculos 2'!A138,'Huella Completa'!A25:G710,5,FALSE)*(IF(VLOOKUP('Calculos 2'!A138,'Huella Completa'!A25:G710,3,FALSE)=\"Tren\",Tren,IF(VLOOKUP('Calculos 2'!A138,'Huella Completa'!A25:G710,3,FALSE)=\"Autobús\",Autobús,IF(VLOOKUP('Calculos 2'!A138,'Huella Completa'!A25:G710,3,FALSE)=\"Avión\",Avión,0))))","v":0}]
["5.10",{"$f":"VLOOKUP('Calculos 2'!A139,'Huella Completa'!A26:G711,4,FALSE)*VLOOKUP('Calculos 2'!A139,'Huella Completa'!A26:G711,5,FALSE)*(IF(VLOOKUP('Calculos 2'!A139,'Huella Completa'!A26:G711,3,FALSE)=\"Tren\",Tren,IF(VLOOKUP('Calculos 2'!A139,'Huella Completa'!A26:G711,3,FALSE)=\"Autobús\",Autobús,IF(VLOOKUP('Calculos 2'!A139,'Huella Completa'!A26:G711,3,FALSE)=\"Avión\",Avión,0))))","v":0}]
["5.11",{"$f":"VLOOKUP('Calculos 2'!A140,'Huella Completa'!A34:G712,4,FALSE)*VLOOKUP('Calculos 2'!A140,'Huella Completa'!A34:G712,5,FALSE)*(IF(VLOOKUP('Calculos 2'!A140,'Huella Completa'!A34:G712,3,FALSE)=\"Tren\",Tren,IF(VLOOKUP('Calculos 2'!A140,'Huella Completa'!A34:G712,3,FALSE)=\"Autobús\",Autobús,IF(VLOOKUP('Calculos 2'!A140,'Huella Completa'!A34:G712,3,FALSE)=\"Avión\",Avión,0))))","v":{"$error":"#N/A"}}]
["5.12",{"$f":"VLOOKUP('Calculos 2'!A141,'Huella Completa'!A35:G713,4,FALSE)*VLOOKUP('Calculos 2'!A141,'Huella Completa'!A35:G713,5,FALSE)*(IF(VLOOKUP('Calculos 2'!A141,'Huella Completa'!A35:G713,3,FALSE)=\"Tren\",Tren,IF(VLOOKUP('Calculos 2'!A141,'Huella Completa'!A35:G713,3,FALSE)=\"Autobús\",Autobús,IF(VLOOKUP('Calculos 2'!A141,'Huella Completa'!A35:G713,3,FALSE)=\"Avión\",Avión,0))))","v":{"$error":"#N/A"}}]
["5.13",{"$f":"VLOOKUP('Calculos 2'!A142,'Huella Completa'!A36:G714,4,FALSE)*VLOOKUP('Calculos 2'!A142,'Huella Completa'!A36:G714,5,FALSE)*(IF(VLOOKUP('Calculos 2'!A142,'Huella Completa'!A36:G714,3,FALSE)=\"Tren\",Tren,IF(VLOOKUP('Calculos 2'!A142,'Huella Completa'!A36:G714,3,FALSE)=\"Autobús\",Autobús,IF(VLOOKUP('Calculos 2'!A142,'Huella Completa'!A36:G714,3,FALSE)=\"Avión\",Avión,0))))","v":{"$error":"#N/A"}}]
["5.14",{"$f":"VLOOKUP('Calculos 2'!A143,'Huella Completa'!A37:G715,4,FALSE)*VLOOKUP('Calculos 2'!A143,'Huella Completa'!A37:G715,5,FALSE)*(IF(VLOOKUP('Calculos 2'!A143,'Huella Completa'!A37:G715,3,FALSE)=\"Tren\",Tren,IF(VLOOKUP('Calculos 2'!A143,'Huella Completa'!A37:G715,3,FALSE)=\"Autobús\",Autobús,IF(VLOOKUP('Calculos 2'!A143,'Huella Completa'!A37:G715,3,FALSE)=\"Avión\",Avión,0))))","v":{"$error":"#N/A"}}]
["5.15",{"$f":"VLOOKUP('Calculos 2'!A144,'Huella Completa'!A38:G716,4,FALSE)*VLOOKUP('Calculos 2'!A144,'Huella Completa'!A38:G716,5,FALSE)*(IF(VLOOKUP('Calculos 2'!A144,'Huella Completa'!A38:G716,3,FALSE)=\"Tren\",Tren,IF(VLOOKUP('Calculos 2'!A144,'Huella Completa'!A38:G716,3,FALSE)=\"Autobús\",Autobús,IF(VLOOKUP('Calculos 2'!A144,'Huella Completa'!A38:G716,3,FALSE)=\"Avión\",Avión,0))))","v":{"$error":"#N/A"}}]
["5.16",{"$f":"VLOOKUP('Calculos 2'!A145,'Huella Completa'!A39:G717,4,FALSE)*VLOOKUP('Calculos 2'!A145,'Huella Completa'!A39:G717,5,FALSE)*(IF(VLOOKUP('Calculos 2'!A145,'Huella Completa'!A39:G717,3,FALSE)=\"Tren\",Tren,IF(VLOOKUP('Calculos 2'!A145,'Huella Completa'!A39:G717,3,FALSE)=\"Autobús\",Autobús,IF(VLOOKUP('Calculos 2'!A145,'Huella Completa'!A39:G717,3,FALSE)=\"Avión\",Avión,0))))","v":{"$error":"#N/A"}}]
["5.17",{"$f":"VLOOKUP('Calculos 2'!A146,'Huella Completa'!A40:G718,4,FALSE)*VLOOKUP('Calculos 2'!A146,'Huella Completa'!A40:G718,5,FALSE)*(IF(VLOOKUP('Calculos 2'!A146,'Huella Completa'!A40:G718,3,FALSE)=\"Tren\",Tren,IF(VLOOKUP('Calculos 2'!A146,'Huella Completa'!A40:G718,3,FALSE)=\"Autobús\",Autobús,IF(VLOOKUP('Calculos 2'!A146,'Huella Completa'!A40:G718,3,FALSE)=\"Avión\",Avión,0))))","v":{"$error":"#N/A"}}]
["5.18",{"$f":"VLOOKUP('Calculos 2'!A147,'Huella Completa'!A41:G719,4,FALSE)*VLOOKUP('Calculos 2'!A147,'Huella Completa'!A41:G719,5,FALSE)*(IF(VLOOKUP('Calculos 2'!A147,'Huella Completa'!A41:G719,3,FALSE)=\"Tren\",Tren,IF(VLOOKUP('Calculos 2'!A147,'Huella Completa'!A41:G719,3,FALSE)=\"Autobús\",Autobús,IF(VLOOKUP('Calculos 2'!A147,'Huella Completa'!A41:G719,3,FALSE)=\"Avión\",Avión,0))))","v":{"$error":"#N/A"}}]
["5.19",{"$f":"VLOOKUP('Calculos 2'!A148,'Huella Completa'!A42:G720,4,FALSE)*VLOOKUP('Calculos 2'!A148,'Huella Completa'!A42:G720,5,FALSE)*(IF(VLOOKUP('Calculos 2'!A148,'Huella Completa'!A42:G720,3,FALSE)=\"Tren\",Tren,IF(VLOOKUP('Calculos 2'!A148,'Huella Completa'!A42:G720,3,FALSE)=\"Autobús\",Autobús,IF(VLOOKUP('Calculos 2'!A148,'Huella Completa'!A42:G720,3,FALSE)=\"Avión\",Avión,0))))","v":{"$error":"#N/A"}}]
["5.20",{"$f":"VLOOKUP('Calculos 2'!A149,'Huella Completa'!A43:G721,4,FALSE)*VLOOKUP('Calculos 2'!A149,'Huella Completa'!A43:G721,5,FALSE)*(IF(VLOOKUP('Calculos 2'!A149,'Huella Completa'!A43:G721,3,FALSE)=\"Tren\",Tren,IF(VLOOKUP('Calculos 2'!A149,'Huella Completa'!A43:G721,3,FALSE)=\"Autobús\",Autobús,IF(VLOOKUP('Calculos 2'!A149,'Huella Completa'!A43:G721,3,FALSE)=\"Avión\",Avión,0))))","v":{"$error":"#N/A"}}]
["5.21",{"$f":"VLOOKUP('Calculos 2'!A150,'Huella Completa'!A44:G722,4,FALSE)*VLOOKUP('Calculos 2'!A150,'Huella Completa'!A44:G722,5,FALSE)*(IF(VLOOKUP('Calculos 2'!A150,'Huella Completa'!A44:G722,3,FALSE)=\"Tren\",Tren,IF(VLOOKUP('Calculos 2'!A150,'Huella Completa'!A44:G722,3,FALSE)=\"Autobús\",Autobús,IF(VLOOKUP('Calculos 2'!A150,'Huella Completa'!A44:G722,3,FALSE)=\"Avión\",Avión,0))))","v":{"$error":"#N/A"}}]
["5.22",{"$f":"VLOOKUP('Calculos 2'!A151,'Huella Completa'!A45:G723,4,FALSE)*VLOOKUP('Calculos 2'!A151,'Huella Completa'!A45:G723,5,FALSE)*(IF(VLOOKUP('Calculos 2'!A151,'Huella Completa'!A45:G723,3,FALSE)=\"Tren\",Tren,IF(VLOOKUP('Calculos 2'!A151,'Huella Completa'!A45:G723,3,FALSE)=\"Autobús\",Autobús,IF(VLOOKUP('Calculos 2'!A151,'Huella Completa'!A45:G723,3,FALSE)=\"Avión\",Avión,0))))","v":{"$error":"#N/A"}}]
["5.23",{"$f":"VLOOKUP('Calculos 2'!A152,'Huella Completa'!A46:G724,4,FALSE)*VLOOKUP('Calculos 2'!A152,'Huella Completa'!A46:G724,5,FALSE)*(IF(VLOOKUP('Calculos 2'!A152,'Huella Completa'!A46:G724,3,FALSE)=\"Tren\",Tren,IF(VLOOKUP('Calculos 2'!A152,'Huella Completa'!A46:G724,3,FALSE)=\"Autobús\",Autobús,IF(VLOOKUP('Calculos 2'!A152,'Huella Completa'!A46:G724,3,FALSE)=\"Avión\",Avión,0))))","v":{"$error":"#N/A"}}]
["5.24",{"$f":"VLOOKUP('Calculos 2'!A153,'Huella Completa'!A47:G725,4,FALSE)*VLOOKUP('Calculos 2'!A153,'Huella Completa'!A47:G725,5,FALSE)*(IF(VLOOKUP('Calculos 2'!A153,'Huella Completa'!A47:G725,3,FALSE)=\"Tren\",Tren,IF(VLOOKUP('Calculos 2'!A153,'Huella Completa'!A47:G725,3,FALSE)=\"Autobús\",Autobús,IF(VLOOKUP('Calculos 2'!A153,'Huella Completa'!A47:G725,3,FALSE)=\"Avión\",Avión,0))))","v":{"$error":"#N/A"}}]
["5.25",{"$f":"VLOOKUP('Calculos 2'!A154,'Huella Completa'!A48:G726,4,FALSE)*VLOOKUP('Calculos 2'!A154,'Huella Completa'!A48:G726,5,FALSE)*(IF(VLOOKUP('Calculos 2'!A154,'Huella Completa'!A48:G726,3,FALSE)=\"Tren\",Tren,IF(VLOOKUP('Calculos 2'!A154,'Huella Completa'!A48:G726,3,FALSE)=\"Autobús\",Autobús,IF(VLOOKUP('Calculos 2'!A154,'Huella Completa'!A48:G726,3,FALSE)=\"Avión\",Avión,0))))","v":{"$error":"#N/A"}}]
["5.26",{"$f":"VLOOKUP('Calculos 2'!A155,'Huella Completa'!A49:G727,4,FALSE)*VLOOKUP('Calculos 2'!A155,'Huella Completa'!A49:G727,5,FALSE)*(IF(VLOOKUP('Calculos 2'!A155,'Huella Completa'!A49:G727,3,FALSE)=\"Tren\",Tren,IF(VLOOKUP('Calculos 2'!A155,'Huella Completa'!A49:G727,3,FALSE)=\"Autobús\",Autobús,IF(VLOOKUP('Calculos 2'!A155,'Huella Completa'!A49:G727,3,FALSE)=\"Avión\",Avión,0))))","v":{"$error":"#N/A"}}]
["5.27",{"$f":"VLOOKUP('Calculos 2'!A156,'Huella Completa'!A50:G728,4,FALSE)*VLOOKUP('Calculos 2'!A156,'Huella Completa'!A50:G728,5,FALSE)*(IF(VLOOKUP('Calculos 2'!A156,'Huella Completa'!A50:G728,3,FALSE)=\"Tren\",Tren,IF(VLOOKUP('Calculos 2'!A156,'Huella Completa'!A50:G728,3,FALSE)=\"Autobús\",Autobús,IF(VLOOKUP('Calculos 2'!A156,'Huella Completa'!A50:G728,3,FALSE)=\"Avión\",Avión,0))))","v":{"$error":"#N/A"}}]
["5.28",{"$f":"VLOOKUP('Calculos 2'!A157,'Huella Completa'!A51:G729,4,FALSE)*VLOOKUP('Calculos 2'!A157,'Huella Completa'!A51:G729,5,FALSE)*(IF(VLOOKUP('Calculos 2'!A157,'Huella Completa'!A51:G729,3,FALSE)=\"Tren\",Tren,IF(VLOOKUP('Calculos 2'!A157,'Huella Completa'!A51:G729,3,FALSE)=\"Autobús\",Autobús,IF(VLOOKUP('Calculos 2'!A157,'Huella Completa'!A51:G729,3,FALSE)=\"Avión\",Avión,0))))","v":{"$error":"#N/A"}}]
["5.29",{"$f":"VLOOKUP('Calculos 2'!A158,'Huella Completa'!A52:G730,4,FALSE)*VLOOKUP('Calculos 2'!A158,'Huella Completa'!A52:G730,5,FALSE)*(IF(VLOOKUP('Calculos 2'!A158,'Huella Completa'!A52:G730,3,FALSE)=\"Tren\",Tren,IF(VLOOKUP('Calculos 2'!A158,'Huella Completa'!A52:G730,3,FALSE)=\"Autobús\",Autobús,IF(VLOOKUP('Calculos 2'!A158,'Huella Completa'!A52:G730,3,FALSE)=\"Avión\",Avión,0))))","v":{"$error":"#N/A"}}]
["5.30",{"$f":"VLOOKUP('Calculos 2'!A159,'Huella Completa'!A53:G731,4,FALSE)*VLOOKUP('Calculos 2'!A159,'Huella Completa'!A53:G731,5,FALSE)*(IF(VLOOKUP('Calculos 2'!A159,'Huella Completa'!A53:G731,3,FALSE)=\"Tren\",Tren,IF(VLOOKUP('Calculos 2'!A159,'Huella Completa'!A53:G731,3,FALSE)=\"Autobús\",Autobús,IF(VLOOKUP('Calculos 2'!A159,'Huella Completa'!A53:G731,3,FALSE)=\"Avión\",Avión,0))))","v":{"$error":"#N/A"}}]
["5.31",{"$f":"VLOOKUP('Calculos 2'!A160,'Huella Completa'!A54:G732,4,FALSE)*VLOOKUP('Calculos 2'!A160,'Huella Completa'!A54:G732,5,FALSE)*(IF(VLOOKUP('Calculos 2'!A160,'Huella Completa'!A54:G732,3,FALSE)=\"Tren\",Tren,IF(VLOOKUP('Calculos 2'!A160,'Huella Completa'!A54:G732,3,FALSE)=\"Autobús\",Autobús,IF(VLOOKUP('Calculos 2'!A160,'Huella Completa'!A54:G732,3,FALSE)=\"Avión\",Avión,0))))","v":{"$error":"#N/A"}}]
["5.32",{"$f":"VLOOKUP('Calculos 2'!A161,'Huella Completa'!A55:G733,4,FALSE)*VLOOKUP('Calculos 2'!A161,'Huella Completa'!A55:G733,5,FALSE)*(IF(VLOOKUP('Calculos 2'!A161,'Huella Completa'!A55:G733,3,FALSE)=\"Tren\",Tren,IF(VLOOKUP('Calculos 2'!A161,'Huella Completa'!A55:G733,3,FALSE)=\"Autobús\",Autobús,IF(VLOOKUP('Calculos 2'!A161,'Huella Completa'!A55:G733,3,FALSE)=\"Avión\",Avión,0))))","v":{"$error":"#N/A"}}]
["5.33",{"$f":"VLOOKUP('Calculos 2'!A162,'Huella Completa'!A56:G734,4,FALSE)*VLOOKUP('Calculos 2'!A162,'Huella Completa'!A56:G734,5,FALSE)*(IF(VLOOKUP('Calculos 2'!A162,'Huella Completa'!A56:G734,3,FALSE)=\"Tren\",Tren,IF(VLOOKUP('Calculos 2'!A162,'Huella Completa'!A56:G734,3,FALSE)=\"Autobús\",Autobús,IF(VLOOKUP('Calculos 2'!A162,'Huella Completa'!A56:G734,3,FALSE)=\"Avión\",Avión,0))))","v":{"$error":"#N/A"}}]
["5.34",{"$f":"VLOOKUP('Calculos 2'!A163,'Huella Completa'!A57:G735,4,FALSE)*VLOOKUP('Calculos 2'!A163,'Huella Completa'!A57:G735,5,FALSE)*(IF(VLOOKUP('Calculos 2'!A163,'Huella Completa'!A57:G735,3,FALSE)=\"Tren\",Tren,IF(VLOOKUP('Calculos 2'!A163,'Huella Completa'!A57:G735,3,FALSE)=\"Autobús\",Autobús,IF(VLOOKUP('Calculos 2'!A163,'Huella Completa'!A57:G735,3,FALSE)=\"Avión\",Avión,0))))","v":{"$error":"#N/A"}}]
["5.35",{"$f":"VLOOKUP('Calculos 2'!A164,'Huella Completa'!A58:G736,4,FALSE)*VLOOKUP('Calculos 2'!A164,'Huella Completa'!A58:G736,5,FALSE)*(IF(VLOOKUP('Calculos 2'!A164,'Huella Completa'!A58:G736,3,FALSE)=\"Tren\",Tren,IF(VLOOKUP('Calculos 2'!A164,'Huella Completa'!A58:G736,3,FALSE)=\"Autobús\",Autobús,IF(VLOOKUP('Calculos 2'!A164,'Huella Completa'!A58:G736,3,FALSE)=\"Avión\",Avión,0))))","v":{"$error":"#N/A"}}]
["5.36",{"$f":"VLOOKUP('Calculos 2'!A165,'Huella Completa'!A59:G737,4,FALSE)*VLOOKUP('Calculos 2'!A165,'Huella Completa'!A59:G737,5,FALSE)*(IF(VLOOKUP('Calculos 2'!A165,'Huella Completa'!A59:G737,3,FALSE)=\"Tren\",Tren,IF(VLOOKUP('Calculos 2'!A165,'Huella Completa'!A59:G737,3,FALSE)=\"Autobús\",Autobús,IF(VLOOKUP('Calculos 2'!A165,'Huella Completa'!A59:G737,3,FALSE)=\"Avión\",Avión,0))))","v":{"$error":"#N/A"}}]
["5.37",{"$f":"VLOOKUP('Calculos 2'!A166,'Huella Completa'!A60:G738,4,FALSE)*VLOOKUP('Calculos 2'!A166,'Huella Completa'!A60:G738,5,FALSE)*(IF(VLOOKUP('Calculos 2'!A166,'Huella Completa'!A60:G738,3,FALSE)=\"Tren\",Tren,IF(VLOOKUP('Calculos 2'!A166,'Huella Completa'!A60:G738,3,FALSE)=\"Autobús\",Autobús,IF(VLOOKUP('Calculos 2'!A166,'Huella Completa'!A60:G738,3,FALSE)=\"Avión\",Avión,0))))","v":{"$error":"#N/A"}}]
["5.38",{"$f":"VLOOKUP('Calculos 2'!A167,'Huella Completa'!A61:G739,4,FALSE)*VLOOKUP('Calculos 2'!A167,'Huella Completa'!A61:G739,5,FALSE)*(IF(VLOOKUP('Calculos 2'!A167,'Huella Completa'!A61:G739,3,FALSE)=\"Tren\",Tren,IF(VLOOKUP('Calculos 2'!A167,'Huella Completa'!A61:G739,3,FALSE)=\"Autobús\",Autobús,IF(VLOOKUP('Calculos 2'!A167,'Huella Completa'!A61:G739,3,FALSE)=\"Avión\",Avión,0))))","v":{"$error":"#N/A"}}]
["5.39",{"$f":"VLOOKUP('Calculos 2'!A168,'Huella Completa'!A62:G740,4,FALSE)*VLOOKUP('Calculos 2'!A168,'Huella Completa'!A62:G740,5,FALSE)*(IF(VLOOKUP('Calculos 2'!A168,'Huella Completa'!A62:G740,3,FALSE)=\"Tren\",Tren,IF(VLOOKUP('Calculos 2'!A168,'Huella Completa'!A62:G740,3,FALSE)=\"Autobús\",Autobús,IF(VLOOKUP('Calculos 2'!A168,'Huella Completa'!A62:G740,3,FALSE)=\"Avión\",Avión,0))))","v":{"$error":"#N/A"}}]
["5.40",{"$f":"VLOOKUP('Calculos 2'!A169,'Huella Completa'!A63:G741,4,FALSE)*VLOOKUP('Calculos 2'!A169,'Huella Completa'!A63:G741,5,FALSE)*(IF(VLOOKUP('Calculos 2'!A169,'Huella Completa'!A63:G741,3,FALSE)=\"Tren\",Tren,IF(VLOOKUP('Calculos 2'!A169,'Huella Completa'!A63:G741,3,FALSE)=\"Autobús\",Autobús,IF(VLOOKUP('Calculos 2'!A169,'Huella Completa'!A63:G741,3,FALSE)=\"Avión\",Avión,0))))","v":{"$error":"#N/A"}}]
["5.41",{"$f":"VLOOKUP('Calculos 2'!A170,'Huella Completa'!A64:G742,4,FALSE)*VLOOKUP('Calculos 2'!A170,'Huella Completa'!A64:G742,5,FALSE)*(IF(VLOOKUP('Calculos 2'!A170,'Huella Completa'!A64:G742,3,FALSE)=\"Tren\",Tren,IF(VLOOKUP('Calculos 2'!A170,'Huella Completa'!A64:G742,3,FALSE)=\"Autobús\",Autobús,IF(VLOOKUP('Calculos 2'!A170,'Huella Completa'!A64:G742,3,FALSE)=\"Avión\",Avión,0))))","v":{"$error":"#N/A"}}]
["5.42",{"$f":"VLOOKUP('Calculos 2'!A171,'Huella Completa'!A65:G743,4,FALSE)*VLOOKUP('Calculos 2'!A171,'Huella Completa'!A65:G743,5,FALSE)*(IF(VLOOKUP('Calculos 2'!A171,'Huella Completa'!A65:G743,3,FALSE)=\"Tren\",Tren,IF(VLOOKUP('Calculos 2'!A171,'Huella Completa'!A65:G743,3,FALSE)=\"Autobús\",Autobús,IF(VLOOKUP('Calculos 2'!A171,'Huella Completa'!A65:G743,3,FALSE)=\"Avión\",Avión,0))))","v":{"$error":"#N/A"}}]
["5.43",{"$f":"VLOOKUP('Calculos 2'!A172,'Huella Completa'!A66:G744,4,FALSE)*VLOOKUP('Calculos 2'!A172,'Huella Completa'!A66:G744,5,FALSE)*(IF(VLOOKUP('Calculos 2'!A172,'Huella Completa'!A66:G744,3,FALSE)=\"Tren\",Tren,IF(VLOOKUP('Calculos 2'!A172,'Huella Completa'!A66:G744,3,FALSE)=\"Autobús\",Autobús,IF(VLOOKUP('Calculos 2'!A172,'Huella Completa'!A66:G744,3,FALSE)=\"Avión\",Avión,0))))","v":{"$error":"#N/A"}}]
["5.44",{"$f":"VLOOKUP('Calculos 2'!A173,'Huella Completa'!A67:G745,4,FALSE)*VLOOKUP('Calculos 2'!A173,'Huella Completa'!A67:G745,5,FALSE)*(IF(VLOOKUP('Calculos 2'!A173,'Huella Completa'!A67:G745,3,FALSE)=\"Tren\",Tren,IF(VLOOKUP('Calculos 2'!A173,'Huella Completa'!A67:G745,3,FALSE)=\"Autobús\",Autobús,IF(VLOOKUP('Calculos 2'!A173,'Huella Completa'!A67:G745,3,FALSE)=\"Avión\",Avión,0))))","v":{"$error":"#N/A"}}]
["5.45",{"$f":"VLOOKUP('Calculos 2'!A174,'Huella Completa'!A68:G746,4,FALSE)*VLOOKUP('Calculos 2'!A174,'Huella Completa'!A68:G746,5,FALSE)*(IF(VLOOKUP('Calculos 2'!A174,'Huella Completa'!A68:G746,3,FALSE)=\"Tren\",Tren,IF(VLOOKUP('Calculos 2'!A174,'Huella Completa'!A68:G746,3,FALSE)=\"Autobús\",Autobús,IF(VLOOKUP('Calculos 2'!A174,'Huella Completa'!A68:G746,3,FALSE)=\"Avión\",Avión,0))))","v":{"$error":"#N/A"}}]
["5.46",{"$f":"VLOOKUP('Calculos 2'!A175,'Huella Completa'!A69:G747,4,FALSE)*VLOOKUP('Calculos 2'!A175,'Huella Completa'!A69:G747,5,FALSE)*(IF(VLOOKUP('Calculos 2'!A175,'Huella Completa'!A69:G747,3,FALSE)=\"Tren\",Tren,IF(VLOOKUP('Calculos 2'!A175,'Huella Completa'!A69:G747,3,FALSE)=\"Autobús\",Autobús,IF(VLOOKUP('Calculos 2'!A175,'Huella Completa'!A69:G747,3,FALSE)=\"Avión\",Avión,0))))","v":{"$error":"#N/A"}}]
["5.47",{"$f":"VLOOKUP('Calculos 2'!A176,'Huella Completa'!A70:G748,4,FALSE)*VLOOKUP('Calculos 2'!A176,'Huella Completa'!A70:G748,5,FALSE)*(IF(VLOOKUP('Calculos 2'!A176,'Huella Completa'!A70:G748,3,FALSE)=\"Tren\",Tren,IF(VLOOKUP('Calculos 2'!A176,'Huella Completa'!A70:G748,3,FALSE)=\"Autobús\",Autobús,IF(VLOOKUP('Calculos 2'!A176,'Huella Completa'!A70:G748,3,FALSE)=\"Avión\",Avión,0))))","v":{"$error":"#N/A"}}]
["5.48",{"$f":"VLOOKUP('Calculos 2'!A177,'Huella Completa'!A71:G749,4,FALSE)*VLOOKUP('Calculos 2'!A177,'Huella Completa'!A71:G749,5,FALSE)*(IF(VLOOKUP('Calculos 2'!A177,'Huella Completa'!A71:G749,3,FALSE)=\"Tren\",Tren,IF(VLOOKUP('Calculos 2'!A177,'Huella Completa'!A71:G749,3,FALSE)=\"Autobús\",Autobús,IF(VLOOKUP('Calculos 2'!A177,'Huella Completa'!A71:G749,3,FALSE)=\"Avión\",Avión,0))))","v":{"$error":"#N/A"}}]
["5.49",{"$f":"VLOOKUP('Calculos 2'!A178,'Huella Completa'!A72:G750,4,FALSE)*VLOOKUP('Calculos 2'!A178,'Huella Completa'!A72:G750,5,FALSE)*(IF(VLOOKUP('Calculos 2'!A178,'Huella Completa'!A72:G750,3,FALSE)=\"Tren\",Tren,IF(VLOOKUP('Calculos 2'!A178,'Huella Completa'!A72:G750,3,FALSE)=\"Autobús\",Autobús,IF(VLOOKUP('Calculos 2'!A178,'Huella Completa'!A72:G750,3,FALSE)=\"Avión\",Avión,0))))","v":{"$error":"#N/A"}}]
["5.50",{"$f":"VLOOKUP('Calculos 2'!A179,'Huella Completa'!A74:G751,4,FALSE)*VLOOKUP('Calculos 2'!A179,'Huella Completa'!A74:G751,5,FALSE)*(IF(VLOOKUP('Calculos 2'!A179,'Huella Completa'!A74:G751,3,FALSE)=\"Tren\",Tren,IF(VLOOKUP('Calculos 2'!A179,'Huella Completa'!A74:G751,3,FALSE)=\"Autobús\",Autobús,IF(VLOOKUP('Calculos 2'!A179,'Huella Completa'!A74:G751,3,FALSE)=\"Avión\",Avión,0))))","v":{"$error":"#N/A"}}]
["5.51",{"$f":"VLOOKUP('Calculos 2'!A180,'Huella Completa'!A75:G752,4,FALSE)*VLOOKUP('Calculos 2'!A180,'Huella Completa'!A75:G752,5,FALSE)*(IF(VLOOKUP('Calculos 2'!A180,'Huella Completa'!A75:G752,3,FALSE)=\"Tren\",Tren,IF(VLOOKUP('Calculos 2'!A180,'Huella Completa'!A75:G752,3,FALSE)=\"Autobús\",Autobús,IF(VLOOKUP('Calculos 2'!A180,'Huella Completa'!A75:G752,3,FALSE)=\"Avión\",Avión,0))))","v":{"$error":"#N/A"}}]
["5.52",{"$f":"VLOOKUP('Calculos 2'!A181,'Huella Completa'!A76:G753,4,FALSE)*VLOOKUP('Calculos 2'!A181,'Huella Completa'!A76:G753,5,FALSE)*(IF(VLOOKUP('Calculos 2'!A181,'Huella Completa'!A76:G753,3,FALSE)=\"Tren\",Tren,IF(VLOOKUP('Calculos 2'!A181,'Huella Completa'!A76:G753,3,FALSE)=\"Autobús\",Autobús,IF(VLOOKUP('Calculos 2'!A181,'Huella Completa'!A76:G753,3,FALSE)=\"Avión\",Avión,0))))","v":{"$error":"#N/A"}}]
["5.53",{"$f":"VLOOKUP('Calculos 2'!A182,'Huella Completa'!A77:G754,4,FALSE)*VLOOKUP('Calculos 2'!A182,'Huella Completa'!A77:G754,5,FALSE)*(IF(VLOOKUP('Calculos 2'!A182,'Huella Completa'!A77:G754,3,FALSE)=\"Tren\",Tren,IF(VLOOKUP('Calculos 2'!A182,'Huella Completa'!A77:G754,3,FALSE)=\"Autobús\",Autobús,IF(VLOOKUP('Calculos 2'!A182,'Huella Completa'!A77:G754,3,FALSE)=\"Avión\",Avión,0))))","v":{"$error":"#N/A"}}]
["5.54",{"$f":"VLOOKUP('Calculos 2'!A183,'Huella Completa'!A84:G755,4,FALSE)*VLOOKUP('Calculos 2'!A183,'Huella Completa'!A84:G755,5,FALSE)*(IF(VLOOKUP('Calculos 2'!A183,'Huella Completa'!A84:G755,3,FALSE)=\"Tren\",Tren,IF(VLOOKUP('Calculos 2'!A183,'Huella Completa'!A84:G755,3,FALSE)=\"Autobús\",Autobús,IF(VLOOKUP('Calculos 2'!A183,'Huella Completa'!A84:G755,3,FALSE)=\"Avión\",Avión,0))))","v":{"$error":"#N/A"}}]
["5.55",{"$f":"VLOOKUP('Calculos 2'!A184,'Huella Completa'!A86:G756,4,FALSE)*VLOOKUP('Calculos 2'!A184,'Huella Completa'!A86:G756,5,FALSE)*(IF(VLOOKUP('Calculos 2'!A184,'Huella Completa'!A86:G756,3,FALSE)=\"Tren\",Tren,IF(VLOOKUP('Calculos 2'!A184,'Huella Completa'!A86:G756,3,FALSE)=\"Autobús\",Autobús,IF(VLOOKUP('Calculos 2'!A184,'Huella Completa'!A86:G756,3,FALSE)=\"Avión\",Avión,0))))","v":{"$error":"#N/A"}}]
["5.56",{"$f":"VLOOKUP('Calculos 2'!A185,'Huella Completa'!A87:G757,4,FALSE)*VLOOKUP('Calculos 2'!A185,'Huella Completa'!A87:G757,5,FALSE)*(IF(VLOOKUP('Calculos 2'!A185,'Huella Completa'!A87:G757,3,FALSE)=\"Tren\",Tren,IF(VLOOKUP('Calculos 2'!A185,'Huella Completa'!A87:G757,3,FALSE)=\"Autobús\",Autobús,IF(VLOOKUP('Calculos 2'!A185,'Huella Completa'!A87:G757,3,FALSE)=\"Avión\",Avión,0))))","v":{"$error":"#N/A"}}]
["5.57",{"$f":"VLOOKUP('Calculos 2'!A186,'Huella Completa'!A88:G758,4,FALSE)*VLOOKUP('Calculos 2'!A186,'Huella Completa'!A88:G758,5,FALSE)*(IF(VLOOKUP('Calculos 2'!A186,'Huella Completa'!A88:G758,3,FALSE)=\"Tren\",Tren,IF(VLOOKUP('Calculos 2'!A186,'Huella Completa'!A88:G758,3,FALSE)=\"Autobús\",Autobús,IF(VLOOKUP('Calculos 2'!A186,'Huella Completa'!A88:G758,3,FALSE)=\"Avión\",Avión,0))))","v":{"$error":"#N/A"}}]
["5.58",{"$f":"VLOOKUP('Calculos 2'!A187,'Huella Completa'!A89:G759,4,FALSE)*VLOOKUP('Calculos 2'!A187,'Huella Completa'!A89:G759,5,FALSE)*(IF(VLOOKUP('Calculos 2'!A187,'Huella Completa'!A89:G759,3,FALSE)=\"Tren\",Tren,IF(VLOOKUP('Calculos 2'!A187,'Huella Completa'!A89:G759,3,FALSE)=\"Autobús\",Autobús,IF(VLOOKUP('Calculos 2'!A187,'Huella Completa'!A89:G759,3,FALSE)=\"Avión\",Avión,0))))","v":{"$error":"#N/A"}}]
["5.59",{"$f":"VLOOKUP('Calculos 2'!A188,'Huella Completa'!A90:G760,4,FALSE)*VLOOKUP('Calculos 2'!A188,'Huella Completa'!A90:G760,5,FALSE)*(IF(VLOOKUP('Calculos 2'!A188,'Huella Completa'!A90:G760,3,FALSE)=\"Tren\",Tren,IF(VLOOKUP('Calculos 2'!A188,'Huella Completa'!A90:G760,3,FALSE)=\"Autobús\",Autobús,IF(VLOOKUP('Calculos 2'!A188,'Huella Completa'!A90:G760,3,FALSE)=\"Avión\",Avión,0))))","v":{"$error":"#N/A"}}]
["5.60",{"$f":"VLOOKUP('Calculos 2'!A189,'Huella Completa'!A91:G761,4,FALSE)*VLOOKUP('Calculos 2'!A189,'Huella Completa'!A91:G761,5,FALSE)*(IF(VLOOKUP('Calculos 2'!A189,'Huella Completa'!A91:G761,3,FALSE)=\"Tren\",Tren,IF(VLOOKUP('Calculos 2'!A189,'Huella Completa'!A91:G761,3,FALSE)=\"Autobús\",Autobús,IF(VLOOKUP('Calculos 2'!A189,'Huella Completa'!A91:G761,3,FALSE)=\"Avión\",Avión,0))))","v":{"$error":"#N/A"}}]
["5.61",{"$f":"VLOOKUP('Calculos 2'!A190,'Huella Completa'!A92:G762,4,FALSE)*VLOOKUP('Calculos 2'!A190,'Huella Completa'!A92:G762,5,FALSE)*(IF(VLOOKUP('Calculos 2'!A190,'Huella Completa'!A92:G762,3,FALSE)=\"Tren\",Tren,IF(VLOOKUP('Calculos 2'!A190,'Huella Completa'!A92:G762,3,FALSE)=\"Autobús\",Autobús,IF(VLOOKUP('Calculos 2'!A190,'Huella Completa'!A92:G762,3,FALSE)=\"Avión\",Avión,0))))","v":{"$error":"#N/A"}}]
["5.62",{"$f":"VLOOKUP('Calculos 2'!A191,'Huella Completa'!A93:G763,4,FALSE)*VLOOKUP('Calculos 2'!A191,'Huella Completa'!A93:G763,5,FALSE)*(IF(VLOOKUP('Calculos 2'!A191,'Huella Completa'!A93:G763,3,FALSE)=\"Tren\",Tren,IF(VLOOKUP('Calculos 2'!A191,'Huella Completa'!A93:G763,3,FALSE)=\"Autobús\",Autobús,IF(VLOOKUP('Calculos 2'!A191,'Huella Completa'!A93:G763,3,FALSE)=\"Avión\",Avión,0))))","v":{"$error":"#N/A"}}]
["5.63",{"$f":"VLOOKUP('Calculos 2'!A192,'Huella Completa'!A94:G764,4,FALSE)*VLOOKUP('Calculos 2'!A192,'Huella Completa'!A94:G764,5,FALSE)*(IF(VLOOKUP('Calculos 2'!A192,'Huella Completa'!A94:G764,3,FALSE)=\"Tren\",Tren,IF(VLOOKUP('Calculos 2'!A192,'Huella Completa'!A94:G764,3,FALSE)=\"Autobús\",Autobús,IF(VLOOKUP('Calculos 2'!A192,'Huella Completa'!A94:G764,3,FALSE)=\"Avión\",Avión,0))))","v":{"$error":"#N/A"}}]
["5.64",{"$f":"VLOOKUP('Calculos 2'!A193,'Huella Completa'!A95:G765,4,FALSE)*VLOOKUP('Calculos 2'!A193,'Huella Completa'!A95:G765,5,FALSE)*(IF(VLOOKUP('Calculos 2'!A193,'Huella Completa'!A95:G765,3,FALSE)=\"Tren\",Tren,IF(VLOOKUP('Calculos 2'!A193,'Huella Completa'!A95:G765,3,FALSE)=\"Autobús\",Autobús,IF(VLOOKUP('Calculos 2'!A193,'Huella Completa'!A95:G765,3,FALSE)=\"Avión\",Avión,0))))","v":{"$error":"#N/A"}}]
["5.65",{"$f":"VLOOKUP('Calculos 2'!A194,'Huella Completa'!A96:G766,4,FALSE)*VLOOKUP('Calculos 2'!A194,'Huella Completa'!A96:G766,5,FALSE)*(IF(VLOOKUP('Calculos 2'!A194,'Huella Completa'!A96:G766,3,FALSE)=\"Tren\",Tren,IF(VLOOKUP('Calculos 2'!A194,'Huella Completa'!A96:G766,3,FALSE)=\"Autobús\",Autobús,IF(VLOOKUP('Calculos 2'!A194,'Huella Completa'!A96:G766,3,FALSE)=\"Avión\",Avión,0))))","v":{"$error":"#N/A"}}]
["5.66",{"$f":"VLOOKUP('Calculos 2'!A195,'Huella Completa'!A97:G767,4,FALSE)*VLOOKUP('Calculos 2'!A195,'Huella Completa'!A97:G767,5,FALSE)*(IF(VLOOKUP('Calculos 2'!A195,'Huella Completa'!A97:G767,3,FALSE)=\"Tren\",Tren,IF(VLOOKUP('Calculos 2'!A195,'Huella Completa'!A97:G767,3,FALSE)=\"Autobús\",Autobús,IF(VLOOKUP('Calculos 2'!A195,'Huella Completa'!A97:G767,3,FALSE)=\"Avión\",Avión,0))))","v":{"$error":"#N/A"}}]
["5.67",{"$f":"VLOOKUP('Calculos 2'!A196,'Huella Completa'!A98:G768,4,FALSE)*VLOOKUP('Calculos 2'!A196,'Huella Completa'!A98:G768,5,FALSE)*(IF(VLOOKUP('Calculos 2'!A196,'Huella Completa'!A98:G768,3,FALSE)=\"Tren\",Tren,IF(VLOOKUP('Calculos 2'!A196,'Huella Completa'!A98:G768,3,FALSE)=\"Autobús\",Autobús,IF(VLOOKUP('Calculos 2'!A196,'Huella Completa'!A98:G768,3,FALSE)=\"Avión\",Avión,0))))","v":{"$error":"#N/A"}}]
["5.68",{"$f":"VLOOKUP('Calculos 2'!A197,'Huella Completa'!A99:G769,4,FALSE)*VLOOKUP('Calculos 2'!A197,'Huella Completa'!A99:G769,5,FALSE)*(IF(VLOOKUP('Calculos 2'!A197,'Huella Completa'!A99:G769,3,FALSE)=\"Tren\",Tren,IF(VLOOKUP('Calculos 2'!A197,'Huella Completa'!A99:G769,3,FALSE)=\"Autobús\",Autobús,IF(VLOOKUP('Calculos 2'!A197,'Huella Completa'!A99:G769,3,FALSE)=\"Avión\",Avión,0))))","v":{"$error":"#N/A"}}]
["5.69",{"$f":"VLOOKUP('Calculos 2'!A198,'Huella Completa'!A100:G770,4,FALSE)*VLOOKUP('Calculos 2'!A198,'Huella Completa'!A100:G770,5,FALSE)*(IF(VLOOKUP('Calculos 2'!A198,'Huella Completa'!A100:G770,3,FALSE)=\"Tren\",Tren,IF(VLOOKUP('Calculos 2'!A198,'Huella Completa'!A100:G770,3,FALSE)=\"Autobús\",Autobús,IF(VLOOKUP('Calculos 2'!A198,'Huella Completa'!A100:G770,3,FALSE)=\"Avión\",Avión,0))))","v":{"$error":"#N/A"}}]
["5.70",{"$f":"VLOOKUP('Calculos 2'!A199,'Huella Completa'!A101:G771,4,FALSE)*VLOOKUP('Calculos 2'!A199,'Huella Completa'!A101:G771,5,FALSE)*(IF(VLOOKUP('Calculos 2'!A199,'Huella Completa'!A101:G771,3,FALSE)=\"Tren\",Tren,IF(VLOOKUP('Calculos 2'!A199,'Huella Completa'!A101:G771,3,FALSE)=\"Autobús\",Autobús,IF(VLOOKUP('Calculos 2'!A199,'Huella Completa'!A101:G771,3,FALSE)=\"Avión\",Avión,0))))","v":{"$error":"#N/A"}}]
["5.71",{"$f":"VLOOKUP('Calculos 2'!A200,'Huella Completa'!A102:G772,4,FALSE)*VLOOKUP('Calculos 2'!A200,'Huella Completa'!A102:G772,5,FALSE)*(IF(VLOOKUP('Calculos 2'!A200,'Huella Completa'!A102:G772,3,FALSE)=\"Tren\",Tren,IF(VLOOKUP('Calculos 2'!A200,'Huella Completa'!A102:G772,3,FALSE)=\"Autobús\",Autobús,IF(VLOOKUP('Calculos 2'!A200,'Huella Completa'!A102:G772,3,FALSE)=\"Avión\",Avión,0))))","v":{"$error":"#N/A"}}]
["5.72",{"$f":"VLOOKUP('Calculos 2'!A201,'Huella Completa'!A103:G773,4,FALSE)*VLOOKUP('Calculos 2'!A201,'Huella Completa'!A103:G773,5,FALSE)*(IF(VLOOKUP('Calculos 2'!A201,'Huella Completa'!A103:G773,3,FALSE)=\"Tren\",Tren,IF(VLOOKUP('Calculos 2'!A201,'Huella Completa'!A103:G773,3,FALSE)=\"Autobús\",Autobús,IF(VLOOKUP('Calculos 2'!A201,'Huella Completa'!A103:G773,3,FALSE)=\"Avión\",Avión,0))))","v":{"$error":"#N/A"}}]
["5.73",{"$f":"VLOOKUP('Calculos 2'!A202,'Huella Completa'!A104:G774,4,FALSE)*VLOOKUP('Calculos 2'!A202,'Huella Completa'!A104:G774,5,FALSE)*(IF(VLOOKUP('Calculos 2'!A202,'Huella Completa'!A104:G774,3,FALSE)=\"Tren\",Tren,IF(VLOOKUP('Calculos 2'!A202,'Huella Completa'!A104:G774,3,FALSE)=\"Autobús\",Autobús,IF(VLOOKUP('Calculos 2'!A202,'Huella Completa'!A104:G774,3,FALSE)=\"Avión\",Avión,0))))","v":{"$error":"#N/A"}}]
["5.74",{"$f":"VLOOKUP('Calculos 2'!A203,'Huella Completa'!A106:G775,4,FALSE)*VLOOKUP('Calculos 2'!A203,'Huella Completa'!A106:G775,5,FALSE)*(IF(VLOOKUP('Calculos 2'!A203,'Huella Completa'!A106:G775,3,FALSE)=\"Tren\",Tren,IF(VLOOKUP('Calculos 2'!A203,'Huella Completa'!A106:G775,3,FALSE)=\"Autobús\",Autobús,IF(VLOOKUP('Calculos 2'!A203,'Huella Completa'!A106:G775,3,FALSE)=\"Avión\",Avión,0))))","v":{"$error":"#N/A"}}]
["5.75",{"$f":"VLOOKUP('Calculos 2'!A204,'Huella Completa'!A107:G776,4,FALSE)*VLOOKUP('Calculos 2'!A204,'Huella Completa'!A107:G776,5,FALSE)*(IF(VLOOKUP('Calculos 2'!A204,'Huella Completa'!A107:G776,3,FALSE)=\"Tren\",Tren,IF(VLOOKUP('Calculos 2'!A204,'Huella Completa'!A107:G776,3,FALSE)=\"Autobús\",Autobús,IF(VLOOKUP('Calculos 2'!A204,'Huella Completa'!A107:G776,3,FALSE)=\"Avión\",Avión,0))))","v":{"$error":"#N/A"}}]
["5.76",{"$f":"VLOOKUP('Calculos 2'!A205,'Huella Completa'!A108:G777,4,FALSE)*VLOOKUP('Calculos 2'!A205,'Huella Completa'!A108:G777,5,FALSE)*(IF(VLOOKUP('Calculos 2'!A205,'Huella Completa'!A108:G777,3,FALSE)=\"Tren\",Tren,IF(VLOOKUP('Calculos 2'!A205,'Huella Completa'!A108:G777,3,FALSE)=\"Autobús\",Autobús,IF(VLOOKUP('Calculos 2'!A205,'Huella Completa'!A108:G777,3,FALSE)=\"Avión\",Avión,0))))","v":{"$error":"#N/A"}}]
["5.77",{"$f":"VLOOKUP('Calculos 2'!A206,'Huella Completa'!A109:G778,4,FALSE)*VLOOKUP('Calculos 2'!A206,'Huella Completa'!A109:G778,5,FALSE)*(IF(VLOOKUP('Calculos 2'!A206,'Huella Completa'!A109:G778,3,FALSE)=\"Tren\",Tren,IF(VLOOKUP('Calculos 2'!A206,'Huella Completa'!A109:G778,3,FALSE)=\"Autobús\",Autobús,IF(VLOOKUP('Calculos 2'!A206,'Huella Completa'!A109:G778,3,FALSE)=\"Avión\",Avión,0))))","v":{"$error":"#N/A"}}]
["5.78",{"$f":"VLOOKUP('Calculos 2'!A207,'Huella Completa'!A110:G779,4,FALSE)*VLOOKUP('Calculos 2'!A207,'Huella Completa'!A110:G779,5,FALSE)*(IF(VLOOKUP('Calculos 2'!A207,'Huella Completa'!A110:G779,3,FALSE)=\"Tren\",Tren,IF(VLOOKUP('Calculos 2'!A207,'Huella Completa'!A110:G779,3,FALSE)=\"Autobús\",Autobús,IF(VLOOKUP('Calculos 2'!A207,'Huella Completa'!A110:G779,3,FALSE)=\"Avión\",Avión,0))))","v":{"$error":"#N/A"}}]
["5.79",{"$f":"VLOOKUP('Calculos 2'!A208,'Huella Completa'!A111:G780,4,FALSE)*VLOOKUP('Calculos 2'!A208,'Huella Completa'!A111:G780,5,FALSE)*(IF(VLOOKUP('Calculos 2'!A208,'Huella Completa'!A111:G780,3,FALSE)=\"Tren\",Tren,IF(VLOOKUP('Calculos 2'!A208,'Huella Completa'!A111:G780,3,FALSE)=\"Autobús\",Autobús,IF(VLOOKUP('Calculos 2'!A208,'Huella Completa'!A111:G780,3,FALSE)=\"Avión\",Avión,0))))","v":{"$error":"#N/A"}}]
["5.80",{"$f":"VLOOKUP('Calculos 2'!A209,'Huella Completa'!A112:G781,4,FALSE)*VLOOKUP('Calculos 2'!A209,'Huella Completa'!A112:G781,5,FALSE)*(IF(VLOOKUP('Calculos 2'!A209,'Huella Completa'!A112:G781,3,FALSE)=\"Tren\",Tren,IF(VLOOKUP('Calculos 2'!A209,'Huella Completa'!A112:G781,3,FALSE)=\"Autobús\",Autobús,IF(VLOOKUP('Calculos 2'!A209,'Huella Completa'!A112:G781,3,FALSE)=\"Avión\",Avión,0))))","v":{"$error":"#N/A"}}]
["5.81",{"$f":"VLOOKUP('Calculos 2'!A210,'Huella Completa'!A113:G782,4,FALSE)*VLOOKUP('Calculos 2'!A210,'Huella Completa'!A113:G782,5,FALSE)*(IF(VLOOKUP('Calculos 2'!A210,'Huella Completa'!A113:G782,3,FALSE)=\"Tren\",Tren,IF(VLOOKUP('Calculos 2'!A210,'Huella Completa'!A113:G782,3,FALSE)=\"Autobús\",Autobús,IF(VLOOKUP('Calculos 2'!A210,'Huella Completa'!A113:G782,3,FALSE)=\"Avión\",Avión,0))))","v":{"$error":"#N/A"}}]
["5.82",{"$f":"VLOOKUP('Calculos 2'!A211,'Huella Completa'!A114:G783,4,FALSE)*VLOOKUP('Calculos 2'!A211,'Huella Completa'!A114:G783,5,FALSE)*(IF(VLOOKUP('Calculos 2'!A211,'Huella Completa'!A114:G783,3,FALSE)=\"Tren\",Tren,IF(VLOOKUP('Calculos 2'!A211,'Huella Completa'!A114:G783,3,FALSE)=\"Autobús\",Autobús,IF(VLOOKUP('Calculos 2'!A211,'Huella Completa'!A114:G783,3,FALSE)=\"Avión\",Avión,0))))","v":{"$error":"#N/A"}}]
["5.83",{"$f":"VLOOKUP('Calculos 2'!A212,'Huella Completa'!A115:G784,4,FALSE)*VLOOKUP('Calculos 2'!A212,'Huella Completa'!A115:G784,5,FALSE)*(IF(VLOOKUP('Calculos 2'!A212,'Huella Completa'!A115:G784,3,FALSE)=\"Tren\",Tren,IF(VLOOKUP('Calculos 2'!A212,'Huella Completa'!A115:G784,3,FALSE)=\"Autobús\",Autobús,IF(VLOOKUP('Calculos 2'!A212,'Huella Completa'!A115:G784,3,FALSE)=\"Avión\",Avión,0))))","v":{"$error":"#N/A"}}]
["5.84",{"$f":"VLOOKUP('Calculos 2'!A213,'Huella Completa'!A116:G785,4,FALSE)*VLOOKUP('Calculos 2'!A213,'Huella Completa'!A116:G785,5,FALSE)*(IF(VLOOKUP('Calculos 2'!A213,'Huella Completa'!A116:G785,3,FALSE)=\"Tren\",Tren,IF(VLOOKUP('Calculos 2'!A213,'Huella Completa'!A116:G785,3,FALSE)=\"Autobús\",Autobús,IF(VLOOKUP('Calculos 2'!A213,'Huella Completa'!A116:G785,3,FALSE)=\"Avión\",Avión,0))))","v":{"$error":"#N/A"}}]
["5.85",{"$f":"VLOOKUP('Calculos 2'!A214,'Huella Completa'!A117:G786,4,FALSE)*VLOOKUP('Calculos 2'!A214,'Huella Completa'!A117:G786,5,FALSE)*(IF(VLOOKUP('Calculos 2'!A214,'Huella Completa'!A117:G786,3,FALSE)=\"Tren\",Tren,IF(VLOOKUP('Calculos 2'!A214,'Huella Completa'!A117:G786,3,FALSE)=\"Autobús\",Autobús,IF(VLOOKUP('Calculos 2'!A214,'Huella Completa'!A117:G786,3,FALSE)=\"Avión\",Avión,0))))","v":{"$error":"#N/A"}}]
["5.86",{"$f":"VLOOKUP('Calculos 2'!A215,'Huella Completa'!A118:G787,4,FALSE)*VLOOKUP('Calculos 2'!A215,'Huella Completa'!A118:G787,5,FALSE)*(IF(VLOOKUP('Calculos 2'!A215,'Huella Completa'!A118:G787,3,FALSE)=\"Tren\",Tren,IF(VLOOKUP('Calculos 2'!A215,'Huella Completa'!A118:G787,3,FALSE)=\"Autobús\",Autobús,IF(VLOOKUP('Calculos 2'!A215,'Huella Completa'!A118:G787,3,FALSE)=\"Avión\",Avión,0))))","v":{"$error":"#N/A"}}]
["5.87",{"$f":"VLOOKUP('Calculos 2'!A216,'Huella Completa'!A119:G788,4,FALSE)*VLOOKUP('Calculos 2'!A216,'Huella Completa'!A119:G788,5,FALSE)*(IF(VLOOKUP('Calculos 2'!A216,'Huella Completa'!A119:G788,3,FALSE)=\"Tren\",Tren,IF(VLOOKUP('Calculos 2'!A216,'Huella Completa'!A119:G788,3,FALSE)=\"Autobús\",Autobús,IF(VLOOKUP('Calculos 2'!A216,'Huella Completa'!A119:G788,3,FALSE)=\"Avión\",Avión,0))))","v":{"$error":"#N/A"}}]
["5.88",{"$f":"VLOOKUP('Calculos 2'!A217,'Huella Completa'!A120:G789,4,FALSE)*VLOOKUP('Calculos 2'!A217,'Huella Completa'!A120:G789,5,FALSE)*(IF(VLOOKUP('Calculos 2'!A217,'Huella Completa'!A120:G789,3,FALSE)=\"Tren\",Tren,IF(VLOOKUP('Calculos 2'!A217,'Huella Completa'!A120:G789,3,FALSE)=\"Autobús\",Autobús,IF(VLOOKUP('Calculos 2'!A217,'Huella Completa'!A120:G789,3,FALSE)=\"Avión\",Avión,0))))","v":{"$error":"#N/A"}}]
["5.89",{"$f":"VLOOKUP('Calculos 2'!A218,'Huella Completa'!A121:G790,4,FALSE)*VLOOKUP('Calculos 2'!A218,'Huella Completa'!A121:G790,5,FALSE)*(IF(VLOOKUP('Calculos 2'!A218,'Huella Completa'!A121:G790,3,FALSE)=\"Tren\",Tren,IF(VLOOKUP('Calculos 2'!A218,'Huella Completa'!A121:G790,3,FALSE)=\"Autobús\",Autobús,IF(VLOOKUP('Calculos 2'!A218,'Huella Completa'!A121:G790,3,FALSE)=\"Avión\",Avión,0))))","v":{"$error":"#N/A"}}]
["5.90",{"$f":"VLOOKUP('Calculos 2'!A219,'Huella Completa'!A122:G791,4,FALSE)*VLOOKUP('Calculos 2'!A219,'Huella Completa'!A122:G791,5,FALSE)*(IF(VLOOKUP('Calculos 2'!A219,'Huella Completa'!A122:G791,3,FALSE)=\"Tren\",Tren,IF(VLOOKUP('Calculos 2'!A219,'Huella Completa'!A122:G791,3,FALSE)=\"Autobús\",Autobús,IF(VLOOKUP('Calculos 2'!A219,'Huella Completa'!A122:G791,3,FALSE)=\"Avión\",Avión,0))))","v":{"$error":"#N/A"}}]
["5.91",{"$f":"VLOOKUP('Calculos 2'!A220,'Huella Completa'!A123:G792,4,FALSE)*VLOOKUP('Calculos 2'!A220,'Huella Completa'!A123:G792,5,FALSE)*(IF(VLOOKUP('Calculos 2'!A220,'Huella Completa'!A123:G792,3,FALSE)=\"Tren\",Tren,IF(VLOOKUP('Calculos 2'!A220,'Huella Completa'!A123:G792,3,FALSE)=\"Autobús\",Autobús,IF(VLOOKUP('Calculos 2'!A220,'Huella Completa'!A123:G792,3,FALSE)=\"Avión\",Avión,0))))","v":{"$error":"#N/A"}}]
["5.92",{"$f":"VLOOKUP('Calculos 2'!A221,'Huella Completa'!A124:G793,4,FALSE)*VLOOKUP('Calculos 2'!A221,'Huella Completa'!A124:G793,5,FALSE)*(IF(VLOOKUP('Calculos 2'!A221,'Huella Completa'!A124:G793,3,FALSE)=\"Tren\",Tren,IF(VLOOKUP('Calculos 2'!A221,'Huella Completa'!A124:G793,3,FALSE)=\"Autobús\",Autobús,IF(VLOOKUP('Calculos 2'!A221,'Huella Completa'!A124:G793,3,FALSE)=\"Avión\",Avión,0))))","v":{"$error":"#N/A"}}]
["5.93",{"$f":"VLOOKUP('Calculos 2'!A222,'Huella Completa'!A125:G794,4,FALSE)*VLOOKUP('Calculos 2'!A222,'Huella Completa'!A125:G794,5,FALSE)*(IF(VLOOKUP('Calculos 2'!A222,'Huella Completa'!A125:G794,3,FALSE)=\"Tren\",Tren,IF(VLOOKUP('Calculos 2'!A222,'Huella Completa'!A125:G794,3,FALSE)=\"Autobús\",Autobús,IF(VLOOKUP('Calculos 2'!A222,'Huella Completa'!A125:G794,3,FALSE)=\"Avión\",Avión,0))))","v":{"$error":"#N/A"}}]
["5.94",{"$f":"VLOOKUP('Calculos 2'!A223,'Huella Completa'!A126:G795,4,FALSE)*VLOOKUP('Calculos 2'!A223,'Huella Completa'!A126:G795,5,FALSE)*(IF(VLOOKUP('Calculos 2'!A223,'Huella Completa'!A126:G795,3,FALSE)=\"Tren\",Tren,IF(VLOOKUP('Calculos 2'!A223,'Huella Completa'!A126:G795,3,FALSE)=\"Autobús\",Autobús,IF(VLOOKUP('Calculos 2'!A223,'Huella Completa'!A126:G795,3,FALSE)=\"Avión\",Avión,0))))","v":{"$error":"#N/A"}}]
["5.95",{"$f":"VLOOKUP('Calculos 2'!A224,'Huella Completa'!A127:G796,4,FALSE)*VLOOKUP('Calculos 2'!A224,'Huella Completa'!A127:G796,5,FALSE)*(IF(VLOOKUP('Calculos 2'!A224,'Huella Completa'!A127:G796,3,FALSE)=\"Tren\",Tren,IF(VLOOKUP('Calculos 2'!A224,'Huella Completa'!A127:G796,3,FALSE)=\"Autobús\",Autobús,IF(VLOOKUP('Calculos 2'!A224,'Huella Completa'!A127:G796,3,FALSE)=\"Avión\",Avión,0))))","v":{"$error":"#N/A"}}]
["5.96",{"$f":"VLOOKUP('Calculos 2'!A225,'Huella Completa'!A128:G797,4,FALSE)*VLOOKUP('Calculos 2'!A225,'Huella Completa'!A128:G797,5,FALSE)*(IF(VLOOKUP('Calculos 2'!A225,'Huella Completa'!A128:G797,3,FALSE)=\"Tren\",Tren,IF(VLOOKUP('Calculos 2'!A225,'Huella Completa'!A128:G797,3,FALSE)=\"Autobús\",Autobús,IF(VLOOKUP('Calculos 2'!A225,'Huella Completa'!A128:G797,3,FALSE)=\"Avión\",Avión,0))))","v":{"$error":"#N/A"}}]
["5.97",{"$f":"VLOOKUP('Calculos 2'!A226,'Huella Completa'!A129:G798,4,FALSE)*VLOOKUP('Calculos 2'!A226,'Huella Completa'!A129:G798,5,FALSE)*(IF(VLOOKUP('Calculos 2'!A226,'Huella Completa'!A129:G798,3,FALSE)=\"Tren\",Tren,IF(VLOOKUP('Calculos 2'!A226,'Huella Completa'!A129:G798,3,FALSE)=\"Autobús\",Autobús,IF(VLOOKUP('Calculos 2'!A226,'Huella Completa'!A129:G798,3,FALSE)=\"Avión\",Avión,0))))","v":{"$error":"#N/A"}}]
["5.98",{"$f":"VLOOKUP('Calculos 2'!A227,'Huella Completa'!A130:G799,4,FALSE)*VLOOKUP('Calculos 2'!A227,'Huella Completa'!A130:G799,5,FALSE)*(IF(VLOOKUP('Calculos 2'!A227,'Huella Completa'!A130:G799,3,FALSE)=\"Tren\",Tren,IF(VLOOKUP('Calculos 2'!A227,'Huella Completa'!A130:G799,3,FALSE)=\"Autobús\",Autobús,IF(VLOOKUP('Calculos 2'!A227,'Huella Completa'!A130:G799,3,FALSE)=\"Avión\",Avión,0))))","v":{"$error":"#N/A"}}]
["5.99",{"$f":"VLOOKUP('Calculos 2'!A228,'Huella Completa'!A131:G800,4,FALSE)*VLOOKUP('Calculos 2'!A228,'Huella Completa'!A131:G800,5,FALSE)*(IF(VLOOKUP('Calculos 2'!A228,'Huella Completa'!A131:G800,3,FALSE)=\"Tren\",Tren,IF(VLOOKUP('Calculos 2'!A228,'Huella Completa'!A131:G800,3,FALSE)=\"Autobús\",Autobús,IF(VLOOKUP('Calculos 2'!A228,'Huella Completa'!A131:G800,3,FALSE)=\"Avión\",Avión,0))))","v":{"$error":"#N/A"}}]
["5.100",{"$f":"VLOOKUP('Calculos 2'!A229,'Huella Completa'!A132:G801,4,FALSE)*VLOOKUP('Calculos 2'!A229,'Huella Completa'!A132:G801,5,FALSE)*(IF(VLOOKUP('Calculos 2'!A229,'Huella Completa'!A132:G801,3,FALSE)=\"Tren\",Tren,IF(VLOOKUP('Calculos 2'!A229,'Huella Completa'!A132:G801,3,FALSE)=\"Autobús\",Autobús,IF(VLOOKUP('Calculos 2'!A229,'Huella Completa'!A132:G801,3,FALSE)=\"Avión\",Avión,0))))","v":{"$error":"#N/A"}}]
["5.0",null,{"$f":"_xlfn.AGGREGATE(9,6,B130:B229)","v":0}]
[]
["6.1",{"$f":"VLOOKUP('Calculos 2'!A232,'Huella Completa'!A16:G702,4,FALSE)*VLOOKUP('Calculos 2'!A232,'Huella Completa'!A16:G702,4,FALSE)*Hotel*(_xlfn.IFS(Elec_hotel2=\"siempre\",0.6,Elec_hotel2=\"normalmente\",0.75,Elec_hotel2=\"a veces\",0.9,Elec_hotel2=\"nunca\",1))","v":{"$error":"#N/A"}}]
["6.2",{"$f":"VLOOKUP('Calculos 2'!A233,'Huella Completa'!A17:G703,4,FALSE)*VLOOKUP('Calculos 2'!A233,'Huella Completa'!A17:G703,4,FALSE)*Hotel*(_xlfn.IFS(Elec_hotel2=\"siempre\",0.6,Elec_hotel2=\"normalmente\",0.75,Elec_hotel2=\"a veces\",0.9,Elec_hotel2=\"nunca\",1))","v":{"$error":"#N/A"}}]
["6.3",{"$f":"VLOOKUP('Calculos 2'!A234,'Huella Completa'!A18:G704,4,FALSE)*VLOOKUP('Calculos 2'!A234,'Huella Completa'!A18:G704,4,FALSE)*Hotel*(_xlfn.IFS(Elec_hotel2=\"siempre\",0.6,Elec_hotel2=\"normalmente\",0.75,Elec_hotel2=\"a veces\",0.9,Elec_hotel2=\"nunca\",1))","v":{"$error":"#N/A"}}]
["6.4",{"$f":"VLOOKUP('Calculos 2'!A235,'Huella Completa'!A19:G705,4,FALSE)*VLOOKUP('Calculos 2'!A235,'Huella Completa'!A19:G705,4,FALSE)*Hotel*(_xlfn.IFS(Elec_hotel2=\"siempre\",0.6,Elec_hotel2=\"normalmente\",0.75,Elec_hotel2=\"a veces\",0.9,Elec_hotel2=\"nunca\",1))","v":{"$error":"#N/A"}}]
["6.5",{"$f":"VLOOKUP('Calculos 2'!A236,'Huella Completa'!A20:G706,4,FALSE)*VLOOKUP('Calculos 2'!A236,'Huella Completa'!A20:G706,4,FALSE)*Hotel*(_xlfn.IFS(Elec_hotel2=\"siempre\",0.6,Elec_hotel2=\"normalmente\",0.75,Elec_hotel2=\"a veces\",0.9,Elec_hotel2=\"nunca\",1))","v":{"$error":"#N/A"}}]
["6.6",{"$f":"VLOOKUP('Calculos 2'!A237,'Huella Completa'!A21:G707,4,FALSE)*VLOOKUP('Calculos 2'!A237,'Huella Completa'!A21:G707,4,FALSE)*Hotel*(_xlfn.IFS(Elec_hotel2=\"siempre\",0.6,Elec_hotel2=\"normalmente\",0.75,Elec_hotel2=\"a veces\",0.9,Elec_hotel2=\"nunca\",1))","v":{"$error":"#N/A"}}]
["6.7",{"$f":"VLOOKUP('Calculos 2'!A238,'Huella Completa'!A23:G708,4,FALSE)*VLOOKUP('Calculos 2'!A238,'Huella Completa'!A23:G708,4,FALSE)*Hotel*(_xlfn.IFS(Elec_hotel2=\"siempre\",0.6,Elec_hotel2=\"normalmente\",0.75,Elec_hotel2=\"a veces\",0.9,Elec_hotel2=\"nunca\",1))","v":{"$error":"#N/A"}}]
["6.8",{"$f":"VLOOKUP('Calculos 2'!A239,'Huella Completa'!A24:G709,4,FALSE)*VLOOKUP('Calculos 2'!A239,'Huella Completa'!A24:G709,4,FALSE)*Hotel*(_xlfn.IFS(Elec_hotel2=\"siempre\",0.6,Elec_hotel2=\"normalmente\",0.75,Elec_hotel2=\"a veces\",0.9,Elec_hotel2=\"nunca\",1))","v":{"$error":"#N/A"}}]
["6.9",{"$f":"VLOOKUP('Calculos 2'!A240,'Huella Completa'!A25:G710,4,FALSE)*VLOOKUP('Calculos 2'!A240,'Huella Completa'!A25:G710,4,FALSE)*Hotel*(_xlfn.IFS(Elec_hotel2=\"siempre\",0.6,Elec_hotel2=\"normalmente\",0.75,Elec_hotel2=\"a veces\",0.9,Elec_hotel2=\"nunca\",1))","v":{"$error":"#N/A"}}]
["6.10",{"$f":"VLOOKUP('Calculos 2'!A241,'Huella Completa'!A26:G711,4,FALSE)*VLOOKUP('Calculos 2'!A241,'Huella Completa'!A26:G711,4,FALSE)*Hotel*(_xlfn.IFS(Elec_hotel2=\"siempre\",0.6,Elec_hotel2=\"normalmente\",0.75,Elec_hotel2=\"a veces\",0.9,Elec_hotel2=\"nunca\",1))","v":{"$error":"#N/A"}}]
["6.11",{"$f":"VLOOKUP('Calculos 2'!A242,'Huella Completa'!A34:G712,4,FALSE)*VLOOKUP('Calculos 2'!A242,'Huella Completa'!A34:G712,4,FALSE)*Hotel*(_xlfn.IFS(Elec_hotel2=\"siempre\",0.6,Elec_hotel2=\"normalmente\",0.75,Elec_hotel2=\"a veces\",0.9,Elec_hotel2=\"nunca\",1))","v":{"$error":"#N/A"}}]
["6.12",{"$f":"VLOOKUP('Calculos 2'!A243,'Huella Completa'!A35:G713,4,FALSE)*VLOOKUP('Calculos 2'!A243,'Huella Completa'!A35:G713,4,FALSE)*Hotel*(_xlfn.IFS(Elec_hotel2=\"siempre\",0.6,Elec_hotel2=\"normalmente\",0.75,Elec_hotel2=\"a veces\",0.9,Elec_hotel2=\"nunca\",1))","v":{"$error":"#N/A"}}]
["6.13",{"$f":"VLOOKUP('Calculos 2'!A244,'Huella Completa'!A36:G714,4,FALSE)*VLOOKUP('Calculos 2'!A244,'Huella Completa'!A36:G714,4,FALSE)*Hotel*(_xlfn.IFS(Elec_hotel2=\"siempre\",0.6,Elec_hotel2=\"normalmente\",0.75,Elec_hotel2=\"a veces\",0.9,Elec_hotel2=\"nunca\",1))","v":{"$error":"#N/A"}}]
["6.14",{"$f":"VLOOKUP('Calculos 2'!A245,'Huella Completa'!A37:G715,4,FALSE)*VLOOKUP('Calculos 2'!A245,'Huella Completa'!A37:G715,4,FALSE)*Hotel*(_xlfn.IFS(Elec_hotel2=\"siempre\",0.6,Elec_hotel2=\"normalmente\",0.75,Elec_hotel2=\"a veces\",0.9,Elec_hotel2=\"nunca\",1))","v":{"$error":"#N/A"}}]
["6.15",{"$f":"VLOOKUP('Calculos 2'!A246,'Huella Completa'!A38:G716,4,FALSE)*VLOOKUP('Calculos 2'!A246,'Huella Completa'!A38:G716,4,FALSE)*Hotel*(_xlfn.IFS(Elec_hotel2=\"siempre\",0.6,Elec_hotel2=\"normalmente\",0.75,Elec_hotel2=\"a veces\",0.9,Elec_hotel2=\"nunca\",1))","v":{"$error":"#N/A"}}]
["6.16",{"$f":"VLOOKUP('Calculos 2'!A247,'Huella Completa'!A39:G717,4,FALSE)*VLOOKUP('Calculos 2'!A247,'Huella Completa'!A39:G717,4,FALSE)*Hotel*(_xlfn.IFS(Elec_hotel2=\"siempre\",0.6,Elec_hotel2=\"normalmente\",0.75,Elec_hotel2=\"a veces\",0.9,Elec_hotel2=\"nunca\",1))","v":{"$error":"#N/A"}}]
["6.17",{"$f":"VLOOKUP('Calculos 2'!A248,'Huella Completa'!A40:G718,4,FALSE)*VLOOKUP('Calculos 2'!A248,'Huella Completa'!A40:G718,4,FALSE)*Hotel*(_xlfn.IFS(Elec_hotel2=\"siempre\",0.6,Elec_hotel2=\"normalmente\",0.75,Elec_hotel2=\"a veces\",0.9,Elec_hotel2=\"nunca\",1))","v":{"$error":"#N/A"}}]
["6.18",{"$f":"VLOOKUP('Calculos 2'!A249,'Huella Completa'!A41:G719,4,FALSE)*VLOOKUP('Calculos 2'!A249,'Huella Completa'!A41:G719,4,FALSE)*Hotel*(_xlfn.IFS(Elec_hotel2=\"siempre\",0.6,Elec_hotel2=\"normalmente\",0.75,Elec_hotel2=\"a veces\",0.9,Elec_hotel2=\"nunca\",1))","v":{"$error":"#N/A"}}]
["6.19",{"$f":"VLOOKUP('Calculos 2'!A250,'Huella Completa'!A42:G720,4,FALSE)*VLOOKUP('Calculos 2'!A250,'Huella Completa'!A42:G720,4,FALSE)*Hotel*(_xlfn.IFS(Elec_hotel2=\"siempre\",0.6,Elec_hotel2=\"normalmente\",0.75,Elec_hotel2=\"a veces\",0.9,Elec_hotel2=\"nunca\",1))","v":{"$error":"#N/A"}}]
["6.20",{"$f":"VLOOKUP('Calculos 2'!A251,'Huella Completa'!A43:G721,4,FALSE)*VLOOKUP('Calculos 2'!A251,'Huella Completa'!A43:G721,4,FALSE)*Hotel*(_xlfn.IFS(Elec_hotel2=\"siempre\",0.6,Elec_hotel2=\"normalmente\",0.75,Elec_hotel2=\"a veces\",0.9,Elec_hotel2=\"nunca\",1))","v":{"$error":"#N/A"}}]
["6.21",{"$f":"VLOOKUP('Calculos 2'!A252,'Huella Completa'!A44:G722,4,FALSE)*VLOOKUP('Calculos 2'!A252,'Huella Completa'!A44:G722,4,FALSE)*Hotel*(_xlfn.IFS(Elec_hotel2=\"siempre\",0.6,Elec_hotel2=\"normalmente\",0.75,Elec_hotel2=\"a veces\",0.9,Elec_hotel2=\"nunca\",1))","v":{"$error":"#N/A"}}]
["6.22",{"$f":"VLOOKUP('Calculos 2'!A253,'Huella Completa'!A45:G723,4,FALSE)*VLOOKUP('Calculos 2'!A253,'Huella Completa'!A45:G723,4,FALSE)*Hotel*(_xlfn.IFS(Elec_hotel2=\"siempre\",0.6,Elec_hotel2=\"normalmente\",0.75,Elec_hotel2=\"a veces\",0.9,Elec_hotel2=\"nunca\",1))","v":{"$error":"#N/A"}}]
["6.23",{"$f":"VLOOKUP('Calculos 2'!A254,'Huella Completa'!A46:G724,4,FALSE)*VLOOKUP('Calculos 2'!A254,'Huella Completa'!A46:G724,4,FALSE)*Hotel*(_xlfn.IFS(Elec_hotel2=\"siempre\",0.6,Elec_hotel2=\"normalmente\",0.75,Elec_hotel2=\"a veces\",0.9,Elec_hotel2=\"nunca\",1))","v":{"$error":"#N/A"}}]
["6.24",{"$f":"VLOOKUP('Calculos 2'!A255,'Huella Completa'!A47:G725,4,FALSE)*VLOOKUP('Calculos 2'!A255,'Huella Completa'!A47:G725,4,FALSE)*Hotel*(_xlfn.IFS(Elec_hotel2=\"siempre\",0.6,Elec_hotel2=\"normalmente\",0.75,Elec_hotel2=\"a veces\",0.9,Elec_hotel2=\"nunca\",1))","v":{"$error":"#N/A"}}]
["6.25",{"$f":"VLOOKUP('Calculos 2'!A256,'Huella Completa'!A48:G726,4,FALSE)*VLOOKUP('Calculos 2'!A256,'Huella Completa'!A48:G726,4,FALSE)*Hotel*(_xlfn.IFS(Elec_hotel2=\"siempre\",0.6,Elec_hotel2=\"normalmente\",0.75,Elec_hotel2=\"a veces\",0.9,Elec_hotel2=\"nunca\",1))","v":{"$error":"#N/A"}}]
["6.26",{"$f":"VLOOKUP('Calculos 2'!A257,'Huella Completa'!A49:G727,4,FALSE)*VLOOKUP('Calculos 2'!A257,'Huella Completa'!A49:G727,4,FALSE)*Hotel*(_xlfn.IFS(Elec_hotel2=\"siempre\",0.6,Elec_hotel2=\"normalmente\",0.75,Elec_hotel2=\"a veces\",0.9,Elec_hotel2=\"nunca\",1))","v":{"$error":"#N/A"}}]
["6.27",{"$f":"VLOOKUP('Calculos 2'!A258,'Huella Completa'!A50:G728,4,FALSE)*VLOOKUP('Calculos 2'!A258,'Huella Completa'!A50:G728,4,FALSE)*Hotel*(_xlfn.IFS(Elec_hotel2=\"siempre\",0.6,Elec_hotel2=\"normalmente\",0.75,Elec_hotel2=\"a veces\",0.9,Elec_hotel2=\"nunca\",1))","v":{"$error":"#N/A"}}]
["6.28",{"$f":"VLOOKUP('Calculos 2'!A259,'Huella Completa'!A51:G729,4,FALSE)*VLOOKUP('Calculos 2'!A259,'Huella Completa'!A51:G729,4,FALSE)*Hotel*(_xlfn.IFS(Elec_hotel2=\"siempre\",0.6,Elec_hotel2=\"normalmente\",0.75,Elec_hotel2=\"a veces\",0.9,Elec_hotel2=\"nunca\",1))","v":{"$error":"#N/A"}}]
["6.29",{"$f":"VLOOKUP('Calculos 2'!A260,'Huella Completa'!A52:G730,4,FALSE)*VLOOKUP('Calculos 2'!A260,'Huella Completa'!A52:G730,4,FALSE)*Hotel*(_xlfn.IFS(Elec_hotel2=\"siempre\",0.6,Elec_hotel2=\"normalmente\",0.75,Elec_hotel2=\"a veces\",0.9,Elec_hotel2=\"nunca\",1))","v":{"$error":"#N/A"}}]
["6.30",{"$f":"VLOOKUP('Calculos 2'!A261,'Huella Completa'!A53:G731,4,FALSE)*VLOOKUP('Calculos 2'!A261,'Huella Completa'!A53:G731,4,FALSE)*Hotel*(_xlfn.IFS(Elec_hotel2=\"siempre\",0.6,Elec_hotel2=\"normalmente\",0.75,Elec_hotel2=\"a veces\",0.9,Elec_hotel2=\"nunca\",1))","v":{"$error":"#N/A"}}]
["6.31",{"$f":"VLOOKUP('Calculos 2'!A262,'Huella Completa'!A54:G732,4,FALSE)*VLOOKUP('Calculos 2'!A262,'Huella Completa'!A54:G732,4,FALSE)*Hotel*(_xlfn.IFS(Elec_hotel2=\"siempre\",0.6,Elec_hotel2=\"normalmente\",0.75,Elec_hotel2=\"a veces\",0.9,Elec_hotel2=\"nunca\",1))","v":{"$error":"#N/A"}}]
["6.32",{"$f":"VLOOKUP('Calculos 2'!A263,'Huella Completa'!A55:G733,4,FALSE)*VLOOKUP('Calculos 2'!A263,'Huella Completa'!A55:G733,4,FALSE)*Hotel*(_xlfn.IFS(Elec_hotel2=\"siempre\",0.6,Elec_hotel2=\"normalmente\",0.75,Elec_hotel2=\"a veces\",0.9,Elec_hotel2=\"nunca\",1))","v":{"$error":"#N/A"}}]
["6.33",{"$f":"VLOOKUP('Calculos 2'!A264,'Huella Completa'!A56:G734,4,FALSE)*VLOOKUP('Calculos 2'!A264,'Huella Completa'!A56:G734,4,FALSE)*Hotel*(_xlfn.IFS(Elec_hotel2=\"siempre\",0.6,Elec_hotel2=\"normalmente\",0.75,Elec_hotel2=\"a veces\",0.9,Elec_hotel2=\"nunca\",1))","v":{"$error":"#N/A"}}]
["6.34",{"$f":"VLOOKUP('Calculos 2'!A265,'Huella Completa'!A57:G735,4,FALSE)*VLOOKUP('Calculos 2'!A265,'Huella Completa'!A57:G735,4,FALSE)*Hotel*(_xlfn.IFS(Elec_hotel2=\"siempre\",0.6,Elec_hotel2=\"normalmente\",0.75,Elec_hotel2=\"a veces\",0.9,Elec_hotel2=\"nunca\",1))","v":{"$error":"#N/A"}}]
["6.35",{"$f":"VLOOKUP('Calculos 2'!A266,'Huella Completa'!A58:G736,4,FALSE)*VLOOKUP('Calculos 2'!A266,'Huella Completa'!A58:G736,4,FALSE)*Hotel*(_xlfn.IFS(Elec_hotel2=\"siempre\",0.6,Elec_hotel2=\"normalmente\",0.75,Elec_hotel2=\"a veces\",0.9,Elec_hotel2=\"nunca\",1))","v":{"$error":"#N/A"}}]
["6.36",{"$f":"VLOOKUP('Calculos 2'!A267,'Huella Completa'!A59:G737,4,FALSE)*VLOOKUP('Calculos 2'!A267,'Huella Completa'!A59:G737,4,FALSE)*Hotel*(_xlfn.IFS(Elec_hotel2=\"siempre\",0.6,Elec_hotel2=\"normalmente\",0.75,Elec_hotel2=\"a veces\",0.9,Elec_hotel2=\"nunca\",1))","v":{"$error":"#N/A"}}]
["6.37",{"$f":"VLOOKUP('Calculos 2'!A268,'Huella Completa'!A60:G738,4,FALSE)*VLOOKUP('Calculos 2'!A268,'Huella Completa'!A60:G738,4,FALSE)*Hotel*(_xlfn.IFS(Elec_hotel2=\"siempre\",0.6,Elec_hotel2=\"normalmente\",0.75,Elec_hotel2=\"a veces\",0.9,Elec_hotel2=\"nunca\",1))","v":{"$error":"#N/A"}}]
["6.38",{"$f":"VLOOKUP('Calculos 2'!A269,'Huella Completa'!A61:G739,4,FALSE)*VLOOKUP('Calculos 2'!A269,'Huella Completa'!A61:G739,4,FALSE)*Hotel*(_xlfn.IFS(Elec_hotel2=\"siempre\",0.6,Elec_hotel2=\"normalmente\",0.75,Elec_hotel2=\"a veces\",0.9,Elec_hotel2=\"nunca\",1))","v":{"$error":"#N/A"}}]
["6.39",{"$f":"VLOOKUP('Calculos 2'!A270,'Huella Completa'!A62:G740,4,FALSE)*VLOOKUP('Calculos 2'!A270,'Huella Completa'!A62:G740,4,FALSE)*Hotel*(_xlfn.IFS(Elec_hotel2=\"siempre\",0.6,Elec_hotel2=\"normalmente\",0.75,Elec_hotel2=\"a veces\",0.9,Elec_hotel2=\"nunca\",1))","v":{"$error":"#N/A"}}]
["6.40",{"$f":"VLOOKUP('Calculos 2'!A271,'Huella Completa'!A63:G741,4,FALSE)*VLOOKUP('Calculos 2'!A271,'Huella Completa'!A63:G741,4,FALSE)*Hotel*(_xlfn.IFS(Elec_hotel2=\"siempre\",0.6,Elec_hotel2=\"normalmente\",0.75,Elec_hotel2=\"a veces\",0.9,Elec_hotel2=\"nunca\",1))","v":{"$error":"#N/A"}}]
["6.41",{"$f":"VLOOKUP('Calculos 2'!A272,'Huella Completa'!A64:G742,4,FALSE)*VLOOKUP('Calculos 2'!A272,'Huella Completa'!A64:G742,4,FALSE)*Hotel*(_xlfn.IFS(Elec_hotel2=\"siempre\",0.6,Elec_hotel2=\"normalmente\",0.75,Elec_hotel2=\"a veces\",0.9,Elec_hotel2=\"nunca\",1))","v":{"$error":"#N/A"}}]
["6.42",{"$f":"VLOOKUP('Calculos 2'!A273,'Huella Completa'!A65:G743,4,FALSE)*VLOOKUP('Calculos 2'!A273,'Huella Completa'!A65:G743,4,FALSE)*Hotel*(_xlfn.IFS(Elec_hotel2=\"siempre\",0.6,Elec_hotel2=\"normalmente\",0.75,Elec_hotel2=\"a veces\",0.9,Elec_hotel2=\"nunca\",1))","v":{"$error":"#N/A"}}]
["6.43",{"$f":"VLOOKUP('Calculos 2'!A274,'Huella Completa'!A66:G744,4,FALSE)*VLOOKUP('Calculos 2'!A274,'Huella Completa'!A66:G744,4,FALSE)*Hotel*(_xlfn.IFS(Elec_hotel2=\"siempre\",0.6,Elec_hotel2=\"normalmente\",0.75,Elec_hotel2=\"a veces\",0.9,Elec_hotel2=\"nunca\",1))","v":{"$error":"#N/A"}}]
["6.44",{"$f":"VLOOKUP('Calculos 2'!A275,'Huella Completa'!A67:G745,4,FALSE)*VLOOKUP('Calculos 2'!A275,'Huella Completa'!A67:G745,4,FALSE)*Hotel*(_xlfn.IFS(Elec_hotel2=\"siempre\",0.6,Elec_hotel2=\"normalmente\",0.75,Elec_hotel2=\"a veces\",0.9,Elec_hotel2=\"nunca\",1))","v":{"$error":"#N/A"}}]
["6.45",{"$f":"VLOOKUP('Calculos 2'!A276,'Huella Completa'!A68:G746,4,FALSE)*VLOOKUP('Calculos 2'!A276,'Huella Completa'!A68:G746,4,FALSE)*Hotel*(_xlfn.IFS(Elec_hotel2=\"siempre\",0.6,Elec_hotel2=\"normalmente\",0.75,Elec_hotel2=\"a veces\",0.9,Elec_hotel2=\"nunca\",1))","v":{"$error":"#N/A"}}]
["6.46",{"$f":"VLOOKUP('Calculos 2'!A277,'Huella Completa'!A69:G747,4,FALSE)*VLOOKUP('Calculos 2'!A277,'Huella Completa'!A69:G747,4,FALSE)*Hotel*(_xlfn.IFS(Elec_hotel2=\"siempre\",0.6,Elec_hotel2=\"normalmente\",0.75,Elec_hotel2=\"a veces\",0.9,Elec_hotel2=\"nunca\",1))","v":{"$error":"#N/A"}}]
["6.47",{"$f":"VLOOKUP('Calculos 2'!A278,'Huella Completa'!A70:G748,4,FALSE)*VLOOKUP('Calculos 2'!A278,'Huella Completa'!A70:G748,4,FALSE)*Hotel*(_xlfn.IFS(Elec_hotel2=\"siempre\",0.6,Elec_hotel2=\"normalmente\",0.75,Elec_hotel2=\"a veces\",0.9,Elec_hotel2=\"nunca\",1))","v":{"$error":"#N/A"}}]
["6.48",{"$f":"VLOOKUP('Calculos 2'!A279,'Huella Completa'!A71:G749,4,FALSE)*VLOOKUP('Calculos 2'!A279,'Huella Completa'!A71:G749,4,FALSE)*Hotel*(_xlfn.IFS(Elec_hotel2=\"siempre\",0.6,Elec_hotel2=\"normalmente\",0.75,Elec_hotel2=\"a veces\",0.9,Elec_hotel2=\"nunca\",1))","v":{"$error":"#N/A"}}]
["6.49",{"$f":"VLOOKUP('Calculos 2'!A280,'Huella Completa'!A72:G750,4,FALSE)*VLOOKUP('Calculos 2'!A280,'Huella Completa'!A72:G750,4,FALSE)*Hotel*(_xlfn.IFS(Elec_hotel2=\"siempre\",0.6,Elec_hotel2=\"normalmente\",0.75,Elec_hotel2=\"a veces\",0.9,Elec_hotel2=\"nunca\",1))","v":{"$error":"#N/A"}}]
["6.50",{"$f":"VLOOKUP('Calculos 2'!A281,'Huella Completa'!A74:G751,4,FALSE)*VLOOKUP('Calculos 2'!A281,'Huella Completa'!A74:G751,4,FALSE)*Hotel*(_xlfn.IFS(Elec_hotel2=\"siempre\",0.6,Elec_hotel2=\"normalmente\",0.75,Elec_hotel2=\"a veces\",0.9,Elec_hotel2=\"nunca\",1))","v":{"$error":"#N/A"}}]
["6.51",{"$f":"VLOOKUP('Calculos 2'!A282,'Huella Completa'!A75:G752,4,FALSE)*VLOOKUP('Calculos 2'!A282,'Huella Completa'!A75:G752,4,FALSE)*Hotel*(_xlfn.IFS(Elec_hotel2=\"siempre\",0.6,Elec_hotel2=\"normalmente\",0.75,Elec_hotel2=\"a veces\",0.9,Elec_hotel2=\"nunca\",1))","v":{"$error":"#N/A"}}]
["6.52",{"$f":"VLOOKUP('Calculos 2'!A283,'Huella Completa'!A76:G753,4,FALSE)*VLOOKUP('Calculos 2'!A283,'Huella Completa'!A76:G753,4,FALSE)*Hotel*(_xlfn.IFS(Elec_hotel2=\"siempre\",0.6,Elec_hotel2=\"normalmente\",0.75,Elec_hotel2=\"a veces\",0.9,Elec_hotel2=\"nunca\",1))","v":{"$error":"#N/A"}}]
["6.53",{"$f":"VLOOKUP('Calculos 2'!A284,'Huella Completa'!A77:G754,4,FALSE)*VLOOKUP('Calculos 2'!A284,'Huella Completa'!A77:G754,4,FALSE)*Hotel*(_xlfn.IFS(Elec_hotel2=\"siempre\",0.6,Elec_hotel2=\"normalmente\",0.75,Elec_hotel2=\"a veces\",0.9,Elec_hotel2=\"nunca\",1))","v":{"$error":"#N/A"}}]
["6.54",{"$f":"VLOOKUP('Calculos 2'!A285,'Huella Completa'!A84:G755,4,FALSE)*VLOOKUP('Calculos 2'!A285,'Huella Completa'!A84:G755,4,FALSE)*Hotel*(_xlfn.IFS(Elec_hotel2=\"siempre\",0.6,Elec_hotel2=\"normalmente\",0.75,Elec_hotel2=\"a veces\",0.9,Elec_hotel2=\"nunca\",1))","v":{"$error":"#N/A"}}]
["6.55",{"$f":"VLOOKUP('Calculos 2'!A286,'Huella Completa'!A86:G756,4,FALSE)*VLOOKUP('Calculos 2'!A286,'Huella Completa'!A86:G756,4,FALSE)*Hotel*(_xlfn.IFS(Elec_hotel2=\"siempre\",0.6,Elec_hotel2=\"normalmente\",0.75,Elec_hotel2=\"a veces\",0.9,Elec_hotel2=\"nunca\",1))","v":{"$error":"#N/A"}}]
["6.56",{"$f":"VLOOKUP('Calculos 2'!A287,'Huella Completa'!A87:G757,4,FALSE)*VLOOKUP('Calculos 2'!A287,'Huella Completa'!A87:G757,4,FALSE)*Hotel*(_xlfn.IFS(Elec_hotel2=\"siempre\",0.6,Elec_hotel2=\"normalmente\",0.75,Elec_hotel2=\"a veces\",0.9,Elec_hotel2=\"nunca\",1))","v":{"$error":"#N/A"}}]
["6.57",{"$f":"VLOOKUP('Calculos 2'!A288,'Huella Completa'!A88:G758,4,FALSE)*VLOOKUP('Calculos 2'!A288,'Huella Completa'!A88:G758,4,FALSE)*Hotel*(_xlfn.IFS(Elec_hotel2=\"siempre\",0.6,Elec_hotel2=\"normalmente\",0.75,Elec_hotel2=\"a veces\",0.9,Elec_hotel2=\"nunca\",1))","v":{"$error":"#N/A"}}]
["6.58",{"$f":"VLOOKUP('Calculos 2'!A289,'Huella Completa'!A89:G759,4,FALSE)*VLOOKUP('Calculos 2'!A289,'Huella Completa'!A89:G759,4,FALSE)*Hotel*(_xlfn.IFS(Elec_hotel2=\"siempre\",0.6,Elec_hotel2=\"normalmente\",0.75,Elec_hotel2=\"a veces\",0.9,Elec_hotel2=\"nunca\",1))","v":{"$error":"#N/A"}}]
["6.59",{"$f":"VLOOKUP('Calculos 2'!A290,'Huella Completa'!A90:G760,4,FALSE)*VLOOKUP('Calculos 2'!A290,'Huella Completa'!A90:G760,4,FALSE)*Hotel*(_xlfn.IFS(Elec_hotel2=\"siempre\",0.6,Elec_hotel2=\"normalmente\",0.75,Elec_hotel2=\"a veces\",0.9,Elec_hotel2=\"nunca\",1))","v":{"$error":"#N/A"}}]
["6.60",{"$f":"VLOOKUP('Calculos 2'!A291,'Huella Completa'!A91:G761,4,FALSE)*VLOOKUP('Calculos 2'!A291,'Huella Completa'!A91:G761,4,FALSE)*Hotel*(_xlfn.IFS(Elec_hotel2=\"siempre\",0.6,Elec_hotel2=\"normalmente\",0.75,Elec_hotel2=\"a veces\",0.9,Elec_hotel2=\"nunca\",1))","v":{"$error":"#N/A"}}]
["6.61",{"$f":"VLOOKUP('Calculos 2'!A292,'Huella Completa'!A92:G762,4,FALSE)*VLOOKUP('Calculos 2'!A292,'Huella Completa'!A92:G762,4,FALSE)*Hotel*(_xlfn.IFS(Elec_hotel2=\"siempre\",0.6,Elec_hotel2=\"normalmente\",0.75,Elec_hotel2=\"a veces\",0.9,Elec_hotel2=\"nunca\",1))","v":{"$error":"#N/A"}}]
["6.62",{"$f":"VLOOKUP('Calculos 2'!A293,'Huella Completa'!A93:G763,4,FALSE)*VLOOKUP('Calculos 2'!A293,'Huella Completa'!A93:G763,4,FALSE)*Hotel*(_xlfn.IFS(Elec_hotel2=\"siempre\",0.6,Elec_hotel2=\"normalmente\",0.75,Elec_hotel2=\"a veces\",0.9,Elec_hotel2=\"nunca\",1))","v":{"$error":"#N/A"}}]
["6.63",{"$f":"VLOOKUP('Calculos 2'!A294,'Huella Completa'!A94:G764,4,FALSE)*VLOOKUP('Calculos 2'!A294,'Huella Completa'!A94:G764,4,FALSE)*Hotel*(_xlfn.IFS(Elec_hotel2=\"siempre\",0.6,Elec_hotel2=\"normalmente\",0.75,Elec_hotel2=\"a veces\",0.9,Elec_hotel2=\"nunca\",1))","v":{"$error":"#N/A"}}]
["6.64",{"$f":"VLOOKUP('Calculos 2'!A295,'Huella Completa'!A95:G765,4,FALSE)*VLOOKUP('Calculos 2'!A295,'Huella Completa'!A95:G765,4,FALSE)*Hotel*(_xlfn.IFS(Elec_hotel2=\"siempre\",0.6,Elec_hotel2=\"normalmente\",0.75,Elec_hotel2=\"a veces\",0.9,Elec_hotel2=\"nunca\",1))","v":{"$error":"#N/A"}}]
["6.65",{"$f":"VLOOKUP('Calculos 2'!A296,'Huella Completa'!A96:G766,4,FALSE)*VLOOKUP('Calculos 2'!A296,'Huella Completa'!A96:G766,4,FALSE)*Hotel*(_xlfn.IFS(Elec_hotel2=\"siempre\",0.6,Elec_hotel2=\"normalmente\",0.75,Elec_hotel2=\"a veces\",0.9,Elec_hotel2=\"nunca\",1))","v":{"$error":"#N/A"}}]
["6.66",{"$f":"VLOOKUP('Calculos 2'!A297,'Huella Completa'!A97:G767,4,FALSE)*VLOOKUP('Calculos 2'!A297,'Huella Completa'!A97:G767,4,FALSE)*Hotel*(_xlfn.IFS(Elec_hotel2=\"siempre\",0.6,Elec_hotel2=\"normalmente\",0.75,Elec_hotel2=\"a veces\",0.9,Elec_hotel2=\"nunca\",1))","v":{"$error":"#N/A"}}]
["6.67",{"$f":"VLOOKUP('Calculos 2'!A298,'Huella Completa'!A98:G768,4,FALSE)*VLOOKUP('Calculos 2'!A298,'Huella Completa'!A98:G768,4,FALSE)*Hotel*(_xlfn.IFS(Elec_hotel2=\"siempre\",0.6,Elec_hotel2=\"normalmente\",0.75,Elec_hotel2=\"a veces\",0.9,Elec_hotel2=\"nunca\",1))","v":{"$error":"#N/A"}}]
["6.68",{"$f":"VLOOKUP('Calculos 2'!A299,'Huella Completa'!A99:G769,4,FALSE)*VLOOKUP('Calculos 2'!A299,'Huella Completa'!A99:G769,4,FALSE)*Hotel*(_xlfn.IFS(Elec_hotel2=\"siempre\",0.6,Elec_hotel2=\"normalmente\",0.75,Elec_hotel2=\"a veces\",0.9,Elec_hotel2=\"nunca\",1))","v":{"$error":"#N/A"}}]
["6.69",{"$f":"VLOOKUP('Calculos 2'!A300,'Huella Completa'!A100:G770,4,FALSE)*VLOOKUP('Calculos 2'!A300,'Huella Completa'!A100:G770,4,FALSE)*Hotel*(_xlfn.IFS(Elec_hotel2=\"siempre\",0.6,Elec_hotel2=\"normalmente\",0.75,Elec_hotel2=\"a veces\",0.9,Elec_hotel2=\"nunca\",1))","v":{"$error":"#N/A"}}]
["6.70",{"$f":"VLOOKUP('Calculos 2'!A301,'Huella Completa'!A101:G771,4,FALSE)*VLOOKUP('Calculos 2'!A301,'Huella Completa'!A101:G771,4,FALSE)*Hotel*(_xlfn.IFS(Elec_hotel2=\"siempre\",0.6,Elec_hotel2=\"normalmente\",0.75,Elec_hotel2=\"a veces\",0.9,Elec_hotel2=\"nunca\",1))","v":{"$error":"#N/A"}}]
["6.71",{"$f":"VLOOKUP('Calculos 2'!A302,'Huella Completa'!A102:G772,4,FALSE)*VLOOKUP('Calculos 2'!A302,'Huella Completa'!A102:G772,4,FALSE)*Hotel*(_xlfn.IFS(Elec_hotel2=\"siempre\",0.6,Elec_hotel2=\"normalmente\",0.75,Elec_hotel2=\"a veces\",0.9,Elec_hotel2=\"nunca\",1))","v":{"$error":"#N/A"}}]
["6.72",{"$f":"VLOOKUP('Calculos 2'!A303,'Huella Completa'!A103:G773,4,FALSE)*VLOOKUP('Calculos 2'!A303,'Huella Completa'!A103:G773,4,FALSE)*Hotel*(_xlfn.IFS(Elec_hotel2=\"siempre\",0.6,Elec_hotel2=\"normalmente\",0.75,Elec_hotel2=\"a veces\",0.9,Elec_hotel2=\"nunca\",1))","v":{"$error":"#N/A"}}]
["6.73",{"$f":"VLOOKUP('Calculos 2'!A304,'Huella Completa'!A104:G774,4,FALSE)*VLOOKUP('Calculos 2'!A304,'Huella Completa'!A104:G774,4,FALSE)*Hotel*(_xlfn.IFS(Elec_hotel2=\"siempre\",0.6,Elec_hotel2=\"normalmente\",0.75,Elec_hotel2=\"a veces\",0.9,Elec_hotel2=\"nunca\",1))","v":{"$error":"#N/A"}}]
["6.74",{"$f":"VLOOKUP('Calculos 2'!A305,'Huella Completa'!A106:G775,4,FALSE)*VLOOKUP('Calculos 2'!A305,'Huella Completa'!A106:G775,4,FALSE)*Hotel*(_xlfn.IFS(Elec_hotel2=\"siempre\",0.6,Elec_hotel2=\"normalmente\",0.75,Elec_hotel2=\"a veces\",0.9,Elec_hotel2=\"nunca\",1))","v":{"$error":"#N/A"}}]
["6.75",{"$f":"VLOOKUP('Calculos 2'!A306,'Huella Completa'!A107:G776,4,FALSE)*VLOOKUP('Calculos 2'!A306,'Huella Completa'!A107:G776,4,FALSE)*Hotel*(_xlfn.IFS(Elec_hotel2=\"siempre\",0.6,Elec_hotel2=\"normalmente\",0.75,Elec_hotel2=\"a veces\",0.9,Elec_hotel2=\"nunca\",1))","v":{"$error":"#N/A"}}]
["6.76",{"$f":"VLOOKUP('Calculos 2'!A307,'Huella Completa'!A108:G777,4,FALSE)*VLOOKUP('Calculos 2'!A307,'Huella Completa'!A108:G777,4,FALSE)*Hotel*(_xlfn.IFS(Elec_hotel2=\"siempre\",0.6,Elec_hotel2=\"normalmente\",0.75,Elec_hotel2=\"a veces\",0.9,Elec_hotel2=\"nunca\",1))","v":{"$error":"#N/A"}}]
["6.77",{"$f":"VLOOKUP('Calculos 2'!A308,'Huella Completa'!A109:G778,4,FALSE)*VLOOKUP('Calculos 2'!A308,'Huella Completa'!A109:G778,4,FALSE)*Hotel*(_xlfn.IFS(Elec_hotel2=\"siempre\",0.6,Elec_hotel2=\"normalmente\",0.75,Elec_hotel2=\"a veces\",0.9,Elec_hotel2=\"nunca\",1))","v":{"$error":"#N/A"}}]
["6.78",{"$f":"VLOOKUP('Calculos 2'!A309,'Huella Completa'!A110:G779,4,FALSE)*VLOOKUP('Calculos 2'!A309,'Huella Completa'!A110:G779,4,FALSE)*Hotel*(_xlfn.IFS(Elec_hotel2=\"siempre\",0.6,Elec_hotel2=\"normalmente\",0.75,Elec_hotel2=\"a veces\",0.9,Elec_hotel2=\"nunca\",1))","v":{"$error":"#N/A"}}]
["6.79",{"$f":"VLOOKUP('Calculos 2'!A310,'Huella Completa'!A111:G780,4,FALSE)*VLOOKUP('Calculos 2'!A310,'Huella Completa'!A111:G780,4,FALSE)*Hotel*(_xlfn.IFS(Elec_hotel2=\"siempre\",0.6,Elec_hotel2=\"normalmente\",0.75,Elec_hotel2=\"a veces\",0.9,Elec_hotel2=\"nunca\",1))","v":{"$error":"#N/A"}}]
["6.80",{"$f":"VLOOKUP('Calculos 2'!A311,'Huella Completa'!A112:G781,4,FALSE)*VLOOKUP('Calculos 2'!A311,'Huella Completa'!A112:G781,4,FALSE)*Hotel*(_xlfn.IFS(Elec_hotel2=\"siempre\",0.6,Elec_hotel2=\"normalmente\",0.75,Elec_hotel2=\"a veces\",0.9,Elec_hotel2=\"nunca\",1))","v":{"$error":"#N/A"}}]
["6.81",{"$f":"VLOOKUP('Calculos 2'!A312,'Huella Completa'!A113:G782,4,FALSE)*VLOOKUP('Calculos 2'!A312,'Huella Completa'!A113:G782,4,FALSE)*Hotel*(_xlfn.IFS(Elec_hotel2=\"siempre\",0.6,Elec_hotel2=\"normalmente\",0.75,Elec_hotel2=\"a veces\",0.9,Elec_hotel2=\"nunca\",1))","v":{"$error":"#N/A"}}]
["6.82",{"$f":"VLOOKUP('Calculos 2'!A313,'Huella Completa'!A114:G783,4,FALSE)*VLOOKUP('Calculos 2'!A313,'Huella Completa'!A114:G783,4,FALSE)*Hotel*(_xlfn.IFS(Elec_hotel2=\"siempre\",0.6,Elec_hotel2=\"normalmente\",0.75,Elec_hotel2=\"a veces\",0.9,Elec_hotel2=\"nunca\",1))","v":{"$error":"#N/A"}}]
["6.83",{"$f":"VLOOKUP('Calculos 2'!A314,'Huella Completa'!A115:G784,4,FALSE)*VLOOKUP('Calculos 2'!A314,'Huella Completa'!A115:G784,4,FALSE)*Hotel*(_xlfn.IFS(Elec_hotel2=\"siempre\",0.6,Elec_hotel2=\"normalmente\",0.75,Elec_hotel2=\"a veces\",0.9,Elec_hotel2=\"nunca\",1))","v":{"$error":"#N/A"}}]
["6.84",{"$f":"VLOOKUP('Calculos 2'!A315,'Huella Completa'!A116:G785,4,FALSE)*VLOOKUP('Calculos 2'!A315,'Huella Completa'!A116:G785,4,FALSE)*Hotel*(_xlfn.IFS(Elec_hotel2=\"siempre\",0.6,Elec_hotel2=\"normalmente\",0.75,Elec_hotel2=\"a veces\",0.9,Elec_hotel2=\"nunca\",1))","v":{"$error":"#N/A"}}]
["6.85",{"$f":"VLOOKUP('Calculos 2'!A316,'Huella Completa'!A117:G786,4,FALSE)*VLOOKUP('Calculos 2'!A316,'Huella Completa'!A117:G786,4,FALSE)*Hotel*(_xlfn.IFS(Elec_hotel2=\"siempre\",0.6,Elec_hotel2=\"normalmente\",0.75,Elec_hotel2=\"a veces\",0.9,Elec_hotel2=\"nunca\",1))","v":{"$error":"#N/A"}}]
["6.86",{"$f":"VLOOKUP('Calculos 2'!A317,'Huella Completa'!A118:G787,4,FALSE)*VLOOKUP('Calculos 2'!A317,'Huella Completa'!A118:G787,4,FALSE)*Hotel*(_xlfn.IFS(Elec_hotel2=\"siempre\",0.6,Elec_hotel2=\"normalmente\",0.75,Elec_hotel2=\"a veces\",0.9,Elec_hotel2=\"nunca\",1))","v":{"$error":"#N/A"}}]
["6.87",{"$f":"VLOOKUP('Calculos 2'!A318,'Huella Completa'!A119:G788,4,FALSE)*VLOOKUP('Calculos 2'!A318,'Huella Completa'!A119:G788,4,FALSE)*Hotel*(_xlfn.IFS(Elec_hotel2=\"siempre\",0.6,Elec_hotel2=\"normalmente\",0.75,Elec_hotel2=\"a veces\",0.9,Elec_hotel2=\"nunca\",1))","v":{"$error":"#N/A"}}]
["6.88",{"$f":"VLOOKUP('Calculos 2'!A319,'Huella Completa'!A120:G789,4,FALSE)*VLOOKUP('Calculos 2'!A319,'Huella Completa'!A120:G789,4,FALSE)*Hotel*(_xlfn.IFS(Elec_hotel2=\"siempre\",0.6,Elec_hotel2=\"normalmente\",0.75,Elec_hotel2=\"a veces\",0.9,Elec_hotel2=\"nunca\",1))","v":{"$error":"#N/A"}}]
["6.89",{"$f":"VLOOKUP('Calculos 2'!A320,'Huella Completa'!A121:G790,4,FALSE)*VLOOKUP('Calculos 2'!A320,'Huella Completa'!A121:G790,4,FALSE)*Hotel*(_xlfn.IFS(Elec_hotel2=\"siempre\",0.6,Elec_hotel2=\"normalmente\",0.75,Elec_hotel2=\"a veces\",0.9,Elec_hotel2=\"nunca\",1))","v":{"$error":"#N/A"}}]
["6.90",{"$f":"VLOOKUP('Calculos 2'!A321,'Huella Completa'!A122:G791,4,FALSE)*VLOOKUP('Calculos 2'!A321,'Huella Completa'!A122:G791,4,FALSE)*Hotel*(_xlfn.IFS(Elec_hotel2=\"siempre\",0.6,Elec_hotel2=\"normalmente\",0.75,Elec_hotel2=\"a veces\",0.9,Elec_hotel2=\"nunca\",1))","v":{"$error":"#N/A"}}]
["6.91",{"$f":"VLOOKUP('Calculos 2'!A322,'Huella Completa'!A123:G792,4,FALSE)*VLOOKUP('Calculos 2'!A322,'Huella Completa'!A123:G792,4,FALSE)*Hotel*(_xlfn.IFS(Elec_hotel2=\"siempre\",0.6,Elec_hotel2=\"normalmente\",0.75,Elec_hotel2=\"a veces\",0.9,Elec_hotel2=\"nunca\",1))","v":{"$error":"#N/A"}}]
["6.92",{"$f":"VLOOKUP('Calculos 2'!A323,'Huella Completa'!A124:G793,4,FALSE)*VLOOKUP('Calculos 2'!A323,'Huella Completa'!A124:G793,4,FALSE)*Hotel*(_xlfn.IFS(Elec_hotel2=\"siempre\",0.6,Elec_hotel2=\"normalmente\",0.75,Elec_hotel2=\"a veces\",0.9,Elec_hotel2=\"nunca\",1))","v":{"$error":"#N/A"}}]
["6.93",{"$f":"VLOOKUP('Calculos 2'!A324,'Huella Completa'!A125:G794,4,FALSE)*VLOOKUP('Calculos 2'!A324,'Huella Completa'!A125:G794,4,FALSE)*Hotel*(_xlfn.IFS(Elec_hotel2=\"siempre\",0.6,Elec_hotel2=\"normalmente\",0.75,Elec_hotel2=\"a veces\",0.9,Elec_hotel2=\"nunca\",1))","v":{"$error":"#N/A"}}]
["6.94",{"$f":"VLOOKUP('Calculos 2'!A325,'Huella Completa'!A126:G795,4,FALSE)*VLOOKUP('Calculos 2'!A325,'Huella Completa'!A126:G795,4,FALSE)*Hotel*(_xlfn.IFS(Elec_hotel2=\"siempre\",0.6,Elec_hotel2=\"normalmente\",0.75,Elec_hotel2=\"a veces\",0.9,Elec_hotel2=\"nunca\",1))","v":{"$error":"#N/A"}}]
["6.95",{"$f":"VLOOKUP('Calculos 2'!A326,'Huella Completa'!A127:G796,4,FALSE)*VLOOKUP('Calculos 2'!A326,'Huella Completa'!A127:G796,4,FALSE)*Hotel*(_xlfn.IFS(Elec_hotel2=\"siempre\",0.6,Elec_hotel2=\"normalmente\",0.75,Elec_hotel2=\"a veces\",0.9,Elec_hotel2=\"nunca\",1))","v":{"$error":"#N/A"}}]
["6.96",{"$f":"VLOOKUP('Calculos 2'!A327,'Huella Completa'!A128:G797,4,FALSE)*VLOOKUP('Calculos 2'!A327,'Huella Completa'!A128:G797,4,FALSE)*Hotel*(_xlfn.IFS(Elec_hotel2=\"siempre\",0.6,Elec_hotel2=\"normalmente\",0.75,Elec_hotel2=\"a veces\",0.9,Elec_hotel2=\"nunca\",1))","v":{"$error":"#N/A"}}]
["6.97",{"$f":"VLOOKUP('Calculos 2'!A328,'Huella Completa'!A129:G798,4,FALSE)*VLOOKUP('Calculos 2'!A328,'Huella Completa'!A129:G798,4,FALSE)*Hotel*(_xlfn.IFS(Elec_hotel2=\"siempre\",0.6,Elec_hotel2=\"normalmente\",0.75,Elec_hotel2=\"a veces\",0.9,Elec_hotel2=\"nunca\",1))","v":{"$error":"#N/A"}}]
["6.98",{"$f":"VLOOKUP('Calculos 2'!A329,'Huella Completa'!A130:G799,4,FALSE)*VLOOKUP('Calculos 2'!A329,'Huella Completa'!A130:G799,4,FALSE)*Hotel*(_xlfn.IFS(Elec_hotel2=\"siempre\",0.6,Elec_hotel2=\"normalmente\",0.75,Elec_hotel2=\"a veces\",0.9,Elec_hotel2=\"nunca\",1))","v":{"$error":"#N/A"}}]
["6.99",{"$f":"VLOOKUP('Calculos 2'!A330,'Huella Completa'!A131:G800,4,FALSE)*VLOOKUP('Calculos 2'!A330,'Huella Completa'!A131:G800,4,FALSE)*Hotel*(_xlfn.IFS(Elec_hotel2=\"siempre\",0.6,Elec_hotel2=\"normalmente\",0.75,Elec_hotel2=\"a veces\",0.9,Elec_hotel2=\"nunca\",1))","v":{"$error":"#N/A"}}]
["6.100",{"$f":"VLOOKUP('Calculos 2'!A331,'Huella Completa'!A132:G801,4,FALSE)*VLOOKUP('Calculos 2'!A331,'Huella Completa'!A132:G801,4,FALSE)*Hotel*(_xlfn.IFS(Elec_hotel2=\"siempre\",0.6,Elec_hotel2=\"normalmente\",0.75,Elec_hotel2=\"a veces\",0.9,Elec_hotel2=\"nunca\",1))","v":{"$error":"#N/A"}}]
["6.0",null,{"$f":"_xlfn.AGGREGATE(9,6,B232:B331)","v":0}]
[]
["7.1",{"$f":"VLOOKUP('Calculos 2'!A334,'Huella Completa'!A16:G702,4,FALSE)*\n\nVLOOKUP('Calculos 2'!A334,'Huella Completa'!A16:G702,4,FALSE)*\n\n_xlfn.IFS(VLOOKUP('Calculos 2'!A334,'Huella Completa'!A16:G702,5,FALSE)=\"normal\",comida,\nVLOOKUP('Calculos 2'!A334,'Huella Completa'!A16:G702,5,FALSE)=\"vegetariano\",comidavegetariana,\nVLOOKUP('Calculos 2'!A334,'Huella Completa'!A16:G702,5,FALSE)=\"productos locales\",productos_locales )","v":{"$error":"#N/A"}}]
["7.2",{"$f":"VLOOKUP('Calculos 2'!A335,'Huella Completa'!A17:G703,4,FALSE)*\n\nVLOOKUP('Calculos 2'!A335,'Huella Completa'!A17:G703,4,FALSE)*\n\n_xlfn.IFS(VLOOKUP('Calculos 2'!A335,'Huella Completa'!A17:G703,5,FALSE)=\"normal\",comida,\nVLOOKUP('Calculos 2'!A335,'Huella Completa'!A17:G703,5,FALSE)=\"vegetariano\",comidavegetariana,\nVLOOKUP('Calculos 2'!A335,'Huella Completa'!A17:G703,5,FALSE)=\"productos locales\",productos_locales )","v":{"$error":"#N/A"}}]
["7.3",{"$f":"VLOOKUP('Calculos 2'!A336,'Huella Completa'!A18:G704,4,FALSE)*\n\nVLOOKUP('Calculos 2'!A336,'Huella Completa'!A18:G704,4,FALSE)*\n\n_xlfn.IFS(VLOOKUP('Calculos 2'!A336,'Huella Completa'!A18:G704,5,FALSE)=\"normal\",comida,\nVLOOKUP('Calculos 2'!A336,'Huella Completa'!A18:G704,5,FALSE)=\"vegetariano\",comidavegetariana,\nVLOOKUP('Calculos 2'!A336,'Huella Completa'!A18:G704,5,FALSE)=\"productos locales\",productos_locales )","v":{"$error":"#N/A"}}]
["7.4",{"$f":"VLOOKUP('Calculos 2'!A337,'Huella Completa'!A19:G705,4,FALSE)*\n\nVLOOKUP('Calculos 2'!A337,'Huella Completa'!A19:G705,4,FALSE)*\n\n_xlfn.IFS(VLOOKUP('Calculos 2'!A337,'Huella Completa'!A19:G705,5,FALSE)=\"normal\",comida,\nVLOOKUP('Calculos 2'!A337,'Huella Completa'!A19:G705,5,FALSE)=\"vegetariano\",comidavegetariana,\nVLOOKUP('Calculos 2'!A337,'Huella Completa'!A19:G705,5,FALSE)=\"productos locales\",productos_locales )","v":{"$error":"#N/A"}}]
["7.5",{"$f":"VLOOKUP('Calculos 2'!A338,'Huella Completa'!A20:G706,4,FALSE)*\n\nVLOOKUP('Calculos 2'!A338,'Huella Completa'!A20:G706,4,FALSE)*\n\n_xlfn.IFS(VLOOKUP('Calculos 2'!A338,'Huella Completa'!A20:G706,5,FALSE)=\"normal\",comida,\nVLOOKUP('Calculos 2'!A338,'Huella Completa'!A20:G706,5,FALSE)=\"vegetariano\",comidavegetariana,\nVLOOKUP('Calculos 2'!A338,'Huella Completa'!A20:G706,5,FALSE)=\"productos locales\",productos_locales )","v":{"$error":"#N/A"}}]
["7.6",{"$f":"VLOOKUP('Calculos 2'!A339,'Huella Completa'!A21:G707,4,FALSE)*\n\nVLOOKUP('Calculos 2'!A339,'Huella Completa'!A21:G707,4,FALSE)*\n\n_xlfn.IFS(VLOOKUP('Calculos 2'!A339,'Huella Completa'!A21:G707,5,FALSE)=\"normal\",comida,\nVLOOKUP('Calculos 2'!A339,'Huella Completa'!A21:G707,5,FALSE)=\"vegetariano\",comidavegetariana,\nVLOOKUP('Calculos 2'!A339,'Huella Completa'!A21:G707,5,FALSE)=\"productos locales\",productos_locales )","v":{"$error":"#N/A"}}]
["7.7",{"$f":"VLOOKUP('Calculos 2'!A340,'Huella Completa'!A22:G708,4,FALSE)*\n\nVLOOKUP('Calculos 2'!A340,'Huella Completa'!A22:G708,4,FALSE)*\n\n_xlfn.IFS(VLOOKUP('Calculos 2'!A340,'Huella Completa'!A22:G708,5,FALSE)=\"normal\",comida,\nVLOOKUP('Calculos 2'!A340,'Huella Completa'!A22:G708,5,FALSE)=\"vegetariano\",comidavegetariana,\nVLOOKUP('Calculos 2'!A340,'Huella Completa'!A22:G708,5,FALSE)=\"productos locales\",productos_locales )","v":{"$error":"#N/A"}}]
["7.8",{"$f":"VLOOKUP('Calculos 2'!A341,'Huella Completa'!A23:G709,4,FALSE)*\n\nVLOOKUP('Calculos 2'!A341,'Huella Completa'!A23:G709,4,FALSE)*\n\n_xlfn.IFS(VLOOKUP('Calculos 2'!A341,'Huella Completa'!A23:G709,5,FALSE)=\"normal\",comida,\nVLOOKUP('Calculos 2'!A341,'Huella Completa'!A23:G709,5,FALSE)=\"vegetariano\",comidavegetariana,\nVLOOKUP('Calculos 2'!A341,'Huella Completa'!A23:G709,5,FALSE)=\"productos locales\",productos_locales )","v":{"$error":"#N/A"}}]
["7.9",{"$f":"VLOOKUP('Calculos 2'!A342,'Huella Completa'!A24:G710,4,FALSE)*\n\nVLOOKUP('Calculos 2'!A342,'Huella Completa'!A24:G710,4,FALSE)*\n\n_xlfn.IFS(VLOOKUP('Calculos 2'!A342,'Huella Completa'!A24:G710,5,FALSE)=\"normal\",comida,\nVLOOKUP('Calculos 2'!A342,'Huella Completa'!A24:G710,5,FALSE)=\"vegetariano\",comidavegetariana,\nVLOOKUP('Calculos 2'!A342,'Huella Completa'!A24:G710,5,FALSE)=\"productos locales\",productos_locales )","v":{"$error":"#N/A"}}]
["7.10",{"$f":"VLOOKUP('Calculos 2'!A343,'Huella Completa'!A25:G711,4,FALSE)*\n\nVLOOKUP('Calculos 2'!A343,'Huella Completa'!A25:G711,4,FALSE)*\n\n_xlfn.IFS(VLOOKUP('Calculos 2'!A343,'Huella Completa'!A25:G711,5,FALSE)=\"normal\",comida,\nVLOOKUP('Calculos 2'!A343,'Huella Completa'!A25:G711,5,FALSE)=\"vegetariano\",comidavegetariana,\nVLOOKUP('Calculos 2'!A343,'Huella Completa'!A25:G711,5,FALSE)=\"productos locales\",productos_locales )","v":{"$error":"#N/A"}}]
["7.11",{"$f":"VLOOKUP('Calculos 2'!A344,'Huella Completa'!A26:G712,4,FALSE)*\n\nVLOOKUP('Calculos 2'!A344,'Huella Completa'!A26:G712,4,FALSE)*\n\n_xlfn.IFS(VLOOKUP('Calculos 2'!A344,'Huella Completa'!A26:G712,5,FALSE)=\"normal\",comida,\nVLOOKUP('Calculos 2'!A344,'Huella Completa'!A26:G712,5,FALSE)=\"vegetariano\",comidavegetariana,\nVLOOKUP('Calculos 2'!A344,'Huella Completa'!A26:G712,5,FALSE)=\"productos locales\",productos_locales )","v":{"$error":"#N/A"}}]
["7.12",{"$f":"VLOOKUP('Calculos 2'!A345,'Huella Completa'!A27:G713,4,FALSE)*\n\nVLOOKUP('Calculos 2'!A345,'Huella Completa'!A27:G713,4,FALSE)*\n\n_xlfn.IFS(VLOOKUP('Calculos 2'!A345,'Huella Completa'!A27:G713,5,FALSE)=\"normal\",comida,\nVLOOKUP('Calculos 2'!A345,'Huella Completa'!A27:G713,5,FALSE)=\"vegetariano\",comidavegetariana,\nVLOOKUP('Calculos 2'!A345,'Huella Completa'!A27:G713,5,FALSE)=\"productos locales\",productos_locales )","v":{"$error":"#N/A"}}]
["7.13",{"$f":"VLOOKUP('Calculos 2'!A346,'Huella Completa'!A28:G714,4,FALSE)*\n\nVLOOKUP('Calculos 2'!A346,'Huella Completa'!A28:G714,4,FALSE)*\n\n_xlfn.IFS(VLOOKUP('Calculos 2'!A346,'Huella Completa'!A28:G714,5,FALSE)=\"normal\",comida,\nVLOOKUP('Calculos 2'!A346,'Huella Completa'!A28:G714,5,FALSE)=\"vegetariano\",comidavegetariana,\nVLOOKUP('Calculos 2'!A346,'Huella Completa'!A28:G714,5,FALSE)=\"productos locales\",productos_locales )","v":{"$error":"#N/A"}}]
["7.14",{"$f":"VLOOKUP('Calculos 2'!A347,'Huella Completa'!A29:G715,4,FALSE)*\n\nVLOOKUP('Calculos 2'!A347,'Huella Completa'!A29:G715,4,FALSE)*\n\n_xlfn.IFS(VLOOKUP('Calculos 2'!A347,'Huella Completa'!A29:G715,5,FALSE)=\"normal\",comida,\nVLOOKUP('Calculos 2'!A347,'Huella Completa'!A29:G715,5,FALSE)=\"vegetariano\",comidavegetariana,\nVLOOKUP('Calculos 2'!A347,'Huella Completa'!A29:G715,5,FALSE)=\"productos locales\",productos_locales )","v":{"$error":"#N/A"}}]
["7.15",{"$f":"VLOOKUP('Calculos 2'!A348,'Huella Completa'!A30:G716,4,FALSE)*\n\nVLOOKUP('Calculos 2'!A348,'Huella Completa'!A30:G716,4,FALSE)*\n\n_xlfn.IFS(VLOOKUP('Calculos 2'!A348,'Huella Completa'!A30:G716,5,FALSE)=\"normal\",comida,\nVLOOKUP('Calculos 2'!A348,'Huella Completa'!A30:G716,5,FALSE)=\"vegetariano\",comidavegetariana,\nVLOOKUP('Calculos 2'!A348,'Huella Completa'!A30:G716,5,FALSE)=\"productos locales\",productos_locales )","v":{"$error":"#N/A"}}]
["7.16",{"$f":"VLOOKUP('Calculos 2'!A349,'Huella Completa'!A31:G717,4,FALSE)*\n\nVLOOKUP('Calculos 2'!A349,'Huella Completa'!A31:G717,4,FALSE)*\n\n_xlfn.IFS(VLOOKUP('Calculos 2'!A349,'Huella Completa'!A31:G717,5,FALSE)=\"normal\",comida,\nVLOOKUP('Calculos 2'!A349,'Huella Completa'!A31:G717,5,FALSE)=\"vegetariano\",comidavegetariana,\nVLOOKUP('Calculos 2'!A349,'Huella Completa'!A31:G717,5,FALSE)=\"productos locales\",productos_locales )","v":{"$error":"#N/A"}}]
["7.17",{"$f":"VLOOKUP('Calculos 2'!A350,'Huella Completa'!A32:G718,4,FALSE)*\n\nVLOOKUP('Calculos 2'!A350,'Huella Completa'!A32:G718,4,FALSE)*\n\n_xlfn.IFS(VLOOKUP('Calculos 2'!A350,'Huella Completa'!A32:G718,5,FALSE)=\"normal\",comida,\nVLOOKUP('Calculos 2'!A350,'Huella Completa'!A32:G718,5,FALSE)=\"vegetariano\",comidavegetariana,\nVLOOKUP('Calculos 2'!A350,'Huella Completa'!A32:G718,5,FALSE)=\"productos locales\",productos_locales )","v":{"$error":"#N/A"}}]
["7.18",{"$f":"VLOOKUP('Calculos 2'!A351,'Huella Completa'!A33:G719,4,FALSE)*\n\nVLOOKUP('Calculos 2'!A351,'Huella Completa'!A33:G719,4,FALSE)*\n\n_xlfn.IFS(VLOOKUP('Calculos 2'!A351,'Huella Completa'!A33:G719,5,FALSE)=\"normal\",comida,\nVLOOKUP('Calculos 2'!A351,'Huella Completa'!A33:G719,5,FALSE)=\"vegetariano\",comidavegetariana,\nVLOOKUP('Calculos 2'!A351,'Huella Completa'!A33:G719,5,FALSE)=\"productos locales\",productos_locales )","v":{"$error":"#N/A"}}]
["7.19",{"$f":"VLOOKUP('Calculos 2'!A352,'Huella Completa'!A34:G720,4,FALSE)*\n\nVLOOKUP('Calculos 2'!A352,'Huella Completa'!A34:G720,4,FALSE)*\n\n_xlfn.IFS(VLOOKUP('Calculos 2'!A352,'Huella Completa'!A34:G720,5,FALSE)=\"normal\",comida,\nVLOOKUP('Calculos 2'!A352,'Huella Completa'!A34:G720,5,FALSE)=\"vegetariano\",comidavegetariana,\nVLOOKUP('Calculos 2'!A352,'Huella Completa'!A34:G720,5,FALSE)=\"productos locales\",productos_locales )","v":{"$error":"#N/A"}}]
["7.20",{"$f":"VLOOKUP('Calculos 2'!A353,'Huella Completa'!A35:G721,4,FALSE)*\n\nVLOOKUP('Calculos 2'!A353,'Huella Completa'!A35:G721,4,FALSE)*\n\n_xlfn.IFS(VLOOKUP('Calculos 2'!A353,'Huella Completa'!A35:G721,5,FALSE)=\"normal\",comida,\nVLOOKUP('Calculos 2'!A353,'Huella Completa'!A35:G721,5,FALSE)=\"vegetariano\",comidavegetariana,\nVLOOKUP('Calculos 2'!A353,'Huella Completa'!A35:G721,5,FALSE)=\"productos locales\",productos_locales )","v":{"$error":"#N/A"}}]
["7.21",{"$f":"VLOOKUP('Calculos 2'!A354,'Huella Completa'!A36:G722,4,FALSE)*\n\nVLOOKUP('Calculos 2'!A354,'Huella Completa'!A36:G722,4,FALSE)*\n\n_xlfn.IFS(VLOOKUP('Calculos 2'!A354,'Huella Completa'!A36:G722,5,FALSE)=\"normal\",comida,\nVLOOKUP('Calculos 2'!A354,'Huella Completa'!A36:G722,5,FALSE)=\"vegetariano\",comidavegetariana,\nVLOOKUP('Calculos 2'!A354,'Huella Completa'!A36:G722,5,FALSE)=\"productos locales\",productos_locales )","v":{"$error":"#N/A"}}]
["7.22",{"$f":"VLOOKUP('Calculos 2'!A355,'Huella Completa'!A37:G723,4,FALSE)*\n\nVLOOKUP('Calculos 2'!A355,'Huella Completa'!A37:G723,4,FALSE)*\n\n_xlfn.IFS(VLOOKUP('Calculos 2'!A355,'Huella Completa'!A37:G723,5,FALSE)=\"normal\",comida,\nVLOOKUP('Calculos 2'!A355,'Huella Completa'!A37:G723,5,FALSE)=\"vegetariano\",comidavegetariana,\nVLOOKUP('Calculos 2'!A355,'Huella Completa'!A37:G723,5,FALSE)=\"productos locales\",productos_locales )","v":{"$error":"#N/A"}}]
["7.23",{"$f":"VLOOKUP('Calculos 2'!A356,'Huella Completa'!A38:G724,4,FALSE)*\n\nVLOOKUP('Calculos 2'!A356,'Huella Completa'!A38:G724,4,FALSE)*\n\n_xlfn.IFS(VLOOKUP('Calculos 2'!A356,'Huella Completa'!A38:G724,5,FALSE)=\"normal\",comida,\nVLOOKUP('Calculos 2'!A356,'Huella Completa'!A38:G724,5,FALSE)=\"vegetariano\",comidavegetariana,\nVLOOKUP('Calculos 2'!A356,'Huella Completa'!A38:G724,5,FALSE)=\"productos locales\",productos_locales )","v":{"$error":"#N/A"}}]
["7.24",{"$f":"VLOOKUP('Calculos 2'!A357,'Huella Completa'!A39:G725,4,FALSE)*\n\nVLOOKUP('Calculos 2'!A357,'Huella Completa'!A39:G725,4,FALSE)*\n\n_xlfn.IFS(VLOOKUP('Calculos 2'!A357,'Huella Completa'!A39:G725,5,FALSE)=\"normal\",comida,\nVLOOKUP('Calculos 2'!A357,'Huella Completa'!A39:G725,5,FALSE)=\"vegetariano\",comidavegetariana,\nVLOOKUP('Calculos 2'!A357,'Huella Completa'!A39:G725,5,FALSE)=\"productos locales\",productos_locales )","v":{"$error":"#N/A"}}]
["7.25",{"$f":"VLOOKUP('Calculos 2'!A358,'Huella Completa'!A40:G726,4,FALSE)*\n\nVLOOKUP('Calculos 2'!A358,'Huella Completa'!A40:G726,4,FALSE)*\n\n_xlfn.IFS(VLOOKUP('Calculos 2'!A358,'Huella Completa'!A40:G726,5,FALSE)=\"normal\",comida,\nVLOOKUP('Calculos 2'!A358,'Huella Completa'!A40:G726,5,FALSE)=\"vegetariano\",comidavegetariana,\nVLOOKUP('Calculos 2'!A358,'Huella Completa'!A40:G726,5,FALSE)=\"productos locales\",productos_locales )","v":{"$error":"#N/A"}}]
["7.26",{"$f":"VLOOKUP('Calculos 2'!A359,'Huella Completa'!A41:G727,4,FALSE)*\n\nVLOOKUP('Calculos 2'!A359,'Huella Completa'!A41:G727,4,FALSE)*\n\n_xlfn.IFS(VLOOKUP('Calculos 2'!A359,'Huella Completa'!A41:G727,5,FALSE)=\"normal\",comida,\nVLOOKUP('Calculos 2'!A359,'Huella Completa'!A41:G727,5,FALSE)=\"vegetariano\",comidavegetariana,\nVLOOKUP('Calculos 2'!A359,'Huella Completa'!A41:G727,5,FALSE)=\"productos locales\",productos_locales )","v":{"$error":"#N/A"}}]
["7.27",{"$f":"VLOOKUP('Calculos 2'!A360,'Huella Completa'!A42:G728,4,FALSE)*\n\nVLOOKUP('Calculos 2'!A360,'Huella Completa'!A42:G728,4,FALSE)*\n\n_xlfn.IFS(VLOOKUP('Calculos 2'!A360,'Huella Completa'!A42:G728,5,FALSE)=\"normal\",comida,\nVLOOKUP('Calculos 2'!A360,'Huella Completa'!A42:G728,5,FALSE)=\"vegetariano\",comidavegetariana,\nVLOOKUP('Calculos 2'!A360,'Huella Completa'!A42:G728,5,FALSE)=\"productos locales\",productos_locales )","v":{"$error":"#N/A"}}]
["7.28",{"$f":"VLOOKUP('Calculos 2'!A361,'Huella Completa'!A43:G729,4,FALSE)*\n\nVLOOKUP('Calculos 2'!A361,'Huella Completa'!A43:G729,4,FALSE)*\n\n_xlfn.IFS(VLOOKUP('Calculos 2'!A361,'Huella Completa'!A43:G729,5,FALSE)=\"normal\",comida,\nVLOOKUP('Calculos 2'!A361,'Huella Completa'!A43:G729,5,FALSE)=\"vegetariano\",comidavegetariana,\nVLOOKUP('Calculos 2'!A361,'Huella Completa'!A43:G729,5,FALSE)=\"productos locales\",productos_locales )","v":{"$error":"#N/A"}}]
["7.29",{"$f":"VLOOKUP('Calculos 2'!A362,'Huella Completa'!A44:G730,4,FALSE)*\n\nVLOOKUP('Calculos 2'!A362,'Huella Completa'!A44:G730,4,FALSE)*\n\n_xlfn.IFS(VLOOKUP('Calculos 2'!A362,'Huella Completa'!A44:G730,5,FALSE)=\"normal\",comida,\nVLOOKUP('Calculos 2'!A362,'Huella Completa'!A44:G730,5,FALSE)=\"vegetariano\",comidavegetariana,\nVLOOKUP('Calculos 2'!A362,'Huella Completa'!A44:G730,5,FALSE)=\"productos locales\",productos_locales )","v":{"$error":"#N/A"}}]
["7.30",{"$f":"VLOOKUP('Calculos 2'!A363,'Huella Completa'!A45:G731,4,FALSE)*\n\nVLOOKUP('Calculos 2'!A363,'Huella Completa'!A45:G731,4,FALSE)*\n\n_xlfn.IFS(VLOOKUP('Calculos 2'!A363,'Huella Completa'!A45:G731,5,FALSE)=\"normal\",comida,\nVLOOKUP('Calculos 2'!A363,'Huella Completa'!A45:G731,5,FALSE)=\"vegetariano\",comidavegetariana,\nVLOOKUP('Calculos 2'!A363,'Huella Completa'!A45:G731,5,FALSE)=\"productos locales\",productos_locales )","v":{"$error":"#N/A"}}]
["7.31",{"$f":"VLOOKUP('Calculos 2'!A364,'Huella Completa'!A46:G732,4,FALSE)*\n\nVLOOKUP('Calculos 2'!A364,'Huella Completa'!A46:G732,4,FALSE)*\n\n_xlfn.IFS(VLOOKUP('Calculos 2'!A364,'Huella Completa'!A46:G732,5,FALSE)=\"normal\",comida,\nVLOOKUP('Calculos 2'!A364,'Huella Completa'!A46:G732,5,FALSE)=\"vegetariano\",comidavegetariana,\nVLOOKUP('Calculos 2'!A364,'Huella Completa'!A46:G732,5,FALSE)=\"productos locales\",productos_locales )","v":{"$error":"#N/A"}}]
["7.32",{"$f":"VLOOKUP('Calculos 2'!A365,'Huella Completa'!A47:G733,4,FALSE)*\n\nVLOOKUP('Calculos 2'!A365,'Huella Completa'!A47:G733,4,FALSE)*\n\n_xlfn.IFS(VLOOKUP('Calculos 2'!A365,'Huella Completa'!A47:G733,5,FALSE)=\"normal\",comida,\nVLOOKUP('Calculos 2'!A365,'Huella Completa'!A47:G733,5,FALSE)=\"vegetariano\",comidavegetariana,\nVLOOKUP('Calculos 2'!A365,'Huella Completa'!A47:G733,5,FALSE)=\"productos locales\",productos_locales )","v":{"$error":"#N/A"}}]
["7.33",{"$f":"VLOOKUP('Calculos 2'!A366,'Huella Completa'!A48:G734,4,FALSE)*\n\nVLOOKUP('Calculos 2'!A366,'Huella Completa'!A48:G734,4,FALSE)*\n\n_xlfn.IFS(VLOOKUP('Calculos 2'!A366,'Huella Completa'!A48:G734,5,FALSE)=\"normal\",comida,\nVLOOKUP('Calculos 2'!A366,'Huella Completa'!A48:G734,5,FALSE)=\"vegetariano\",comidavegetariana,\nVLOOKUP('Calculos 2'!A366,'Huella Completa'!A48:G734,5,FALSE)=\"productos locales\",productos_locales )","v":{"$error":"#N/A"}}]
["7.34",{"$f":"VLOOKUP('Calculos 2'!A367,'Huella Completa'!A49:G735,4,FALSE)*\n\nVLOOKUP('Calculos 2'!A367,'Huella Completa'!A49:G735,4,FALSE)*\n\n_xlfn.IFS(VLOOKUP('Calculos 2'!A367,'Huella Completa'!A49:G735,5,FALSE)=\"normal\",comida,\nVLOOKUP('Calculos 2'!A367,'Huella Completa'!A49:G735,5,FALSE)=\"vegetariano\",comidavegetariana,\nVLOOKUP('Calculos 2'!A367,'Huella Completa'!A49:G735,5,FALSE)=\"productos locales\",productos_locales )","v":{"$error":"#N/A"}}]
["7.35",{"$f":"VLOOKUP('Calculos 2'!A368,'Huella Completa'!A50:G736,4,FALSE)*\n\nVLOOKUP('Calculos 2'!A368,'Huella Completa'!A50:G736,4,FALSE)*\n\n_xlfn.IFS(VLOOKUP('Calculos 2'!A368,'Huella Completa'!A50:G736,5,FALSE)=\"normal\",comida,\nVLOOKUP('Calculos 2'!A368,'Huella Completa'!A50:G736,5,FALSE)=\"vegetariano\",comidavegetariana,\nVLOOKUP('Calculos 2'!A368,'Huella Completa'!A50:G736,5,FALSE)=\"productos locales\",productos_locales )","v":{"$error":"#N/A"}}]
["7.36",{"$f":"VLOOKUP('Calculos 2'!A369,'Huella Completa'!A51:G737,4,FALSE)*\n\nVLOOKUP('Calculos 2'!A369,'Huella Completa'!A51:G737,4,FALSE)*\n\n_xlfn.IFS(VLOOKUP('Calculos 2'!A369,'Huella Completa'!A51:G737,5,FALSE)=\"normal\",comida,\nVLOOKUP('Calculos 2'!A369,'Huella Completa'!A51:G737,5,FALSE)=\"vegetariano\",comidavegetariana,\nVLOOKUP('Calculos 2'!A369,'Huella Completa'!A51:G737,5,FALSE)=\"productos locales\",productos_locales )","v":{"$error":"#N/A"}}]
["7.37",{"$f":"VLOOKUP('Calculos 2'!A370,'Huella Completa'!A52:G738,4,FALSE)*\n\nVLOOKUP('Calculos 2'!A370,'Huella Completa'!A52:G738,4,FALSE)*\n\n_xlfn.IFS(VLOOKUP('Calculos 2'!A370,'Huella Completa'!A52:G738,5,FALSE)=\"normal\",comida,\nVLOOKUP('Calculos 2'!A370,'Huella Completa'!A52:G738,5,FALSE)=\"vegetariano\",comidavegetariana,\nVLOOKUP('Calculos 2'!A370,'Huella Completa'!A52:G738,5,FALSE)=\"productos locales\",productos_locales )","v":{"$error":"#N/A"}}]
["7.38",{"$f":"VLOOKUP('Calculos 2'!A371,'Huella Completa'!A53:G739,4,FALSE)*\n\nVLOOKUP('Calculos 2'!A371,'Huella Completa'!A53:G739,4,FALSE)*\n\n_xlfn.IFS(VLOOKUP('Calculos 2'!A371,'Huella Completa'!A53:G739,5,FALSE)=\"normal\",comida,\nVLOOKUP('Calculos 2'!A371,'Huella Completa'!A53:G739,5,FALSE)=\"vegetariano\",comidavegetariana,\nVLOOKUP('Calculos 2'!A371,'Huella Completa'!A53:G739,5,FALSE)=\"productos locales\",productos_locales )","v":{"$error":"#N/A"}}]
["7.39",{"$f":"VLOOKUP('Calculos 2'!A372,'Huella Completa'!A54:G740,4,FALSE)*\n\nVLOOKUP('Calculos 2'!A372,'Huella Completa'!A54:G740,4,FALSE)*\n\n_xlfn.IFS(VLOOKUP('Calculos 2'!A372,'Huella Completa'!A54:G740,5,FALSE)=\"normal\",comida,\nVLOOKUP('Calculos 2'!A372,'Huella Completa'!A54:G740,5,FALSE)=\"vegetariano\",comidavegetariana,\nVLOOKUP('Calculos 2'!A372,'Huella Completa'!A54:G740,5,FALSE)=\"productos locales\",productos_locales )","v":{"$error":"#N/A"}}]
["7.40",{"$f":"VLOOKUP('Calculos 2'!A373,'Huella Completa'!A55:G741,4,FALSE)*\n\nVLOOKUP('Calculos 2'!A373,'Huella Completa'!A55:G741,4,FALSE)*\n\n_xlfn.IFS(VLOOKUP('Calculos 2'!A373,'Huella Completa'!A55:G741,5,FALSE)=\"normal\",comida,\nVLOOKUP('Calculos 2'!A373,'Huella Completa'!A55:G741,5,FALSE)=\"vegetariano\",comidavegetariana,\nVLOOKUP('Calculos 2'!A373,'Huella Completa'!A55:G741,5,FALSE)=\"productos locales\",productos_locales )","v":{"$error":"#N/A"}}]
["7.41",{"$f":"VLOOKUP('Calculos 2'!A374,'Huella Completa'!A56:G742,4,FALSE)*\n\nVLOOKUP('Calculos 2'!A374,'Huella Completa'!A56:G742,4,FALSE)*\n\n_xlfn.IFS(VLOOKUP('Calculos 2'!A374,'Huella Completa'!A56:G742,5,FALSE)=\"normal\",comida,\nVLOOKUP('Calculos 2'!A374,'Huella Completa'!A56:G742,5,FALSE)=\"vegetariano\",comidavegetariana,\nVLOOKUP('Calculos 2'!A374,'Huella Completa'!A56:G742,5,FALSE)=\"productos locales\",productos_locales )","v":{"$error":"#N/A"}}]
["7.42",{"$f":"VLOOKUP('Calculos 2'!A375,'Huella Completa'!A57:G743,4,FALSE)*\n\nVLOOKUP('Calculos 2'!A375,'Huella Completa'!A57:G743,4,FALSE)*\n\n_xlfn.IFS(VLOOKUP('Calculos 2'!A375,'Huella Completa'!A57:G743,5,FALSE)=\"normal\",comida,\nVLOOKUP('Calculos 2'!A375,'Huella Completa'!A57:G743,5,FALSE)=\"vegetariano\",comidavegetariana,\nVLOOKUP('Calculos 2'!A375,'Huella Completa'!A57:G743,5,FALSE)=\"productos locales\",productos_locales )","v":{"$error":"#N/A"}}]
["7.43",{"$f":"VLOOKUP('Calculos 2'!A376,'Huella Completa'!A58:G744,4,FALSE)*\n\nVLOOKUP('Calculos 2'!A376,'Huella Completa'!A58:G744,4,FALSE)*\n\n_xlfn.IFS(VLOOKUP('Calculos 2'!A376,'Huella Completa'!A58:G744,5,FALSE)=\"normal\",comida,\nVLOOKUP('Calculos 2'!A376,'Huella Completa'!A58:G744,5,FALSE)=\"vegetariano\",comidavegetariana,\nVLOOKUP('Calculos 2'!A376,'Huella Completa'!A58:G744,5,FALSE)=\"productos locales\",productos_locales )","v":{"$error":"#N/A"}}]
["7.44",{"$f":"VLOOKUP('Calculos 2'!A377,'Huella Completa'!A59:G745,4,FALSE)*\n\nVLOOKUP('Calculos 2'!A377,'Huella Completa'!A59:G745,4,FALSE)*\n\n_xlfn.IFS(VLOOKUP('Calculos 2'!A377,'Huella Completa'!A59:G745,5,FALSE)=\"normal\",comida,\nVLOOKUP('Calculos 2'!A377,'Huella Completa'!A59:G745,5,FALSE)=\"vegetariano\",comidavegetariana,\nVLOOKUP('Calculos 2'!A377,'Huella Completa'!A59:G745,5,FALSE)=\"productos locales\",productos_locales )","v":{"$error":"#N/A"}}]
["7.45",{"$f":"VLOOKUP('Calculos 2'!A378,'Huella Completa'!A60:G746,4,FALSE)*\n\nVLOOKUP('Calculos 2'!A378,'Huella Completa'!A60:G746,4,FALSE)*\n\n_xlfn.IFS(VLOOKUP('Calculos 2'!A378,'Huella Completa'!A60:G746,5,FALSE)=\"normal\",comida,\nVLOOKUP('Calculos 2'!A378,'Huella Completa'!A60:G746,5,FALSE)=\"vegetariano\",comidavegetariana,\nVLOOKUP('Calculos 2'!A378,'Huella Completa'!A60:G746,5,FALSE)=\"productos locales\",productos_locales )","v":{"$error":"#N/A"}}]
["7.46",{"$f":"VLOOKUP('Calculos 2'!A379,'Huella Completa'!A61:G747,4,FALSE)*\n\nVLOOKUP('Calculos 2'!A379,'Huella Completa'!A61:G747,4,FALSE)*\n\n_xlfn.IFS(VLOOKUP('Calculos 2'!A379,'Huella Completa'!A61:G747,5,FALSE)=\"normal\",comida,\nVLOOKUP('Calculos 2'!A379,'Huella Completa'!A61:G747,5,FALSE)=\"vegetariano\",comidavegetariana,\nVLOOKUP('Calculos 2'!A379,'Huella Completa'!A61:G747,5,FALSE)=\"productos locales\",productos_locales )","v":{"$error":"#N/A"}}]
["7.47",{"$f":"VLOOKUP('Calculos 2'!A380,'Huella Completa'!A62:G748,4,FALSE)*\n\nVLOOKUP('Calculos 2'!A380,'Huella Completa'!A62:G748,4,FALSE)*\n\n_xlfn.IFS(VLOOKUP('Calculos 2'!A380,'Huella Completa'!A62:G748,5,FALSE)=\"normal\",comida,\nVLOOKUP('Calculos 2'!A380,'Huella Completa'!A62:G748,5,FALSE)=\"vegetariano\",comidavegetariana,\nVLOOKUP('Calculos 2'!A380,'Huella Completa'!A62:G748,5,FALSE)=\"productos locales\",productos_locales )","v":{"$error":"#N/A"}}]
["7.48",{"$f":"VLOOKUP('Calculos 2'!A381,'Huella Completa'!A63:G749,4,FALSE)*\n\nVLOOKUP('Calculos 2'!A381,'Huella Completa'!A63:G749,4,FALSE)*\n\n_xlfn.IFS(VLOOKUP('Calculos 2'!A381,'Huella Completa'!A63:G749,5,FALSE)=\"normal\",comida,\nVLOOKUP('Calculos 2'!A381,'Huella Completa'!A63:G749,5,FALSE)=\"vegetariano\",comidavegetariana,\nVLOOKUP('Calculos 2'!A381,'Huella Completa'!A63:G749,5,FALSE)=\"productos locales\",productos_locales )","v":{"$error":"#N/A"}}]
["7.49",{"$f":"VLOOKUP('Calculos 2'!A382,'Huella Completa'!A64:G750,4,FALSE)*\n\nVLOOKUP('Calculos 2'!A382,'Huella Completa'!A64:G750,4,FALSE)*\n\n_xlfn.IFS(VLOOKUP('Calculos 2'!A382,'Huella Completa'!A64:G750,5,FALSE)=\"normal\",comida,\nVLOOKUP('Calculos 2'!A382,'Huella Completa'!A64:G750,5,FALSE)=\"vegetariano\",comidavegetariana,\nVLOOKUP('Calculos 2'!A382,'Huella Completa'!A64:G750,5,FALSE)=\"productos locales\",productos_locales )","v":{"$error":"#N/A"}}]
["7.50",{"$f":"VLOOKUP('Calculos 2'!A383,'Huella Completa'!A65:G751,4,FALSE)*\n\nVLOOKUP('Calculos 2'!A383,'Huella Completa'!A65:G751,4,FALSE)*\n\n_xlfn.IFS(VLOOKUP('Calculos 2'!A383,'Huella Completa'!A65:G751,5,FALSE)=\"normal\",comida,\nVLOOKUP('Calculos 2'!A383,'Huella Completa'!A65:G751,5,FALSE)=\"vegetariano\",comidavegetariana,\nVLOOKUP('Calculos 2'!A383,'Huella Completa'!A65:G751,5,FALSE)=\"productos locales\",productos_locales )","v":{"$error":"#N/A"}}]
["7.51",{"$f":"VLOOKUP('Calculos 2'!A384,'Huella Completa'!A66:G752,4,FALSE)*\n\nVLOOKUP('Calculos 2'!A384,'Huella Completa'!A66:G752,4,FALSE)*\n\n_xlfn.IFS(VLOOKUP('Calculos 2'!A384,'Huella Completa'!A66:G752,5,FALSE)=\"normal\",comida,\nVLOOKUP('Calculos 2'!A384,'Huella Completa'!A66:G752,5,FALSE)=\"vegetariano\",comidavegetariana,\nVLOOKUP('Calculos 2'!A384,'Huella Completa'!A66:G752,5,FALSE)=\"productos locales\",productos_locales )","v":{"$error":"#N/A"}}]
["7.52",{"$f":"VLOOKUP('Calculos 2'!A385,'Huella Completa'!A67:G753,4,FALSE)*\n\nVLOOKUP('Calculos 2'!A385,'Huella Completa'!A67:G753,4,FALSE)*\n\n_xlfn.IFS(VLOOKUP('Calculos 2'!A385,'Huella Completa'!A67:G753,5,FALSE)=\"normal\",comida,\nVLOOKUP('Calculos 2'!A385,'Huella Completa'!A67:G753,5,FALSE)=\"vegetariano\",comidavegetariana,\nVLOOKUP('Calculos 2'!A385,'Huella Completa'!A67:G753,5,FALSE)=\"productos locales\",productos_locales )","v":{"$error":"#N/A"}}]
["7.53",{"$f":"VLOOKUP('Calculos 2'!A386,'Huella Completa'!A68:G754,4,FALSE)*\n\nVLOOKUP('Calculos 2'!A386,'Huella Completa'!A68:G754,4,FALSE)*\n\n_xlfn.IFS(VLOOKUP('Calculos 2'!A386,'Huella Completa'!A68:G754,5,FALSE)=\"normal\",comida,\nVLOOKUP('Calculos 2'!A386,'Huella Completa'!A68:G754,5,FALSE)=\"vegetariano\",comidavegetariana,\nVLOOKUP('Calculos 2'!A386,'Huella Completa'!A68:G754,5,FALSE)=\"productos locales\",productos_locales )","v":{"$error":"#N/A"}}]
["7.54",{"$f":"VLOOKUP('Calculos 2'!A387,'Huella Completa'!A69:G755,4,FALSE)*\n\nVLOOKUP('Calculos 2'!A387,'Huella Completa'!A69:G755,4,FALSE)*\n\n_xlfn.IFS(VLOOKUP('Calculos 2'!A387,'Huella Completa'!A69:G755,5,FALSE)=\"normal\",comida,\nVLOOKUP('Calculos 2'!A387,'Huella Completa'!A69:G755,5,FALSE)=\"vegetariano\",comidavegetariana,\nVLOOKUP('Calculos 2'!A387,'Huella Completa'!A69:G755,5,FALSE)=\"productos locales\",productos_locales )","v":{"$error":"#N/A"}}]
["7.55",{"$f":"VLOOKUP('Calculos 2'!A388,'Huella Completa'!A70:G756,4,FALSE)*\n\nVLOOKUP('Calculos 2'!A388,'Huella Completa'!A70:G756,4,FALSE)*\n\n_xlfn.IFS(VLOOKUP('Calculos 2'!A388,'Huella Completa'!A70:G756,5,FALSE)=\"normal\",comida,\nVLOOKUP('Calculos 2'!A388,'Huella Completa'!A70:G756,5,FALSE)=\"vegetariano\",comidavegetariana,\nVLOOKUP('Calculos 2'!A388,'Huella Completa'!A70:G756,5,FALSE)=\"productos locales\",productos_locales )","v":{"$error":"#N/A"}}]
["7.56",{"$f":"VLOOKUP('Calculos 2'!A389,'Huella Completa'!A71:G757,4,FALSE)*\n\nVLOOKUP('Calculos 2'!A389,'Huella Completa'!A71:G757,4,FALSE)*\n\n_xlfn.IFS(VLOOKUP('Calculos 2'!A389,'Huella Completa'!A71:G757,5,FALSE)=\"normal\",comida,\nVLOOKUP('Calculos 2'!A389,'Huella Completa'!A71:G757,5,FALSE)=\"vegetariano\",comidavegetariana,\nVLOOKUP('Calculos 2'!A389,'Huella Completa'!A71:G757,5,FALSE)=\"productos locales\",productos_locales )","v":{"$error":"#N/A"}}]
["7.57",{"$f":"VLOOKUP('Calculos 2'!A390,'Huella Completa'!A72:G758,4,FALSE)*\n\nVLOOKUP('Calculos 2'!A390,'Huella Completa'!A72:G758,4,FALSE)*\n\n_xlfn.IFS(VLOOKUP('Calculos 2'!A390,'Huella Completa'!A72:G758,5,FALSE)=\"normal\",comida,\nVLOOKUP('Calculos 2'!A390,'Huella Completa'!A72:G758,5,FALSE)=\"vegetariano\",comidavegetariana,\nVLOOKUP('Calculos 2'!A390,'Huella Completa'!A72:G758,5,FALSE)=\"productos locales\",productos_locales )","v":{"$error":"#N/A"}}]
["7.58",{"$f":"VLOOKUP('Calculos 2'!A391,'Huella Completa'!A73:G759,4,FALSE)*\n\nVLOOKUP('Calculos 2'!A391,'Huella Completa'!A73:G759,4,FALSE)*\n\n_xlfn.IFS(VLOOKUP('Calculos 2'!A391,'Huella Completa'!A73:G759,5,FALSE)=\"normal\",comida,\nVLOOKUP('Calculos 2'!A391,'Huella Completa'!A73:G759,5,FALSE)=\"vegetariano\",comidavegetariana,\nVLOOKUP('Calculos 2'!A391,'Huella Completa'!A73:G759,5,FALSE)=\"productos locales\",productos_locales )","v":{"$error":"#N/A"}}]
["7.59",{"$f":"VLOOKUP('Calculos 2'!A392,'Huella Completa'!A74:G760,4,FALSE)*\n\nVLOOKUP('Calculos 2'!A392,'Huella Completa'!A74:G760,4,FALSE)*\n\n_xlfn.IFS(VLOOKUP('Calculos 2'!A392,'Huella Completa'!A74:G760,5,FALSE)=\"normal\",comida,\nVLOOKUP('Calculos 2'!A392,'Huella Completa'!A74:G760,5,FALSE)=\"vegetariano\",comidavegetariana,\nVLOOKUP('Calculos 2'!A392,'Huella Completa'!A74:G760,5,FALSE)=\"productos locales\",productos_locales )","v":{"$error":"#N/A"}}]
["7.60",{"$f":"VLOOKUP('Calculos 2'!A393,'Huella Completa'!A75:G761,4,FALSE)*\n\nVLOOKUP('Calculos 2'!A393,'Huella Completa'!A75:G761,4,FALSE)*\n\n_xlfn.IFS(VLOOKUP('Calculos 2'!A393,'Huella Completa'!A75:G761,5,FALSE)=\"normal\",comida,\nVLOOKUP('Calculos 2'!A393,'Huella Completa'!A75:G761,5,FALSE)=\"vegetariano\",comidavegetariana,\nVLOOKUP('Calculos 2'!A393,'Huella Completa'!A75:G761,5,FALSE)=\"productos locales\",productos_locales )","v":{"$error":"#N/A"}}]
["7.61",{"$f":"VLOOKUP('Calculos 2'!A394,'Huella Completa'!A76:G762,4,FALSE)*\n\nVLOOKUP('Calculos 2'!A394,'Huella Completa'!A76:G762,4,FALSE)*\n\n_xlfn.IFS(VLOOKUP('Calculos 2'!A394,'Huella Completa'!A76:G762,5,FALSE)=\"normal\",comida,\nVLOOKUP('Calculos 2'!A394,'Huella Completa'!A76:G762,5,FALSE)=\"vegetariano\",comidavegetariana,\nVLOOKUP('Calculos 2'!A394,'Huella Completa'!A76:G762,5,FALSE)=\"productos locales\",productos_locales )","v":{"$error":"#N/A"}}]
["7.62",{"$f":"VLOOKUP('Calculos 2'!A395,'Huella Completa'!A77:G763,4,FALSE)*\n\nVLOOKUP('Calculos 2'!A395,'Huella Completa'!A77:G763,4,FALSE)*\n\n_xlfn.IFS(VLOOKUP('Calculos 2'!A395,'Huella Completa'!A77:G763,5,FALSE)=\"normal\",comida,\nVLOOKUP('Calculos 2'!A395,'Huella Completa'!A77:G763,5,FALSE)=\"vegetariano\",comidavegetariana,\nVLOOKUP('Calculos 2'!A395,'Huella Completa'!A77:G763,5,FALSE)=\"productos locales\",productos_locales )","v":{"$error":"#N/A"}}]
["7.63",{"$f":"VLOOKUP('Calculos 2'!A396,'Huella Completa'!A78:G764,4,FALSE)*\n\nVLOOKUP('Calculos 2'!A396,'Huella Completa'!A78:G764,4,FALSE)*\n\n_xlfn.IFS(VLOOKUP('Calculos 2'!A396,'Huella Completa'!A78:G764,5,FALSE)=\"normal\",comida,\nVLOOKUP('Calculos 2'!A396,'Huella Completa'!A78:G764,5,FALSE)=\"vegetariano\",comidavegetariana,\nVLOOKUP('Calculos 2'!A396,'Huella Completa'!A78:G764,5,FALSE)=\"productos locales\",productos_locales )","v":{"$error":"#N/A"}}]
["7.64",{"$f":"VLOOKUP('Calculos 2'!A397,'Huella Completa'!A79:G765,4,FALSE)*\n\nVLOOKUP('Calculos 2'!A397,'Huella Completa'!A79:G765,4,FALSE)*\n\n_xlfn.IFS(VLOOKUP('Calculos 2'!A397,'Huella Completa'!A79:G765,5,FALSE)=\"normal\",comida,\nVLOOKUP('Calculos 2'!A397,'Huella Completa'!A79:G765,5,FALSE)=\"vegetariano\",comidavegetariana,\nVLOOKUP('Calculos 2'!A397,'Huella Completa'!A79:G765,5,FALSE)=\"productos locales\",productos_locales )","v":{"$error":"#N/A"}}]
["7.65",{"$f":"VLOOKUP('Calculos 2'!A398,'Huella Completa'!A80:G766,4,FALSE)*\n\nVLOOKUP('Calculos 2'!A398,'Huella Completa'!A80:G766,4,FALSE)*\n\n_xlfn.IFS(VLOOKUP('Calculos 2'!A398,'Huella Completa'!A80:G766,5,FALSE)=\"normal\",comida,\nVLOOKUP('Calculos 2'!A398,'Huella Completa'!A80:G766,5,FALSE)=\"vegetariano\",comidavegetariana,\nVLOOKUP('Calculos 2'!A398,'Huella Completa'!A80:G766,5,FALSE)=\"productos locales\",productos_locales )","v":{"$error":"#N/A"}}]
["7.66",{"$f":"VLOOKUP('Calculos 2'!A399,'Huella Completa'!A81:G767,4,FALSE)*\n\nVLOOKUP('Calculos 2'!A399,'Huella Completa'!A81:G767,4,FALSE)*\n\n_xlfn.IFS(VLOOKUP('Calculos 2'!A399,'Huella Completa'!A81:G767,5,FALSE)=\"normal\",comida,\nVLOOKUP('Calculos 2'!A399,'Huella Completa'!A81:G767,5,FALSE)=\"vegetariano\",comidavegetariana,\nVLOOKUP('Calculos 2'!A399,'Huella Completa'!A81:G767,5,FALSE)=\"productos locales\",productos_locales )","v":{"$error":"#N/A"}}]
["7.67",{"$f":"VLOOKUP('Calculos 2'!A400,'Huella Completa'!A82:G768,4,FALSE)*\n\nVLOOKUP('Calculos 2'!A400,'Huella Completa'!A82:G768,4,FALSE)*\n\n_xlfn.IFS(VLOOKUP('Calculos 2'!A400,'Huella Completa'!A82:G768,5,FALSE)=\"normal\",comida,\nVLOOKUP('Calculos 2'!A400,'Huella Completa'!A82:G768,5,FALSE)=\"vegetariano\",comidavegetariana,\nVLOOKUP('Calculos 2'!A400,'Huella Completa'!A82:G768,5,FALSE)=\"productos locales\",productos_locales )","v":{"$error":"#N/A"}}]
["7.68",{"$f":"VLOOKUP('Calculos 2'!A401,'Huella Completa'!A83:G769,4,FALSE)*\n\nVLOOKUP('Calculos 2'!A401,'Huella Completa'!A83:G769,4,FALSE)*\n\n_xlfn.IFS(VLOOKUP('Calculos 2'!A401,'Huella Completa'!A83:G769,5,FALSE)=\"normal\",comida,\nVLOOKUP('Calculos 2'!A401,'Huella Completa'!A83:G769,5,FALSE)=\"vegetariano\",comidavegetariana,\nVLOOKUP('Calculos 2'!A401,'Huella Completa'!A83:G769,5,FALSE)=\"productos locales\",productos_locales )","v":{"$error":"#N/A"}}]
["7.69",{"$f":"VLOOKUP('Calculos 2'!A402,'Huella Completa'!A84:G770,4,FALSE)*\n\nVLOOKUP('Calculos 2'!A402,'Huella Completa'!A84:G770,4,FALSE)*\n\n_xlfn.IFS(VLOOKUP('Calculos 2'!A402,'Huella Completa'!A84:G770,5,FALSE)=\"normal\",comida,\nVLOOKUP('Calculos 2'!A402,'Huella Completa'!A84:G770,5,FALSE)=\"vegetariano\",comidavegetariana,\nVLOOKUP('Calculos 2'!A402,'Huella Completa'!A84:G770,5,FALSE)=\"productos locales\",productos_locales )","v":{"$error":"#N/A"}}]
["7.70",{"$f":"VLOOKUP('Calculos 2'!A403,'Huella Completa'!A85:G771,4,FALSE)*\n\nVLOOKUP('Calculos 2'!A403,'Huella Completa'!A85:G771,4,FALSE)*\n\n_xlfn.IFS(VLOOKUP('Calculos 2'!A403,'Huella Completa'!A85:G771,5,FALSE)=\"normal\",comida,\nVLOOKUP('Calculos 2'!A403,'Huella Completa'!A85:G771,5,FALSE)=\"vegetariano\",comidavegetariana,\nVLOOKUP('Calculos 2'!A403,'Huella Completa'!A85:G771,5,FALSE)=\"productos locales\",productos_locales )","v":{"$error":"#N/A"}}]
["7.71",{"$f":"VLOOKUP('Calculos 2'!A404,'Huella Completa'!A86:G772,4,FALSE)*\n\nVLOOKUP('Calculos 2'!A404,'Huella Completa'!A86:G772,4,FALSE)*\n\n_xlfn.IFS(VLOOKUP('Calculos 2'!A404,'Huella Completa'!A86:G772,5,FALSE)=\"normal\",comida,\nVLOOKUP('Calculos 2'!A404,'Huella Completa'!A86:G772,5,FALSE)=\"vegetariano\",comidavegetariana,\nVLOOKUP('Calculos 2'!A404,'Huella Completa'!A86:G772,5,FALSE)=\"productos locales\",productos_locales )","v":{"$error":"#N/A"}}]
["7.72",{"$f":"VLOOKUP('Calculos 2'!A405,'Huella Completa'!A87:G773,4,FALSE)*\n\nVLOOKUP('Calculos 2'!A405,'Huella Completa'!A87:G773,4,FALSE)*\n\n_xlfn.IFS(VLOOKUP('Calculos 2'!A405,'Huella Completa'!A87:G773,5,FALSE)=\"normal\",comida,\nVLOOKUP('Calculos 2'!A405,'Huella Completa'!A87:G773,5,FALSE)=\"vegetariano\",comidavegetariana,\nVLOOKUP('Calculos 2'!A405,'Huella Completa'!A87:G773,5,FALSE)=\"productos locales\",productos_locales )","v":{"$error":"#N/A"}}]
["7.73",{"$f":"VLOOKUP('Calculos 2'!A406,'Huella Completa'!A88:G774,4,FALSE)*\n\nVLOOKUP('Calculos 2'!A406,'Huella Completa'!A88:G774,4,FALSE)*\n\n_xlfn.IFS(VLOOKUP('Calculos 2'!A406,'Huella Completa'!A88:G774,5,FALSE)=\"normal\",comida,\nVLOOKUP('Calculos 2'!A406,'Huella Completa'!A88:G774,5,FALSE)=\"vegetariano\",comidavegetariana,\nVLOOKUP('Calculos 2'!A406,'Huella Completa'!A88:G774,5,FALSE)=\"productos locales\",productos_locales )","v":{"$error":"#N/A"}}]
["7.74",{"$f":"VLOOKUP('Calculos 2'!A407,'Huella Completa'!A89:G775,4,FALSE)*\n\nVLOOKUP('Calculos 2'!A407,'Huella Completa'!A89:G775,4,FALSE)*\n\n_xlfn.IFS(VLOOKUP('Calculos 2'!A407,'Huella Completa'!A89:G775,5,FALSE)=\"normal\",comida,\nVLOOKUP('Calculos 2'!A407,'Huella Completa'!A89:G775,5,FALSE)=\"vegetariano\",comidavegetariana,\nVLOOKUP('Calculos 2'!A407,'Huella Completa'!A89:G775,5,FALSE)=\"productos locales\",productos_locales )","v":{"$error":"#N/A"}}]
["7.75",{"$f":"VLOOKUP('Calculos 2'!A408,'Huella Completa'!A90:G776,4,FALSE)*\n\nVLOOKUP('Calculos 2'!A408,'Huella Completa'!A90:G776,4,FALSE)*\n\n_xlfn.IFS(VLOOKUP('Calculos 2'!A408,'Huella Completa'!A90:G776,5,FALSE)=\"normal\",comida,\nVLOOKUP('Calculos 2'!A408,'Huella Completa'!A90:G776,5,FALSE)=\"vegetariano\",comidavegetariana,\nVLOOKUP('Calculos 2'!A408,'Huella Completa'!A90:G776,5,FALSE)=\"productos locales\",productos_locales )","v":{"$error":"#N/A"}}]
["7.76",{"$f":"VLOOKUP('Calculos 2'!A409,'Huella Completa'!A91:G777,4,FALSE)*\n\nVLOOKUP('Calculos 2'!A409,'Huella Completa'!A91:G777,4,FALSE)*\n\n_xlfn.IFS(VLOOKUP('Calculos 2'!A409,'Huella Completa'!A91:G777,5,FALSE)=\"normal\",comida,\nVLOOKUP('Calculos 2'!A409,'Huella Completa'!A91:G777,5,FALSE)=\"vegetariano\",comidavegetariana,\nVLOOKUP('Calculos 2'!A409,'Huella Completa'!A91:G777,5,FALSE)=\"productos locales\",productos_locales )","v":{"$error":"#N/A"}}]
["7.77",{"$f":"VLOOKUP('Calculos 2'!A410,'Huella Completa'!A92:G778,4,FALSE)*\n\nVLOOKUP('Calculos 2'!A410,'Huella Completa'!A92:G778,4,FALSE)*\n\n_xlfn.IFS(VLOOKUP('Calculos 2'!A410,'Huella Completa'!A92:G778,5,FALSE)=\"normal\",comida,\nVLOOKUP('Calculos 2'!A410,'Huella Completa'!A92:G778,5,FALSE)=\"vegetariano\",comidavegetariana,\nVLOOKUP('Calculos 2'!A410,'Huella Completa'!A92:G778,5,FALSE)=\"productos locales\",productos_locales )","v":{"$error":"#N/A"}}]
["7.78",{"$f":"VLOOKUP('Calculos 2'!A411,'Huella Completa'!A93:G779,4,FALSE)*\n\nVLOOKUP('Calculos 2'!A411,'Huella Completa'!A93:G779,4,FALSE)*\n\n_xlfn.IFS(VLOOKUP('Calculos 2'!A411,'Huella Completa'!A93:G779,5,FALSE)=\"normal\",comida,\nVLOOKUP('Calculos 2'!A411,'Huella Completa'!A93:G779,5,FALSE)=\"vegetariano\",comidavegetariana,\nVLOOKUP('Calculos 2'!A411,'Huella Completa'!A93:G779,5,FALSE)=\"productos locales\",productos_locales )","v":{"$error":"#N/A"}}]
["7.79",{"$f":"VLOOKUP('Calculos 2'!A412,'Huella Completa'!A94:G780,4,FALSE)*\n\nVLOOKUP('Calculos 2'!A412,'Huella Completa'!A94:G780,4,FALSE)*\n\n_xlfn.IFS(VLOOKUP('Calculos 2'!A412,'Huella Completa'!A94:G780,5,FALSE)=\"normal\",comida,\nVLOOKUP('Calculos 2'!A412,'Huella Completa'!A94:G780,5,FALSE)=\"vegetariano\",comidavegetariana,\nVLOOKUP('Calculos 2'!A412,'Huella Completa'!A94:G780,5,FALSE)=\"productos locales\",productos_locales )","v":{"$error":"#N/A"}}]
["7.80",{"$f":"VLOOKUP('Calculos 2'!A413,'Huella Completa'!A95:G781,4,FALSE)*\n\nVLOOKUP('Calculos 2'!A413,'Huella Completa'!A95:G781,4,FALSE)*\n\n_xlfn.IFS(VLOOKUP('Calculos 2'!A413,'Huella Completa'!A95:G781,5,FALSE)=\"normal\",comida,\nVLOOKUP('Calculos 2'!A413,'Huella Completa'!A95:G781,5,FALSE)=\"vegetariano\",comidavegetariana,\nVLOOKUP('Calculos 2'!A413,'Huella Completa'!A95:G781,5,FALSE)=\"productos locales\",productos_locales )","v":{"$error":"#N/A"}}]
["7.81",{"$f":"VLOOKUP('Calculos 2'!A414,'Huella Completa'!A96:G782,4,FALSE)*\n\nVLOOKUP('Calculos 2'!A414,'Huella Completa'!A96:G782,4,FALSE)*\n\n_xlfn.IFS(VLOOKUP('Calculos 2'!A414,'Huella Completa'!A96:G782,5,FALSE)=\"normal\",comida,\nVLOOKUP('Calculos 2'!A414,'Huella Completa'!A96:G782,5,FALSE)=\"vegetariano\",comidavegetariana,\nVLOOKUP('Calculos 2'!A414,'Huella Completa'!A96:G782,5,FALSE)=\"productos locales\",productos_locales )","v":{"$error":"#N/A"}}]
["7.82",{"$f":"VLOOKUP('Calculos 2'!A415,'Huella Completa'!A97:G783,4,FALSE)*\n\nVLOOKUP('Calculos 2'!A415,'Huella Completa'!A97:G783,4,FALSE)*\n\n_xlfn.IFS(VLOOKUP('Calculos 2'!A415,'Huella Completa'!A97:G783,5,FALSE)=\"normal\",comida,\nVLOOKUP('Calculos 2'!A415,'Huella Completa'!A97:G783,5,FALSE)=\"vegetariano\",comidavegetariana,\nVLOOKUP('Calculos 2'!A415,'Huella Completa'!A97:G783,5,FALSE)=\"productos locales\",productos_locales )","v":{"$error":"#N/A"}}]
["7.83",{"$f":"VLOOKUP('Calculos 2'!A416,'Huella Completa'!A98:G784,4,FALSE)*\n\nVLOOKUP('Calculos 2'!A416,'Huella Completa'!A98:G784,4,FALSE)*\n\n_xlfn.IFS(VLOOKUP('Calculos 2'!A416,'Huella Completa'!A98:G784,5,FALSE)=\"normal\",comida,\nVLOOKUP('Calculos 2'!A416,'Huella Completa'!A98:G784,5,FALSE)=\"vegetariano\",comidavegetariana,\nVLOOKUP('Calculos 2'!A416,'Huella Completa'!A98:G784,5,FALSE)=\"productos locales\",productos_locales )","v":{"$error":"#N/A"}}]
["7.84",{"$f":"VLOOKUP('Calculos 2'!A417,'Huella Completa'!A99:G785,4,FALSE)*\n\nVLOOKUP('Calculos 2'!A417,'Huella Completa'!A99:G785,4,FALSE)*\n\n_xlfn.IFS(VLOOKUP('Calculos 2'!A417,'Huella Completa'!A99:G785,5,FALSE)=\"normal\",comida,\nVLOOKUP('Calculos 2'!A417,'Huella Completa'!A99:G785,5,FALSE)=\"vegetariano\",comidavegetariana,\nVLOOKUP('Calculos 2'!A417,'Huella Completa'!A99:G785,5,FALSE)=\"productos locales\",productos_locales )","v":{"$error":"#N/A"}}]
["7.85",{"$f":"VLOOKUP('Calculos 2'!A418,'Huella Completa'!A100:G786,4,FALSE)*\n\nVLOOKUP('Calculos 2'!A418,'Huella Completa'!A100:G786,4,FALSE)*\n\n_xlfn.IFS(VLOOKUP('Calculos 2'!A418,'Huella Completa'!A100:G786,5,FALSE)=\"normal\",comida,\nVLOOKUP('Calculos 2'!A418,'Huella Completa'!A100:G786,5,FALSE)=\"vegetariano\",comidavegetariana,\nVLOOKUP('Calculos 2'!A418,'Huella Completa'!A100:G786,5,FALSE)=\"productos locales\",productos_locales )","v":{"$error":"#N/A"}}]
["7.86",{"$f":"VLOOKUP('Calculos 2'!A419,'Huella Completa'!A101:G787,4,FALSE)*\n\nVLOOKUP('Calculos 2'!A419,'Huella Completa'!A101:G787,4,FALSE)*\n\n_xlfn.IFS(VLOOKUP('Calculos 2'!A419,'Huella Completa'!A101:G787,5,FALSE)=\"normal\",comida,\nVLOOKUP('Calculos 2'!A419,'Huella Completa'!A101:G787,5,FALSE)=\"vegetariano\",comidavegetariana,\nVLOOKUP('Calculos 2'!A419,'Huella Completa'!A101:G787,5,FALSE)=\"productos locales\",productos_locales )","v":{"$error":"#N/A"}}]
["7.87",{"$f":"VLOOKUP('Calculos 2'!A420,'Huella Completa'!A102:G788,4,FALSE)*\n\nVLOOKUP('Calculos 2'!A420,'Huella Completa'!A102:G788,4,FALSE)*\n\n_xlfn.IFS(VLOOKUP('Calculos 2'!A420,'Huella Completa'!A102:G788,5,FALSE)=\"normal\",comida,\nVLOOKUP('Calculos 2'!A420,'Huella Completa'!A102:G788,5,FALSE)=\"vegetariano\",comidavegetariana,\nVLOOKUP('Calculos 2'!A420,'Huella Completa'!A102:G788,5,FALSE)=\"productos locales\",productos_locales )","v":{"$error":"#N/A"}}]
["7.88",{"$f":"VLOOKUP('Calculos 2'!A421,'Huella Completa'!A103:G789,4,FALSE)*\n\nVLOOKUP('Calculos 2'!A421,'Huella Completa'!A103:G789,4,FALSE)*\n\n_xlfn.IFS(VLOOKUP('Calculos 2'!A421,'Huella Completa'!A103:G789,5,FALSE)=\"normal\",comida,\nVLOOKUP('Calculos 2'!A421,'Huella Completa'!A103:G789,5,FALSE)=\"vegetariano\",comidavegetariana,\nVLOOKUP('Calculos 2'!A421,'Huella Completa'!A103:G789,5,FALSE)=\"productos locales\",productos_locales )","v":{"$error":"#N/A"}}]
["7.89",{"$f":"VLOOKUP('Calculos 2'!A422,'Huella Completa'!A104:G790,4,FALSE)*\n\nVLOOKUP('Calculos 2'!A422,'Huella Completa'!A104:G790,4,FALSE)*\n\n_xlfn.IFS(VLOOKUP('Calculos 2'!A422,'Huella Completa'!A104:G790,5,FALSE)=\"normal\",comida,\nVLOOKUP('Calculos 2'!A422,'Huella Completa'!A104:G790,5,FALSE)=\"vegetariano\",comidavegetariana,\nVLOOKUP('Calculos 2'!A422,'Huella Completa'!A104:G790,5,FALSE)=\"productos locales\",productos_locales )","v":{"$error":"#N/A"}}]
["7.90",{"$f":"VLOOKUP('Calculos 2'!A423,'Huella Completa'!A105:G791,4,FALSE)*\n\nVLOOKUP('Calculos 2'!A423,'Huella Completa'!A105:G791,4,FALSE)*\n\n_xlfn.IFS(VLOOKUP('Calculos 2'!A423,'Huella Completa'!A105:G791,5,FALSE)=\"normal\",comida,\nVLOOKUP('Calculos 2'!A423,'Huella Completa'!A105:G791,5,FALSE)=\"vegetariano\",comidavegetariana,\nVLOOKUP('Calculos 2'!A423,'Huella Completa'!A105:G791,5,FALSE)=\"productos locales\",productos_locales )","v":{"$error":"#N/A"}}]
["7.91",{"$f":"VLOOKUP('Calculos 2'!A424,'Huella Completa'!A106:G792,4,FALSE)*\n\nVLOOKUP('Calculos 2'!A424,'Huella Completa'!A106:G792,4,FALSE)*\n\n_xlfn.IFS(VLOOKUP('Calculos 2'!A424,'Huella Completa'!A106:G792,5,FALSE)=\"normal\",comida,\nVLOOKUP('Calculos 2'!A424,'Huella Completa'!A106:G792,5,FALSE)=\"vegetariano\",comidavegetariana,\nVLOOKUP('Calculos 2'!A424,'Huella Completa'!A106:G792,5,FALSE)=\"productos locales\",productos_locales )","v":{"$error":"#N/A"}}]
["7.92",{"$f":"VLOOKUP('Calculos 2'!A425,'Huella Completa'!A107:G793,4,FALSE)*\n\nVLOOKUP('Calculos 2'!A425,'Huella Completa'!A107:G793,4,FALSE)*\n\n_xlfn.IFS(VLOOKUP('Calculos 2'!A425,'Huella Completa'!A107:G793,5,FALSE)=\"normal\",comida,\nVLOOKUP('Calculos 2'!A425,'Huella Completa'!A107:G793,5,FALSE)=\"vegetariano\",comidavegetariana,\nVLOOKUP('Calculos 2'!A425,'Huella Completa'!A107:G793,5,FALSE)=\"productos locales\",productos_locales )","v":{"$error":"#N/A"}}]
["7.93",{"$f":"VLOOKUP('Calculos 2'!A426,'Huella Completa'!A108:G794,4,FALSE)*\n\nVLOOKUP('Calculos 2'!A426,'Huella Completa'!A108:G794,4,FALSE)*\n\n_xlfn.IFS(VLOOKUP('Calculos 2'!A426,'Huella Completa'!A108:G794,5,FALSE)=\"normal\",comida,\nVLOOKUP('Calculos 2'!A426,'Huella Completa'!A108:G794,5,FALSE)=\"vegetariano\",comidavegetariana,\nVLOOKUP('Calculos 2'!A426,'Huella Completa'!A108:G794,5,FALSE)=\"productos locales\",productos_locales )","v":{"$error":"#N/A"}}]
["7.94",{"$f":"VLOOKUP('Calculos 2'!A427,'Huella Completa'!A109:G795,4,FALSE)*\n\nVLOOKUP('Calculos 2'!A427,'Huella Completa'!A109:G795,4,FALSE)*\n\n_xlfn.IFS(VLOOKUP('Calculos 2'!A427,'Huella Completa'!A109:G795,5,FALSE)=\"normal\",comida,\nVLOOKUP('Calculos 2'!A427,'Huella Completa'!A109:G795,5,FALSE)=\"vegetariano\",comidavegetariana,\nVLOOKUP('Calculos 2'!A427,'Huella Completa'!A109:G795,5,FALSE)=\"productos locales\",productos_locales )","v":{"$error":"#N/A"}}]
["7.95",{"$f":"VLOOKUP('Calculos 2'!A428,'Huella Completa'!A110:G796,4,FALSE)*\n\nVLOOKUP('Calculos 2'!A428,'Huella Completa'!A110:G796,4,FALSE)*\n\n_xlfn.IFS(VLOOKUP('Calculos 2'!A428,'Huella Completa'!A110:G796,5,FALSE)=\"normal\",comida,\nVLOOKUP('Calculos 2'!A428,'Huella Completa'!A110:G796,5,FALSE)=\"vegetariano\",comidavegetariana,\nVLOOKUP('Calculos 2'!A428,'Huella Completa'!A110:G796,5,FALSE)=\"productos locales\",productos_locales )","v":{"$error":"#N/A"}}]
["7.96",{"$f":"VLOOKUP('Calculos 2'!A429,'Huella Completa'!A111:G797,4,FALSE)*\n\nVLOOKUP('Calculos 2'!A429,'Huella Completa'!A111:G797,4,FALSE)*\n\n_xlfn.IFS(VLOOKUP('Calculos 2'!A429,'Huella Completa'!A111:G797,5,FALSE)=\"normal\",comida,\nVLOOKUP('Calculos 2'!A429,'Huella Completa'!A111:G797,5,FALSE)=\"vegetariano\",comidavegetariana,\nVLOOKUP('Calculos 2'!A429,'Huella Completa'!A111:G797,5,FALSE)=\"productos locales\",productos_locales )","v":{"$error":"#N/A"}}]
["7.97",{"$f":"VLOOKUP('Calculos 2'!A430,'Huella Completa'!A112:G798,4,FALSE)*\n\nVLOOKUP('Calculos 2'!A430,'Huella Completa'!A112:G798,4,FALSE)*\n\n_xlfn.IFS(VLOOKUP('Calculos 2'!A430,'Huella Completa'!A112:G798,5,FALSE)=\"normal\",comida,\nVLOOKUP('Calculos 2'!A430,'Huella Completa'!A112:G798,5,FALSE)=\"vegetariano\",comidavegetariana,\nVLOOKUP('Calculos 2'!A430,'Huella Completa'!A112:G798,5,FALSE)=\"productos locales\",productos_locales )","v":{"$error":"#N/A"}}]
["7.98",{"$f":"VLOOKUP('Calculos 2'!A431,'Huella Completa'!A113:G799,4,FALSE)*\n\nVLOOKUP('Calculos 2'!A431,'Huella Completa'!A113:G799,4,FALSE)*\n\n_xlfn.IFS(VLOOKUP('Calculos 2'!A431,'Huella Completa'!A113:G799,5,FALSE)=\"normal\",comida,\nVLOOKUP('Calculos 2'!A431,'Huella Completa'!A113:G799,5,FALSE)=\"vegetariano\",comidavegetariana,\nVLOOKUP('Calculos 2'!A431,'Huella Completa'!A113:G799,5,FALSE)=\"productos locales\",productos_locales )","v":{"$error":"#N/A"}}]
["7.99",{"$f":"VLOOKUP('Calculos 2'!A432,'Huella Completa'!A114:G800,4,FALSE)*\n\nVLOOKUP('Calculos 2'!A432,'Huella Completa'!A114:G800,4,FALSE)*\n\n_xlfn.IFS(VLOOKUP('Calculos 2'!A432,'Huella Completa'!A114:G800,5,FALSE)=\"normal\",comida,\nVLOOKUP('Calculos 2'!A432,'Huella Completa'!A114:G800,5,FALSE)=\"vegetariano\",comidavegetariana,\nVLOOKUP('Calculos 2'!A432,'Huella Completa'!A114:G800,5,FALSE)=\"productos locales\",productos_locales )","v":{"$error":"#N/A"}}]
["7.100",{"$f":"VLOOKUP('Calculos 2'!A433,'Huella Completa'!A115:G801,4,FALSE)*\n\nVLOOKUP('Calculos 2'!A433,'Huella Completa'!A115:G801,4,FALSE)*\n\n_xlfn.IFS(VLOOKUP('Calculos 2'!A433,'Huella Completa'!A115:G801,5,FALSE)=\"normal\",comida,\nVLOOKUP('Calculos 2'!A433,'Huella Completa'!A115:G801,5,FALSE)=\"vegetariano\",comidavegetariana,\nVLOOKUP('Calculos 2'!A433,'Huella Completa'!A115:G801,5,FALSE)=\"productos locales\",productos_locales )","v":{"$error":"#N/A"}}]
["7.0",null,{"$f":"_xlfn.AGGREGATE(9,6,B334:B433)","v":0}]
[]
["8.1",{"$f":"VLOOKUP('Calculos 2'!A436,'Huella Completa'!A16:G702,3,FALSE)*(IF(VLOOKUP('Calculos 2'!A436,'Huella Completa'!A16:G702,4,FALSE)=\"Gasolina\",Gasolina,IF(VLOOKUP('Calculos 2'!A436,'Huella Completa'!A16:G702,4,FALSE)=\"Diesel\",Diesel,IF(VLOOKUP('Calculos 2'!A436,'Huella Completa'!A16:G702,4,FALSE)=\"GLP\",GLP,0))))","v":0}]
["8.2",{"$f":"VLOOKUP('Calculos 2'!A437,'Huella Completa'!A17:G703,3,FALSE)*(IF(VLOOKUP('Calculos 2'!A437,'Huella Completa'!A17:G703,4,FALSE)=\"Gasolina\",Gasolina,IF(VLOOKUP('Calculos 2'!A437,'Huella Completa'!A17:G703,4,FALSE)=\"Diesel\",Diesel,IF(VLOOKUP('Calculos 2'!A437,'Huella Completa'!A17:G703,4,FALSE)=\"GLP\",GLP,0))))","v":0}]
["8.3",{"$f":"VLOOKUP('Calculos 2'!A438,'Huella Completa'!A18:G704,3,FALSE)*(IF(VLOOKUP('Calculos 2'!A438,'Huella Completa'!A18:G704,4,FALSE)=\"Gasolina\",Gasolina,IF(VLOOKUP('Calculos 2'!A438,'Huella Completa'!A18:G704,4,FALSE)=\"Diesel\",Diesel,IF(VLOOKUP('Calculos 2'!A438,'Huella Completa'!A18:G704,4,FALSE)=\"GLP\",GLP,0))))","v":0}]
["8.4",{"$f":"VLOOKUP('Calculos 2'!A439,'Huella Completa'!A19:G705,3,FALSE)*(IF(VLOOKUP('Calculos 2'!A439,'Huella Completa'!A19:G705,4,FALSE)=\"Gasolina\",Gasolina,IF(VLOOKUP('Calculos 2'!A439,'Huella Completa'!A19:G705,4,FALSE)=\"Diesel\",Diesel,IF(VLOOKUP('Calculos 2'!A439,'Huella Completa'!A19:G705,4,FALSE)=\"GLP\",GLP,0))))","v":{"$error":"#N/A"}}]
["8.5",{"$f":"VLOOKUP('Calculos 2'!A440,'Huella Completa'!A20:G706,3,FALSE)*(IF(VLOOKUP('Calculos 2'!A440,'Huella Completa'!A20:G706,4,FALSE)=\"Gasolina\",Gasolina,IF(VLOOKUP('Calculos 2'!A440,'Huella Completa'!A20:G706,4,FALSE)=\"Diesel\",Diesel,IF(VLOOKUP('Calculos 2'!A440,'Huella Completa'!A20:G706,4,FALSE)=\"GLP\",GLP,0))))","v":{"$error":"#N/A"}}]
["8.6",{"$f":"VLOOKUP('Calculos 2'!A441,'Huella Completa'!A21:G707,3,FALSE)*(IF(VLOOKUP('Calculos 2'!A441,'Huella Completa'!A21:G707,4,FALSE)=\"Gasolina\",Gasolina,IF(VLOOKUP('Calculos 2'!A441,'Huella Completa'!A21:G707,4,FALSE)=\"Diesel\",Diesel,IF(VLOOKUP('Calculos 2'!A441,'Huella Completa'!A21:G707,4,FALSE)=\"GLP\",GLP,0))))","v":{"$error":"#N/A"}}]
["8.7",{"$f":"VLOOKUP('Calculos 2'!A442,'Huella Completa'!A23:G708,3,FALSE)*(IF(VLOOKUP('Calculos 2'!A442,'Huella Completa'!A23:G708,4,FALSE)=\"Gasolina\",Gasolina,IF(VLOOKUP('Calculos 2'!A442,'Huella Completa'!A23:G708,4,FALSE)=\"Diesel\",Diesel,IF(VLOOKUP('Calculos 2'!A442,'Huella Completa'!A23:G708,4,FALSE)=\"GLP\",GLP,0))))","v":{"$error":"#N/A"}}]
["8.8",{"$f":"VLOOKUP('Calculos 2'!A443,'Huella Completa'!A24:G709,3,FALSE)*(IF(VLOOKUP('Calculos 2'!A443,'Huella Completa'!A24:G709,4,FALSE)=\"Gasolina\",Gasolina,IF(VLOOKUP('Calculos 2'!A443,'Huella Completa'!A24:G709,4,FALSE)=\"Diesel\",Diesel,IF(VLOOKUP('Calculos 2'!A443,'Huella Completa'!A24:G709,4,FALSE)=\"GLP\",GLP,0))))","v":{"$error":"#N/A"}}]
["8.9",{"$f":"VLOOKUP('Calculos 2'!A444,'Huella Completa'!A25:G710,3,FALSE)*(IF(VLOOKUP('Calculos 2'!A444,'Huella Completa'!A25:G710,4,FALSE)=\"Gasolina\",Gasolina,IF(VLOOKUP('Calculos 2'!A444,'Huella Completa'!A25:G710,4,FALSE)=\"Diesel\",Diesel,IF(VLOOKUP('Calculos 2'!A444,'Huella Completa'!A25:G710,4,FALSE)=\"GLP\",GLP,0))))","v":{"$error":"#N/A"}}]
["8.10",{"$f":"VLOOKUP('Calculos 2'!A445,'Huella Completa'!A26:G711,3,FALSE)*(IF(VLOOKUP('Calculos 2'!A445,'Huella Completa'!A26:G711,4,FALSE)=\"Gasolina\",Gasolina,IF(VLOOKUP('Calculos 2'!A445,'Huella Completa'!A26:G711,4,FALSE)=\"Diesel\",Diesel,IF(VLOOKUP('Calculos 2'!A445,'Huella Completa'!A26:G711,4,FALSE)=\"GLP\",GLP,0))))","v":{"$error":"#N/A"}}]
["8.11",{"$f":"VLOOKUP('Calculos 2'!A446,'Huella Completa'!A34:G712,3,FALSE)*(IF(VLOOKUP('Calculos 2'!A446,'Huella Completa'!A34:G712,4,FALSE)=\"Gasolina\",Gasolina,IF(VLOOKUP('Calculos 2'!A446,'Huella Completa'!A34:G712,4,FALSE)=\"Diesel\",Diesel,IF(VLOOKUP('Calculos 2'!A446,'Huella Completa'!A34:G712,4,FALSE)=\"GLP\",GLP,0))))","v":{"$error":"#N/A"}}]
["8.12",{"$f":"VLOOKUP('Calculos 2'!A447,'Huella Completa'!A35:G713,3,FALSE)*(IF(VLOOKUP('Calculos 2'!A447,'Huella Completa'!A35:G713,4,FALSE)=\"Gasolina\",Gasolina,IF(VLOOKUP('Calculos 2'!A447,'Huella Completa'!A35:G713,4,FALSE)=\"Diesel\",Diesel,IF(VLOOKUP('Calculos 2'!A447,'Huella Completa'!A35:G713,4,FALSE)=\"GLP\",GLP,0))))","v":{"$error":"#N/A"}}]
["8.13",{"$f":"VLOOKUP('Calculos 2'!A448,'Huella Completa'!A36:G714,3,FALSE)*(IF(VLOOKUP('Calculos 2'!A448,'Huella Completa'!A36:G714,4,FALSE)=\"Gasolina\",Gasolina,IF(VLOOKUP('Calculos 2'!A448,'Huella Completa'!A36:G714,4,FALSE)=\"Diesel\",Diesel,IF(VLOOKUP('Calculos 2'!A448,'Huella Completa'!A36:G714,4,FALSE)=\"GLP\",GLP,0))))","v":{"$error":"#N/A"}}]
["8.14",{"$f":"VLOOKUP('Calculos 2'!A449,'Huella Completa'!A37:G715,3,FALSE)*(IF(VLOOKUP('Calculos 2'!A449,'Huella Completa'!A37:G715,4,FALSE)=\"Gasolina\",Gasolina,IF(VLOOKUP('Calculos 2'!A449,'Huella Completa'!A37:G715,4,FALSE)=\"Diesel\",Diesel,IF(VLOOKUP('Calculos 2'!A449,'Huella Completa'!A37:G715,4,FALSE)=\"GLP\",GLP,0))))","v":{"$error":"#N/A"}}]
["8.15",{"$f":"VLOOKUP('Calculos 2'!A450,'Huella Completa'!A38:G716,3,FALSE)*(IF(VLOOKUP('Calculos 2'!A450,'Huella Completa'!A38:G716,4,FALSE)=\"Gasolina\",Gasolina,IF(VLOOKUP('Calculos 2'!A450,'Huella Completa'!A38:G716,4,FALSE)=\"Diesel\",Diesel,IF(VLOOKUP('Calculos 2'!A450,'Huella Completa'!A38:G716,4,FALSE)=\"GLP\",GLP,0))))","v":{"$error":"#N/A"}}]
["8.16",{"$f":"VLOOKUP('Calculos 2'!A451,'Huella Completa'!A39:G717,3,FALSE)*(IF(VLOOKUP('Calculos 2'!A451,'Huella Completa'!A39:G717,4,FALSE)=\"Gasolina\",Gasolina,IF(VLOOKUP('Calculos 2'!A451,'Huella Completa'!A39:G717,4,FALSE)=\"Diesel\",Diesel,IF(VLOOKUP('Calculos 2'!A451,'Huella Completa'!A39:G717,4,FALSE)=\"GLP\",GLP,0))))","v":{"$error":"#N/A"}}]
["8.17",{"$f":"VLOOKUP('Calculos 2'!A452,'Huella Completa'!A40:G718,3,FALSE)*(IF(VLOOKUP('Calculos 2'!A452,'Huella Completa'!A40:G718,4,FALSE)=\"Gasolina\",Gasolina,IF(VLOOKUP('Calculos 2'!A452,'Huella Completa'!A40:G718,4,FALSE)=\"Diesel\",Diesel,IF(VLOOKUP('Calculos 2'!A452,'Huella Completa'!A40:G718,4,FALSE)=\"GLP\",GLP,0))))","v":{"$error":"#N/A"}}]
["8.18",{"$f":"VLOOKUP('Calculos 2'!A453,'Huella Completa'!A41:G719,3,FALSE)*(IF(VLOOKUP('Calculos 2'!A453,'Huella Completa'!A41:G719,4,FALSE)=\"Gasolina\",Gasolina,IF(VLOOKUP('Calculos 2'!A453,'Huella Completa'!A41:G719,4,FALSE)=\"Diesel\",Diesel,IF(VLOOKUP('Calculos 2'!A453,'Huella Completa'!A41:G719,4,FALSE)=\"GLP\",GLP,0))))","v":{"$error":"#N/A"}}]
["8.19",{"$f":"VLOOKUP('Calculos 2'!A454,'Huella Completa'!A42:G720,3,FALSE)*(IF(VLOOKUP('Calculos 2'!A454,'Huella Completa'!A42:G720,4,FALSE)=\"Gasolina\",Gasolina,IF(VLOOKUP('Calculos 2'!A454,'Huella Completa'!A42:G720,4,FALSE)=\"Diesel\",Diesel,IF(VLOOKUP('Calculos 2'!A454,'Huella Completa'!A42:G720,4,FALSE)=\"GLP\",GLP,0))))","v":{"$error":"#N/A"}}]
["8.20",{"$f":"VLOOKUP('Calculos 2'!A455,'Huella Completa'!A43:G721,3,FALSE)*(IF(VLOOKUP('Calculos 2'!A455,'Huella Completa'!A43:G721,4,FALSE)=\"Gasolina\",Gasolina,IF(VLOOKUP('Calculos 2'!A455,'Huella Completa'!A43:G721,4,FALSE)=\"Diesel\",Diesel,IF(VLOOKUP('Calculos 2'!A455,'Huella Completa'!A43:G721,4,FALSE)=\"GLP\",GLP,0))))","v":{"$error":"#N/A"}}]
["8.21",{"$f":"VLOOKUP('Calculos 2'!A456,'Huella Completa'!A44:G722,3,FALSE)*(IF(VLOOKUP('Calculos 2'!A456,'Huella Completa'!A44:G722,4,FALSE)=\"Gasolina\",Gasolina,IF(VLOOKUP('Calculos 2'!A456,'Huella Completa'!A44:G722,4,FALSE)=\"Diesel\",Diesel,IF(VLOOKUP('Calculos 2'!A456,'Huella Completa'!A44:G722,4,FALSE)=\"GLP\",GLP,0))))","v":{"$error":"#N/A"}}]
["8.22",{"$f":"VLOOKUP('Calculos 2'!A457,'Huella Completa'!A45:G723,3,FALSE)*(IF(VLOOKUP('Calculos 2'!A457,'Huella Completa'!A45:G723,4,FALSE)=\"Gasolina\",Gasolina,IF(VLOOKUP('Calculos 2'!A457,'Huella Completa'!A45:G723,4,FALSE)=\"Diesel\",Diesel,IF(VLOOKUP('Calculos 2'!A457,'Huella Completa'!A45:G723,4,FALSE)=\"GLP\",GLP,0))))","v":{"$error":"#N/A"}}]
["8.23",{"$f":"VLOOKUP('Calculos 2'!A458,'Huella Completa'!A46:G724,3,FALSE)*(IF(VLOOKUP('Calculos 2'!A458,'Huella Completa'!A46:G724,4,FALSE)=\"Gasolina\",Gasolina,IF(VLOOKUP('Calculos 2'!A458,'Huella Completa'!A46:G724,4,FALSE)=\"Diesel\",Diesel,IF(VLOOKUP('Calculos 2'!A458,'Huella Completa'!A46:G724,4,FALSE)=\"GLP\",GLP,0))))","v":{"$error":"#N/A"}}]
["8.24",{"$f":"VLOOKUP('Calculos 2'!A459,'Huella Completa'!A47:G725,3,FALSE)*(IF(VLOOKUP('Calculos 2'!A459,'Huella Completa'!A47:G725,4,FALSE)=\"Gasolina\",Gasolina,IF(VLOOKUP('Calculos 2'!A459,'Huella Completa'!A47:G725,4,FALSE)=\"Diesel\",Diesel,IF(VLOOKUP('Calculos 2'!A459,'Huella Completa'!A47:G725,4,FALSE)=\"GLP\",GLP,0))))","v":{"$error":"#N/A"}}]
["8.25",{"$f":"VLOOKUP('Calculos 2'!A460,'Huella Completa'!A48:G726,3,FALSE)*(IF(VLOOKUP('Calculos 2'!A460,'Huella Completa'!A48:G726,4,FALSE)=\"Gasolina\",Gasolina,IF(VLOOKUP('Calculos 2'!A460,'Huella Completa'!A48:G726,4,FALSE)=\"Diesel\",Diesel,IF(VLOOKUP('Calculos 2'!A460,'Huella Completa'!A48:G726,4,FALSE)=\"GLP\",GLP,0))))","v":{"$error":"#N/A"}}]
["8.26",{"$f":"VLOOKUP('Calculos 2'!A461,'Huella Completa'!A49:G727,3,FALSE)*(IF(VLOOKUP('Calculos 2'!A461,'Huella Completa'!A49:G727,4,FALSE)=\"Gasolina\",Gasolina,IF(VLOOKUP('Calculos 2'!A461,'Huella Completa'!A49:G727,4,FALSE)=\"Diesel\",Diesel,IF(VLOOKUP('Calculos 2'!A461,'Huella Completa'!A49:G727,4,FALSE)=\"GLP\",GLP,0))))","v":{"$error":"#N/A"}}]
["8.27",{"$f":"VLOOKUP('Calculos 2'!A462,'Huella Completa'!A50:G728,3,FALSE)*(IF(VLOOKUP('Calculos 2'!A462,'Huella Completa'!A50:G728,4,FALSE)=\"Gasolina\",Gasolina,IF(VLOOKUP('Calculos 2'!A462,'Huella Completa'!A50:G728,4,FALSE)=\"Diesel\",Diesel,IF(VLOOKUP('Calculos 2'!A462,'Huella Completa'!A50:G728,4,FALSE)=\"GLP\",GLP,0))))","v":{"$error":"#N/A"}}]
["8.28",{"$f":"VLOOKUP('Calculos 2'!A463,'Huella Completa'!A51:G729,3,FALSE)*(IF(VLOOKUP('Calculos 2'!A463,'Huella Completa'!A51:G729,4,FALSE)=\"Gasolina\",Gasolina,IF(VLOOKUP('Calculos 2'!A463,'Huella Completa'!A51:G729,4,FALSE)=\"Diesel\",Diesel,IF(VLOOKUP('Calculos 2'!A463,'Huella Completa'!A51:G729,4,FALSE)=\"GLP\",GLP,0))))","v":{"$error":"#N/A"}}]
["8.29",{"$f":"VLOOKUP('Calculos 2'!A464,'Huella Completa'!A52:G730,3,FALSE)*(IF(VLOOKUP('Calculos 2'!A464,'Huella Completa'!A52:G730,4,FALSE)=\"Gasolina\",Gasolina,IF(VLOOKUP('Calculos 2'!A464,'Huella Completa'!A52:G730,4,FALSE)=\"Diesel\",Diesel,IF(VLOOKUP('Calculos 2'!A464,'Huella Completa'!A52:G730,4,FALSE)=\"GLP\",GLP,0))))","v":{"$error":"#N/A"}}]
["8.30",{"$f":"VLOOKUP('Calculos 2'!A465,'Huella Completa'!A53:G731,3,FALSE)*(IF(VLOOKUP('Calculos 2'!A465,'Huella Completa'!A53:G731,4,FALSE)=\"Gasolina\",Gasolina,IF(VLOOKUP('Calculos 2'!A465,'Huella Completa'!A53:G731,4,FALSE)=\"Diesel\",Diesel,IF(VLOOKUP('Calculos 2'!A465,'Huella Completa'!A53:G731,4,FALSE)=\"GLP\",GLP,0))))","v":{"$error":"#N/A"}}]
["8.31",{"$f":"VLOOKUP('Calculos 2'!A466,'Huella Completa'!A54:G732,3,FALSE)*(IF(VLOOKUP('Calculos 2'!A466,'Huella Completa'!A54:G732,4,FALSE)=\"Gasolina\",Gasolina,IF(VLOOKUP('Calculos 2'!A466,'Huella Completa'!A54:G732,4,FALSE)=\"Diesel\",Diesel,IF(VLOOKUP('Calculos 2'!A466,'Huella Completa'!A54:G732,4,FALSE)=\"GLP\",GLP,0))))","v":{"$error":"#N/A"}}]
["8.32",{"$f":"VLOOKUP('Calculos 2'!A467,'Huella Completa'!A55:G733,3,FALSE)*(IF(VLOOKUP('Calculos 2'!A467,'Huella Completa'!A55:G733,4,FALSE)=\"Gasolina\",Gasolina,IF(VLOOKUP('Calculos 2'!A467,'Huella Completa'!A55:G733,4,FALSE)=\"Diesel\",Diesel,IF(VLOOKUP('Calculos 2'!A467,'Huella Completa'!A55:G733,4,FALSE)=\"GLP\",GLP,0))))","v":{"$error":"#N/A"}}]
["8.33",{"$f":"VLOOKUP('Calculos 2'!A468,'Huella Completa'!A56:G734,3,FALSE)*(IF(VLOOKUP('Calculos 2'!A468,'Huella Completa'!A56:G734,4,FALSE)=\"Gasolina\",Gasolina,IF(VLOOKUP('Calculos 2'!A468,'Huella Completa'!A56:G734,4,FALSE)=\"Diesel\",Diesel,IF(VLOOKUP('Calculos 2'!A468,'Huella Completa'!A56:G734,4,FALSE)=\"GLP\",GLP,0))))","v":{"$error":"#N/A"}}]
["8.34",{"$f":"VLOOKUP('Calculos 2'!A469,'Huella Completa'!A57:G735,3,FALSE)*(IF(VLOOKUP('Calculos 2'!A469,'Huella Completa'!A57:G735,4,FALSE)=\"Gasolina\",Gasolina,IF(VLOOKUP('Calculos 2'!A469,'Huella Completa'!A57:G735,4,FALSE)=\"Diesel\",Diesel,IF(VLOOKUP('Calculos 2'!A469,'Huella Completa'!A57:G735,4,FALSE)=\"GLP\",GLP,0))))","v":{"$error":"#N/A"}}]
["8.35",{"$f":"VLOOKUP('Calculos 2'!A470,'Huella Completa'!A58:G736,3,FALSE)*(IF(VLOOKUP('Calculos 2'!A470,'Huella Completa'!A58:G736,4,FALSE)=\"Gasolina\",Gasolina,IF(VLOOKUP('Calculos 2'!A470,'Huella Completa'!A58:G736,4,FALSE)=\"Diesel\",Diesel,IF(VLOOKUP('Calculos 2'!A470,'Huella Completa'!A58:G736,4,FALSE)=\"GLP\",GLP,0))))","v":{"$error":"#N/A"}}]
["8.36",{"$f":"VLOOKUP('Calculos 2'!A471,'Huella Completa'!A59:G737,3,FALSE)*(IF(VLOOKUP('Calculos 2'!A471,'Huella Completa'!A59:G737,4,FALSE)=\"Gasolina\",Gasolina,IF(VLOOKUP('Calculos 2'!A471,'Huella Completa'!A59:G737,4,FALSE)=\"Diesel\",Diesel,IF(VLOOKUP('Calculos 2'!A471,'Huella Completa'!A59:G737,4,FALSE)=\"GLP\",GLP,0))))","v":{"$error":"#N/A"}}]
["8.37",{"$f":"VLOOKUP('Calculos 2'!A472,'Huella Completa'!A60:G738,3,FALSE)*(IF(VLOOKUP('Calculos 2'!A472,'Huella Completa'!A60:G738,4,FALSE)=\"Gasolina\",Gasolina,IF(VLOOKUP('Calculos 2'!A472,'Huella Completa'!A60:G738,4,FALSE)=\"Diesel\",Diesel,IF(VLOOKUP('Calculos 2'!A472,'Huella Completa'!A60:G738,4,FALSE)=\"GLP\",GLP,0))))","v":{"$error":"#N/A"}}]
["8.38",{"$f":"VLOOKUP('Calculos 2'!A473,'Huella Completa'!A61:G739,3,FALSE)*(IF(VLOOKUP('Calculos 2'!A473,'Huella Completa'!A61:G739,4,FALSE)=\"Gasolina\",Gasolina,IF(VLOOKUP('Calculos 2'!A473,'Huella Completa'!A61:G739,4,FALSE)=\"Diesel\",Diesel,IF(VLOOKUP('Calculos 2'!A473,'Huella Completa'!A61:G739,4,FALSE)=\"GLP\",GLP,0))))","v":{"$error":"#N/A"}}]
["8.39",{"$f":"VLOOKUP('Calculos 2'!A474,'Huella Completa'!A62:G740,3,FALSE)*(IF(VLOOKUP('Calculos 2'!A474,'Huella Completa'!A62:G740,4,FALSE)=\"Gasolina\",Gasolina,IF(VLOOKUP('Calculos 2'!A474,'Huella Completa'!A62:G740,4,FALSE)=\"Diesel\",Diesel,IF(VLOOKUP('Calculos 2'!A474,'Huella Completa'!A62:G740,4,FALSE)=\"GLP\",GLP,0))))","v":{"$error":"#N/A"}}]
["8.40",{"$f":"VLOOKUP('Calculos 2'!A475,'Huella Completa'!A63:G741,3,FALSE)*(IF(VLOOKUP('Calculos 2'!A475,'Huella Completa'!A63:G741,4,FALSE)=\"Gasolina\",Gasolina,IF(VLOOKUP('Calculos 2'!A475,'Huella Completa'!A63:G741,4,FALSE)=\"Diesel\",Diesel,IF(VLOOKUP('Calculos 2'!A475,'Huella Completa'!A63:G741,4,FALSE)=\"GLP\",GLP,0))))","v":{"$error":"#N/A"}}]
["8.41",{"$f":"VLOOKUP('Calculos 2'!A476,'Huella Completa'!A64:G742,3,FALSE)*(IF(VLOOKUP('Calculos 2'!A476,'Huella Completa'!A64:G742,4,FALSE)=\"Gasolina\",Gasolina,IF(VLOOKUP('Calculos 2'!A476,'Huella Completa'!A64:G742,4,FALSE)=\"Diesel\",Diesel,IF(VLOOKUP('Calculos 2'!A476,'Huella Completa'!A64:G742,4,FALSE)=\"GLP\",GLP,0))))","v":{"$error":"#N/A"}}]
["8.42",{"$f":"VLOOKUP('Calculos 2'!A477,'Huella Completa'!A65:G743,3,FALSE)*(IF(VLOOKUP('Calculos 2'!A477,'Huella Completa'!A65:G743,4,FALSE)=\"Gasolina\",Gasolina,IF(VLOOKUP('Calculos 2'!A477,'Huella Completa'!A65:G743,4,FALSE)=\"Diesel\",Diesel,IF(VLOOKUP('Calculos 2'!A477,'Huella Completa'!A65:G743,4,FALSE)=\"GLP\",GLP,0))))","v":{"$error":"#N/A"}}]
["8.43",{"$f":"VLOOKUP('Calculos 2'!A478,'Huella Completa'!A66:G744,3,FALSE)*(IF(VLOOKUP('Calculos 2'!A478,'Huella Completa'!A66:G744,4,FALSE)=\"Gasolina\",Gasolina,IF(VLOOKUP('Calculos 2'!A478,'Huella Completa'!A66:G744,4,FALSE)=\"Diesel\",Diesel,IF(VLOOKUP('Calculos 2'!A478,'Huella Completa'!A66:G744,4,FALSE)=\"GLP\",GLP,0))))","v":{"$error":"#N/A"}}]
["8.44",{"$f":"VLOOKUP('Calculos 2'!A479,'Huella Completa'!A67:G745,3,FALSE)*(IF(VLOOKUP('Calculos 2'!A479,'Huella Completa'!A67:G745,4,FALSE)=\"Gasolina\",Gasolina,IF(VLOOKUP('Calculos 2'!A479,'Huella Completa'!A67:G745,4,FALSE)=\"Diesel\",Diesel,IF(VLOOKUP('Calculos 2'!A479,'Huella Completa'!A67:G745,4,FALSE)=\"GLP\",GLP,0))))","v":{"$error":"#N/A"}}]
["8.45",{"$f":"VLOOKUP('Calculos 2'!A480,'Huella Completa'!A68:G746,3,FALSE)*(IF(VLOOKUP('Calculos 2'!A480,'Huella Completa'!A68:G746,4,FALSE)=\"Gasolina\",Gasolina,IF(VLOOKUP('Calculos 2'!A480,'Huella Completa'!A68:G746,4,FALSE)=\"Diesel\",Diesel,IF(VLOOKUP('Calculos 2'!A480,'Huella Completa'!A68:G746,4,FALSE)=\"GLP\",GLP,0))))","v":{"$error":"#N/A"}}]
["8.46",{"$f":"VLOOKUP('Calculos 2'!A481,'Huella Completa'!A69:G747,3,FALSE)*(IF(VLOOKUP('Calculos 2'!A481,'Huella Completa'!A69:G747,4,FALSE)=\"Gasolina\",Gasolina,IF(VLOOKUP('Calculos 2'!A481,'Huella Completa'!A69:G747,4,FALSE)=\"Diesel\",Diesel,IF(VLOOKUP('Calculos 2'!A481,'Huella Completa'!A69:G747,4,FALSE)=\"GLP\",GLP,0))))","v":{"$error":"#N/A"}}]
["8.47",{"$f":"VLOOKUP('Calculos 2'!A482,'Huella Completa'!A70:G748,3,FALSE)*(IF(VLOOKUP('Calculos 2'!A482,'Huella Completa'!A70:G748,4,FALSE)=\"Gasolina\",Gasolina,IF(VLOOKUP('Calculos 2'!A482,'Huella Completa'!A70:G748,4,FALSE)=\"Diesel\",Diesel,IF(VLOOKUP('Calculos 2'!A482,'Huella Completa'!A70:G748,4,FALSE)=\"GLP\",GLP,0))))","v":{"$error":"#N/A"}}]
["8.48",{"$f":"VLOOKUP('Calculos 2'!A483,'Huella Completa'!A71:G749,3,FALSE)*(IF(VLOOKUP('Calculos 2'!A483,'Huella Completa'!A71:G749,4,FALSE)=\"Gasolina\",Gasolina,IF(VLOOKUP('Calculos 2'!A483,'Huella Completa'!A71:G749,4,FALSE)=\"Diesel\",Diesel,IF(VLOOKUP('Calculos 2'!A483,'Huella Completa'!A71:G749,4,FALSE)=\"GLP\",GLP,0))))","v":{"$error":"#N/A"}}]
["8.49",{"$f":"VLOOKUP('Calculos 2'!A484,'Huella Completa'!A72:G750,3,FALSE)*(IF(VLOOKUP('Calculos 2'!A484,'Huella Completa'!A72:G750,4,FALSE)=\"Gasolina\",Gasolina,IF(VLOOKUP('Calculos 2'!A484,'Huella Completa'!A72:G750,4,FALSE)=\"Diesel\",Diesel,IF(VLOOKUP('Calculos 2'!A484,'Huella Completa'!A72:G750,4,FALSE)=\"GLP\",GLP,0))))","v":{"$error":"#N/A"}}]
["8.50",{"$f":"VLOOKUP('Calculos 2'!A485,'Huella Completa'!A74:G751,3,FALSE)*(IF(VLOOKUP('Calculos 2'!A485,'Huella Completa'!A74:G751,4,FALSE)=\"Gasolina\",Gasolina,IF(VLOOKUP('Calculos 2'!A485,'Huella Completa'!A74:G751,4,FALSE)=\"Diesel\",Diesel,IF(VLOOKUP('Calculos 2'!A485,'Huella Completa'!A74:G751,4,FALSE)=\"GLP\",GLP,0))))","v":{"$error":"#N/A"}}]
["8.51",{"$f":"VLOOKUP('Calculos 2'!A486,'Huella Completa'!A75:G752,3,FALSE)*(IF(VLOOKUP('Calculos 2'!A486,'Huella Completa'!A75:G752,4,FALSE)=\"Gasolina\",Gasolina,IF(VLOOKUP('Calculos 2'!A486,'Huella Completa'!A75:G752,4,FALSE)=\"Diesel\",Diesel,IF(VLOOKUP('Calculos 2'!A486,'Huella Completa'!A75:G752,4,FALSE)=\"GLP\",GLP,0))))","v":{"$error":"#N/A"}}]
["8.52",{"$f":"VLOOKUP('Calculos 2'!A487,'Huella Completa'!A76:G753,3,FALSE)*(IF(VLOOKUP('Calculos 2'!A487,'Huella Completa'!A76:G753,4,FALSE)=\"Gasolina\",Gasolina,IF(VLOOKUP('Calculos 2'!A487,'Huella Completa'!A76:G753,4,FALSE)=\"Diesel\",Diesel,IF(VLOOKUP('Calculos 2'!A487,'Huella Completa'!A76:G753,4,FALSE)=\"GLP\",GLP,0))))","v":{"$error":"#N/A"}}]
["8.53",{"$f":"VLOOKUP('Calculos 2'!A488,'Huella Completa'!A77:G754,3,FALSE)*(IF(VLOOKUP('Calculos 2'!A488,'Huella Completa'!A77:G754,4,FALSE)=\"Gasolina\",Gasolina,IF(VLOOKUP('Calculos 2'!A488,'Huella Completa'!A77:G754,4,FALSE)=\"Diesel\",Diesel,IF(VLOOKUP('Calculos 2'!A488,'Huella Completa'!A77:G754,4,FALSE)=\"GLP\",GLP,0))))","v":{"$error":"#N/A"}}]
["8.54",{"$f":"VLOOKUP('Calculos 2'!A489,'Huella Completa'!A84:G755,3,FALSE)*(IF(VLOOKUP('Calculos 2'!A489,'Huella Completa'!A84:G755,4,FALSE)=\"Gasolina\",Gasolina,IF(VLOOKUP('Calculos 2'!A489,'Huella Completa'!A84:G755,4,FALSE)=\"Diesel\",Diesel,IF(VLOOKUP('Calculos 2'!A489,'Huella Completa'!A84:G755,4,FALSE)=\"GLP\",GLP,0))))","v":{"$error":"#N/A"}}]
["8.55",{"$f":"VLOOKUP('Calculos 2'!A490,'Huella Completa'!A86:G756,3,FALSE)*(IF(VLOOKUP('Calculos 2'!A490,'Huella Completa'!A86:G756,4,FALSE)=\"Gasolina\",Gasolina,IF(VLOOKUP('Calculos 2'!A490,'Huella Completa'!A86:G756,4,FALSE)=\"Diesel\",Diesel,IF(VLOOKUP('Calculos 2'!A490,'Huella Completa'!A86:G756,4,FALSE)=\"GLP\",GLP,0))))","v":{"$error":"#N/A"}}]
["8.56",{"$f":"VLOOKUP('Calculos 2'!A491,'Huella Completa'!A87:G757,3,FALSE)*(IF(VLOOKUP('Calculos 2'!A491,'Huella Completa'!A87:G757,4,FALSE)=\"Gasolina\",Gasolina,IF(VLOOKUP('Calculos 2'!A491,'Huella Completa'!A87:G757,4,FALSE)=\"Diesel\",Diesel,IF(VLOOKUP('Calculos 2'!A491,'Huella Completa'!A87:G757,4,FALSE)=\"GLP\",GLP,0))))","v":{"$error":"#N/A"}}]
["8.57",{"$f":"VLOOKUP('Calculos 2'!A492,'Huella Completa'!A88:G758,3,FALSE)*(IF(VLOOKUP('Calculos 2'!A492,'Huella Completa'!A88:G758,4,FALSE)=\"Gasolina\",Gasolina,IF(VLOOKUP('Calculos 2'!A492,'Huella Completa'!A88:G758,4,FALSE)=\"Diesel\",Diesel,IF(VLOOKUP('Calculos 2'!A492,'Huella Completa'!A88:G758,4,FALSE)=\"GLP\",GLP,0))))","v":{"$error":"#N/A"}}]
["8.58",{"$f":"VLOOKUP('Calculos 2'!A493,'Huella Completa'!A89:G759,3,FALSE)*(IF(VLOOKUP('Calculos 2'!A493,'Huella Completa'!A89:G759,4,FALSE)=\"Gasolina\",Gasolina,IF(VLOOKUP('Calculos 2'!A493,'Huella Completa'!A89:G759,4,FALSE)=\"Diesel\",Diesel,IF(VLOOKUP('Calculos 2'!A493,'Huella Completa'!A89:G759,4,FALSE)=\"GLP\",GLP,0))))","v":{"$error":"#N/A"}}]
["8.59",{"$f":"VLOOKUP('Calculos 2'!A494,'Huella Completa'!A90:G760,3,FALSE)*(IF(VLOOKUP('Calculos 2'!A494,'Huella Completa'!A90:G760,4,FALSE)=\"Gasolina\",Gasolina,IF(VLOOKUP('Calculos 2'!A494,'Huella Completa'!A90:G760,4,FALSE)=\"Diesel\",Diesel,IF(VLOOKUP('Calculos 2'!A494,'Huella Completa'!A90:G760,4,FALSE)=\"GLP\",GLP,0))))","v":{"$error":"#N/A"}}]
["8.60",{"$f":"VLOOKUP('Calculos 2'!A495,'Huella Completa'!A91:G761,3,FALSE)*(IF(VLOOKUP('Calculos 2'!A495,'Huella Completa'!A91:G761,4,FALSE)=\"Gasolina\",Gasolina,IF(VLOOKUP('Calculos 2'!A495,'Huella Completa'!A91:G761,4,FALSE)=\"Diesel\",Diesel,IF(VLOOKUP('Calculos 2'!A495,'Huella Completa'!A91:G761,4,FALSE)=\"GLP\",GLP,0))))","v":{"$error":"#N/A"}}]
["8.61",{"$f":"VLOOKUP('Calculos 2'!A496,'Huella Completa'!A92:G762,3,FALSE)*(IF(VLOOKUP('Calculos 2'!A496,'Huella Completa'!A92:G762,4,FALSE)=\"Gasolina\",Gasolina,IF(VLOOKUP('Calculos 2'!A496,'Huella Completa'!A92:G762,4,FALSE)=\"Diesel\",Diesel,IF(VLOOKUP('Calculos 2'!A496,'Huella Completa'!A92:G762,4,FALSE)=\"GLP\",GLP,0))))","v":{"$error":"#N/A"}}]
["8.62",{"$f":"VLOOKUP('Calculos 2'!A497,'Huella Completa'!A93:G763,3,FALSE)*(IF(VLOOKUP('Calculos 2'!A497,'Huella Completa'!A93:G763,4,FALSE)=\"Gasolina\",Gasolina,IF(VLOOKUP('Calculos 2'!A497,'Huella Completa'!A93:G763,4,FALSE)=\"Diesel\",Diesel,IF(VLOOKUP('Calculos 2'!A497,'Huella Completa'!A93:G763,4,FALSE)=\"GLP\",GLP,0))))","v":{"$error":"#N/A"}}]
["8.63",{"$f":"VLOOKUP('Calculos 2'!A498,'Huella Completa'!A94:G764,3,FALSE)*(IF(VLOOKUP('Calculos 2'!A498,'Huella Completa'!A94:G764,4,FALSE)=\"Gasolina\",Gasolina,IF(VLOOKUP('Calculos 2'!A498,'Huella Completa'!A94:G764,4,FALSE)=\"Diesel\",Diesel,IF(VLOOKUP('Calculos 2'!A498,'Huella Completa'!A94:G764,4,FALSE)=\"GLP\",GLP,0))))","v":{"$error":"#N/A"}}]
["8.64",{"$f":"VLOOKUP('Calculos 2'!A499,'Huella Completa'!A95:G765,3,FALSE)*(IF(VLOOKUP('Calculos 2'!A499,'Huella Completa'!A95:G765,4,FALSE)=\"Gasolina\",Gasolina,IF(VLOOKUP('Calculos 2'!A499,'Huella Completa'!A95:G765,4,FALSE)=\"Diesel\",Diesel,IF(VLOOKUP('Calculos 2'!A499,'Huella Completa'!A95:G765,4,FALSE)=\"GLP\",GLP,0))))","v":{"$error":"#N/A"}}]
["8.65",{"$f":"VLOOKUP('Calculos 2'!A500,'Huella Completa'!A96:G766,3,FALSE)*(IF(VLOOKUP('Calculos 2'!A500,'Huella Completa'!A96:G766,4,FALSE)=\"Gasolina\",Gasolina,IF(VLOOKUP('Calculos 2'!A500,'Huella Completa'!A96:G766,4,FALSE)=\"Diesel\",Diesel,IF(VLOOKUP('Calculos 2'!A500,'Huella Completa'!A96:G766,4,FALSE)=\"GLP\",GLP,0))))","v":{"$error":"#N/A"}}]
["8.66",{"$f":"VLOOKUP('Calculos 2'!A501,'Huella Completa'!A97:G767,3,FALSE)*(IF(VLOOKUP('Calculos 2'!A501,'Huella Completa'!A97:G767,4,FALSE)=\"Gasolina\",Gasolina,IF(VLOOKUP('Calculos 2'!A501,'Huella Completa'!A97:G767,4,FALSE)=\"Diesel\",Diesel,IF(VLOOKUP('Calculos 2'!A501,'Huella Completa'!A97:G767,4,FALSE)=\"GLP\",GLP,0))))","v":{"$error":"#N/A"}}]
["8.67",{"$f":"VLOOKUP('Calculos 2'!A502,'Huella Completa'!A98:G768,3,FALSE)*(IF(VLOOKUP('Calculos 2'!A502,'Huella Completa'!A98:G768,4,FALSE)=\"Gasolina\",Gasolina,IF(VLOOKUP('Calculos 2'!A502,'Huella Completa'!A98:G768,4,FALSE)=\"Diesel\",Diesel,IF(VLOOKUP('Calculos 2'!A502,'Huella Completa'!A98:G768,4,FALSE)=\"GLP\",GLP,0))))","v":{"$error":"#N/A"}}]
["8.68",{"$f":"VLOOKUP('Calculos 2'!A503,'Huella Completa'!A99:G769,3,FALSE)*(IF(VLOOKUP('Calculos 2'!A503,'Huella Completa'!A99:G769,4,FALSE)=\"Gasolina\",Gasolina,IF(VLOOKUP('Calculos 2'!A503,'Huella Completa'!A99:G769,4,FALSE)=\"Diesel\",Diesel,IF(VLOOKUP('Calculos 2'!A503,'Huella Completa'!A99:G769,4,FALSE)=\"GLP\",GLP,0))))","v":{"$error":"#N/A"}}]
["8.69",{"$f":"VLOOKUP('Calculos 2'!A504,'Huella Completa'!A100:G770,3,FALSE)*(IF(VLOOKUP('Calculos 2'!A504,'Huella Completa'!A100:G770,4,FALSE)=\"Gasolina\",Gasolina,IF(VLOOKUP('Calculos 2'!A504,'Huella Completa'!A100:G770,4,FALSE)=\"Diesel\",Diesel,IF(VLOOKUP('Calculos 2'!A504,'Huella Completa'!A100:G770,4,FALSE)=\"GLP\",GLP,0))))","v":{"$error":"#N/A"}}]
["8.70",{"$f":"VLOOKUP('Calculos 2'!A505,'Huella Completa'!A101:G771,3,FALSE)*(IF(VLOOKUP('Calculos 2'!A505,'Huella Completa'!A101:G771,4,FALSE)=\"Gasolina\",Gasolina,IF(VLOOKUP('Calculos 2'!A505,'Huella Completa'!A101:G771,4,FALSE)=\"Diesel\",Diesel,IF(VLOOKUP('Calculos 2'!A505,'Huella Completa'!A101:G771,4,FALSE)=\"GLP\",GLP,0))))","v":{"$error":"#N/A"}}]
["8.71",{"$f":"VLOOKUP('Calculos 2'!A506,'Huella Completa'!A102:G772,3,FALSE)*(IF(VLOOKUP('Calculos 2'!A506,'Huella Completa'!A102:G772,4,FALSE)=\"Gasolina\",Gasolina,IF(VLOOKUP('Calculos 2'!A506,'Huella Completa'!A102:G772,4,FALSE)=\"Diesel\",Diesel,IF(VLOOKUP('Calculos 2'!A506,'Huella Completa'!A102:G772,4,FALSE)=\"GLP\",GLP,0))))","v":{"$error":"#N/A"}}]
["8.72",{"$f":"VLOOKUP('Calculos 2'!A507,'Huella Completa'!A103:G773,3,FALSE)*(IF(VLOOKUP('Calculos 2'!A507,'Huella Completa'!A103:G773,4,FALSE)=\"Gasolina\",Gasolina,IF(VLOOKUP('Calculos 2'!A507,'Huella Completa'!A103:G773,4,FALSE)=\"Diesel\",Diesel,IF(VLOOKUP('Calculos 2'!A507,'Huella Completa'!A103:G773,4,FALSE)=\"GLP\",GLP,0))))","v":{"$error":"#N/A"}}]
["8.73",{"$f":"VLOOKUP('Calculos 2'!A508,'Huella Completa'!A104:G774,3,FALSE)*(IF(VLOOKUP('Calculos 2'!A508,'Huella Completa'!A104:G774,4,FALSE)=\"Gasolina\",Gasolina,IF(VLOOKUP('Calculos 2'!A508,'Huella Completa'!A104:G774,4,FALSE)=\"Diesel\",Diesel,IF(VLOOKUP('Calculos 2'!A508,'Huella Completa'!A104:G774,4,FALSE)=\"GLP\",GLP,0))))","v":{"$error":"#N/A"}}]
["8.74",{"$f":"VLOOKUP('Calculos 2'!A509,'Huella Completa'!A106:G775,3,FALSE)*(IF(VLOOKUP('Calculos 2'!A509,'Huella Completa'!A106:G775,4,FALSE)=\"Gasolina\",Gasolina,IF(VLOOKUP('Calculos 2'!A509,'Huella Completa'!A106:G775,4,FALSE)=\"Diesel\",Diesel,IF(VLOOKUP('Calculos 2'!A509,'Huella Completa'!A106:G775,4,FALSE)=\"GLP\",GLP,0))))","v":{"$error":"#N/A"}}]
["8.75",{"$f":"VLOOKUP('Calculos 2'!A510,'Huella Completa'!A107:G776,3,FALSE)*(IF(VLOOKUP('Calculos 2'!A510,'Huella Completa'!A107:G776,4,FALSE)=\"Gasolina\",Gasolina,IF(VLOOKUP('Calculos 2'!A510,'Huella Completa'!A107:G776,4,FALSE)=\"Diesel\",Diesel,IF(VLOOKUP('Calculos 2'!A510,'Huella Completa'!A107:G776,4,FALSE)=\"GLP\",GLP,0))))","v":{"$error":"#N/A"}}]
["8.76",{"$f":"VLOOKUP('Calculos 2'!A511,'Huella Completa'!A108:G777,3,FALSE)*(IF(VLOOKUP('Calculos 2'!A511,'Huella Completa'!A108:G777,4,FALSE)=\"Gasolina\",Gasolina,IF(VLOOKUP('Calculos 2'!A511,'Huella Completa'!A108:G777,4,FALSE)=\"Diesel\",Diesel,IF(VLOOKUP('Calculos 2'!A511,'Huella Completa'!A108:G777,4,FALSE)=\"GLP\",GLP,0))))","v":{"$error":"#N/A"}}]
["8.77",{"$f":"VLOOKUP('Calculos 2'!A512,'Huella Completa'!A109:G778,3,FALSE)*(IF(VLOOKUP('Calculos 2'!A512,'Huella Completa'!A109:G778,4,FALSE)=\"Gasolina\",Gasolina,IF(VLOOKUP('Calculos 2'!A512,'Huella Completa'!A109:G778,4,FALSE)=\"Diesel\",Diesel,IF(VLOOKUP('Calculos 2'!A512,'Huella Completa'!A109:G778,4,FALSE)=\"GLP\",GLP,0))))","v":{"$error":"#N/A"}}]
["8.78",{"$f":"VLOOKUP('Calculos 2'!A513,'Huella Completa'!A110:G779,3,FALSE)*(IF(VLOOKUP('Calculos 2'!A513,'Huella Completa'!A110:G779,4,FALSE)=\"Gasolina\",Gasolina,IF(VLOOKUP('Calculos 2'!A513,'Huella Completa'!A110:G779,4,FALSE)=\"Diesel\",Diesel,IF(VLOOKUP('Calculos 2'!A513,'Huella Completa'!A110:G779,4,FALSE)=\"GLP\",GLP,0))))","v":{"$error":"#N/A"}}]
["8.79",{"$f":"VLOOKUP('Calculos 2'!A514,'Huella Completa'!A111:G780,3,FALSE)*(IF(VLOOKUP('Calculos 2'!A514,'Huella Completa'!A111:G780,4,FALSE)=\"Gasolina\",Gasolina,IF(VLOOKUP('Calculos 2'!A514,'Huella Completa'!A111:G780,4,FALSE)=\"Diesel\",Diesel,IF(VLOOKUP('Calculos 2'!A514,'Huella Completa'!A111:G780,4,FALSE)=\"GLP\",GLP,0))))","v":{"$error":"#N/A"}}]
["8.80",{"$f":"VLOOKUP('Calculos 2'!A515,'Huella Completa'!A112:G781,3,FALSE)*(IF(VLOOKUP('Calculos 2'!A515,'Huella Completa'!A112:G781,4,FALSE)=\"Gasolina\",Gasolina,IF(VLOOKUP('Calculos 2'!A515,'Huella Completa'!A112:G781,4,FALSE)=\"Diesel\",Diesel,IF(VLOOKUP('Calculos 2'!A515,'Huella Completa'!A112:G781,4,FALSE)=\"GLP\",GLP,0))))","v":{"$error":"#N/A"}}]
["8.81",{"$f":"VLOOKUP('Calculos 2'!A516,'Huella Completa'!A113:G782,3,FALSE)*(IF(VLOOKUP('Calculos 2'!A516,'Huella Completa'!A113:G782,4,FALSE)=\"Gasolina\",Gasolina,IF(VLOOKUP('Calculos 2'!A516,'Huella Completa'!A113:G782,4,FALSE)=\"Diesel\",Diesel,IF(VLOOKUP('Calculos 2'!A516,'Huella Completa'!A113:G782,4,FALSE)=\"GLP\",GLP,0))))","v":{"$error":"#N/A"}}]
["8.82",{"$f":"VLOOKUP('Calculos 2'!A517,'Huella Completa'!A114:G783,3,FALSE)*(IF(VLOOKUP('Calculos 2'!A517,'Huella Completa'!A114:G783,4,FALSE)=\"Gasolina\",Gasolina,IF(VLOOKUP('Calculos 2'!A517,'Huella Completa'!A114:G783,4,FALSE)=\"Diesel\",Diesel,IF(VLOOKUP('Calculos 2'!A517,'Huella Completa'!A114:G783,4,FALSE)=\"GLP\",GLP,0))))","v":{"$error":"#N/A"}}]
["8.83",{"$f":"VLOOKUP('Calculos 2'!A518,'Huella Completa'!A115:G784,3,FALSE)*(IF(VLOOKUP('Calculos 2'!A518,'Huella Completa'!A115:G784,4,FALSE)=\"Gasolina\",Gasolina,IF(VLOOKUP('Calculos 2'!A518,'Huella Completa'!A115:G784,4,FALSE)=\"Diesel\",Diesel,IF(VLOOKUP('Calculos 2'!A518,'Huella Completa'!A115:G784,4,FALSE)=\"GLP\",GLP,0))))","v":{"$error":"#N/A"}}]
["8.84",{"$f":"VLOOKUP('Calculos 2'!A519,'Huella Completa'!A116:G785,3,FALSE)*(IF(VLOOKUP('Calculos 2'!A519,'Huella Completa'!A116:G785,4,FALSE)=\"Gasolina\",Gasolina,IF(VLOOKUP('Calculos 2'!A519,'Huella Completa'!A116:G785,4,FALSE)=\"Diesel\",Diesel,IF(VLOOKUP('Calculos 2'!A519,'Huella Completa'!A116:G785,4,FALSE)=\"GLP\",GLP,0))))","v":{"$error":"#N/A"}}]
["8.85",{"$f":"VLOOKUP('Calculos 2'!A520,'Huella Completa'!A117:G786,3,FALSE)*(IF(VLOOKUP('Calculos 2'!A520,'Huella Completa'!A117:G786,4,FALSE)=\"Gasolina\",Gasolina,IF(VLOOKUP('Calculos 2'!A520,'Huella Completa'!A117:G786,4,FALSE)=\"Diesel\",Diesel,IF(VLOOKUP('Calculos 2'!A520,'Huella Completa'!A117:G786,4,FALSE)=\"GLP\",GLP,0))))","v":{"$error":"#N/A"}}]
["8.86",{"$f":"VLOOKUP('Calculos 2'!A521,'Huella Completa'!A118:G787,3,FALSE)*(IF(VLOOKUP('Calculos 2'!A521,'Huella Completa'!A118:G787,4,FALSE)=\"Gasolina\",Gasolina,IF(VLOOKUP('Calculos 2'!A521,'Huella Completa'!A118:G787,4,FALSE)=\"Diesel\",Diesel,IF(VLOOKUP('Calculos 2'!A521,'Huella Completa'!A118:G787,4,FALSE)=\"GLP\",GLP,0))))","v":{"$error":"#N/A"}}]
["8.87",{"$f":"VLOOKUP('Calculos 2'!A522,'Huella Completa'!A119:G788,3,FALSE)*(IF(VLOOKUP('Calculos 2'!A522,'Huella Completa'!A119:G788,4,FALSE)=\"Gasolina\",Gasolina,IF(VLOOKUP('Calculos 2'!A522,'Huella Completa'!A119:G788,4,FALSE)=\"Diesel\",Diesel,IF(VLOOKUP('Calculos 2'!A522,'Huella Completa'!A119:G788,4,FALSE)=\"GLP\",GLP,0))))","v":{"$error":"#N/A"}}]
["8.88",{"$f":"VLOOKUP('Calculos 2'!A523,'Huella Completa'!A120:G789,3,FALSE)*(IF(VLOOKUP('Calculos 2'!A523,'Huella Completa'!A120:G789,4,FALSE)=\"Gasolina\",Gasolina,IF(VLOOKUP('Calculos 2'!A523,'Huella Completa'!A120:G789,4,FALSE)=\"Diesel\",Diesel,IF(VLOOKUP('Calculos 2'!A523,'Huella Completa'!A120:G789,4,FALSE)=\"GLP\",GLP,0))))","v":{"$error":"#N/A"}}]
["8.89",{"$f":"VLOOKUP('Calculos 2'!A524,'Huella Completa'!A121:G790,3,FALSE)*(IF(VLOOKUP('Calculos 2'!A524,'Huella Completa'!A121:G790,4,FALSE)=\"Gasolina\",Gasolina,IF(VLOOKUP('Calculos 2'!A524,'Huella Completa'!A121:G790,4,FALSE)=\"Diesel\",Diesel,IF(VLOOKUP('Calculos 2'!A524,'Huella Completa'!A121:G790,4,FALSE)=\"GLP\",GLP,0))))","v":{"$error":"#N/A"}}]
["8.90",{"$f":"VLOOKUP('Calculos 2'!A525,'Huella Completa'!A122:G791,3,FALSE)*(IF(VLOOKUP('Calculos 2'!A525,'Huella Completa'!A122:G791,4,FALSE)=\"Gasolina\",Gasolina,IF(VLOOKUP('Calculos 2'!A525,'Huella Completa'!A122:G791,4,FALSE)=\"Diesel\",Diesel,IF(VLOOKUP('Calculos 2'!A525,'Huella Completa'!A122:G791,4,FALSE)=\"GLP\",GLP,0))))","v":{"$error":"#N/A"}}]
["8.91",{"$f":"VLOOKUP('Calculos 2'!A526,'Huella Completa'!A123:G792,3,FALSE)*(IF(VLOOKUP('Calculos 2'!A526,'Huella Completa'!A123:G792,4,FALSE)=\"Gasolina\",Gasolina,IF(VLOOKUP('Calculos 2'!A526,'Huella Completa'!A123:G792,4,FALSE)=\"Diesel\",Diesel,IF(VLOOKUP('Calculos 2'!A526,'Huella Completa'!A123:G792,4,FALSE)=\"GLP\",GLP,0))))","v":{"$error":"#N/A"}}]
["8.92",{"$f":"VLOOKUP('Calculos 2'!A527,'Huella Completa'!A124:G793,3,FALSE)*(IF(VLOOKUP('Calculos 2'!A527,'Huella Completa'!A124:G793,4,FALSE)=\"Gasolina\",Gasolina,IF(VLOOKUP('Calculos 2'!A527,'Huella Completa'!A124:G793,4,FALSE)=\"Diesel\",Diesel,IF(VLOOKUP('Calculos 2'!A527,'Huella Completa'!A124:G793,4,FALSE)=\"GLP\",GLP,0))))","v":{"$error":"#N/A"}}]
["8.93",{"$f":"VLOOKUP('Calculos 2'!A528,'Huella Completa'!A125:G794,3,FALSE)*(IF(VLOOKUP('Calculos 2'!A528,'Huella Completa'!A125:G794,4,FALSE)=\"Gasolina\",Gasolina,IF(VLOOKUP('Calculos 2'!A528,'Huella Completa'!A125:G794,4,FALSE)=\"Diesel\",Diesel,IF(VLOOKUP('Calculos 2'!A528,'Huella Completa'!A125:G794,4,FALSE)=\"GLP\",GLP,0))))","v":{"$error":"#N/A"}}]
["8.94",{"$f":"VLOOKUP('Calculos 2'!A529,'Huella Completa'!A126:G795,3,FALSE)*(IF(VLOOKUP('Calculos 2'!A529,'Huella Completa'!A126:G795,4,FALSE)=\"Gasolina\",Gasolina,IF(VLOOKUP('Calculos 2'!A529,'Huella Completa'!A126:G795,4,FALSE)=\"Diesel\",Diesel,IF(VLOOKUP('Calculos 2'!A529,'Huella Completa'!A126:G795,4,FALSE)=\"GLP\",GLP,0))))","v":{"$error":"#N/A"}}]
["8.95",{"$f":"VLOOKUP('Calculos 2'!A530,'Huella Completa'!A127:G796,3,FALSE)*(IF(VLOOKUP('Calculos 2'!A530,'Huella Completa'!A127:G796,4,FALSE)=\"Gasolina\",Gasolina,IF(VLOOKUP('Calculos 2'!A530,'Huella Completa'!A127:G796,4,FALSE)=\"Diesel\",Diesel,IF(VLOOKUP('Calculos 2'!A530,'Huella Completa'!A127:G796,4,FALSE)=\"GLP\",GLP,0))))","v":{"$error":"#N/A"}}]
["8.96",{"$f":"VLOOKUP('Calculos 2'!A531,'Huella Completa'!A128:G797,3,FALSE)*(IF(VLOOKUP('Calculos 2'!A531,'Huella Completa'!A128:G797,4,FALSE)=\"Gasolina\",Gasolina,IF(VLOOKUP('Calculos 2'!A531,'Huella Completa'!A128:G797,4,FALSE)=\"Diesel\",Diesel,IF(VLOOKUP('Calculos 2'!A531,'Huella Completa'!A128:G797,4,FALSE)=\"GLP\",GLP,0))))","v":{"$error":"#N/A"}}]
["8.97",{"$f":"VLOOKUP('Calculos 2'!A532,'Huella Completa'!A129:G798,3,FALSE)*(IF(VLOOKUP('Calculos 2'!A532,'Huella Completa'!A129:G798,4,FALSE)=\"Gasolina\",Gasolina,IF(VLOOKUP('Calculos 2'!A532,'Huella Completa'!A129:G798,4,FALSE)=\"Diesel\",Diesel,IF(VLOOKUP('Calculos 2'!A532,'Huella Completa'!A129:G798,4,FALSE)=\"GLP\",GLP,0))))","v":{"$error":"#N/A"}}]
["8.98",{"$f":"VLOOKUP('Calculos 2'!A533,'Huella Completa'!A130:G799,3,FALSE)*(IF(VLOOKUP('Calculos 2'!A533,'Huella Completa'!A130:G799,4,FALSE)=\"Gasolina\",Gasolina,IF(VLOOKUP('Calculos 2'!A533,'Huella Completa'!A130:G799,4,FALSE)=\"Diesel\",Diesel,IF(VLOOKUP('Calculos 2'!A533,'Huella Completa'!A130:G799,4,FALSE)=\"GLP\",GLP,0))))","v":{"$error":"#N/A"}}]
["8.99",{"$f":"VLOOKUP('Calculos 2'!A534,'Huella Completa'!A131:G800,3,FALSE)*(IF(VLOOKUP('Calculos 2'!A534,'Huella Completa'!A131:G800,4,FALSE)=\"Gasolina\",Gasolina,IF(VLOOKUP('Calculos 2'!A534,'Huella Completa'!A131:G800,4,FALSE)=\"Diesel\",Diesel,IF(VLOOKUP('Calculos 2'!A534,'Huella Completa'!A131:G800,4,FALSE)=\"GLP\",GLP,0))))","v":{"$error":"#N/A"}}]
["8.100",{"$f":"VLOOKUP('Calculos 2'!A535,'Huella Completa'!A132:G801,3,FALSE)*(IF(VLOOKUP('Calculos 2'!A535,'Huella Completa'!A132:G801,4,FALSE)=\"Gasolina\",Gasolina,IF(VLOOKUP('Calculos 2'!A535,'Huella Completa'!A132:G801,4,FALSE)=\"Diesel\",Diesel,IF(VLOOKUP('Calculos 2'!A535,'Huella Completa'!A132:G801,4,FALSE)=\"GLP\",GLP,0))))","v":{"$error":"#N/A"}}]
["8.0",null,{"$f":"_xlfn.AGGREGATE(9,6,B436:B535)","v":0}]
[]
["9.1",{"$f":"VLOOKUP('Calculos 2'!A538,'Huella Completa'!A16:G702,3,FALSE)*(IF(VLOOKUP('Calculos 2'!A538,'Huella Completa'!A16:G702,4,FALSE)=\"Estándar (Endesa, Gas Natural, etc.)\",mixelectrico,0))","v":0}]
["9.2",{"$f":"VLOOKUP('Calculos 2'!A539,'Huella Completa'!A17:G703,3,FALSE)*(IF(VLOOKUP('Calculos 2'!A539,'Huella Completa'!A17:G703,4,FALSE)=\"Estándar (Endesa, Gas Natural, etc.)\",mixelectrico,0))","v":0}]
["9.3",{"$f":"VLOOKUP('Calculos 2'!A540,'Huella Completa'!A18:G704,3,FALSE)*(IF(VLOOKUP('Calculos 2'!A540,'Huella Completa'!A18:G704,4,FALSE)=\"Estándar (Endesa, Gas Natural, etc.)\",mixelectrico,0))","v":0}]
["9.4",{"$f":"VLOOKUP('Calculos 2'!A541,'Huella Completa'!A19:G705,3,FALSE)*(IF(VLOOKUP('Calculos 2'!A541,'Huella Completa'!A19:G705,4,FALSE)=\"Estándar (Endesa, Gas Natural, etc.)\",mixelectrico,0))","v":0}]
["9.5",{"$f":"VLOOKUP('Calculos 2'!A542,'Huella Completa'!A20:G706,3,FALSE)*(IF(VLOOKUP('Calculos 2'!A542,'Huella Completa'!A20:G706,4,FALSE)=\"Estándar (Endesa, Gas Natural, etc.)\",mixelectrico,0))","v":0}]
["9.6",{"$f":"VLOOKUP('Calculos 2'!A543,'Huella Completa'!A21:G707,3,FALSE)*(IF(VLOOKUP('Calculos 2'!A543,'Huella Completa'!A21:G707,4,FALSE)=\"Estándar (Endesa, Gas Natural, etc.)\",mixelectrico,0))","v":0}]
["9.7",{"$f":"VLOOKUP('Calculos 2'!A544,'Huella Completa'!A23:G708,3,FALSE)*(IF(VLOOKUP('Calculos 2'!A544,'Huella Completa'!A23:G708,4,FALSE)=\"Estándar (Endesa, Gas Natural, etc.)\",mixelectrico,0))","v":0}]
["9.8",{"$f":"VLOOKUP('Calculos 2'!A545,'Huella Completa'!A24:G709,3,FALSE)*(IF(VLOOKUP('Calculos 2'!A545,'Huella Completa'!A24:G709,4,FALSE)=\"Estándar (Endesa, Gas Natural, etc.)\",mixelectrico,0))","v":0}]
["9.9",{"$f":"VLOOKUP('Calculos 2'!A546,'Huella Completa'!A25:G710,3,FALSE)*(IF(VLOOKUP('Calculos 2'!A546,'Huella Completa'!A25:G710,4,FALSE)=\"Estándar (Endesa, Gas Natural, etc.)\",mixelectrico,0))","v":0}]
["9.10",{"$f":"VLOOKUP('Calculos 2'!A547,'Huella Completa'!A26:G711,3,FALSE)*(IF(VLOOKUP('Calculos 2'!A547,'Huella Completa'!A26:G711,4,FALSE)=\"Estándar (Endesa, Gas Natural, etc.)\",mixelectrico,0))","v":0}]
["9.11",{"$f":"VLOOKUP('Calculos 2'!A548,'Huella Completa'!A34:G712,3,FALSE)*(IF(VLOOKUP('Calculos 2'!A548,'Huella Completa'!A34:G712,4,FALSE)=\"Estándar (Endesa, Gas Natural, etc.)\",mixelectrico,0))","v":{"$error":"#N/A"}}]
["9.12",{"$f":"VLOOKUP('Calculos 2'!A549,'Huella Completa'!A35:G713,3,FALSE)*(IF(VLOOKUP('Calculos 2'!A549,'Huella Completa'!A35:G713,4,FALSE)=\"Estándar (Endesa, Gas Natural, etc.)\",mixelectrico,0))","v":{"$error":"#N/A"}}]
["9.13",{"$f":"VLOOKUP('Calculos 2'!A550,'Huella Completa'!A36:G714,3,FALSE)*(IF(VLOOKUP('Calculos 2'!A550,'Huella Completa'!A36:G714,4,FALSE)=\"Estándar (Endesa, Gas Natural, etc.)\",mixelectrico,0))","v":{"$error":"#N/A"}}]
["9.14",{"$f":"VLOOKUP('Calculos 2'!A551,'Huella Completa'!A37:G715,3,FALSE)*(IF(VLOOKUP('Calculos 2'!A551,'Huella Completa'!A37:G715,4,FALSE)=\"Estándar (Endesa, Gas Natural, etc.)\",mixelectrico,0))","v":{"$error":"#N/A"}}]
["9.15",{"$f":"VLOOKUP('Calculos 2'!A552,'Huella Completa'!A38:G716,3,FALSE)*(IF(VLOOKUP('Calculos 2'!A552,'Huella Completa'!A38:G716,4,FALSE)=\"Estándar (Endesa, Gas Natural, etc.)\",mixelectrico,0))","v":{"$error":"#N/A"}}]
["9.16",{"$f":"VLOOKUP('Calculos 2'!A553,'Huella Completa'!A39:G717,3,FALSE)*(IF(VLOOKUP('Calculos 2'!A553,'Huella Completa'!A39:G717,4,FALSE)=\"Estándar (Endesa, Gas Natural, etc.)\",mixelectrico,0))","v":{"$error":"#N/A"}}]
["9.17",{"$f":"VLOOKUP('Calculos 2'!A554,'Huella Completa'!A40:G718,3,FALSE)*(IF(VLOOKUP('Calculos 2'!A554,'Huella Completa'!A40:G718,4,FALSE)=\"Estándar (Endesa, Gas Natural, etc.)\",mixelectrico,0))","v":{"$error":"#N/A"}}]
["9.18",{"$f":"VLOOKUP('Calculos 2'!A555,'Huella Completa'!A41:G719,3,FALSE)*(IF(VLOOKUP('Calculos 2'!A555,'Huella Completa'!A41:G719,4,FALSE)=\"Estándar (Endesa, Gas Natural, etc.)\",mixelectrico,0))","v":{"$error":"#N/A"}}]
["9.19",{"$f":"VLOOKUP('Calculos 2'!A556,'Huella Completa'!A42:G720,3,FALSE)*(IF(VLOOKUP('Calculos 2'!A556,'Huella Completa'!A42:G720,4,FALSE)=\"Estándar (Endesa, Gas Natural, etc.)\",mixelectrico,0))","v":{"$error":"#N/A"}}]
["9.20",{"$f":"VLOOKUP('Calculos 2'!A557,'Huella Completa'!A43:G721,3,FALSE)*(IF(VLOOKUP('Calculos 2'!A557,'Huella Completa'!A43:G721,4,FALSE)=\"Estándar (Endesa, Gas Natural, etc.)\",mixelectrico,0))","v":{"$error":"#N/A"}}]
["9.21",{"$f":"VLOOKUP('Calculos 2'!A558,'Huella Completa'!A44:G722,3,FALSE)*(IF(VLOOKUP('Calculos 2'!A558,'Huella Completa'!A44:G722,4,FALSE)=\"Estándar (Endesa, Gas Natural, etc.)\",mixelectrico,0))","v":{"$error":"#N/A"}}]
["9.22",{"$f":"VLOOKUP('Calculos 2'!A559,'Huella Completa'!A45:G723,3,FALSE)*(IF(VLOOKUP('Calculos 2'!A559,'Huella Completa'!A45:G723,4,FALSE)=\"Estándar (Endesa, Gas Natural, etc.)\",mixelectrico,0))","v":{"$error":"#N/A"}}]
["9.23",{"$f":"VLOOKUP('Calculos 2'!A560,'Huella Completa'!A46:G724,3,FALSE)*(IF(VLOOKUP('Calculos 2'!A560,'Huella Completa'!A46:G724,4,FALSE)=\"Estándar (Endesa, Gas Natural, etc.)\",mixelectrico,0))","v":{"$error":"#N/A"}}]
["9.24",{"$f":"VLOOKUP('Calculos 2'!A561,'Huella Completa'!A47:G725,3,FALSE)*(IF(VLOOKUP('Calculos 2'!A561,'Huella Completa'!A47:G725,4,FALSE)=\"Estándar (Endesa, Gas Natural, etc.)\",mixelectrico,0))","v":{"$error":"#N/A"}}]
["9.25",{"$f":"VLOOKUP('Calculos 2'!A562,'Huella Completa'!A48:G726,3,FALSE)*(IF(VLOOKUP('Calculos 2'!A562,'Huella Completa'!A48:G726,4,FALSE)=\"Estándar (Endesa, Gas Natural, etc.)\",mixelectrico,0))","v":{"$error":"#N/A"}}]
["9.26",{"$f":"VLOOKUP('Calculos 2'!A563,'Huella Completa'!A49:G727,3,FALSE)*(IF(VLOOKUP('Calculos 2'!A563,'Huella Completa'!A49:G727,4,FALSE)=\"Estándar (Endesa, Gas Natural, etc.)\",mixelectrico,0))","v":{"$error":"#N/A"}}]
["9.27",{"$f":"VLOOKUP('Calculos 2'!A564,'Huella Completa'!A50:G728,3,FALSE)*(IF(VLOOKUP('Calculos 2'!A564,'Huella Completa'!A50:G728,4,FALSE)=\"Estándar (Endesa, Gas Natural, etc.)\",mixelectrico,0))","v":{"$error":"#N/A"}}]
["9.28",{"$f":"VLOOKUP('Calculos 2'!A565,'Huella Completa'!A51:G729,3,FALSE)*(IF(VLOOKUP('Calculos 2'!A565,'Huella Completa'!A51:G729,4,FALSE)=\"Estándar (Endesa, Gas Natural, etc.)\",mixelectrico,0))","v":{"$error":"#N/A"}}]
["9.29",{"$f":"VLOOKUP('Calculos 2'!A566,'Huella Completa'!A52:G730,3,FALSE)*(IF(VLOOKUP('Calculos 2'!A566,'Huella Completa'!A52:G730,4,FALSE)=\"Estándar (Endesa, Gas Natural, etc.)\",mixelectrico,0))","v":{"$error":"#N/A"}}]
["9.30",{"$f":"VLOOKUP('Calculos 2'!A567,'Huella Completa'!A53:G731,3,FALSE)*(IF(VLOOKUP('Calculos 2'!A567,'Huella Completa'!A53:G731,4,FALSE)=\"Estándar (Endesa, Gas Natural, etc.)\",mixelectrico,0))","v":{"$error":"#N/A"}}]
["9.0",null,{"$f":"_xlfn.AGGREGATE(9,6,B538:B567)","v":0}]
[]
["13.1",{"$f":"VLOOKUP('Calculos 2'!A570,'Huella Completa'!A16:G702,3,FALSE)*consumoagua/1000","v":0}]
["13.2",{"$f":"VLOOKUP('Calculos 2'!A571,'Huella Completa'!A17:G703,3,FALSE)*consumoagua/1000","v":0}]
["13.3",{"$f":"VLOOKUP('Calculos 2'!A572,'Huella Completa'!A18:G704,3,FALSE)*consumoagua/1000","v":0}]
["13.4",{"$f":"VLOOKUP('Calculos 2'!A573,'Huella Completa'!A19:G705,3,FALSE)*consumoagua/1000","v":{"$error":"#N/A"}}]
["13.5",{"$f":"VLOOKUP('Calculos 2'!A574,'Huella Completa'!A20:G706,3,FALSE)*consumoagua/1000","v":{"$error":"#N/A"}}]
["13.6",{"$f":"VLOOKUP('Calculos 2'!A575,'Huella Completa'!A21:G707,3,FALSE)*consumoagua/1000","v":{"$error":"#N/A"}}]
["13.7",{"$f":"VLOOKUP('Calculos 2'!A576,'Huella Completa'!A23:G708,3,FALSE)*consumoagua/1000","v":{"$error":"#N/A"}}]
["13.8",{"$f":"VLOOKUP('Calculos 2'!A577,'Huella Completa'!A24:G709,3,FALSE)*consumoagua/1000","v":{"$error":"#N/A"}}]
["13.9",{"$f":"VLOOKUP('Calculos 2'!A578,'Huella Completa'!A25:G710,3,FALSE)*consumoagua/1000","v":{"$error":"#N/A"}}]
["13.10",{"$f":"VLOOKUP('Calculos 2'!A579,'Huella Completa'!A26:G711,3,FALSE)*consumoagua/1000","v":{"$error":"#N/A"}}]
["13.11",{"$f":"VLOOKUP('Calculos 2'!A580,'Huella Completa'!A34:G712,3,FALSE)*consumoagua/1000","v":{"$error":"#N/A"}}]
["13.12",{"$f":"VLOOKUP('Calculos 2'!A581,'Huella Completa'!A35:G713,3,FALSE)*consumoagua/1000","v":{"$error":"#N/A"}}]
["13.13",{"$f":"VLOOKUP('Calculos 2'!A582,'Huella Completa'!A36:G714,3,FALSE)*consumoagua/1000","v":{"$error":"#N/A"}}]
["13.14",{"$f":"VLOOKUP('Calculos 2'!A583,'Huella Completa'!A37:G715,3,FALSE)*consumoagua/1000","v":{"$error":"#N/A"}}]
["13.15",{"$f":"VLOOKUP('Calculos 2'!A584,'Huella Completa'!A38:G716,3,FALSE)*consumoagua/1000","v":{"$error":"#N/A"}}]
["13.16",{"$f":"VLOOKUP('Calculos 2'!A585,'Huella Completa'!A39:G717,3,FALSE)*consumoagua/1000","v":{"$error":"#N/A"}}]
["13.17",{"$f":"VLOOKUP('Calculos 2'!A586,'Huella Completa'!A40:G718,3,FALSE)*consumoagua/1000","v":{"$error":"#N/A"}}]
["13.18",{"$f":"VLOOKUP('Calculos 2'!A587,'Huella Completa'!A41:G719,3,FALSE)*consumoagua/1000","v":{"$error":"#N/A"}}]
["13.19",{"$f":"VLOOKUP('Calculos 2'!A588,'Huella Completa'!A42:G720,3,FALSE)*consumoagua/1000","v":{"$error":"#N/A"}}]
["13.20",{"$f":"VLOOKUP('Calculos 2'!A589,'Huella Completa'!A43:G721,3,FALSE)*consumoagua/1000","v":{"$error":"#N/A"}}]
["13.21",{"$f":"VLOOKUP('Calculos 2'!A590,'Huella Completa'!A44:G722,3,FALSE)*consumoagua/1000","v":{"$error":"#N/A"}}]
["13.22",{"$f":"VLOOKUP('Calculos 2'!A591,'Huella Completa'!A45:G723,3,FALSE)*consumoagua/1000","v":{"$error":"#N/A"}}]
["13.23",{"$f":"VLOOKUP('Calculos 2'!A592,'Huella Completa'!A46:G724,3,FALSE)*consumoagua/1000","v":{"$error":"#N/A"}}]
["13.24",{"$f":"VLOOKUP('Calculos 2'!A593,'Huella Completa'!A47:G725,3,FALSE)*consumoagua/1000","v":{"$error":"#N/A"}}]
["13.25",{"$f":"VLOOKUP('Calculos 2'!A594,'Huella Completa'!A48:G726,3,FALSE)*consumoagua/1000","v":{"$error":"#N/A"}}]
["13.26",{"$f":"VLOOKUP('Calculos 2'!A595,'Huella Completa'!A49:G727,3,FALSE)*consumoagua/1000","v":{"$error":"#N/A"}}]
["13.27",{"$f":"VLOOKUP('Calculos 2'!A596,'Huella Completa'!A50:G728,3,FALSE)*consumoagua/1000","v":{"$error":"#N/A"}}]
["13.28",{"$f":"VLOOKUP('Calculos 2'!A597,'Huella Completa'!A51:G729,3,FALSE)*consumoagua/1000","v":{"$error":"#N/A"}}]
["13.29",{"$f":"VLOOKUP('Calculos 2'!A598,'Huella Completa'!A52:G730,3,FALSE)*consumoagua/1000","v":{"$error":"#N/A"}}]
["13.30",{"$f":"VLOOKUP('Calculos 2'!A599,'Huella Completa'!A53:G731,3,FALSE)*consumoagua/1000","v":{"$error":"#N/A"}}]
["13.0",null,{"$f":"_xlfn.AGGREGATE(9,6,B570:B599)","v":0}]
[]
[]
[]
["14.1",{"$f":"VLOOKUP('Calculos 2'!A604,'Huella Completa'!A58:G736,3,FALSE)*edsonido","v":0}]
["14.2",{"$f":"VLOOKUP('Calculos 2'!A605,'Huella Completa'!A59:G737,3,FALSE)*edsonido","v":0}]
["14.3",{"$f":"VLOOKUP('Calculos 2'!A606,'Huella Completa'!A60:G738,3,FALSE)*Foley","v":0}]
["14.4",{"$f":"VLOOKUP('Calculos 2'!A607,'Huella Completa'!A61:G739,3,FALSE)*efectesp","v":0}]
["14.5",{"$f":"VLOOKUP('Calculos 2'!A608,'Huella Completa'!A62:G740,3,FALSE)*lab","v":0}]
["14.6"]
["14.7"]
["14.8"]
["14.9"]
["14.10"]
["14.11"]
["14.12"]
["14.13"]
["14.14"]
["14.15"]
["14.16"]
["14.17"]
["14.18"]
["14.19"]
["14.20"]
["14.21"]
["14.22"]
["14.23"]
["14.24"]
["14.25"]
["14.26"]
["14.27"]
["14.28"]
["14.29"]
["14.30"]
["14.0",null,{"$f":"_xlfn.AGGREGATE(9,6,B604:B633)","v":0}]
[]
[]
[]
[]
[]
[]
[]
[]
[]
[]
[]
[]
[]
[]
[]
[]
[]
[]
[]
[]
[]
[]
[]
[]
[]
[]
[]
[]
[]
[]
[]
[]
[]
[]
[]
[]
[]
[]
[]
[]
[]
[]
[]
[]
[]
[]
[]
[]
[]
[]
[]
[]
[]
[]
[]
[]
[]
[]
[]
[]
[]
[]
[]
[]
[]
[]
[]
[]
[]
[]
[]
[]
[]
[]
[]
[]
[]
[]
[]
[]
[]
[]
[]
[]
[]
[]
[]
[]
[]
[]
[]
[]
[]
[]
[]
[]
[]
[]
[]
[]
[]
[]
[]
[]
[]
[]
[]
[]
[]
[]
[]
[]
[]
[]
[]
[]
[]
[]
[]
[]
[]
[]
[]
[]
[]
[]
[]
[]
[]
[]
[]
[]
[]
[]
[]
[]
[]
[]
[]
[]
[]
[]
[]
[]
[]
[]
[]
[]
[]
[]
[]
[]
[]
[]
[]
[]
[]
[]
[]
[]
[]
[]
[]
[]
[]
[]
[]
[]
[]
[]
[]
[]
[]
[]
[]
[]
[]
[]
[]
[]
[]
[]
[]
[]
[]
[]
[]
[]
[]
[]
[]
[]
[]
[]
[]
[]
[]
[]
[]
[]
[]
[]
[]
[]
[]
[]
[]
[]
[]
[]
[]
[]
[]
[]
[]
[]
[]
[]
[]
[]
[]
[]
[]
[]
[]
[]
[]
[]
[]
[]
[]
[]
[]
[]
[]
[]
[]
[]
[]
[]
[]
[]
[]
[]
[]
[]
[]
[]
[]
[]
[]
[]
[]
[]
[]
[]
[]
[]
[]
[]
[]
[]
[]
[]
[]
[]
[]
[]
[]
[]
[]
[]
[]
[]
[]
[]
[]
[]
[]
[]
[]
[]
[]
[]
[]
[]
[]
[]
[]
[]
[]
[]
[]
[]
[]
[]
[]
[]
[]
[]
[]
[]
[]
[]
[]
[]
[]
[]
[]
[]
[]
[]
[]
[]
[]
[]
[]
[]
[]
[]
[]
[]
[]
[]
[]
[]
[]
[]
[]
[]
[]
[]
[]
[]
[]
[]
[]
[]
[]
[]
[]
[]
[]
[]
[]
[]
[]
[]
[]
[]
[]
[]
[]
[]
[]
[]
[]
[]
[]
[]
[]
[]
[]
[]
[]
[]
[]
[]
[]
[]
[]
[]
[]
[]
[]
[]
[]
[]
[]
[]
[]
[]
[]
[]
[]
[null,{"$f":"_xlfn.AGGREGATE(9,6,B1:B1019)","v":0}]

{"sheet":"Factores de emision","index":7,"n_rows":117,"n_cols":14,"rows_kept":117,"cut":false,"hidden":false,"merged":[[48,10,53,10],[54,10,56,10],[57,10,64,10],[65,10,68,10],[57,1,64,1],[65,1,68,1],[46,1,46,2],[48,1,53,1],[54,1,56,1],[47,0,47,4],[26,0,46,0],[26,1,26,2],[27,1,27,2],[28,1,28,2],[29,1,29,2],[30,1,30,2],[31,1,31,2],[32,1,32,2],[33,1,33,2],[45,1,45,2],[40,1,40,2],[41,1,41,2],[42,1,42,2],[43,1,43,2],[44,1,44,2],[39,1,39,2],[11,1,11,2],[12,1,12,2],[13,1,17,1],[18,1,18,2],[34,1,34,2],[35,1,35,2],[36,1,36,2],[37,1,37,2],[38,1,38,2],[19,0,25,0],[19,1,19,2],[20,1,20,2],[21,1,21,2],[22,1,22,2],[23,1,23,2],[24,1,25,2],[5,0,18,0],[5,1,5,2],[6,1,7,1],[8,1,9,1],[10,1,10,2],[0,0,0,3],[2,0,3,0],[2,1,2,2],[3,1,3,2],[4,1,4,2],[92,10,97,10],[92,11,96,11],[98,10,104,10],[70,10,90,10],[69,0,69,4],[70,1,90,1],[92,1,97,1],[92,2,96,2],[98,1,104,1]]}
["FUENTE DE EMISIÓN"]
[null,null,null,"Valor (Uds.)"]
["Combustión fija","Gas natural",null,"0,253","kgCO2/kWh"]
[null,"Gasóleo C",null,2828,"kCO2/l"]
["Electricidad","Mix eléctrico español sin GdO, 2015",null,0.43,"kgCO2/kWh"]
["Transporte","Avión pasajeros",null,{"$f":"0.00027*1000","v":0.27},0.133595138]
[null,"Buques","Gasolina",2.2050000000000001,"kgCO2/l"]
[null,null,"Gasoil",2.508,"kgCO2/l"]
[null,"Aeronaves","Gasolina",69300,"kgCO2/TJ"]
[null,null,"Queroseno",71500,"kgCO2/TJ"]
[null,"Tren",null,"0,017","kgCO2/km.per"]
[null,"Autobús",null,"0,05517","kgCO2/km.per"]
[null,"Moto",null,"0,13","kgCO2/km.per"]
[null,"Coches según combustible","Diesel",2.508,"kgCO2/l"]
[null,null,"Gasolina",2.2050000000000001,"kgCO2/l"]
[null,null,"E10",2.0649999999999999,"kgCO2/l"]
[null,null,"GLP",1.671,"kgCO2/l"]
[null,null,"B30",1.831,"kgCO2/l"]
[null,"Coche genérico (Tr. interno)",null,1.669,"kgCO2/km"]
["Residuos","TIPO",null,"Transporte + Tratamiento"]
[null,"Papel y cartón",null,"0,0669","kgCO2/kg"]
[null,"Vidrio",null,"0,0305","kgCO2/kg"]
[null,"Envases",null,"0,12009","kgCO2/kg"]
[null,"Madera",null,"0,57297","kgCO2/kg"]
[null,"R.S.U. y escombro",null,"Transporte: 60/1000","kgCO2 /t.km"]
[null,null,null,"Tratamiento: 0,015749","kgCO2 /k"]
["FUENTE DE EMISIÓN","Nombre",null,"FE DIRECTO (kg CO2 /€)"]
[null,"Obras",null,"0,011","kg CO2 /€"]
[null,"Estudios y proyectos",null,"0,001","kg CO2 /€"]
[null,"Limpieza y seguridad",null,"0,007","kg CO2 /€"]
[null,"Transportes no incluidos en alcance 1",null,"0,388","kg CO2 /€"]
[null,"Otros suministros",null,"0,03","kg CO2 /€"]
[null,"Edición",null,"0,004","kg CO2 /€"]
[null,"Jurídicos",null,"0,007","kg CO2 /€"]
[null,"Mudanzas",null,"0,388","kg CO2 /€"]
[null,"Actividades de agencias de viaje",null,"0,001","kg CO2 /€"]
[null,"Publicidad y propaganda",null,"0,004","kg CO2 /€"]
[null,"Suministro maquinaria",null,"0,024","kg CO2 /€"]
[null,"Reparación de vehículos",null,"0,026","kg CO2 /€"]
[null,"Mensajería",null,"0,049","kg CO2 /€"]
[null,"Suministro material electrónico",null,"0,036","kg CO2 /€"]
[null,"Vestuario",null,"0,032","kg CO2 /€"]
[null,"Servicios telecomunicaciones",null,"0,005","kg CO2 /€"]
[null,"Productos farmacéuticos",null,"0,006","kg CO2 /€"]
[null,"Reuniones / conferencias",null,"0,005","kg CO2 /€"]
[null,"Suministro de agua",null,"0,014","kg CO2 /€"]
[null,"Hostelería",null,"0,001","kg CO2 /€"]
["Calculadora de Flandes"]
[null,"Combustible","Diesel",null,null,null,null,null,null,null,"Combustible","Diesel"]
[]
[null,null,"Gasolina",{"$f":"M51*1000","v":2.4155499999999996},"kgCO2/l",null,null,null,null,null,null,"Gasolina","0,00241555","TonCO2/l"]
[null,null,null,{"$f":"M52*1000","v":0.14358000000000001},"kgCO2/km",null,null,null,null,null,null,null,"0,00014358","TonCO2/km"]
[null,null,"GLP",1.60947,"kgCO2/l",null,null,null,null,null,null,"GLP","0,00160947","TonCO2/l"]
[null,null,null,0.15295,"kgCO2/km",null,null,null,null,null,null,null,"0,00015295","TonCO2/km"]
[null,"Electricidad","electricidad",0.4,"kgCO2/kWh",null,null,null,null,null,"Electricidad","electricidad","0,00040000","TonCO2/kWh"]
[null,null,"gas natural",0.20087999999999998,"kgCO2/kWh",null,null,null,null,null,null,"gas natural","0,00020088","TonCO2/kWh"]
[null,null,"combustible ligero",0.26387999999999995,"kgCO2/kWh",null,null,null,null,null,null,"combustible ligero","0,00026388","TonCO2/kWh"]
[null,"Transporte","camion",1.01,"kgCO2/km",null,null,null,null,null,"Transporte","camion","0,00101000","TonCO2/km"]
[null,null,"avión",1.0399999999999998,"kgCO2/km",null,null,null,null,null,null,"avión","0,00104000","TonCO2/km"]
[null,null,"bote",6.0000000000000005E-2,"kgCO2/km",null,null,null,null,null,null,"bote","0,00006000","TonCO2/km"]
[null,null,"trein",2.7E-2,"kgCO2/km",null,null,null,null,null,null,"trein","0,00002700","TonCO2/km"]
[null,null,"minibus",0.21000000000000002,"kgCO2/km",null,null,null,null,null,null,"minibus","0,00021000","TonCO2/km"]
[null,null,"carga ligera",0.21000000000000002,"kgCO2/km",null,null,null,null,null,null,"carga ligera","0,00021000","TonCO2/km"]
[null,null,"Transporte público",6.4999999999999988E-2,"kgCO2/km",null,null,null,null,null,null,"Transporte público","0,00006500","TonCO2/km"]
[null,null,"personas en avión",0.27,"kgCO2/km",null,null,null,null,null,null,"personas en avión","0,00027000","TonCO2/km"]
[null,"Alojamiento y comidas","noche en el hotel",12,"kgCO2/noche",null,null,null,null,null,"Alojamiento y comidas","noche en el hotel","0,01200000","TonCO2/noche"]
[null,null,"comida",1.4300000000000002,"kgCO2/comida",null,null,null,null,null,null,"comida","0,00143000","TonCO2/comida"]
[null,null,"productos locales",{"$f":"comida*0.8","v":1.1440000000000001},"kgCO2/comida"]
[null,null,"comida vegetariana",0.85799999999999998,"kgCO2/comida",null,null,null,null,null,null,"comida vegetariana","0,00085800","TonCO2/comida"]
["Green Production"]
[null,"Combustible","Fuel","EF","Units",null,null,null,null,null,"Combustible","Fuel","EF","Units"]
[null,null,"Natural gas",{"$f":"M72/H73","v":1.8716804158661995},"kg CO2/cubic foot",null,"Gallon",3.7854117999999999,"litros",null,null,"Natural gas","0,053","kg CO2/cubic foot"]
[null,null,"Fuel Oil",{"$f":"M73/$H$72","v":2.6971966431763121},"kgCO2/l",null,"cubic foot",2.83168E-2,"m3",null,null,"Fuel Oil","10,21","kg CO2/gallon"]
[null,null,"Kerosene",{"$f":"M74/$H$72","v":2.6813463201018184},"kgCO2/l",null,"milla",1.60934,"km",null,null,"Kerosene","10,15","kg CO2/gallon"]
[null,null,"Propane",1.4767217664403118,"kgCO2/l",null,null,null,null,null,null,"Propane","5,59","kg CO2/gallon"]
[null,null,"Gasoline",2.3194306099008832,"kgCO2/l",null,null,null,null,null,null,"Gasoline","8,78","kg CO2/gallon"]
[null,null,"Diesel Fuel",2.6971966431763121,"kgCO2/l",null,null,null,null,null,null,"Diesel Fuel","10,21","kg CO2/gallon"]
[null,null,"Aviation Gasoline",2.1952697458173507,"kgCO2/l",null,null,null,null,null,null,"Aviation Gasoline","8,31","kg CO2/gallon"]
[null,null,"Jet Fuel",2.5756774996051948,"kgCO2/l",null,null,null,null,null,null,"Jet Fuel","9,75","kg CO2/gallon"]
[null,null,"Kerosene",2.6813463201018184,"kgCO2/l",null,null,null,null,null,null,"Kerosene","10,15","kg CO2/gallon"]
[null,null,"RFO (Ships)",2.9772190174923638,"kgCO2/l",null,null,null,null,null,null,"RFO (Ships)","11,27","kg CO2/gallon"]
[null,null,"Biodiesel (B100)",2.4964258842327274,"kgCO2/l",null,null,null,null,null,null,"Biodiesel (B100)","9,45","kg CO2/gallon"]
[null,null,"B5",2.6866297611266496,"kgCO2/l",null,null,null,null,null,null,"B5","10,17","kg CO2/gallon"]
[null,null,"B20",2.6575708354900782,"kgCO2/l",null,null,null,null,null,null,"B20","10,06","kg CO2/gallon"]
[null,null,"B40",2.6179450278038443,"kgCO2/l",null,null,null,null,null,null,"B40","9,91","kg CO2/gallon"]
[null,null,"B99",2.499067604745143,"kgCO2/l",null,null,null,null,null,null,"B99","9,46","kg CO2/gallon"]
[null,null,"Ethanol (E100)",1.5189892946389612,"kgCO2/l",null,null,null,null,null,null,"Ethanol (E100)","5,75","kg CO2/gallon"]
[null,null,"E85",1.6378667176976625,"kgCO2/l",null,null,null,null,null,null,"E85","6,2","kg CO2/gallon"]
[null,null,"LNG",1.1782073485373508,"kgCO2/l",null,null,null,null,null,null,"LNG","4,46","kg CO2/gallon"]
[null,null,"LPG",1.5295561766886234,"kgCO2/l",null,null,null,null,null,null,"LPG","5,79","kg CO2/gallon"]
[null,null,"CNG",18867.96041582583,"kgCO2/l",null,null,null,null,null,null,"CNG",71423,"kg CO2/gallon equivalent* (converted from kg CO2/std cubic feet)"]
[null,"Electricidad",null,"0,298784","KgCO2/KWh",null,null,null,null,null,"Electricidad",null,"0,298784","Kg CO2/KWh"]
[null,"Tranporte","Avión","Length Classification","EF (kg CO2/passenger mile)",null,null,null,null,null,"Tranporte","Avión","Length Classification","EF (kg CO2/passenger mile)"]
[null,null,null,{"$f":"N94/$H$74","v":0.18019809362844394},"Short",null,null,null,null,null,null,null,"Short","0,29"]
[null,null,null,{"$f":"N95/$H$74","v":0.10252650154721812},"Medium",null,null,null,null,null,null,null,"Medium","0,165"]
[null,null,null,0.11743944722681347,"Long",null,null,null,null,null,null,null,"Long","0,189"]
[null,null,null,0.13359513837970846,"Average",null,null,null,null,null,null,null,"Average","0,215"]
[null,null,"Helicoptero",{"$f":"M98*H74/H72","v":0.72274250320665245},"km por litro",null,null,null,null,null,null,"Helicoptero","1,7","miles per gallon"]
[null,"Alojamiento","Economy Hotel","10,31","kWh/square foot/yr",null,null,null,null,null,"Alojamiento","Economy Hotel","10,31","kWh/square foot/yr"]
[null,null,"Midscale Hotel","16,57","kWh/square foot/yr",null,null,null,null,null,null,"Midscale Hotel","16,57","kWh/square foot/yr"]
[null,null,"Upscale Hotel","14,96","kWh/square foot/yr",null,null,null,null,null,null,"Upscale Hotel","14,96","kWh/square foot/yr"]
[null,null,"Luxury Hotel","18,18","kWh/square foot/yr",null,null,null,null,null,null,"Luxury Hotel","18,18","kWh/square foot/yr"]
[null,null,"Apartment/Condo",11.32,"kWh/yr",null,null,null,null,null,null,"Apartment/Condo",11.32,"kWh/yr"]
[null,null,"Average House",6.3760000000000003,"kWh/yr",null,null,null,null,null,null,"Average House",6.3760000000000003,"kWh/yr"]
[null,null,"Large House",17.498000000000001,"kWh/yr",null,null,null,null,null,null,"Large House",17.498000000000001,"kWh/yr"]
[]
[]
[]
[null,null,"Edición de video",{"$f":"H109*1000","v":38.9},"kgCO2/dia",null,null,3.8899999999999997E-2]
[null,null,"Edición de sonido",{"$f":"H110*1000","v":30.869999999999997},"kgCO2/dia",null,null,3.0869999999999998E-2]
[null,null,"Foley",421.6,"kgCO2/dia",null,null,0.42160000000000003]
[null,null,"Efectos especiales",0.11,"kgCO2/eur",null,null,1.1E-4]
[null,null,"Laboratorio",0.27500000000000002,"kgCO2/eur",null,null,2.7500000000000002E-4]
[]
[]
[null,null,"Factor de emision de OCCC"]
[null,null,"Consumo de agua",0.39500000000000002,"kg CO2eq/m3"]